{"text_format":"1","workbook":"xlsx","n_sheets":17,"sheets":["Notes","Summary","Region (Local Office) Q1","Trusts Q1","Sites Q1","Region (Local Office) Q2","Trusts Q2","Sites Q2","Region (Local Office) Q3","Trusts Q3","Sites Q3","Region (Local Office) Q4","Trusts Q4","BSQ1","BSQ2","BSQ3","BSQ4"],"not_rendered":{"charts":0,"images":0,"macros":1,"external_links":1,"defined_names":15,"comments":0,"pivot_tables":0},"unopened":[],"bounds":{"document_bytes":16777216,"sheet_cells":100000,"rows_first":2000,"rows_last":500,"rows_between":2000,"halvings":0,"cell_chars":16384,"cell_head_chars":4096},"cells_cut":0,"cells_raw":0,"read":"whole","date_system":"1900"}

{"sheet":"Notes","index":0,"n_rows":2,"n_cols":1,"rows_kept":2,"cut":false,"hidden":false,"merged":[[1,8,3,14]]}
[]
["Maternity Friends and Family Test (FFT) Data - February 2019"]

{"sheet":"Summary","index":1,"n_rows":23,"n_cols":12,"rows_kept":23,"cut":false,"hidden":false,"merged":[[6,1,7,1],[6,4,6,5],[6,6,6,7],[6,8,6,9],[6,10,6,11]]}
[]
[]
[]
[]
[]
[]
[null,"FFT","Number of organisations submitting","Total responses to date","Responses",null,"Response Rate",null,"Score (% recommend)",null,"Score (% not recommend)"]
[null,null,{"$f":"[1]Instructions!$D$1","v":"2019-02-01"},{"$f":"[1]Instructions!$D$1","v":"2019-02-01"},{"$f":"[1]Instructions!$D$1","v":"2019-02-01"},{"$f":"[1]Instructions!$D$1-5","v":"2019-01-27"},{"$f":"[1]Instructions!$D$1","v":"2019-02-01"},{"$f":"[1]Instructions!$D$1-5","v":"2019-01-27"},{"$f":"[1]Instructions!$D$1","v":"2019-02-01"},{"$f":"[1]Instructions!$D$1-5","v":"2019-01-27"},{"$f":"[1]Instructions!$D$1","v":"2019-02-01"},{"$f":"[1]Instructions!$D$1-5","v":"2019-01-27"}]
[null,"Maternity Total","NA",2321787,32053,33983,"NA","NA",0.96175085015443174,0.95947973986993496,1.4943999001653512E-2,1.5566606832828178E-2]
[null,"Maternity NHS Total","NA",2318906,31945,33815,"NA","NA",0.96162153701674757,0.95936714475824336,1.499452183440288E-2,1.5614372319976342E-2]
[null,"Maternity IS Total","NA",2881,108,168,"NA","NA",1,0.9821428571428571,0,5.9523809523809521E-3]
[null,"Antenatal Total",131,461603,7134,7550,"NA","NA",0.95304177179702831,0.95562913907284763,1.8783291281188674E-2,1.7615894039735101E-2]
[null,"Antenatal NHS ",130,460577,7097,7498,"NA","NA",0.95279695646047624,0.95532141904507872,1.8881217415809497E-2,1.7738063483595627E-2]
[null,"Antenatal IS",1,1026,37,52,"NA","NA",1,1,0,0]
[null,"Birth Total",131,726464,9567,10318,0.22217319616358189,0.2184998517640083,0.97365945437441204,0.96898623764295411,1.1706909166927982E-2,1.2890094979647219E-2]
[null,"Birth NHS",130,726107,9560,10302,0.22217057866604695,0.21831821649571925,0.97364016736401671,0.96893807027761603,1.1715481171548118E-2,1.2910114540865851E-2]
[null,"Birth IS",1,357,7,16,0.22580645161290322,0.47058823529411764,1,1,0,0]
[null,"Postnatal Ward Total",130,783479,11096,11576,"NA","NA",0.95079307858687812,0.94652729785763645,1.7393655371304974E-2,1.9609536973047684E-2]
[null,"Postnatal Ward Total NHS",130,783479,11096,11576,"NA","NA",0.95079307858687812,0.94652729785763645,1.7393655371304974E-2,1.9609536973047684E-2]
[null,"Postnatal Ward Total IS","NA","NA","NA","NA","NA","NA","NA","NA","NA","NA"]
[null,"Postnatal Community Total",131,350241,4256,4539,"NA","NA",0.97814849624060152,0.97730777704340166,9.3984962406015032E-3,7.9312623925974889E-3]
[null,"Postnatal Community NHS",130,348743,4192,4439,"NA","NA",0.97781488549618323,0.97747240369452582,9.5419847328244278E-3,7.8846587069159729E-3]
[null,"Postnatal Community IS",1,1498,64,100,"NA","NA",1,0.97,0,0.01]

{"sheet":"Region (Local Office) Q1","index":2,"n_rows":28,"n_cols":11,"rows_kept":28,"cut":false,"hidden":false,"merged":[[8,5,8,10],[8,0,9,0],[8,1,9,1],[8,2,9,2],[8,3,9,3],[8,4,9,4]]}
[]
[]
[]
[]
[]
[null,"   Sort data by:           "]
[]
[]
["Region (LO) Code","Region (Local Office)","Total Responses","Percentage Recommended","Percentage Not  Recommended","Breakdown of Responses"]
[null,null,null,null,null,"Extremely Likely","Likely","Neither","Unlikely","Extremely Unlikely","Don't Know"]
[null,"England (including Independent Sector providers)",7134,0.95304177179702831,1.8783291281188674E-2,5435,1364,138,45,89,63]
[null,"England (excluding Independent Sector providers)",7097,0.95279695646047624,1.8881217415809497E-2,5400,1362,138,45,89,63]
[null,"Selection (excluding suppressed data)",{"$f":"SUBTOTAL(9,C14:C40)","v":7134},{"$f":"IFERROR((F13+G13)/SUM(F13:K13), \"-\")","v":0.95304177179702831},{"$f":"IFERROR((I13+J13)/SUM(F13:K13), \"-\")","v":1.8783291281188674E-2},{"$f":"SUBTOTAL(9,F14:F40)","v":5435},1364,138,45,89,63]
["Q72","NHS England Yorkshire & Humber",919,0.96735582154515776,8.7051142546245922E-3,703,186,20,5,3,2]
["Q74","NHS England Cumbria & North East",125,1,0,111,14,0,0,0,0]
["Q75","NHS England Cheshire & Merseyside",226,0.94690265486725667,1.3274336283185841E-2,182,32,9,2,1,0]
["Q83","NHS England Greater Manchester",490,0.95306122448979591,2.0408163265306121E-2,372,95,6,3,7,7]
["Q84","NHS England Lancashire",205,0.98536585365853657,4.8780487804878049E-3,175,27,2,0,1,0]
["Q76","NHS England North Midlands",435,0.98160919540229885,6.8965517241379309E-3,361,66,3,1,2,2]
["Q77","NHS England West Midlands",531,0.95856873822975519,2.2598870056497175E-2,416,93,5,3,9,5]
["Q78","NHS England Central Midlands",426,0.95070422535211263,1.6431924882629109E-2,325,80,12,4,3,2]
["Q79","NHS England East",779,0.97689345314505782,8.9858793324775355E-3,624,137,9,0,7,2]
["Q85","NHS England South West (South West South)",313,0.94888178913738019,2.2364217252396165E-2,248,49,6,3,4,3]
["Q86","NHS England South West (South West North)",256,0.96875,7.8125E-3,205,43,1,1,1,5]
["Q87","NHS England South East (Hampshire, Isle Of Wight & Thames Valley)",471,0.9575371549893843,2.1231422505307855E-3,369,82,15,0,1,4]
["Q88","NHS England South East (Kent, Surrey & Sussex)",179,0.97765363128491622,0,147,28,2,0,0,2]
["Q71","NHS England London",1742,0.91389207807118256,4.1905855338691157E-2,1162,430,48,23,50,29]
["zIS1","Independent Sector Provider",37,1,0,35,2,0,0,0,0]

{"sheet":"Trusts Q1","index":3,"n_rows":144,"n_cols":19,"rows_kept":144,"cut":false,"hidden":false,"merged":[[8,6,8,11],[8,12,8,18],[8,0,9,0],[8,1,9,1],[8,2,9,2],[8,3,9,3],[8,4,9,4],[8,5,9,5]]}
[]
[]
[]
[]
[]
[null,"   Sort data by:           "]
[]
[]
["Region (LO) Code","Trust Code","Trust Name","Total Responses","Percentage Recommended","Percentage Not  Recommended","Breakdown of Responses",null,null,null,null,null,"Mode of Collection"]
[null,null,null,null,null,null,"Extremely Likely","Likely","Neither","Unlikely","Extremely Unlikely","Don't Know","SMS/Text / Smartphone App","Electronic tablet/kiosk at point of discharge","Paper / postcard at point of discharge","Paper survey sent to the patients home","Telephone survey once patient is home","Online survey once patient is home","Other"]
[null,null,"England (including Independent Sector providers)",7134,0.95304177179702831,1.8783291281188674E-2,5435,1364,138,45,89,63,510,868,5442,0,1,305,8]
[null,null,"England (excluding Independent Sector providers)",7097,0.95279695646047624,1.8881217415809497E-2,5400,1362,138,45,89,63,510,831,5442,0,1,305,8]
[null,null,"Selection (excluding suppressed data)",{"$f":"SUBTOTAL(9,D14:D298)","v":7134},{"$f":"IFERROR((G13+H13)/SUM(G13:L13), \"-\")","v":0.95332769317540889},{"$f":"IFERROR((J13+K13)/SUM(G13:L13), \"-\")","v":1.847151720248167E-2},{"$f":"SUBTOTAL(9,G14:G298)","v":5405},1356,137,44,87,63,510,865,5413,0,1,295,8]
["Q71","RJ7","ST GEORGE'S UNIVERSITY HOSPITALS NHS FOUNDATION TRUST",0,"NA","NA",0,0,0,0,0,0,0,0,0,0,0,0,0]
["Q71","RRV","UNIVERSITY COLLEGE LONDON HOSPITALS NHS FOUNDATION TRUST",1,"*","*","*","*","*","*","*","*","*","*","*","*","*","*","*"]
["Q71","RJZ","KING'S COLLEGE HOSPITAL NHS FOUNDATION TRUST",5,1,0,"*","*","*","*","*","*","*","*","*","*","*","*","*"]
["Q71","RAL","ROYAL FREE LONDON NHS FOUNDATION TRUST",12,1,0,9,3,0,0,0,0,0,0,12,0,0,0,0]
["Q71","RJ1","GUY'S AND ST THOMAS' NHS FOUNDATION TRUST",13,0.84615384615384615,7.6923076923076927E-2,6,5,1,1,0,0,0,0,0,0,0,13,0]
["Q71","RJ6","CROYDON HEALTH SERVICES NHS TRUST",14,1,0,13,1,0,0,0,0,13,1,0,0,0,0,0]
["Q71","RAX","KINGSTON HOSPITAL NHS FOUNDATION TRUST",19,1,0,17,2,0,0,0,0,0,19,0,0,0,0,0]
["Q71","RJ2","LEWISHAM AND GREENWICH NHS TRUST",45,1,0,34,11,0,0,0,0,0,0,45,0,0,0,0]
["Q71","RVR","EPSOM AND ST HELIER UNIVERSITY HOSPITALS NHS TRUST",52,0.96153846153846156,0,44,6,1,0,0,1,0,0,52,0,0,0,0]
["Q71","RKE","WHITTINGTON HEALTH NHS TRUST",100,0.98,0,70,28,2,0,0,0,0,6,94,0,0,0,0]
["Q71","R1K","LONDON NORTH WEST UNIVERSITY HEALTHCARE NHS TRUST",105,0.90476190476190477,1.9047619047619049E-2,63,32,4,2,0,4,0,0,104,0,0,1,0]
["Q71","RAS","THE HILLINGDON HOSPITALS NHS FOUNDATION TRUST",122,0.98360655737704916,8.1967213114754103E-3,85,35,1,1,0,0,0,0,121,0,0,1,0]
["Q71","RF4","BARKING, HAVERING AND REDBRIDGE UNIVERSITY HOSPITALS NHS TRUST",146,0.97945205479452058,0,132,11,2,0,0,1,0,0,146,0,0,0,0]
["Q71","RAP","NORTH MIDDLESEX UNIVERSITY HOSPITAL NHS TRUST",150,0.55333333333333334,0.26,51,32,14,10,29,14,0,150,0,0,0,0,0]
["Q71","RQX","HOMERTON UNIVERSITY HOSPITAL NHS FOUNDATION TRUST",162,0.95061728395061729,6.1728395061728392E-3,100,54,6,0,1,1,0,18,144,0,0,0,0]
["Q71","R1H","BARTS HEALTH NHS TRUST",222,0.97297297297297303,2.2522522522522521E-2,169,47,1,1,4,0,10,0,212,0,0,0,0]
["Q71","RYJ","IMPERIAL COLLEGE HEALTHCARE NHS TRUST",229,0.90829694323144106,2.1834061135371178E-2,101,107,10,3,2,6,2,191,36,0,0,0,0]
["Q71","RQM","CHELSEA AND WESTMINSTER HOSPITAL NHS FOUNDATION TRUST",345,0.92173913043478262,5.5072463768115941E-2,266,52,6,5,14,2,343,2,0,0,0,0,0]
["Q72","RCF","AIREDALE NHS FOUNDATION TRUST",6,1,0,4,2,0,0,0,0,0,0,6,0,0,0,0]
["Q72","RR8","LEEDS TEACHING HOSPITALS NHS TRUST",6,1,0,6,0,0,0,0,0,0,0,4,0,0,2,0]
["Q72","RAE","BRADFORD TEACHING HOSPITALS NHS FOUNDATION TRUST",7,1,0,4,3,0,0,0,0,0,0,7,0,0,0,0]
["Q72","RWA","HULL AND EAST YORKSHIRE HOSPITALS NHS TRUST",23,0.86956521739130432,0,18,2,3,0,0,0,0,0,23,0,0,0,0]
["Q72","RFF","BARNSLEY HOSPITAL NHS FOUNDATION TRUST",25,1,0,24,1,0,0,0,0,0,0,25,0,0,0,0]
["Q72","RHQ","SHEFFIELD TEACHING HOSPITALS NHS FOUNDATION TRUST",40,0.95,2.5000000000000001E-2,31,7,0,1,0,1,1,0,39,0,0,0,0]
["Q72","RP5","DONCASTER AND BASSETLAW TEACHING HOSPITALS NHS FOUNDATION TRUST",46,0.97826086956521741,0,39,6,1,0,0,0,0,0,46,0,0,0,0]
["Q72","RFR","THE ROTHERHAM NHS FOUNDATION TRUST",53,1,0,45,8,0,0,0,0,0,0,53,0,0,0,0]
["Q72","RCD","HARROGATE AND DISTRICT NHS FOUNDATION TRUST",55,1,0,45,10,0,0,0,0,0,0,55,0,0,0,0]
["Q72","RWY","CALDERDALE AND HUDDERSFIELD NHS FOUNDATION TRUST",130,0.99230769230769234,0,103,26,1,0,0,0,0,130,0,0,0,0,0]
["Q72","RJL","NORTHERN LINCOLNSHIRE AND GOOLE NHS FOUNDATION TRUST",163,0.93251533742331283,3.6809815950920248E-2,107,45,5,3,3,0,0,0,163,0,0,0,0]
["Q72","RCB","YORK TEACHING HOSPITAL NHS FOUNDATION TRUST",180,0.96666666666666667,5.5555555555555558E-3,134,40,4,1,0,1,0,0,180,0,0,0,0]
["Q72","RXF","MID YORKSHIRE HOSPITALS NHS TRUST",185,0.96756756756756757,0,143,36,6,0,0,0,0,0,181,0,0,4,0]
["Q74","RLN","CITY HOSPITALS SUNDERLAND NHS FOUNDATION TRUST",0,"NA","NA",0,0,0,0,0,0,0,0,0,0,0,0,0]
["Q74","RTD","THE NEWCASTLE UPON TYNE HOSPITALS NHS FOUNDATION TRUST",0,"NA","NA",0,0,0,0,0,0,0,0,0,0,0,0,0]
["Q74","RTR","SOUTH TEES HOSPITALS NHS FOUNDATION TRUST",0,"NA","NA",0,0,0,0,0,0,0,0,0,0,0,0,0]
["Q74","RR7","GATESHEAD HEALTH NHS FOUNDATION TRUST",5,1,0,5,0,0,0,0,0,0,0,5,0,0,0,0]
["Q74","RXP","COUNTY DURHAM AND DARLINGTON NHS FOUNDATION TRUST",13,1,0,10,3,0,0,0,0,0,0,13,0,0,0,0]
["Q74","RVW","NORTH TEES AND HARTLEPOOL NHS FOUNDATION TRUST",18,1,0,14,4,0,0,0,0,0,0,18,0,0,0,0]
["Q74","RE9","SOUTH TYNESIDE NHS FOUNDATION TRUST",22,1,0,17,5,0,0,0,0,0,0,22,0,0,0,0]
["Q74","RNL","NORTH CUMBRIA UNIVERSITY HOSPITALS NHS TRUST",25,1,0,25,0,0,0,0,0,0,0,25,0,0,0,0]
["Q74","RTF","NORTHUMBRIA HEALTHCARE NHS FOUNDATION TRUST",42,1,0,40,2,0,0,0,0,0,0,42,0,0,0,0]
["Q75","RVY","SOUTHPORT AND ORMSKIRK HOSPITAL NHS TRUST",2,"*","*","*","*","*","*","*","*","*","*","*","*","*","*","*"]
["Q75","RBT","MID CHESHIRE HOSPITALS NHS FOUNDATION TRUST",4,"*","*","*","*","*","*","*","*","*","*","*","*","*","*","*"]
["Q75","RJN","EAST CHESHIRE NHS TRUST",11,1,0,11,0,0,0,0,0,0,0,11,0,0,0,0]
["Q75","REP","LIVERPOOL WOMEN'S NHS FOUNDATION TRUST",26,0.92307692307692313,3.8461538461538464E-2,23,1,1,0,1,0,0,0,26,0,0,0,0]
["Q75","RBN","ST HELENS AND KNOWSLEY TEACHING HOSPITALS NHS TRUST",28,1,0,26,2,0,0,0,0,0,0,24,0,0,4,0]
["Q75","RJR","COUNTESS OF CHESTER HOSPITAL NHS FOUNDATION TRUST",34,0.97058823529411764,0,27,6,1,0,0,0,2,0,32,0,0,0,0]
["Q75","RBL","WIRRAL UNIVERSITY TEACHING HOSPITAL NHS FOUNDATION TRUST",55,0.89090909090909087,1.8181818181818181E-2,35,14,5,1,0,0,0,0,55,0,0,0,0]
["Q75","RWW","WARRINGTON AND HALTON HOSPITALS NHS FOUNDATION TRUST",66,0.96969696969696972,0,56,8,2,0,0,0,0,0,66,0,0,0,0]
["Q76","RK5","SHERWOOD FOREST HOSPITALS NHS FOUNDATION TRUST",23,0.91304347826086951,4.3478260869565216E-2,17,4,1,0,1,0,22,0,0,0,0,1,0]
["Q76","RJE","UNIVERSITY HOSPITALS OF NORTH MIDLANDS NHS TRUST",27,0.96296296296296291,0,24,2,1,0,0,0,0,0,27,0,0,0,0]
["Q76","RXW","SHREWSBURY AND TELFORD HOSPITAL NHS TRUST",36,0.94444444444444442,2.7777777777777776E-2,28,6,0,1,0,1,0,0,36,0,0,0,0]
["Q76","RTG","UNIVERSITY HOSPITALS OF DERBY AND BURTON NHS FOUNDATION TRUST",76,0.97368421052631582,1.3157894736842105E-2,66,8,0,0,1,1,4,1,58,0,0,13,0]
["Q76","RX1","NOTTINGHAM UNIVERSITY HOSPITALS NHS TRUST",99,1,0,84,15,0,0,0,0,0,0,99,0,0,0,0]
["Q76","RFS","CHESTERFIELD ROYAL HOSPITAL NHS FOUNDATION TRUST",174,0.99425287356321834,0,142,31,1,0,0,0,0,0,174,0,0,0,0]
["Q77","RXK","SANDWELL AND WEST BIRMINGHAM HOSPITALS NHS TRUST",0,"NA","NA",0,0,0,0,0,0,0,0,0,0,0,0,0]
["Q77","RL4","THE ROYAL WOLVERHAMPTON NHS TRUST",2,"*","*","*","*","*","*","*","*","*","*","*","*","*","*","*"]
["Q77","RRK","UNIVERSITY HOSPITALS BIRMINGHAM NHS FOUNDATION TRUST",5,0.6,0.4,"*","*","*","*","*","*","*","*","*","*","*","*","*"]
["Q77","RLQ","WYE VALLEY NHS TRUST",9,0.88888888888888884,0.1111111111111111,8,0,0,0,1,0,0,0,9,0,0,0,0]
["Q77","RBK","WALSALL HEALTHCARE NHS TRUST",29,0.96551724137931039,0,18,10,1,0,0,0,0,29,0,0,0,0,0]
["Q77","RKB","UNIVERSITY HOSPITALS COVENTRY AND WARWICKSHIRE NHS TRUST",43,0.90697674418604646,4.6511627906976744E-2,27,12,0,1,1,2,0,7,36,0,0,0,0]
["Q77","RJC","SOUTH WARWICKSHIRE NHS FOUNDATION TRUST",49,0.95918367346938771,2.0408163265306121E-2,32,15,0,1,0,1,0,0,48,0,0,1,0]
["Q77","RLT","GEORGE ELIOT HOSPITAL NHS TRUST",62,0.95161290322580649,1.6129032258064516E-2,49,10,1,0,1,1,19,0,42,0,1,0,0]
["Q77","RNA","THE DUDLEY GROUP NHS FOUNDATION TRUST",62,0.9838709677419355,1.6129032258064516E-2,55,6,0,1,0,0,0,0,62,0,0,0,0]
["Q77","RWP","WORCESTERSHIRE ACUTE HOSPITALS NHS TRUST",122,0.94262295081967218,3.2786885245901641E-2,99,16,2,0,4,1,0,0,122,0,0,0,0]
["Q77","RQ3","BIRMINGHAM WOMEN'S AND CHILDREN'S NHS FOUNDATION TRUST",148,0.9932432432432432,0,123,24,1,0,0,0,0,0,147,0,0,1,0]
["Q78","RC1","BEDFORD HOSPITAL NHS TRUST",1,"*","*","*","*","*","*","*","*","*","*","*","*","*","*","*"]
["Q78","RWH","EAST AND NORTH HERTFORDSHIRE NHS TRUST",2,"*","*","*","*","*","*","*","*","*","*","*","*","*","*","*"]
["Q78","RWD","UNITED LINCOLNSHIRE HOSPITALS NHS TRUST",8,1,0,8,0,0,0,0,0,0,0,8,0,0,0,0]
["Q78","RWG","WEST HERTFORDSHIRE HOSPITALS NHS TRUST",16,1,0,10,6,0,0,0,0,0,0,16,0,0,0,0]
["Q78","RNQ","KETTERING GENERAL HOSPITAL NHS FOUNDATION TRUST",19,1,0,19,0,0,0,0,0,0,0,19,0,0,0,0]
["Q78","RNS","NORTHAMPTON GENERAL HOSPITAL NHS TRUST",65,1,0,55,10,0,0,0,0,0,0,0,0,0,65,0]
["Q78","RC9","LUTON AND DUNSTABLE UNIVERSITY HOSPITAL NHS FOUNDATION TRUST",87,0.9885057471264368,0,63,23,0,0,0,1,0,87,0,0,0,0,0]
["Q78","RD8","MILTON KEYNES UNIVERSITY HOSPITAL NHS FOUNDATION TRUST",108,0.85185185185185186,5.5555555555555552E-2,63,29,9,4,2,1,0,0,7,0,0,101,0]
["Q78","RWE","UNIVERSITY HOSPITALS OF LEICESTER NHS TRUST",120,0.96666666666666667,8.3333333333333332E-3,106,10,3,0,1,0,0,44,76,0,0,0,0]
["Q79","RGR","WEST SUFFOLK NHS FOUNDATION TRUST",0,"NA","NA",0,0,0,0,0,0,0,0,0,0,0,0,0]
["Q79","RQ8","MID ESSEX HOSPITAL SERVICES NHS TRUST",0,"NA","NA",0,0,0,0,0,0,0,0,0,0,0,0,0]
["Q79","RQW","THE PRINCESS ALEXANDRA HOSPITAL NHS TRUST",8,1,0,8,0,0,0,0,0,0,0,0,0,0,0,8]
["Q79","RGT","CAMBRIDGE UNIVERSITY HOSPITALS NHS FOUNDATION TRUST",33,0.93939393939393945,0,16,15,2,0,0,0,0,28,5,0,0,0,0]
["Q79","RDD","BASILDON AND THURROCK UNIVERSITY HOSPITALS NHS FOUNDATION TRUST",34,0.97058823529411764,2.9411764705882353E-2,30,3,0,0,1,0,0,0,34,0,0,0,0]
["Q79","RCX","THE QUEEN ELIZABETH HOSPITAL, KING'S LYNN, NHS FOUNDATION TRUST",43,0.95348837209302328,4.6511627906976744E-2,37,4,0,0,2,0,0,43,0,0,0,0,0]
["Q79","RGP","JAMES PAGET UNIVERSITY HOSPITALS NHS FOUNDATION TRUST",53,0.96226415094339623,1.8867924528301886E-2,46,5,1,0,1,0,0,0,53,0,0,0,0]
["Q79","RM1","NORFOLK AND NORWICH UNIVERSITY HOSPITALS NHS FOUNDATION TRUST",58,0.93103448275862066,0,31,23,4,0,0,0,0,0,58,0,0,0,0]
["Q79","RDE","EAST SUFFOLK AND NORTH ESSEX NHS FOUNDATION TRUST",81,1,0,65,16,0,0,0,0,10,70,0,0,0,1,0]
["Q79","RAJ","SOUTHEND UNIVERSITY HOSPITAL NHS FOUNDATION TRUST",119,1,0,98,21,0,0,0,0,2,0,117,0,0,0,0]
["Q79","RGN","NORTH WEST ANGLIA NHS FOUNDATION TRUST",350,0.98,8.5714285714285719E-3,293,50,2,0,3,2,0,0,348,0,0,2,0]
["Q83","RMP","TAMESIDE AND GLOSSOP INTEGRATED CARE NHS FOUNDATION TRUST",16,0.9375,0,11,4,1,0,0,0,0,0,16,0,0,0,0]
["Q83","RY2","BRIDGEWATER COMMUNITY HEALTHCARE NHS FOUNDATION TRUST",17,0.94117647058823528,0,14,2,0,0,0,1,0,0,17,0,0,0,0]
["Q83","RW6","PENNINE ACUTE HOSPITALS NHS TRUST",22,0.95454545454545459,4.5454545454545456E-2,21,0,0,1,0,0,0,0,22,0,0,0,0]
["Q83","RRF","WRIGHTINGTON, WIGAN AND LEIGH NHS FOUNDATION TRUST",28,0.9285714285714286,0,20,6,1,0,0,1,0,0,28,0,0,0,0]
["Q83","RWJ","STOCKPORT NHS FOUNDATION TRUST",66,0.93939393939393945,1.5151515151515152E-2,37,25,1,1,0,2,0,0,66,0,0,0,0]
["Q83","R0A","MANCHESTER UNIVERSITY NHS FOUNDATION TRUST",137,0.94890510948905105,2.1897810218978103E-2,98,32,1,1,2,3,0,2,135,0,0,0,0]
["Q83","RMC","BOLTON NHS FOUNDATION TRUST",204,0.96568627450980393,2.4509803921568627E-2,171,26,2,0,5,0,0,0,204,0,0,0,0]
["Q84","RXL","BLACKPOOL TEACHING HOSPITALS NHS FOUNDATION TRUST",19,1,0,13,6,0,0,0,0,0,0,19,0,0,0,0]
["Q84","RXN","LANCASHIRE TEACHING HOSPITALS NHS FOUNDATION TRUST",38,0.94736842105263153,2.6315789473684209E-2,29,7,1,0,1,0,38,0,0,0,0,0,0]
["Q84","RTX","UNIVERSITY HOSPITALS OF MORECAMBE BAY NHS FOUNDATION TRUST",49,0.97959183673469385,0,40,8,1,0,0,0,0,0,49,0,0,0,0]
["Q84","RXR","EAST LANCASHIRE HOSPITALS NHS TRUST",99,1,0,93,6,0,0,0,0,0,0,99,0,0,0,0]
["Q85","RH8","ROYAL DEVON AND EXETER NHS FOUNDATION TRUST",0,"NA","NA",0,0,0,0,0,0,0,0,0,0,0,0,0]
["Q85","RBZ","NORTHERN DEVON HEALTHCARE NHS TRUST",1,"*","*","*","*","*","*","*","*","*","*","*","*","*","*","*"]
["Q85","RA9","TORBAY AND SOUTH DEVON NHS FOUNDATION TRUST",3,"*","*","*","*","*","*","*","*","*","*","*","*","*","*","*"]
["Q85","RBD","DORSET COUNTY HOSPITAL NHS FOUNDATION TRUST",16,1,0,13,3,0,0,0,0,16,0,0,0,0,0,0]
["Q85","RA4","YEOVIL DISTRICT HOSPITAL NHS FOUNDATION TRUST",26,1,0,23,3,0,0,0,0,0,0,24,0,0,2,0]
["Q85","RD3","POOLE HOSPITAL NHS FOUNDATION TRUST",34,0.97058823529411764,2.9411764705882353E-2,30,3,0,1,0,0,28,0,6,0,0,0,0]
["Q85","REF","ROYAL CORNWALL HOSPITALS NHS TRUST",38,0.94736842105263153,0,27,9,1,0,0,1,0,0,38,0,0,0,0]
["Q85","RBA","TAUNTON AND SOMERSET NHS FOUNDATION TRUST",43,0.95348837209302328,0,31,10,0,0,0,2,0,0,43,0,0,0,0]
["Q85","RDZ","THE ROYAL BOURNEMOUTH AND CHRISTCHURCH HOSPITALS NHS FOUNDATION TRUST",73,0.86301369863013699,6.8493150684931503E-2,53,10,5,2,3,0,0,0,73,0,0,0,0]
["Q85","RK9","UNIVERSITY HOSPITALS PLYMOUTH NHS TRUST",79,0.98734177215189878,1.2658227848101266E-2,67,11,0,0,1,0,0,0,78,0,0,1,0]
["Q86","RTE","GLOUCESTERSHIRE HOSPITALS NHS FOUNDATION TRUST",0,"NA","NA",0,0,0,0,0,0,0,0,0,0,0,0,0]
["Q86","RN3","GREAT WESTERN HOSPITALS NHS FOUNDATION TRUST",1,"*","*","*","*","*","*","*","*","*","*","*","*","*","*","*"]
["Q86","RNZ","SALISBURY NHS FOUNDATION TRUST",2,"*","*","*","*","*","*","*","*","*","*","*","*","*","*","*"]
["Q86","RA3","WESTON AREA HEALTH NHS TRUST",20,0.75,0,12,3,0,0,0,5,0,0,20,0,0,0,0]
["Q86","RD1","ROYAL UNITED HOSPITALS BATH NHS FOUNDATION TRUST",66,0.98484848484848486,1.5151515151515152E-2,59,6,0,1,0,0,0,0,66,0,0,0,0]
["Q86","RVJ","NORTH BRISTOL NHS TRUST",66,1,0,57,9,0,0,0,0,0,0,65,0,0,1,0]
["Q86","RA7","UNIVERSITY HOSPITALS BRISTOL NHS FOUNDATION TRUST",101,0.99009900990099009,9.9009900990099011E-3,75,25,0,0,1,0,0,0,101,0,0,0,0]
["Q87","R1F","ISLE OF WIGHT NHS TRUST",0,"NA","NA",0,0,0,0,0,0,0,0,0,0,0,0,0]
["Q87","RN5","HAMPSHIRE HOSPITALS NHS FOUNDATION TRUST",5,1,0,4,1,0,0,0,0,0,0,5,0,0,0,0]
["Q87","RXQ","BUCKINGHAMSHIRE HEALTHCARE NHS TRUST",11,1,0,11,0,0,0,0,0,0,0,11,0,0,0,0]
["Q87","RHU","PORTSMOUTH HOSPITALS NHS TRUST",28,0.9642857142857143,0,24,3,1,0,0,0,0,0,28,0,0,0,0]
["Q87","RHW","ROYAL BERKSHIRE NHS FOUNDATION TRUST",37,1,0,32,5,0,0,0,0,0,0,37,0,0,0,0]
["Q87","RDU","FRIMLEY HEALTH NHS FOUNDATION TRUST",108,0.98148148148148151,9.2592592592592587E-3,89,17,1,0,1,0,0,0,108,0,0,0,0]
["Q87","RTH","OXFORD UNIVERSITY HOSPITALS NHS FOUNDATION TRUST",116,0.97413793103448276,0,99,14,2,0,0,1,0,0,112,0,0,4,0]
["Q87","RHM","UNIVERSITY HOSPITAL SOUTHAMPTON NHS FOUNDATION TRUST",166,0.91566265060240959,0,110,42,11,0,0,3,0,0,89,0,0,77,0]
["Q88","RN7","DARTFORD AND GRAVESHAM NHS TRUST",0,"NA","NA",0,0,0,0,0,0,0,0,0,0,0,0,0]
["Q88","RXC","EAST SUSSEX HEALTHCARE NHS TRUST",0,"NA","NA",0,0,0,0,0,0,0,0,0,0,0,0,0]
["Q88","RXH","BRIGHTON AND SUSSEX UNIVERSITY HOSPITALS NHS TRUST",0,"NA","NA",0,0,0,0,0,0,0,0,0,0,0,0,0]
["Q88","RYR","WESTERN SUSSEX HOSPITALS NHS FOUNDATION TRUST",4,"*","*","*","*","*","*","*","*","*","*","*","*","*","*","*"]
["Q88","RVV","EAST KENT HOSPITALS UNIVERSITY NHS FOUNDATION TRUST",9,1,0,"*","*","*","*","*","*","*","*","*","*","*","*","*"]
["Q88","RTP","SURREY AND SUSSEX HEALTHCARE NHS TRUST",10,1,0,10,0,0,0,0,0,0,0,10,0,0,0,0]
["Q88","RA2","ROYAL SURREY COUNTY HOSPITAL NHS FOUNDATION TRUST",14,1,0,11,3,0,0,0,0,0,0,14,0,0,0,0]
["Q88","RPA","MEDWAY NHS FOUNDATION TRUST",62,0.9838709677419355,0,58,3,0,0,0,1,0,0,62,0,0,0,0]
["Q88","RWF","MAIDSTONE AND TUNBRIDGE WELLS NHS TRUST",80,0.96250000000000002,0,56,21,2,0,0,1,0,0,80,0,0,0,0]
["zIS1","NDE","ONE TO ONE (NORTH WEST) LIMITED",37,1,0,35,2,0,0,0,0,0,37,0,0,0,0,0]

{"sheet":"Sites Q1","index":4,"n_rows":221,"n_cols":14,"rows_kept":221,"cut":false,"hidden":false,"merged":[[8,6,9,6],[8,7,9,7],[8,8,8,13],[8,0,9,0],[8,1,9,1],[8,2,9,2],[8,3,9,3],[8,4,9,4],[8,5,9,5]]}
[]
[]
[]
[]
[]
[null,"   Sort data by:           "]
[]
[]
["Region (LO) Code","Trust Code","Trust Name","Site Code","Site Name","Total Responses","Percentage Recommended","Percentage Not  Recommended","Breakdown of Responses"]
[null,null,null,null,null,null,null,null,"Extremely Likely","Likely","Neither","Unlikely","Extremely Unlikely","Don't Know"]
[null,null,null,null,"England (including Independent Sector providers)",7134,0.95304177179702831,1.8783291281188674E-2,5435,1364,138,45,89,63]
[null,null,null,null,"England (excluding Independent Sector providers)",7097,0.95279695646047624,1.8881217415809497E-2,5400,1362,138,45,89,63]
[null,null,null,null,"Selection (excluding suppressed data)",{"$f":"SUBTOTAL(9,F14:F297)","v":7134},{"$f":"IFERROR((I13+J13)/SUM(I13:N13), \"-\")","v":0.95350521436848201},{"$f":"IFERROR((L13+M13)/SUM(I13:N13), \"-\")","v":1.7960602549246814E-2},{"$f":"SUBTOTAL(9,I14:I297)","v":5263},1320,136,42,82,61]
["Q71","RF4","BARKING, HAVERING AND REDBRIDGE UNIVERSITY HOSPITALS NHS TRUST","RF4XXX","Non-hospital site - RF4XXX",146,0.97945205479452058,0,132,11,2,0,0,1]
["Q71","R1H","BARTS HEALTH NHS TRUST","R1HNH","Newham General Hospital - R1HNH",179,0.98882681564245811,5.5865921787709499E-3,141,36,1,0,1,0]
["Q71","R1H","BARTS HEALTH NHS TRUST","R1H12","The Royal London Hospital - R1H12",40,0.9,0.1,"*","*","*","*","*","*"]
["Q71","R1H","BARTS HEALTH NHS TRUST","R1HKH","Whipps Cross University Hospital - R1HKH",3,"*","*","*","*","*","*","*","*"]
["Q71","RQM","CHELSEA AND WESTMINSTER HOSPITAL NHS FOUNDATION TRUST","RQM01","Chelsea and Westminster Hospital - RQM01",294,0.9285714285714286,5.1020408163265307E-2,225,48,5,4,11,1]
["Q71","RQM","CHELSEA AND WESTMINSTER HOSPITAL NHS FOUNDATION TRUST","RQM91","West Middlesex University Hospital - RQM91",51,0.88235294117647056,7.8431372549019607E-2,41,4,1,1,3,1]
["Q71","RJ6","CROYDON HEALTH SERVICES NHS TRUST","RJ611","Croydon University Hospital - RJ611",14,1,0,13,1,0,0,0,0]
["Q71","RVR","EPSOM AND ST HELIER UNIVERSITY HOSPITALS NHS TRUST","RVR50","Epsom Hospital - RVR50",21,0.90476190476190477,0,16,3,1,0,0,1]
["Q71","RVR","EPSOM AND ST HELIER UNIVERSITY HOSPITALS NHS TRUST","RVRXXX","Non-hospital site - RVRXXX",0,"NA","NA",0,0,0,0,0,0]
["Q71","RVR","EPSOM AND ST HELIER UNIVERSITY HOSPITALS NHS TRUST","RVR05","St Helier Hospital - RVR05",31,1,0,28,3,0,0,0,0]
["Q71","RJ1","GUY'S AND ST THOMAS' NHS FOUNDATION TRUST","RJ122","St Thomas' Hospital - RJ122",13,0.84615384615384615,7.6923076923076927E-2,6,5,1,1,0,0]
["Q71","RQX","HOMERTON UNIVERSITY HOSPITAL NHS FOUNDATION TRUST","RQXM1","Homerton University Hospital - RQXM1",162,0.95061728395061729,6.1728395061728392E-3,100,54,6,0,1,1]
["Q71","RYJ","IMPERIAL COLLEGE HEALTHCARE NHS TRUST","RYJ04","Queen Charlotte's Hospital - RYJ04",189,0.91534391534391535,2.1164021164021163E-2,76,97,7,3,1,5]
["Q71","RYJ","IMPERIAL COLLEGE HEALTHCARE NHS TRUST","RYJ01","St Mary's Hospital (HQ) - RYJ01",40,0.875,2.5000000000000001E-2,25,10,3,0,1,1]
["Q71","RJZ","KING'S COLLEGE HOSPITAL NHS FOUNDATION TRUST","RJZ01","King's College Hospital (Denmark Hill) - RJZ01",4,"*","*","*","*","*","*","*","*"]
["Q71","RJZ","KING'S COLLEGE HOSPITAL NHS FOUNDATION TRUST","RJZ30","Princess Royal University Hospital - RJZ30",1,"*","*","*","*","*","*","*","*"]
["Q71","RAX","KINGSTON HOSPITAL NHS FOUNDATION TRUST","RAX01","Kingston Hospital - RAX01",19,1,0,17,2,0,0,0,0]
["Q71","RJ2","LEWISHAM AND GREENWICH NHS TRUST","RJ2XXX","Non-hospital site - RJ2XXX",32,1,0,28,4,0,0,0,0]
["Q71","RJ2","LEWISHAM AND GREENWICH NHS TRUST","RJ231","Queen Elizabeth Hospital - RJ231",13,1,0,6,7,0,0,0,0]
["Q71","RJ2","LEWISHAM AND GREENWICH NHS TRUST","RJ224","University Hospital Lewisham - RJ224",0,"NA","NA",0,0,0,0,0,0]
["Q71","R1K","LONDON NORTH WEST UNIVERSITY HEALTHCARE NHS TRUST","R1K02","Central Middlesex Hospital - R1K02",9,1,0,7,2,0,0,0,0]
["Q71","R1K","LONDON NORTH WEST UNIVERSITY HEALTHCARE NHS TRUST","R1K04","Ealing Hospital - R1K04",0,"NA","NA",0,0,0,0,0,0]
["Q71","R1K","LONDON NORTH WEST UNIVERSITY HEALTHCARE NHS TRUST","R1KXXX","Non-hospital site - R1KXXX",33,0.93939393939393945,3.0303030303030304E-2,25,6,0,1,0,1]
["Q71","R1K","LONDON NORTH WEST UNIVERSITY HEALTHCARE NHS TRUST","R1K01","Northwick Park Hospital - R1K01",63,0.87301587301587302,1.5873015873015872E-2,31,24,4,1,0,3]
["Q71","RAP","NORTH MIDDLESEX UNIVERSITY HOSPITAL NHS TRUST","RAPNM","North Middlesex Hospital - RAPNM",150,0.55333333333333334,0.26,51,32,14,10,29,14]
["Q71","RAL","ROYAL FREE LONDON NHS FOUNDATION TRUST","RAL26","Barnet Hospital - RAL26",2,"*","*","*","*","*","*","*","*"]
["Q71","RAL","ROYAL FREE LONDON NHS FOUNDATION TRUST","RAL01","Royal Free Hospital - RAL01",10,1,0,"*","*","*","*","*","*"]
["Q71","RJ7","ST GEORGE'S UNIVERSITY HOSPITALS NHS FOUNDATION TRUST","RJ7XXX","Non-hospital site - RJ7XXX",0,"NA","NA",0,0,0,0,0,0]
["Q71","RJ7","ST GEORGE'S UNIVERSITY HOSPITALS NHS FOUNDATION TRUST","RJ701","St George's Hospital (Tooting) - RJ701",0,"NA","NA",0,0,0,0,0,0]
["Q71","RAS","THE HILLINGDON HOSPITALS NHS FOUNDATION TRUST","RAS01","Hillingdon Hospital - RAS01",122,0.98360655737704916,8.1967213114754103E-3,85,35,1,1,0,0]
["Q71","RRV","UNIVERSITY COLLEGE LONDON HOSPITALS NHS FOUNDATION TRUST","RRV11","University College Hospital Elizabeth Garrett Anderson Wing - RRV11",1,"*","*","*","*","*","*","*","*"]
["Q71","RKE","WHITTINGTON HEALTH NHS TRUST","RKEXXX","Non-hospital site - RKEXXX",63,0.98412698412698407,0,50,12,1,0,0,0]
["Q71","RKE","WHITTINGTON HEALTH NHS TRUST","RKEQ4","The Whittington Hospital - RKEQ4",37,0.97297297297297303,0,20,16,1,0,0,0]
["Q72","RCF","AIREDALE NHS FOUNDATION TRUST","RCF22","Airedale General Hospital - RCF22",6,1,0,4,2,0,0,0,0]
["Q72","RFF","BARNSLEY HOSPITAL NHS FOUNDATION TRUST","RFFAA","Barnsley Hospital NHS Foundation Trust HQ - RFFAA",25,1,0,24,1,0,0,0,0]
["Q72","RAE","BRADFORD TEACHING HOSPITALS NHS FOUNDATION TRUST","RAE01","Bradford Royal Infirmary - RAE01",1,"*","*","*","*","*","*","*","*"]
["Q72","RAE","BRADFORD TEACHING HOSPITALS NHS FOUNDATION TRUST","RAEXXX","Non-hospital site - RAEXXX",6,1,0,"*","*","*","*","*","*"]
["Q72","RWY","CALDERDALE AND HUDDERSFIELD NHS FOUNDATION TRUST","RWYXXX","Non-hospital site - RWYXXX",130,0.99230769230769234,0,103,26,1,0,0,0]
["Q72","RP5","DONCASTER AND BASSETLAW TEACHING HOSPITALS NHS FOUNDATION TRUST","RP5BA","Bassetlaw Hospital - RP5BA",24,0.95833333333333337,0,18,5,1,0,0,0]
["Q72","RP5","DONCASTER AND BASSETLAW TEACHING HOSPITALS NHS FOUNDATION TRUST","RP5DR","Doncaster Royal Infirmary - RP5DR",0,"NA","NA",0,0,0,0,0,0]
["Q72","RP5","DONCASTER AND BASSETLAW TEACHING HOSPITALS NHS FOUNDATION TRUST","RP5XXX","Non-hospital site - RP5XXX",22,1,0,21,1,0,0,0,0]
["Q72","RCD","HARROGATE AND DISTRICT NHS FOUNDATION TRUST","RCD01","Harrogate District Hospital - RCD01",17,1,0,15,2,0,0,0,0]
["Q72","RCD","HARROGATE AND DISTRICT NHS FOUNDATION TRUST","RCDXXX","Non-hospital site - RCDXXX",38,1,0,30,8,0,0,0,0]
["Q72","RWA","HULL AND EAST YORKSHIRE HOSPITALS NHS TRUST","RWA01","Hull Royal Infirmary - RWA01",23,0.86956521739130432,0,18,2,3,0,0,0]
["Q72","RR8","LEEDS TEACHING HOSPITALS NHS TRUST","RR801","Leeds General Infirmary - RR801",5,1,0,"*","*","*","*","*","*"]
["Q72","RR8","LEEDS TEACHING HOSPITALS NHS TRUST","RR8XXX","Non-Hospital Site - RR8XXX",1,"*","*","*","*","*","*","*","*"]
["Q72","RR8","LEEDS TEACHING HOSPITALS NHS TRUST","RR813","St James's University Hospital - RR813",0,"NA","NA",0,0,0,0,0,0]
["Q72","RXF","MID YORKSHIRE HOSPITALS NHS TRUST","RXF10","Dewsbury and District Hospital - RXF10",84,0.97619047619047616,0,66,16,2,0,0,0]
["Q72","RXF","MID YORKSHIRE HOSPITALS NHS TRUST","RXF05","Pinderfields General Hospital - RXF05",50,0.96,0,37,11,2,0,0,0]
["Q72","RXF","MID YORKSHIRE HOSPITALS NHS TRUST","RXF03","Pontefract General Infirmary - RXF03",51,0.96078431372549022,0,40,9,2,0,0,0]
["Q72","RJL","NORTHERN LINCOLNSHIRE AND GOOLE NHS FOUNDATION TRUST","RJL30","Diana, Princess Of Wales Hospital - RJL30",55,0.96363636363636362,1.8181818181818181E-2,40,13,1,0,1,0]
["Q72","RJL","NORTHERN LINCOLNSHIRE AND GOOLE NHS FOUNDATION TRUST","RJL32","Scunthorpe General Hospital - RJL32",108,0.91666666666666663,4.6296296296296294E-2,67,32,4,3,2,0]
["Q72","RHQ","SHEFFIELD TEACHING HOSPITALS NHS FOUNDATION TRUST","RHQHH","Royal Hallamshire Hospital - RHQHH",40,0.95,2.5000000000000001E-2,31,7,0,1,0,1]
["Q72","RFR","THE ROTHERHAM NHS FOUNDATION TRUST","RFRPA","Rotherham District General Hospital - RFRPA",53,1,0,45,8,0,0,0,0]
["Q72","RCB","YORK TEACHING HOSPITAL NHS FOUNDATION TRUST","RCBCA","Scarborough General Hospital - RCBCA",48,0.97916666666666663,0,40,7,1,0,0,0]
["Q72","RCB","YORK TEACHING HOSPITAL NHS FOUNDATION TRUST","RCB55","York Hospital - RCB55",132,0.96212121212121215,7.575757575757576E-3,94,33,3,1,0,1]
["Q74","RLN","CITY HOSPITALS SUNDERLAND NHS FOUNDATION TRUST","RLNGL","Sunderland Royal Hospital - RLNGL",0,"NA","NA",0,0,0,0,0,0]
["Q74","RXP","COUNTY DURHAM AND DARLINGTON NHS FOUNDATION TRUST","RXPDA","Darlington Memorial Hospital - RXPDA",11,1,0,"*","*","*","*","*","*"]
["Q74","RXP","COUNTY DURHAM AND DARLINGTON NHS FOUNDATION TRUST","RXPCP","University Hospital Of North Durham - RXPCP",2,"*","*","*","*","*","*","*","*"]
["Q74","RR7","GATESHEAD HEALTH NHS FOUNDATION TRUST","RR7EN","Queen Elizabeth Hospital - RR7EN",5,1,0,5,0,0,0,0,0]
["Q74","RNL","NORTH CUMBRIA UNIVERSITY HOSPITALS NHS TRUST","RNLXXX","Non-hospital site - RNLXXX",25,1,0,25,0,0,0,0,0]
["Q74","RVW","NORTH TEES AND HARTLEPOOL NHS FOUNDATION TRUST","RVWXXX","Non-hospital site - RVWXXX",18,1,0,14,4,0,0,0,0]
["Q74","RTF","NORTHUMBRIA HEALTHCARE NHS FOUNDATION TRUST","RTFXXX","Non-hospital site - RTFXXX",42,1,0,40,2,0,0,0,0]
["Q74","RTR","SOUTH TEES HOSPITALS NHS FOUNDATION TRUST","RTRXXX","Non-hospital site - RTRXXX",0,"NA","NA",0,0,0,0,0,0]
["Q74","RE9","SOUTH TYNESIDE NHS FOUNDATION TRUST","RE9GA","South Tyneside District Hospital - RE9GA",22,1,0,17,5,0,0,0,0]
["Q74","RTD","THE NEWCASTLE UPON TYNE HOSPITALS NHS FOUNDATION TRUST","RTD02","The Royal Victoria Infirmary - RTD02",0,"NA","NA",0,0,0,0,0,0]
["Q75","RJR","COUNTESS OF CHESTER HOSPITAL NHS FOUNDATION TRUST","RJR05","Countess Of Chester Hospital - RJR05",34,0.97058823529411764,0,27,6,1,0,0,0]
["Q75","RJR","COUNTESS OF CHESTER HOSPITAL NHS FOUNDATION TRUST","RJRXXX","Non-hospital site - RJRXXX",0,"NA","NA",0,0,0,0,0,0]
["Q75","RJN","EAST CHESHIRE NHS TRUST","RJN71","Macclesfield District General Hospital - RJN71",11,1,0,11,0,0,0,0,0]
["Q75","REP","LIVERPOOL WOMEN'S NHS FOUNDATION TRUST","REP01","Liverpool Womens Hospital - REP01",26,0.92307692307692313,3.8461538461538464E-2,23,1,1,0,1,0]
["Q75","RBT","MID CHESHIRE HOSPITALS NHS FOUNDATION TRUST","RBT20","Leighton Hospital - RBT20",4,"*","*","*","*","*","*","*","*"]
["Q75","RVY","SOUTHPORT AND ORMSKIRK HOSPITAL NHS TRUST","RVYXXX","Non-hospital site - RVYXXX",2,"*","*","*","*","*","*","*","*"]
["Q75","RBN","ST HELENS AND KNOWSLEY TEACHING HOSPITALS NHS TRUST","RBN01","Whiston Hospital - RBN01",28,1,0,26,2,0,0,0,0]
["Q75","RWW","WARRINGTON AND HALTON HOSPITALS NHS FOUNDATION TRUST","RWWWH","Warrington Hospital - RWWWH",66,0.96969696969696972,0,56,8,2,0,0,0]
["Q75","RBL","WIRRAL UNIVERSITY TEACHING HOSPITAL NHS FOUNDATION TRUST","RBL14","Arrowe Park Hospital - RBL14",55,0.89090909090909087,1.8181818181818181E-2,35,14,5,1,0,0]
["Q76","RFS","CHESTERFIELD ROYAL HOSPITAL NHS FOUNDATION TRUST","RFSDA","Chesterfield Royal Hospital - RFSDA",174,0.99425287356321834,0,142,31,1,0,0,0]
["Q76","RX1","NOTTINGHAM UNIVERSITY HOSPITALS NHS TRUST","RX1XXX","Non-hospital site - RX1XXX",99,1,0,84,15,0,0,0,0]
["Q76","RK5","SHERWOOD FOREST HOSPITALS NHS FOUNDATION TRUST","RK5BC","King's Mill Hospital - RK5BC",23,0.91304347826086951,4.3478260869565216E-2,17,4,1,0,1,0]
["Q76","RXW","SHREWSBURY AND TELFORD HOSPITAL NHS TRUST","RXWXXX","Non-hospital site - RXWXXX",36,0.94444444444444442,2.7777777777777776E-2,28,6,0,1,0,1]
["Q76","RTG","UNIVERSITY HOSPITALS OF DERBY AND BURTON NHS FOUNDATION TRUST","RTG02","Queens Hospital, Burton Upon Trent - RTG02",37,0.97297297297297303,0,33,3,0,0,0,1]
["Q76","RTG","UNIVERSITY HOSPITALS OF DERBY AND BURTON NHS FOUNDATION TRUST","RTGFG","Royal Derby Hospital - RTGFG",39,0.97435897435897434,2.564102564102564E-2,33,5,0,0,1,0]
["Q76","RJE","UNIVERSITY HOSPITALS OF NORTH MIDLANDS NHS TRUST","RJE09","County Hospital - RJE09",0,"NA","NA",0,0,0,0,0,0]
["Q76","RJE","UNIVERSITY HOSPITALS OF NORTH MIDLANDS NHS TRUST","RJE01","Royal Stoke University Hospital - RJE01",27,0.96296296296296291,0,24,2,1,0,0,0]
["Q77","RQ3","BIRMINGHAM WOMEN'S AND CHILDREN'S NHS FOUNDATION TRUST","RQ370","Birmingham Women's Hospital - RQ370",148,0.9932432432432432,0,123,24,1,0,0,0]
["Q77","RLT","GEORGE ELIOT HOSPITAL NHS TRUST","RLT01","George Eliot Hospital - Acute Services - RLT01",62,0.95161290322580649,1.6129032258064516E-2,49,10,1,0,1,1]
["Q77","RXK","SANDWELL AND WEST BIRMINGHAM HOSPITALS NHS TRUST","RXK02","City Hospital - RXK02",0,"NA","NA",0,0,0,0,0,0]
["Q77","RJC","SOUTH WARWICKSHIRE NHS FOUNDATION TRUST","RJCXXX","Non-hospital site - RJCXXX",49,0.95918367346938771,2.0408163265306121E-2,32,15,0,1,0,1]
["Q77","RNA","THE DUDLEY GROUP NHS FOUNDATION TRUST","RNAXXX","Non-hospital site - RNAXXX",7,1,0,7,0,0,0,0,0]
["Q77","RNA","THE DUDLEY GROUP NHS FOUNDATION TRUST","RNA01","Russells Hall Hospital - RNA01",55,0.98181818181818181,1.8181818181818181E-2,48,6,0,1,0,0]
["Q77","RL4","THE ROYAL WOLVERHAMPTON NHS TRUST","RL403","New Cross Hospital - RL403",2,"*","*","*","*","*","*","*","*"]
["Q77","RRK","UNIVERSITY HOSPITALS BIRMINGHAM NHS FOUNDATION TRUST","RRK98","Good Hope Hospital - RRK98",4,"*","*","*","*","*","*","*","*"]
["Q77","RRK","UNIVERSITY HOSPITALS BIRMINGHAM NHS FOUNDATION TRUST","RRK97","Heartlands Hospital - RRK97",1,"*","*","*","*","*","*","*","*"]
["Q77","RRK","UNIVERSITY HOSPITALS BIRMINGHAM NHS FOUNDATION TRUST","RRK99","Solihull Hospital - RRK99",0,"NA","NA",0,0,0,0,0,0]
["Q77","RKB","UNIVERSITY HOSPITALS COVENTRY AND WARWICKSHIRE NHS TRUST","RKB03","Hospital Of St Cross - RKB03",0,"NA","NA",0,0,0,0,0,0]
["Q77","RKB","UNIVERSITY HOSPITALS COVENTRY AND WARWICKSHIRE NHS TRUST","RKBXXX","Non-hospital site - RKBXXX",10,1,0,7,3,0,0,0,0]
["Q77","RKB","UNIVERSITY HOSPITALS COVENTRY AND WARWICKSHIRE NHS TRUST","RKB01","University Hospital (Coventry) - RKB01",33,0.87878787878787878,6.0606060606060608E-2,20,9,0,1,1,2]
["Q77","RBK","WALSALL HEALTHCARE NHS TRUST","RBK02","Manor Hospital - RBK02",29,0.96551724137931039,0,18,10,1,0,0,0]
["Q77","RWP","WORCESTERSHIRE ACUTE HOSPITALS NHS TRUST","RWP01","Alexandra Hospital - RWP01",24,0.95833333333333337,4.1666666666666664E-2,22,1,0,0,1,0]
["Q77","RWP","WORCESTERSHIRE ACUTE HOSPITALS NHS TRUST","RWP31","Kidderminster Hospital - RWP31",45,0.9555555555555556,2.2222222222222223E-2,37,6,0,0,1,1]
["Q77","RWP","WORCESTERSHIRE ACUTE HOSPITALS NHS TRUST","RWP50","Worcestershire Royal Hospital - RWP50",53,0.92452830188679247,3.7735849056603772E-2,40,9,2,0,2,0]
["Q77","RLQ","WYE VALLEY NHS TRUST","RLQ01","Hereford County Hospital - RLQ01",9,0.88888888888888884,0.1111111111111111,8,0,0,0,1,0]
["Q78","RC1","BEDFORD HOSPITAL NHS TRUST","RC110","Bedford Hospital South Wing - RC110",1,"*","*","*","*","*","*","*","*"]
["Q78","RWH","EAST AND NORTH HERTFORDSHIRE NHS TRUST","RWH01","Lister Hospital - RWH01",2,"*","*","*","*","*","*","*","*"]
["Q78","RWH","EAST AND NORTH HERTFORDSHIRE NHS TRUST","RWHXXX","Non-hospital site - RWHXXX",0,"NA","NA",0,0,0,0,0,0]
["Q78","RNQ","KETTERING GENERAL HOSPITAL NHS FOUNDATION TRUST","RNQ51","Kettering General Hospital - RNQ51",19,1,0,19,0,0,0,0,0]
["Q78","RC9","LUTON AND DUNSTABLE UNIVERSITY HOSPITAL NHS FOUNDATION TRUST","RC971","Luton and Dunstable Hospital - RC971",87,0.9885057471264368,0,63,23,0,0,0,1]
["Q78","RD8","MILTON KEYNES UNIVERSITY HOSPITAL NHS FOUNDATION TRUST","RD816","Milton Keynes Hospital - RD816",108,0.85185185185185186,5.5555555555555552E-2,63,29,9,4,2,1]
["Q78","RNS","NORTHAMPTON GENERAL HOSPITAL NHS TRUST","RNS01","Northampton General Hospital (Acute) - RNS01",65,1,0,55,10,0,0,0,0]
["Q78","RWD","UNITED LINCOLNSHIRE HOSPITALS NHS TRUST","RWDLP","Grantham and District Hospital - RWDLP",0,"NA","NA",0,0,0,0,0,0]
["Q78","RWD","UNITED LINCOLNSHIRE HOSPITALS NHS TRUST","RWDDA","Lincoln County Hospital - RWDDA",8,1,0,8,0,0,0,0,0]
["Q78","RWD","UNITED LINCOLNSHIRE HOSPITALS NHS TRUST","RWDXXX","Non-hospital site - RWDXXX",0,"NA","NA",0,0,0,0,0,0]
["Q78","RWD","UNITED LINCOLNSHIRE HOSPITALS NHS TRUST","RWDLA","Pilgrim Hospital - RWDLA",0,"NA","NA",0,0,0,0,0,0]
["Q78","RWE","UNIVERSITY HOSPITALS OF LEICESTER NHS TRUST","RWEAK","Leicester General Hospital - RWEAK",50,0.92,0.02,44,2,3,0,1,0]
["Q78","RWE","UNIVERSITY HOSPITALS OF LEICESTER NHS TRUST","RWEAA","Leicester Royal Infirmary - RWEAA",9,1,0,9,0,0,0,0,0]
["Q78","RWE","UNIVERSITY HOSPITALS OF LEICESTER NHS TRUST","RWEXXX","Non-hospital site - RWEXXX",61,1,0,53,8,0,0,0,0]
["Q78","RWG","WEST HERTFORDSHIRE HOSPITALS NHS TRUST","RWG02","Watford General Hospital - RWG02",16,1,0,10,6,0,0,0,0]
["Q79","RDD","BASILDON AND THURROCK UNIVERSITY HOSPITALS NHS FOUNDATION TRUST","RDDH0","Basildon University Hospital - RDDH0",34,0.97058823529411764,2.9411764705882353E-2,30,3,0,0,1,0]
["Q79","RGT","CAMBRIDGE UNIVERSITY HOSPITALS NHS FOUNDATION TRUST","RGT32","Rosie Hospital - RGT32",33,0.93939393939393945,0,16,15,2,0,0,0]
["Q79","RDE","EAST SUFFOLK AND NORTH ESSEX NHS FOUNDATION TRUST","RDEE4","Colchester General Hospital - RDEE4",0,"NA","NA",0,0,0,0,0,0]
["Q79","RDE","EAST SUFFOLK AND NORTH ESSEX NHS FOUNDATION TRUST","RDE03","Ipswich Hospital - RDE03",81,1,0,65,16,0,0,0,0]
["Q79","RGP","JAMES PAGET UNIVERSITY HOSPITALS NHS FOUNDATION TRUST","RGP75","James Paget University Hospital - RGP75",53,0.96226415094339623,1.8867924528301886E-2,46,5,1,0,1,0]
["Q79","RQ8","MID ESSEX HOSPITAL SERVICES NHS TRUST","RQ8L0","Broomfield Hospital - RQ8L0",0,"NA","NA",0,0,0,0,0,0]
["Q79","RM1","NORFOLK AND NORWICH UNIVERSITY HOSPITALS NHS FOUNDATION TRUST","RM102","Norfolk and Norwich University Hospital - RM102",58,0.93103448275862066,0,31,23,4,0,0,0]
["Q79","RGN","NORTH WEST ANGLIA NHS FOUNDATION TRUST","RGN90","Hinchingbrooke Hospital - RGN90",152,0.98684210526315785,6.5789473684210523E-3,127,23,1,0,1,0]
["Q79","RGN","NORTH WEST ANGLIA NHS FOUNDATION TRUST","RGN80","Peterborough City Hospital - RGN80",198,0.9747474747474747,1.0101010101010102E-2,166,27,1,0,2,2]
["Q79","RAJ","SOUTHEND UNIVERSITY HOSPITAL NHS FOUNDATION TRUST","RAJ01","Southend Hospital - RAJ01",119,1,0,98,21,0,0,0,0]
["Q79","RQW","THE PRINCESS ALEXANDRA HOSPITAL NHS TRUST","RQWG0","Princess Alexandra Hospital - RQWG0",8,1,0,8,0,0,0,0,0]
["Q79","RCX","THE QUEEN ELIZABETH HOSPITAL, KING'S LYNN, NHS FOUNDATION TRUST","RCXXXX","Non-hospital site - RCXXXX",42,0.97619047619047616,2.3809523809523808E-2,"*","*","*","*","*","*"]
["Q79","RCX","THE QUEEN ELIZABETH HOSPITAL, KING'S LYNN, NHS FOUNDATION TRUST","RCX66","North Cambridgeshire Hospital - RCX66",0,"NA","NA",0,0,0,0,0,0]
["Q79","RCX","THE QUEEN ELIZABETH HOSPITAL, KING'S LYNN, NHS FOUNDATION TRUST","RCX70","The Queen Elizabeth Hospital - RCX70",1,"*","*","*","*","*","*","*","*"]
["Q79","RGR","WEST SUFFOLK NHS FOUNDATION TRUST","RGR50","West Suffolk Hospital - RGR50",0,"NA","NA",0,0,0,0,0,0]
["Q83","RMC","BOLTON NHS FOUNDATION TRUST","RMC01","Royal Bolton Hospital - RMC01",204,0.96568627450980393,2.4509803921568627E-2,171,26,2,0,5,0]
["Q83","RY2","BRIDGEWATER COMMUNITY HEALTHCARE NHS FOUNDATION TRUST","RY28P","Health Care Resource Centre - RY28P",0,"NA","NA",0,0,0,0,0,0]
["Q83","RY2","BRIDGEWATER COMMUNITY HEALTHCARE NHS FOUNDATION TRUST","RY2XXX","Non-hospital site - RY2XXX",17,0.94117647058823528,0,14,2,0,0,0,1]
["Q83","R0A","MANCHESTER UNIVERSITY NHS FOUNDATION TRUST","R0A05","St Mary's Hospital - R0A05",137,0.94890510948905105,2.1897810218978103E-2,98,32,1,1,2,3]
["Q83","RW6","PENNINE ACUTE HOSPITALS NHS TRUST","RW601","Fairfield General Hospital - RW601",0,"NA","NA",0,0,0,0,0,0]
["Q83","RW6","PENNINE ACUTE HOSPITALS NHS TRUST","RW602","North Manchester General Hospital - RW602",8,0.875,0.125,"*","*","*","*","*","*"]
["Q83","RW6","PENNINE ACUTE HOSPITALS NHS TRUST","RW604","Rochdale Infirmary - RW604",2,"*","*","*","*","*","*","*","*"]
["Q83","RW6","PENNINE ACUTE HOSPITALS NHS TRUST","RW603","Royal Oldham Hospital - RW603",12,1,0,12,0,0,0,0,0]
["Q83","RWJ","STOCKPORT NHS FOUNDATION TRUST","RWJ09","Stepping Hill Hospital - RWJ09",66,0.93939393939393945,1.5151515151515152E-2,37,25,1,1,0,2]
["Q83","RMP","TAMESIDE AND GLOSSOP INTEGRATED CARE NHS FOUNDATION TRUST","RMP01","Tameside General Hospital - RMP01",16,0.9375,0,11,4,1,0,0,0]
["Q83","RRF","WRIGHTINGTON, WIGAN AND LEIGH NHS FOUNDATION TRUST","RRF02","Royal Albert Edward Infirmary - RRF02",28,0.9285714285714286,0,20,6,1,0,0,1]
["Q84","RXL","BLACKPOOL TEACHING HOSPITALS NHS FOUNDATION TRUST","RXL01","Blackpool Victoria Hospital - RXL01",19,1,0,13,6,0,0,0,0]
["Q84","RXR","EAST LANCASHIRE HOSPITALS NHS TRUST","RXR20","Royal Blackburn Hospital - RXR20",99,1,0,93,6,0,0,0,0]
["Q84","RXN","LANCASHIRE TEACHING HOSPITALS NHS FOUNDATION TRUST","RXN02","Royal Preston Hospital - RXN02",38,0.94736842105263153,2.6315789473684209E-2,29,7,1,0,1,0]
["Q84","RTX","UNIVERSITY HOSPITALS OF MORECAMBE BAY NHS FOUNDATION TRUST","RTXBU","Furness General Hospital - RTXBU",16,0.9375,0,14,1,1,0,0,0]
["Q84","RTX","UNIVERSITY HOSPITALS OF MORECAMBE BAY NHS FOUNDATION TRUST","RTXXXX","Non-hospital site - RTXXXX",10,1,0,9,1,0,0,0,0]
["Q84","RTX","UNIVERSITY HOSPITALS OF MORECAMBE BAY NHS FOUNDATION TRUST","RTX02","Royal Lancaster Infirmary - RTX02",23,1,0,17,6,0,0,0,0]
["Q85","RBD","DORSET COUNTY HOSPITAL NHS FOUNDATION TRUST","RBD01","Dorset County Hospital - RBD01",16,1,0,13,3,0,0,0,0]
["Q85","RBZ","NORTHERN DEVON HEALTHCARE NHS TRUST","RBZ12","North Devon District Hospital - RBZ12",1,"*","*","*","*","*","*","*","*"]
["Q85","RD3","POOLE HOSPITAL NHS FOUNDATION TRUST","RD304","Poole General Hospital NHS Trust HQ - RD304",34,0.97058823529411764,2.9411764705882353E-2,30,3,0,1,0,0]
["Q85","REF","ROYAL CORNWALL HOSPITALS NHS TRUST","REFXXX","Non-hospital site - REFXXX",2,"*","*","*","*","*","*","*","*"]
["Q85","REF","ROYAL CORNWALL HOSPITALS NHS TRUST","REF12","Royal Cornwall Hospital (Treliske) - REF12",36,0.94444444444444442,0,"*","*","*","*","*","*"]
["Q85","RH8","ROYAL DEVON AND EXETER NHS FOUNDATION TRUST","RH854","Honiton Hospital - RH 854",0,"NA","NA",0,0,0,0,0,0]
["Q85","RH8","ROYAL DEVON AND EXETER NHS FOUNDATION TRUST","RH833","Okehampton Community Hospital - RH833",0,"NA","NA",0,0,0,0,0,0]
["Q85","RH8","ROYAL DEVON AND EXETER NHS FOUNDATION TRUST","RH801","Royal Devon and Exeter Hospital (Wonford) - RH801",0,"NA","NA",0,0,0,0,0,0]
["Q85","RH8","ROYAL DEVON AND EXETER NHS FOUNDATION TRUST","RH853","Tiverton and District Hospital - RH853",0,"NA","NA",0,0,0,0,0,0]
["Q85","RBA","TAUNTON AND SOMERSET NHS FOUNDATION TRUST","RBAC3","Bridgwater Hospital - RBAC3",2,"*","*","*","*","*","*","*","*"]
["Q85","RBA","TAUNTON AND SOMERSET NHS FOUNDATION TRUST","RBA11","Musgrove Park Hospital - RBA11",35,0.97142857142857142,0,26,8,0,0,0,1]
["Q85","RBA","TAUNTON AND SOMERSET NHS FOUNDATION TRUST","RBAXXX","Non-hospital site - RBAXXX",6,0.83333333333333337,0,"*","*","*","*","*","*"]
["Q85","RDZ","THE ROYAL BOURNEMOUTH AND CHRISTCHURCH HOSPITALS NHS FOUNDATION TRUST","RDZ20","Royal Bournemouth General Hospital - RDZ20",73,0.86301369863013699,6.8493150684931503E-2,53,10,5,2,3,0]
["Q85","RA9","TORBAY AND SOUTH DEVON NHS FOUNDATION TRUST","RA9XXX","Non-hospital site - RA9XXX",3,"*","*","*","*","*","*","*","*"]
["Q85","RK9","UNIVERSITY HOSPITALS PLYMOUTH NHS TRUST","RK950","Derriford Hospital - RK950",5,1,0,4,1,0,0,0,0]
["Q85","RK9","UNIVERSITY HOSPITALS PLYMOUTH NHS TRUST","RK9XXX","Non-hospital site - RK9XXX",74,0.98648648648648651,1.3513513513513514E-2,63,10,0,0,1,0]
["Q85","RA4","YEOVIL DISTRICT HOSPITAL NHS FOUNDATION TRUST","RA430","Yeovil District Hospital - RA430",26,1,0,23,3,0,0,0,0]
["Q86","RTE","GLOUCESTERSHIRE HOSPITALS NHS FOUNDATION TRUST","RTE03","Gloucestershire Royal Hospital - RTE03",0,"NA","NA",0,0,0,0,0,0]
["Q86","RTE","GLOUCESTERSHIRE HOSPITALS NHS FOUNDATION TRUST","RTE27","Stroud Maternity Hospital - RTE27",0,"NA","NA",0,0,0,0,0,0]
["Q86","RN3","GREAT WESTERN HOSPITALS NHS FOUNDATION TRUST","RN3XXX","Non-hospital site - RN3XXX",0,"NA","NA",0,0,0,0,0,0]
["Q86","RN3","GREAT WESTERN HOSPITALS NHS FOUNDATION TRUST","RN325","The Great Western Hospital - RN325",1,"*","*","*","*","*","*","*","*"]
["Q86","RVJ","NORTH BRISTOL NHS TRUST","RVJ01","Southmead Hospital - RVJ01",66,1,0,57,9,0,0,0,0]
["Q86","RD1","ROYAL UNITED HOSPITALS BATH NHS FOUNDATION TRUST","RD102","Chippenham Community Hospital -RD102",21,1,0,18,3,0,0,0,0]
["Q86","RD1","ROYAL UNITED HOSPITALS BATH NHS FOUNDATION TRUST","RD121","Frome Community Hospital  - RD121",12,1,0,12,0,0,0,0,0]
["Q86","RD1","ROYAL UNITED HOSPITALS BATH NHS FOUNDATION TRUST","RD129","Paulton Memorial Hospital  - RD129",15,1,0,15,0,0,0,0,0]
["Q86","RD1","ROYAL UNITED HOSPITALS BATH NHS FOUNDATION TRUST","RD130","Princess Anne Wing RUH  - RD130",12,0.91666666666666663,8.3333333333333329E-2,8,3,0,1,0,0]
["Q86","RD1","ROYAL UNITED HOSPITALS BATH NHS FOUNDATION TRUST","RD167","Shepton Mallet Community Hospital  - RD167",0,"NA","NA",0,0,0,0,0,0]
["Q86","RD1","ROYAL UNITED HOSPITALS BATH NHS FOUNDATION TRUST","RD108","Trowbridge Community Hospital  - RD108",6,1,0,6,0,0,0,0,0]
["Q86","RNZ","SALISBURY NHS FOUNDATION TRUST","RNZ02","Salisbury District Hospital - RNZ02",2,"*","*","*","*","*","*","*","*"]
["Q86","RA7","UNIVERSITY HOSPITALS BRISTOL NHS FOUNDATION TRUST","RA707","St Michael's Hospital - RA707",101,0.99009900990099009,9.9009900990099011E-3,75,25,0,0,1,0]
["Q86","RA3","WESTON AREA HEALTH NHS TRUST","RA301","Weston General Hospital - RA301",20,0.75,0,12,3,0,0,0,5]
["Q87","RXQ","BUCKINGHAMSHIRE HEALTHCARE NHS TRUST","RXQ02","Stoke Mandeville Hospital - RXQ02",11,1,0,11,0,0,0,0,0]
["Q87","RDU","FRIMLEY HEALTH NHS FOUNDATION TRUST","RDU01","Frimley Park Hospital - RDU01",80,1,0,68,12,0,0,0,0]
["Q87","RDU","FRIMLEY HEALTH NHS FOUNDATION TRUST","RDU50","Wexham Park Hospital - RDU50",28,0.9285714285714286,3.5714285714285712E-2,21,5,1,0,1,0]
["Q87","RN5","HAMPSHIRE HOSPITALS NHS FOUNDATION TRUST","RN542","Andover War Memorial Hospital - RN542",0,"NA","NA",0,0,0,0,0,0]
["Q87","RN5","HAMPSHIRE HOSPITALS NHS FOUNDATION TRUST","RN506","Basingstoke and North Hampshire Hospital - RN506",5,1,0,4,1,0,0,0,0]
["Q87","RN5","HAMPSHIRE HOSPITALS NHS FOUNDATION TRUST","RN541","Royal Hampshire County Hospital - RN541",0,"NA","NA",0,0,0,0,0,0]
["Q87","R1F","ISLE OF WIGHT NHS TRUST","R1F01","St Mary's Hospital - R1F01",0,"NA","NA",0,0,0,0,0,0]
["Q87","RTH","OXFORD UNIVERSITY HOSPITALS NHS FOUNDATION TRUST","RTH08","John Radcliffe Hospital - RTH08",116,0.97413793103448276,0,99,14,2,0,0,1]
["Q87","RHU","PORTSMOUTH HOSPITALS NHS TRUST","RHU10","Gosport War Memorial Hospital - RHU10",6,1,0,"*","*","*","*","*","*"]
["Q87","RHU","PORTSMOUTH HOSPITALS NHS TRUST","RHU04","Petersfield Community Hospital - RHU04",9,1,0,8,1,0,0,0,0]
["Q87","RHU","PORTSMOUTH HOSPITALS NHS TRUST","RHU03","Queen Alexandra Hospital - RHU03",2,"*","*","*","*","*","*","*","*"]
["Q87","RHU","PORTSMOUTH HOSPITALS NHS TRUST","RHU02","St Mary's Hospital - RHU02",11,0.90909090909090906,0,9,1,1,0,0,0]
["Q87","RHW","ROYAL BERKSHIRE NHS FOUNDATION TRUST","RHW01","Royal Berkshire Hospital - RHW01",37,1,0,32,5,0,0,0,0]
["Q87","RHM","UNIVERSITY HOSPITAL SOUTHAMPTON NHS FOUNDATION TRUST","RHM12","Princess Anne Hospital - RHM12",166,0.91566265060240959,0,110,42,11,0,0,3]
["Q88","RXH","BRIGHTON AND SUSSEX UNIVERSITY HOSPITALS NHS TRUST","RXH01","Royal Sussex County Hospital - RXH01",0,"NA","NA",0,0,0,0,0,0]
["Q88","RN7","DARTFORD AND GRAVESHAM NHS TRUST","RN707","Darent Valley Hospital - RN707",0,"NA","NA",0,0,0,0,0,0]
["Q88","RVV","EAST KENT HOSPITALS UNIVERSITY NHS FOUNDATION TRUST","RVVXXX","Non-hospital site - RVVXXX",9,1,0,"*","*","*","*","*","*"]
["Q88","RXC","EAST SUSSEX HEALTHCARE NHS TRUST","RXC01","Conquest Hospital - RXC01",0,"NA","NA",0,0,0,0,0,0]
["Q88","RXC","EAST SUSSEX HEALTHCARE NHS TRUST","RXC02","Eastbourne District General Hospital - RXC02",0,"NA","NA",0,0,0,0,0,0]
["Q88","RXC","EAST SUSSEX HEALTHCARE NHS TRUST","RXCXXX","Non-hospital site - RXCXXX",0,"NA","NA",0,0,0,0,0,0]
["Q88","RWF","MAIDSTONE AND TUNBRIDGE WELLS NHS TRUST","RWF03","Maidstone District General Hospital - RWF03",0,"NA","NA",0,0,0,0,0,0]
["Q88","RWF","MAIDSTONE AND TUNBRIDGE WELLS NHS TRUST","RWFXXX","Non-hospital site - RWFXXX",5,1,0,3,2,0,0,0,0]
["Q88","RWF","MAIDSTONE AND TUNBRIDGE WELLS NHS TRUST","RWFTW","The Tunbridge Wells Hospital - RWFTW",75,0.96,0,53,19,2,0,0,1]
["Q88","RPA","MEDWAY NHS FOUNDATION TRUST","RPA02","Medway Maritime Hospital - RPA02",62,0.9838709677419355,0,58,3,0,0,0,1]
["Q88","RA2","ROYAL SURREY COUNTY HOSPITAL NHS FOUNDATION TRUST","RA201","Royal Surrey County Hospital - RA201",14,1,0,11,3,0,0,0,0]
["Q88","RTP","SURREY AND SUSSEX HEALTHCARE NHS TRUST","RTP04","East Surrey Hospital - RTP04",10,1,0,10,0,0,0,0,0]
["Q88","RYR","WESTERN SUSSEX HOSPITALS NHS FOUNDATION TRUST","RYR16","St Richard's Hospital - RYR16",0,"NA","NA",0,0,0,0,0,0]
["Q88","RYR","WESTERN SUSSEX HOSPITALS NHS FOUNDATION TRUST","RYR18","Worthing Hospital - RYR18",4,"*","*","*","*","*","*","*","*"]
["zIS1","NDE","ONE TO ONE (NORTH WEST) LIMITED","NDE01","One to One (North West) Limited HQ - NDE01",37,1,0,35,2,0,0,0,0]

{"sheet":"Region (Local Office) Q2","index":5,"n_rows":28,"n_cols":13,"rows_kept":28,"cut":false,"hidden":false,"merged":[[8,6,9,6],[8,7,8,12],[8,0,9,0],[8,1,9,1],[8,2,9,2],[8,3,9,3],[8,4,9,4],[8,5,9,5]]}
[]
[]
[]
[]
[]
[null,"   Sort data by:           "]
[]
[]
["Region (LO) Code","Region (Local Office)","Total Responses","Total Eligible","Response Rate","Percentage Recommended","Percentage Not  Recommended","Breakdown of Responses"]
[null,null,null,null,null,null,null,"Extremely Likely","Likely","Neither","Unlikely","Extremely Unlikely","Don't Know"]
[null,"England (including Independent Sector providers)",9567,43061,0.22217319616358189,0.97365945437441204,1.1706909166927982E-2,8014,1301,89,51,61,51]
[null,"England (excluding Independent Sector providers)",9560,43030,0.22217057866604695,0.97364016736401671,1.1715481171548118E-2,8007,1301,89,51,61,51]
[null,"Selection (excluding suppressed data)",{"$f":"SUBTOTAL(9,C14:C40)","v":9567},{"$f":"SUBTOTAL(9,D14:D40)","v":43061},{"$f":"IFERROR(C13/D13, \"NA\")","v":0.22217319616358189},{"$f":"IFERROR((H13+I13)/SUM(H13:M13), \"-\")","v":0.97365945437441204},{"$f":"IFERROR((K13+L13)/SUM(H13:M13), \"-\")","v":1.1706909166927982E-2},{"$f":"SUBTOTAL(9,H14:H40)","v":8014},1301,89,51,61,51]
["Q72","NHS England Yorkshire & Humber",1120,4270,0.26229508196721313,0.98928571428571432,5.3571428571428572E-3,950,158,5,1,5,1]
["Q74","NHS England Cumbria & North East",377,2216,0.17012635379061372,0.97877984084880632,2.6525198938992041E-3,343,26,7,1,0,0]
["Q75","NHS England Cheshire & Merseyside",294,2045,0.14376528117359413,0.98299319727891155,0,268,21,4,0,0,1]
["Q83","NHS England Greater Manchester",559,2634,0.21222475322703113,0.95885509838998206,1.9677996422182469E-2,464,72,12,4,7,0]
["Q84","NHS England Lancashire",271,1050,0.2580952380952381,0.955719557195572,2.5830258302583026E-2,238,21,3,3,4,2]
["Q76","NHS England North Midlands",339,2557,0.13257723895189674,0.99115044247787609,0,289,47,2,0,0,1]
["Q77","NHS England West Midlands",653,3501,0.18651813767495001,0.95252679938744256,3.2159264931087291E-2,540,82,6,12,9,4]
["Q78","NHS England Central Midlands",1071,3000,0.35699999999999998,0.95238095238095233,1.9607843137254902E-2,823,197,15,11,10,15]
["Q79","NHS England East",696,3217,0.21635063723966427,0.97844827586206895,1.1494252873563218E-2,616,65,4,4,4,3]
["Q85","NHS England South West (South West South)",444,1881,0.23604465709728867,0.99549549549549554,0,412,30,1,0,0,1]
["Q86","NHS England South West (South West North)",344,1818,0.18921892189218922,0.97674418604651159,8.7209302325581394E-3,306,30,3,2,1,2]
["Q87","NHS England South East (Hampshire, Isle Of Wight & Thames Valley)",695,3294,0.21098967820279296,0.98273381294964024,7.1942446043165471E-3,603,80,4,2,3,3]
["Q88","NHS England South East (Kent, Surrey & Sussex)",838,2978,0.28139691067830758,0.98090692124105017,8.3532219570405727E-3,731,91,2,3,4,7]
["Q71","NHS England London",1859,8569,0.21694480102695765,0.97095212479827864,1.1834319526627219E-2,1424,381,21,8,14,11]
["zIS1","Independent Sector Provider",7,31,0.22580645161290322,1,0,7,0,0,0,0,0]

{"sheet":"Trusts Q2","index":6,"n_rows":144,"n_cols":21,"rows_kept":144,"cut":false,"hidden":false,"merged":[[8,6,9,6],[8,7,9,7],[8,8,8,13],[8,14,8,20],[8,0,9,0],[8,1,9,1],[8,2,9,2],[8,3,9,3],[8,4,9,4],[8,5,9,5]]}
[]
[]
[]
[]
[]
[null,"   Sort data by:           "]
[]
[]
["Region (LO) Code","Trust Code","Trust Name","Total Responses","Total Eligible","Response Rate","Percentage Recommended","Percentage Not  Recommended","Breakdown of Responses",null,null,null,null,null,"Mode of Collection"]
[null,null,null,null,null,null,null,null,"Extremely Likely","Likely","Neither","Unlikely","Extremely Unlikely","Don't Know","SMS/Text / Smartphone App","Electronic tablet/kiosk at point of discharge","Paper / postcard at point of discharge","Paper survey sent to the patients home","Telephone survey once patient is home","Online survey once patient is home","Other"]
[null,null,"England (including Independent Sector providers)",9567,43061,0.22217319616358189,0.97365945437441204,1.1706909166927982E-2,8014,1301,89,51,61,51,1083,2204,5579,255,18,224,204]
[null,null,"England (excluding Independent Sector providers)",9560,43030,0.22217057866604695,0.97364016736401671,1.1715481171548118E-2,8007,1301,89,51,61,51,1083,2197,5579,255,18,224,204]
[null,null,"Selection (excluding suppressed data)",{"$f":"SUBTOTAL(9,D14:D299)","v":9567},{"$f":"SUBTOTAL(9,E14:E299)","v":43061},{"$f":"IFERROR(D13/E13, \"NA\")","v":0.22217319616358189},{"$f":"IFERROR((I13+J13)/SUM(I13:N13), \"-\")","v":0.97354330708661418},{"$f":"IFERROR((L13+M13)/SUM(I13:N13), \"-\")","v":1.1758530183727033E-2},{"$f":"SUBTOTAL(9,I14:I299)","v":7974},1299,89,51,61,51,{"$f":"SUBTOTAL(9,O14:O299)","v":1083},2204,5543,255,18,218,{"$f":"SUBTOTAL(9,U14:U299)","v":204}]
["Q71","RF4","BARKING, HAVERING AND REDBRIDGE UNIVERSITY HOSPITALS NHS TRUST",252,572,0.44055944055944057,0.98412698412698407,7.9365079365079361E-3,231,17,0,1,1,2,0,140,110,0,0,2,0]
["Q71","R1H","BARTS HEALTH NHS TRUST",95,982,9.6741344195519344E-2,0.96842105263157896,2.1052631578947368E-2,77,15,1,1,1,0,14,0,73,0,0,8,0]
["Q71","RQM","CHELSEA AND WESTMINSTER HOSPITAL NHS FOUNDATION TRUST",129,618,0.20873786407766989,0.96899224806201545,2.3255813953488372E-2,109,16,1,1,2,0,114,15,0,0,0,0,0]
["Q71","RJ6","CROYDON HEALTH SERVICES NHS TRUST",45,260,0.17307692307692307,0.93333333333333335,4.4444444444444446E-2,30,12,1,0,2,0,13,0,32,0,0,0,0]
["Q71","RVR","EPSOM AND ST HELIER UNIVERSITY HOSPITALS NHS TRUST",65,308,0.21103896103896103,0.96923076923076923,1.5384615384615385E-2,58,5,0,1,0,1,10,0,55,0,0,0,0]
["Q71","RJ1","GUY'S AND ST THOMAS' NHS FOUNDATION TRUST",158,475,0.33263157894736844,0.97468354430379744,0,116,38,2,0,0,2,0,0,158,0,0,0,0]
["Q71","RQX","HOMERTON UNIVERSITY HOSPITAL NHS FOUNDATION TRUST",30,431,6.9605568445475635E-2,1,0,25,5,0,0,0,0,0,30,0,0,0,0,0]
["Q71","RYJ","IMPERIAL COLLEGE HEALTHCARE NHS TRUST",225,608,0.37006578947368424,0.96444444444444444,2.2222222222222223E-2,158,59,2,1,4,1,0,225,0,0,0,0,0]
["Q71","RJZ","KING'S COLLEGE HOSPITAL NHS FOUNDATION TRUST",7,713,9.8176718092566617E-3,0.8571428571428571,0.14285714285714285,2,4,0,1,0,0,0,7,0,0,0,0,0]
["Q71","RAX","KINGSTON HOSPITAL NHS FOUNDATION TRUST",6,374,1.6042780748663103E-2,1,0,5,1,0,0,0,0,0,6,0,0,0,0,0]
["Q71","RJ2","LEWISHAM AND GREENWICH NHS TRUST",288,537,0.53631284916201116,0.96527777777777779,0,196,82,7,0,0,3,0,0,288,0,0,0,0]
["Q71","R1K","LONDON NORTH WEST UNIVERSITY HEALTHCARE NHS TRUST",87,324,0.26851851851851855,0.97701149425287359,0,67,18,1,0,0,1,0,0,87,0,0,0,0]
["Q71","RAP","NORTH MIDDLESEX UNIVERSITY HOSPITAL NHS TRUST",54,318,0.16981132075471697,0.92592592592592593,3.7037037037037035E-2,42,8,1,0,2,1,0,54,0,0,0,0,0]
["Q71","RAL","ROYAL FREE LONDON NHS FOUNDATION TRUST",53,610,8.6885245901639346E-2,0.98113207547169812,0,44,8,1,0,0,0,0,0,53,0,0,0,0]
["Q71","RJ7","ST GEORGE'S UNIVERSITY HOSPITALS NHS FOUNDATION TRUST",7,356,1.9662921348314606E-2,1,0,5,2,0,0,0,0,0,7,0,0,0,0,0]
["Q71","RAS","THE HILLINGDON HOSPITALS NHS FOUNDATION TRUST",103,336,0.30654761904761907,0.98058252427184467,1.9417475728155338E-2,84,17,0,1,1,0,0,0,103,0,0,0,0]
["Q71","RRV","UNIVERSITY COLLEGE LONDON HOSPITALS NHS FOUNDATION TRUST",86,509,0.16895874263261296,0.96511627906976749,0,72,11,3,0,0,0,0,0,86,0,0,0,0]
["Q71","RKE","WHITTINGTON HEALTH NHS TRUST",169,238,0.71008403361344541,0.98224852071005919,1.1834319526627219E-2,103,63,1,1,1,0,0,155,0,0,14,0,0]
["Q72","RCF","AIREDALE NHS FOUNDATION TRUST",5,155,3.2258064516129031E-2,0.8,0.2,3,1,0,0,1,0,0,0,3,0,0,2,0]
["Q72","RFF","BARNSLEY HOSPITAL NHS FOUNDATION TRUST",21,235,8.9361702127659579E-2,1,0,20,1,0,0,0,0,0,0,21,0,0,0,0]
["Q72","RAE","BRADFORD TEACHING HOSPITALS NHS FOUNDATION TRUST",62,294,0.21088435374149661,1,0,58,4,0,0,0,0,0,0,62,0,0,0,0]
["Q72","RWY","CALDERDALE AND HUDDERSFIELD NHS FOUNDATION TRUST",138,347,0.39769452449567722,0.99275362318840576,0,122,15,1,0,0,0,0,138,0,0,0,0,0]
["Q72","RP5","DONCASTER AND BASSETLAW TEACHING HOSPITALS NHS FOUNDATION TRUST",108,334,0.32335329341317365,0.98148148148148151,0,51,55,2,0,0,0,0,0,108,0,0,0,0]
["Q72","RCD","HARROGATE AND DISTRICT NHS FOUNDATION TRUST",56,129,0.43410852713178294,1,0,52,4,0,0,0,0,0,0,56,0,0,0,0]
["Q72","RWA","HULL AND EAST YORKSHIRE HOSPITALS NHS TRUST",29,395,7.3417721518987344E-2,1,0,29,0,0,0,0,0,0,0,29,0,0,0,0]
["Q72","RR8","LEEDS TEACHING HOSPITALS NHS TRUST",199,621,0.32045088566827695,0.97989949748743721,1.507537688442211E-2,185,10,1,1,2,0,138,0,0,0,3,58,0]
["Q72","RXF","MID YORKSHIRE HOSPITALS NHS TRUST",95,485,0.19587628865979381,0.98947368421052628,1.0526315789473684E-2,83,11,0,0,1,0,0,0,95,0,0,0,0]
["Q72","RJL","NORTHERN LINCOLNSHIRE AND GOOLE NHS FOUNDATION TRUST",55,291,0.18900343642611683,1,0,54,1,0,0,0,0,0,0,55,0,0,0,0]
["Q72","RHQ","SHEFFIELD TEACHING HOSPITALS NHS FOUNDATION TRUST",118,447,0.26398210290827739,0.98305084745762716,0,91,25,1,0,0,1,0,0,118,0,0,0,0]
["Q72","RFR","THE ROTHERHAM NHS FOUNDATION TRUST",53,214,0.24766355140186916,0.98113207547169812,1.8867924528301886E-2,46,6,0,0,1,0,0,0,53,0,0,0,0]
["Q72","RCB","YORK TEACHING HOSPITAL NHS FOUNDATION TRUST",181,323,0.56037151702786381,1,0,156,25,0,0,0,0,0,0,181,0,0,0,0]
["Q74","RLN","CITY HOSPITALS SUNDERLAND NHS FOUNDATION TRUST",26,190,0.1368421052631579,1,0,25,1,0,0,0,0,0,0,26,0,0,0,0]
["Q74","RXP","COUNTY DURHAM AND DARLINGTON NHS FOUNDATION TRUST",29,369,7.8590785907859076E-2,0.89655172413793105,3.4482758620689655E-2,21,5,2,1,0,0,0,0,29,0,0,0,0]
["Q74","RR7","GATESHEAD HEALTH NHS FOUNDATION TRUST",65,135,0.48148148148148145,1,0,62,3,0,0,0,0,0,0,65,0,0,0,0]
["Q74","RNL","NORTH CUMBRIA UNIVERSITY HOSPITALS NHS TRUST",53,187,0.28342245989304815,0.96226415094339623,0,49,2,2,0,0,0,0,0,41,0,0,0,12]
["Q74","RVW","NORTH TEES AND HARTLEPOOL NHS FOUNDATION TRUST",36,246,0.14634146341463414,1,0,32,4,0,0,0,0,0,0,36,0,0,0,0]
["Q74","RTF","NORTHUMBRIA HEALTHCARE NHS FOUNDATION TRUST",54,158,0.34177215189873417,0.94444444444444442,0,49,2,3,0,0,0,0,0,54,0,0,0,0]
["Q74","RTR","SOUTH TEES HOSPITALS NHS FOUNDATION TRUST",3,361,8.3102493074792248E-3,"*","*","*","*","*","*","*","*","*","*","*","*","*","*","*"]
["Q74","RE9","SOUTH TYNESIDE NHS FOUNDATION TRUST",1,72,1.3888888888888888E-2,"*","*","*","*","*","*","*","*","*","*","*","*","*","*","*"]
["Q74","RTD","THE NEWCASTLE UPON TYNE HOSPITALS NHS FOUNDATION TRUST",110,498,0.22088353413654618,1,0,101,9,0,0,0,0,0,0,110,0,0,0,0]
["Q75","RJR","COUNTESS OF CHESTER HOSPITAL NHS FOUNDATION TRUST",75,207,0.36231884057971014,1,0,72,3,0,0,0,0,21,0,54,0,0,0,0]
["Q75","RJN","EAST CHESHIRE NHS TRUST",6,99,6.0606060606060608E-2,1,0,5,1,0,0,0,0,0,0,6,0,0,0,0]
["Q75","REP","LIVERPOOL WOMEN'S NHS FOUNDATION TRUST",43,636,6.761006289308176E-2,0.93023255813953487,0,36,4,3,0,0,0,0,0,43,0,0,0,0]
["Q75","RBT","MID CHESHIRE HOSPITALS NHS FOUNDATION TRUST",26,200,0.13,0.96153846153846156,0,25,0,1,0,0,0,0,0,26,0,0,0,0]
["Q75","RVY","SOUTHPORT AND ORMSKIRK HOSPITAL NHS TRUST",34,207,0.16425120772946861,0.97058823529411764,0,30,3,0,0,0,1,0,17,17,0,0,0,0]
["Q75","RBN","ST HELENS AND KNOWSLEY TEACHING HOSPITALS NHS TRUST",50,284,0.176056338028169,1,0,47,3,0,0,0,0,0,0,50,0,0,0,0]
["Q75","RWW","WARRINGTON AND HALTON HOSPITALS NHS FOUNDATION TRUST",23,179,0.12849162011173185,1,0,21,2,0,0,0,0,0,0,23,0,0,0,0]
["Q75","RBL","WIRRAL UNIVERSITY TEACHING HOSPITAL NHS FOUNDATION TRUST",37,233,0.15879828326180256,1,0,32,5,0,0,0,0,0,0,37,0,0,0,0]
["Q76","RFS","CHESTERFIELD ROYAL HOSPITAL NHS FOUNDATION TRUST",55,216,0.25462962962962965,0.98181818181818181,0,46,8,0,0,0,1,0,55,0,0,0,0,0]
["Q76","RX1","NOTTINGHAM UNIVERSITY HOSPITALS NHS TRUST",23,642,3.5825545171339561E-2,1,0,20,3,0,0,0,0,0,4,19,0,0,0,0]
["Q76","RK5","SHERWOOD FOREST HOSPITALS NHS FOUNDATION TRUST",8,249,3.2128514056224897E-2,1,0,7,1,0,0,0,0,0,0,6,0,0,2,0]
["Q76","RXW","SHREWSBURY AND TELFORD HOSPITAL NHS TRUST",41,327,0.12538226299694188,1,0,39,2,0,0,0,0,0,0,41,0,0,0,0]
["Q76","RTG","UNIVERSITY HOSPITALS OF DERBY AND BURTON NHS FOUNDATION TRUST",190,634,0.29968454258675081,0.98947368421052628,0,156,32,2,0,0,0,2,3,183,0,0,2,0]
["Q76","RJE","UNIVERSITY HOSPITALS OF NORTH MIDLANDS NHS TRUST",22,489,4.4989775051124746E-2,1,0,21,1,0,0,0,0,0,0,22,0,0,0,0]
["Q77","RQ3","BIRMINGHAM WOMEN'S AND CHILDREN'S NHS FOUNDATION TRUST",80,548,0.145985401459854,0.98750000000000004,0,68,11,1,0,0,0,0,0,80,0,0,0,0]
["Q77","RLT","GEORGE ELIOT HOSPITAL NHS TRUST",97,170,0.57058823529411762,0.97938144329896903,1.0309278350515464E-2,88,7,0,1,0,1,72,0,25,0,0,0,0]
["Q77","RXK","SANDWELL AND WEST BIRMINGHAM HOSPITALS NHS TRUST",19,383,4.960835509138381E-2,0.94736842105263153,5.2631578947368418E-2,14,4,0,1,0,0,0,0,19,0,0,0,0]
["Q77","RJC","SOUTH WARWICKSHIRE NHS FOUNDATION TRUST",40,220,0.18181818181818182,0.97499999999999998,0,33,6,0,0,0,1,0,0,38,0,0,2,0]
["Q77","RNA","THE DUDLEY GROUP NHS FOUNDATION TRUST",117,310,0.3774193548387097,1,0,103,14,0,0,0,0,0,0,117,0,0,0,0]
["Q77","RL4","THE ROYAL WOLVERHAMPTON NHS TRUST",34,346,9.8265895953757232E-2,1,0,33,1,0,0,0,0,0,0,34,0,0,0,0]
["Q77","RRK","UNIVERSITY HOSPITALS BIRMINGHAM NHS FOUNDATION TRUST",62,584,0.10616438356164383,0.88709677419354838,9.6774193548387094E-2,46,9,0,3,3,1,41,0,21,0,0,0,0]
["Q77","RKB","UNIVERSITY HOSPITALS COVENTRY AND WARWICKSHIRE NHS TRUST",80,420,0.19047619047619047,0.86250000000000004,0.1,55,14,2,4,4,1,0,15,65,0,0,0,0]
["Q77","RBK","WALSALL HEALTHCARE NHS TRUST",33,238,0.13865546218487396,0.90909090909090906,3.0303030303030304E-2,21,9,2,1,0,0,0,33,0,0,0,0,0]
["Q77","RWP","WORCESTERSHIRE ACUTE HOSPITALS NHS TRUST",60,166,0.36144578313253012,1,0,59,1,0,0,0,0,0,0,60,0,0,0,0]
["Q77","RLQ","WYE VALLEY NHS TRUST",31,116,0.26724137931034481,0.83870967741935487,0.12903225806451613,20,6,1,2,2,0,0,31,0,0,0,0,0]
["Q78","RC1","BEDFORD HOSPITAL NHS TRUST",52,54,0.96296296296296291,0.96153846153846156,3.8461538461538464E-2,47,3,0,2,0,0,17,0,35,0,0,0,0]
["Q78","RWH","EAST AND NORTH HERTFORDSHIRE NHS TRUST",157,402,0.39054726368159204,0.98089171974522293,6.369426751592357E-3,117,37,1,1,0,1,0,157,0,0,0,0,0]
["Q78","RNQ","KETTERING GENERAL HOSPITAL NHS FOUNDATION TRUST",21,215,9.7674418604651161E-2,1,0,20,1,0,0,0,0,0,0,21,0,0,0,0]
["Q78","RC9","LUTON AND DUNSTABLE UNIVERSITY HOSPITAL NHS FOUNDATION TRUST",76,381,0.1994750656167979,0.96052631578947367,0,60,13,2,0,0,1,0,3,73,0,0,0,0]
["Q78","RD8","MILTON KEYNES UNIVERSITY HOSPITAL NHS FOUNDATION TRUST",14,283,4.9469964664310952E-2,1,0,14,0,0,0,0,0,0,0,14,0,0,0,0]
["Q78","RNS","NORTHAMPTON GENERAL HOSPITAL NHS TRUST",152,319,0.47648902821316613,0.98684210526315785,1.3157894736842105E-2,131,19,0,1,1,0,0,0,0,152,0,0,0]
["Q78","RWD","UNITED LINCOLNSHIRE HOSPITALS NHS TRUST",42,333,0.12612612612612611,0.97619047619047616,2.3809523809523808E-2,35,6,0,0,1,0,0,0,42,0,0,0,0]
["Q78","RWE","UNIVERSITY HOSPITALS OF LEICESTER NHS TRUST",474,702,0.67521367521367526,0.91983122362869196,3.1645569620253167E-2,340,96,10,7,8,13,0,474,0,0,0,0,0]
["Q78","RWG","WEST HERTFORDSHIRE HOSPITALS NHS TRUST",83,311,0.26688102893890675,0.97590361445783136,0,59,22,2,0,0,0,0,0,82,0,0,0,1]
["Q79","RDD","BASILDON AND THURROCK UNIVERSITY HOSPITALS NHS FOUNDATION TRUST",34,201,0.1691542288557214,1,0,27,7,0,0,0,0,0,0,34,0,0,0,0]
["Q79","RGT","CAMBRIDGE UNIVERSITY HOSPITALS NHS FOUNDATION TRUST",97,364,0.26648351648351648,0.97938144329896903,1.0309278350515464E-2,80,15,0,1,0,1,0,96,0,0,0,1,0]
["Q79","RDE","EAST SUFFOLK AND NORTH ESSEX NHS FOUNDATION TRUST",111,517,0.21470019342359767,0.99099099099099097,0,97,13,1,0,0,0,0,102,9,0,0,0,0]
["Q79","RGP","JAMES PAGET UNIVERSITY HOSPITALS NHS FOUNDATION TRUST",8,142,5.6338028169014086E-2,1,0,8,0,0,0,0,0,0,0,8,0,0,0,0]
["Q79","RQ8","MID ESSEX HOSPITAL SERVICES NHS TRUST",48,244,0.19672131147540983,0.89583333333333337,8.3333333333333329E-2,38,5,1,3,1,0,48,0,0,0,0,0,0]
["Q79","RM1","NORFOLK AND NORWICH UNIVERSITY HOSPITALS NHS FOUNDATION TRUST",21,387,5.4263565891472867E-2,1,0,21,0,0,0,0,0,0,21,0,0,0,0,0]
["Q79","RGN","NORTH WEST ANGLIA NHS FOUNDATION TRUST",124,501,0.24750499001996007,0.97580645161290325,0,112,9,1,0,0,2,0,0,123,0,0,1,0]
["Q79","RAJ","SOUTHEND UNIVERSITY HOSPITAL NHS FOUNDATION TRUST",25,251,9.9601593625498003E-2,0.88,0.12,20,2,0,0,3,0,17,0,8,0,0,0,0]
["Q79","RQW","THE PRINCESS ALEXANDRA HOSPITAL NHS TRUST",191,275,0.69454545454545458,0.99476439790575921,0,182,8,1,0,0,0,0,0,0,0,0,0,191]
["Q79","RCX","THE QUEEN ELIZABETH HOSPITAL, KING'S LYNN, NHS FOUNDATION TRUST",37,171,0.21637426900584794,1,0,31,6,0,0,0,0,0,37,0,0,0,0,0]
["Q79","RGR","WEST SUFFOLK NHS FOUNDATION TRUST",0,164,0,"NA","NA",0,0,0,0,0,0,0,0,0,0,0,0,0]
["Q83","RMC","BOLTON NHS FOUNDATION TRUST",148,473,0.31289640591966172,0.92567567567567566,4.72972972972973E-2,117,20,4,4,3,0,109,0,39,0,0,0,0]
["Q83","RY2","BRIDGEWATER COMMUNITY HEALTHCARE NHS FOUNDATION TRUST",0,0,"NA","NA","NA",0,0,0,0,0,0,0,0,0,0,0,0,0]
["Q83","R0A","MANCHESTER UNIVERSITY NHS FOUNDATION TRUST",112,913,0.12267250821467689,1,0,102,10,0,0,0,0,0,3,109,0,0,0,0]
["Q83","RW6","PENNINE ACUTE HOSPITALS NHS TRUST",76,652,0.1165644171779141,0.86842105263157898,5.2631578947368418E-2,59,7,6,0,4,0,59,0,17,0,0,0,0]
["Q83","RWJ","STOCKPORT NHS FOUNDATION TRUST",103,258,0.39922480620155038,1,0,83,20,0,0,0,0,0,0,0,103,0,0,0]
["Q83","RMP","TAMESIDE AND GLOSSOP INTEGRATED CARE NHS FOUNDATION TRUST",76,168,0.45238095238095238,0.98684210526315785,0,64,11,1,0,0,0,0,73,3,0,0,0,0]
["Q83","RRF","WRIGHTINGTON, WIGAN AND LEIGH NHS FOUNDATION TRUST",44,170,0.25882352941176473,0.97727272727272729,0,39,4,1,0,0,0,0,0,0,0,0,44,0]
["Q84","RXL","BLACKPOOL TEACHING HOSPITALS NHS FOUNDATION TRUST",36,195,0.18461538461538463,1,0,28,8,0,0,0,0,10,0,26,0,0,0,0]
["Q84","RXR","EAST LANCASHIRE HOSPITALS NHS TRUST",89,417,0.21342925659472423,0.97752808988764039,2.247191011235955E-2,85,2,0,0,2,0,52,0,37,0,0,0,0]
["Q84","RXN","LANCASHIRE TEACHING HOSPITALS NHS FOUNDATION TRUST",39,262,0.14885496183206107,0.94871794871794868,2.564102564102564E-2,35,2,1,0,1,0,39,0,0,0,0,0,0]
["Q84","RTX","UNIVERSITY HOSPITALS OF MORECAMBE BAY NHS FOUNDATION TRUST",107,176,0.60795454545454541,0.92523364485981308,3.7383177570093455E-2,90,9,2,3,1,2,57,0,50,0,0,0,0]
["Q85","RBD","DORSET COUNTY HOSPITAL NHS FOUNDATION TRUST",38,115,0.33043478260869563,0.97368421052631582,0,36,1,0,0,0,1,38,0,0,0,0,0,0]
["Q85","RBZ","NORTHERN DEVON HEALTHCARE NHS TRUST",48,95,0.50526315789473686,1,0,44,4,0,0,0,0,0,0,48,0,0,0,0]
["Q85","RD3","POOLE HOSPITAL NHS FOUNDATION TRUST",82,286,0.28671328671328672,1,0,80,2,0,0,0,0,0,0,82,0,0,0,0]
["Q85","REF","ROYAL CORNWALL HOSPITALS NHS TRUST",51,301,0.16943521594684385,1,0,50,1,0,0,0,0,0,8,43,0,0,0,0]
["Q85","RH8","ROYAL DEVON AND EXETER NHS FOUNDATION TRUST",0,301,0,"NA","NA",0,0,0,0,0,0,0,0,0,0,0,0,0]
["Q85","RBA","TAUNTON AND SOMERSET NHS FOUNDATION TRUST",63,210,0.3,1,0,59,4,0,0,0,0,0,0,63,0,0,0,0]
["Q85","RDZ","THE ROYAL BOURNEMOUTH AND CHRISTCHURCH HOSPITALS NHS FOUNDATION TRUST",7,18,0.3888888888888889,1,0,7,0,0,0,0,0,0,0,7,0,0,0,0]
["Q85","RA9","TORBAY AND SOUTH DEVON NHS FOUNDATION TRUST",6,173,3.4682080924855488E-2,1,0,6,0,0,0,0,0,0,0,6,0,0,0,0]
["Q85","RK9","UNIVERSITY HOSPITALS PLYMOUTH NHS TRUST",104,281,0.37010676156583627,0.99038461538461542,0,90,13,1,0,0,0,0,100,4,0,0,0,0]
["Q85","RA4","YEOVIL DISTRICT HOSPITAL NHS FOUNDATION TRUST",45,101,0.44554455445544555,1,0,40,5,0,0,0,0,0,44,1,0,0,0,0]
["Q86","RTE","GLOUCESTERSHIRE HOSPITALS NHS FOUNDATION TRUST",46,170,0.27058823529411763,0.93478260869565222,2.1739130434782608E-2,38,5,0,0,1,2,45,0,0,0,1,0,0]
["Q86","RN3","GREAT WESTERN HOSPITALS NHS FOUNDATION TRUST",10,325,3.0769230769230771E-2,0.9,0.1,8,1,0,1,0,0,0,0,10,0,0,0,0]
["Q86","RVJ","NORTH BRISTOL NHS TRUST",83,453,0.18322295805739514,0.97590361445783136,1.2048192771084338E-2,74,7,1,1,0,0,83,0,0,0,0,0,0]
["Q86","RD1","ROYAL UNITED HOSPITALS BATH NHS FOUNDATION TRUST",105,329,0.31914893617021278,0.99047619047619051,0,96,8,1,0,0,0,0,0,105,0,0,0,0]
["Q86","RNZ","SALISBURY NHS FOUNDATION TRUST",8,160,0.05,1,0,8,0,0,0,0,0,0,0,8,0,0,0,0]
["Q86","RA7","UNIVERSITY HOSPITALS BRISTOL NHS FOUNDATION TRUST",86,372,0.23118279569892472,0.98837209302325579,0,76,9,1,0,0,0,0,0,86,0,0,0,0]
["Q86","RA3","WESTON AREA HEALTH NHS TRUST",6,9,0.66666666666666663,1,0,6,0,0,0,0,0,0,0,6,0,0,0,0]
["Q87","RXQ","BUCKINGHAMSHIRE HEALTHCARE NHS TRUST",52,453,0.11479028697571744,1,0,49,3,0,0,0,0,0,0,52,0,0,0,0]
["Q87","RDU","FRIMLEY HEALTH NHS FOUNDATION TRUST",86,785,0.10955414012738854,0.97674418604651159,0,77,7,1,0,0,1,0,0,85,0,0,1,0]
["Q87","RN5","HAMPSHIRE HOSPITALS NHS FOUNDATION TRUST",157,404,0.38861386138613863,0.98726114649681529,0,145,10,1,0,0,1,0,0,157,0,0,0,0]
["Q87","R1F","ISLE OF WIGHT NHS TRUST",1,89,1.1235955056179775E-2,"*","*","*","*","*","*","*","*","*","*","*","*","*","*","*"]
["Q87","RTH","OXFORD UNIVERSITY HOSPITALS NHS FOUNDATION TRUST",37,412,8.9805825242718448E-2,1,0,"*","*","*","*","*","*","*","*","*","*","*","*","*"]
["Q87","RHU","PORTSMOUTH HOSPITALS NHS TRUST",99,363,0.27272727272727271,0.98989898989898994,1.0101010101010102E-2,92,6,0,0,1,0,0,0,99,0,0,0,0]
["Q87","RHW","ROYAL BERKSHIRE NHS FOUNDATION TRUST",97,365,0.26575342465753427,0.97938144329896903,0,79,16,1,0,0,1,0,59,35,0,0,3,0]
["Q87","RHM","UNIVERSITY HOSPITAL SOUTHAMPTON NHS FOUNDATION TRUST",166,423,0.39243498817966904,0.96987951807228912,2.4096385542168676E-2,125,36,1,2,2,0,0,0,90,0,0,76,0]
["Q88","RXH","BRIGHTON AND SUSSEX UNIVERSITY HOSPITALS NHS TRUST",70,386,0.18134715025906736,0.94285714285714284,5.7142857142857141E-2,61,5,0,1,3,0,70,0,0,0,0,0,0]
["Q88","RN7","DARTFORD AND GRAVESHAM NHS TRUST",71,338,0.21005917159763313,1,0,59,12,0,0,0,0,0,0,71,0,0,0,0]
["Q88","RVV","EAST KENT HOSPITALS UNIVERSITY NHS FOUNDATION TRUST",151,481,0.31392931392931395,0.96026490066225167,6.6225165562913907E-3,129,16,2,1,0,3,0,0,151,0,0,0,0]
["Q88","RXC","EAST SUSSEX HEALTHCARE NHS TRUST",25,215,0.11627906976744186,1,0,22,3,0,0,0,0,0,25,0,0,0,0,0]
["Q88","RWF","MAIDSTONE AND TUNBRIDGE WELLS NHS TRUST",105,401,0.26184538653366585,0.96190476190476193,9.5238095238095247E-3,90,11,0,0,1,3,0,29,73,0,0,3,0]
["Q88","RPA","MEDWAY NHS FOUNDATION TRUST",99,264,0.375,1,0,96,3,0,0,0,0,0,0,99,0,0,0,0]
["Q88","RA2","ROYAL SURREY COUNTY HOSPITAL NHS FOUNDATION TRUST",15,207,7.2463768115942032E-2,1,0,15,0,0,0,0,0,14,0,1,0,0,0,0]
["Q88","RTP","SURREY AND SUSSEX HEALTHCARE NHS TRUST",41,310,0.13225806451612904,1,0,38,3,0,0,0,0,0,31,2,0,0,8,0]
["Q88","RYR","WESTERN SUSSEX HOSPITALS NHS FOUNDATION TRUST",261,376,0.69414893617021278,0.9923371647509579,3.8314176245210726E-3,221,38,0,1,0,1,0,0,256,0,0,5,0]
["zIS1","NDE","ONE TO ONE (NORTH WEST) LIMITED",7,31,0.22580645161290322,1,0,7,0,0,0,0,0,0,7,0,0,0,0,0]

{"sheet":"Sites Q2","index":7,"n_rows":256,"n_cols":16,"rows_kept":256,"cut":false,"hidden":false,"merged":[[8,5,9,5],[8,0,9,0],[8,1,9,1],[8,2,9,2],[8,3,9,3],[8,4,9,4],[8,6,9,6],[8,7,9,7],[8,8,9,8],[8,9,9,9],[8,10,8,15]]}
[]
[]
[]
[]
[]
[null,"   Sort data by:           "]
[]
[]
["Region (LO) Code","Trust Code","Trust Name","Site Code","Site Name","Total Responses","Total Eligible","Response Rate","Percentage Recommended","Percentage Not  Recommended","Breakdown of Responses"]
[null,null,null,null,null,null,null,null,null,null,"Extremely Likely","Likely","Neither","Unlikely","Extremely Unlikely","Don't Know"]
[null,null,null,null,"England (including Independent Sector providers)",9567,43061,0.22217319616358189,0.97365945437441204,1.1706909166927982E-2,8014,1301,89,51,61,51]
[null,null,null,null,"England (excluding Independent Sector providers)",9560,43030,0.22217057866604695,0.97364016736401671,1.1715481171548118E-2,8007,1301,89,51,61,51]
[null,null,null,null,"Selection (excluding suppressed data)",{"$f":"SUBTOTAL(9,F14:F299)","v":9567},{"$f":"SUBTOTAL(9,G14:G299)","v":43061},{"$f":"IFERROR(F13/G13, \"NA\")","v":0.22217319616358189},{"$f":"IFERROR((K13+L13)/SUM(K13:P13), \"-\")","v":0.97361094298511075},{"$f":"IFERROR((N13+O13)/SUM(K13:P13), \"-\")","v":1.1257716983416051E-2},{"$f":"SUBTOTAL(9,K14:K299)","v":6869},{"$f":"SUBTOTAL(9,L14:L299)","v":1174},80,43,50,45]
["Q71","RF4","BARKING, HAVERING AND REDBRIDGE UNIVERSITY HOSPITALS NHS TRUST","RF4XXX","Non-hospital site - RF4XXX",1,11,9.0909090909090912E-2,"*","*","*","*","*","*","*","*"]
["Q71","RF4","BARKING, HAVERING AND REDBRIDGE UNIVERSITY HOSPITALS NHS TRUST","RF4QH","Queen's Hospital - RF4QH",251,561,0.44741532976827092,0.98406374501992033,7.9681274900398405E-3,"*","*","*","*","*","*"]
["Q71","R1H","BARTS HEALTH NHS TRUST","R1HNH","Newham General Hospital - R1HNH",29,346,8.3815028901734104E-2,1,0,27,2,0,0,0,0]
["Q71","R1H","BARTS HEALTH NHS TRUST","R1H12","The Royal London Hospital - R1H12",13,333,3.903903903903904E-2,1,0,11,2,0,0,0,0]
["Q71","R1H","BARTS HEALTH NHS TRUST","R1HKH","Whipps Cross University Hospital - R1HKH",53,303,0.17491749174917492,0.94339622641509435,3.7735849056603772E-2,39,11,1,1,1,0]
["Q71","RQM","CHELSEA AND WESTMINSTER HOSPITAL NHS FOUNDATION TRUST","RQM01","Chelsea and Westminster Hospital - RQM01",67,281,0.23843416370106763,0.94029850746268662,4.4776119402985072E-2,58,5,1,1,2,0]
["Q71","RQM","CHELSEA AND WESTMINSTER HOSPITAL NHS FOUNDATION TRUST","RQM91","West Middlesex University Hospital - RQM91",62,337,0.18397626112759644,1,0,51,11,0,0,0,0]
["Q71","RJ6","CROYDON HEALTH SERVICES NHS TRUST","RJ611","Croydon University Hospital - RJ611",45,260,0.17307692307692307,0.93333333333333335,4.4444444444444446E-2,30,12,1,0,2,0]
["Q71","RVR","EPSOM AND ST HELIER UNIVERSITY HOSPITALS NHS TRUST","RVR50","Epsom Hospital - RVR50",32,116,0.27586206896551724,0.96875,3.125E-2,30,1,0,1,0,0]
["Q71","RVR","EPSOM AND ST HELIER UNIVERSITY HOSPITALS NHS TRUST","RVRXXX","Non-hospital site - RVRXXX",4,14,0.2857142857142857,"*","*","*","*","*","*","*","*"]
["Q71","RVR","EPSOM AND ST HELIER UNIVERSITY HOSPITALS NHS TRUST","RVR05","St Helier Hospital - RVR05",29,178,0.16292134831460675,1,0,"*","*","*","*","*","*"]
["Q71","RJ1","GUY'S AND ST THOMAS' NHS FOUNDATION TRUST","RJ1XXX","Non-hospital site - RJ1XXX",0,9,0,"NA","NA",0,0,0,0,0,0]
["Q71","RJ1","GUY'S AND ST THOMAS' NHS FOUNDATION TRUST","RJ122","St Thomas' Hospital - RJ122",158,466,0.33905579399141633,0.97468354430379744,0,116,38,2,0,0,2]
["Q71","RQX","HOMERTON UNIVERSITY HOSPITAL NHS FOUNDATION TRUST","RQXM1","Homerton University Hospital - RQXM1",30,431,6.9605568445475635E-2,1,0,25,5,0,0,0,0]
["Q71","RYJ","IMPERIAL COLLEGE HEALTHCARE NHS TRUST","RYJ04","Queen Charlotte's Hospital - RYJ04",109,378,0.28835978835978837,0.97247706422018354,1.834862385321101E-2,83,23,1,0,2,0]
["Q71","RYJ","IMPERIAL COLLEGE HEALTHCARE NHS TRUST","RYJ01","St Mary's Hospital (HQ) - RYJ01",116,230,0.5043478260869565,0.9568965517241379,2.5862068965517241E-2,75,36,1,1,2,1]
["Q71","RJZ","KING'S COLLEGE HOSPITAL NHS FOUNDATION TRUST","RJZ01","King's College Hospital (Denmark Hill) - RJZ01",7,386,1.8134715025906734E-2,0.8571428571428571,0.14285714285714285,2,4,0,1,0,0]
["Q71","RJZ","KING'S COLLEGE HOSPITAL NHS FOUNDATION TRUST","RJZ30","Princess Royal University Hospital - RJZ30",0,327,0,"NA","NA",0,0,0,0,0,0]
["Q71","RAX","KINGSTON HOSPITAL NHS FOUNDATION TRUST","RAX01","Kingston Hospital - RAX01",6,374,1.6042780748663103E-2,1,0,5,1,0,0,0,0]
["Q71","RJ2","LEWISHAM AND GREENWICH NHS TRUST","RJ2XXX","Non-hospital site - RJ2XXX",0,4,0,"NA","NA",0,0,0,0,0,0]
["Q71","RJ2","LEWISHAM AND GREENWICH NHS TRUST","RJ231","Queen Elizabeth Hospital - RJ231",124,283,0.43816254416961131,0.967741935483871,0,84,36,3,0,0,1]
["Q71","RJ2","LEWISHAM AND GREENWICH NHS TRUST","RJ224","University Hospital Lewisham - RJ224",164,250,0.65600000000000003,0.96341463414634143,0,112,46,4,0,0,2]
["Q71","R1K","LONDON NORTH WEST UNIVERSITY HEALTHCARE NHS TRUST","R1K01","Northwick Park Hospital - R1K01",87,324,0.26851851851851855,0.97701149425287359,0,67,18,1,0,0,1]
["Q71","RAP","NORTH MIDDLESEX UNIVERSITY HOSPITAL NHS TRUST","RAPNM","North Middlesex Hospital - RAPNM",54,318,0.16981132075471697,0.92592592592592593,3.7037037037037035E-2,42,8,1,0,2,1]
["Q71","RAL","ROYAL FREE LONDON NHS FOUNDATION TRUST","RAL26","Barnet Hospital - RAL26",13,409,3.1784841075794622E-2,1,0,12,1,0,0,0,0]
["Q71","RAL","ROYAL FREE LONDON NHS FOUNDATION TRUST","RAL01","Royal Free Hospital - RAL01",40,201,0.19900497512437812,0.97499999999999998,0,32,7,1,0,0,0]
["Q71","RJ7","ST GEORGE'S UNIVERSITY HOSPITALS NHS FOUNDATION TRUST","RJ701","St George's Hospital (Tooting) - RJ701",7,356,1.9662921348314606E-2,1,0,5,2,0,0,0,0]
["Q71","RAS","THE HILLINGDON HOSPITALS NHS FOUNDATION TRUST","RAS01","Hillingdon Hospital - RAS01",102,328,0.31097560975609756,0.98039215686274506,1.9607843137254902E-2,"*","*","*","*","*","*"]
["Q71","RAS","THE HILLINGDON HOSPITALS NHS FOUNDATION TRUST","RASXXX","Non-hospital site - RASXXX",1,8,0.125,"*","*","*","*","*","*","*","*"]
["Q71","RRV","UNIVERSITY COLLEGE LONDON HOSPITALS NHS FOUNDATION TRUST","RRV11","University College Hospital Elizabeth Garrett Anderson Wing - RRV11",86,509,0.16895874263261296,0.96511627906976749,0,72,11,3,0,0,0]
["Q71","RKE","WHITTINGTON HEALTH NHS TRUST","RKEXXX","Non-hospital site - RKEXXX",0,2,0,"NA","NA",0,0,0,0,0,0]
["Q71","RKE","WHITTINGTON HEALTH NHS TRUST","RKEQ4","The Whittington Hospital - RKEQ4",169,236,0.71610169491525422,0.98224852071005919,1.1834319526627219E-2,103,63,1,1,1,0]
["Q72","RCF","AIREDALE NHS FOUNDATION TRUST","RCF22","Airedale General Hospital - RCF22",5,155,3.2258064516129031E-2,0.8,0.2,3,1,0,0,1,0]
["Q72","RFF","BARNSLEY HOSPITAL NHS FOUNDATION TRUST","RFFAA","Barnsley Hospital NHS Foundation Trust HQ - RFFAA",21,235,8.9361702127659579E-2,1,0,20,1,0,0,0,0]
["Q72","RAE","BRADFORD TEACHING HOSPITALS NHS FOUNDATION TRUST","RAE01","Bradford Royal Infirmary - RAE01",62,294,0.21088435374149661,1,0,58,4,0,0,0,0]
["Q72","RWY","CALDERDALE AND HUDDERSFIELD NHS FOUNDATION TRUST","RWY02","Calderdale Royal Hospital - RWY02",123,329,0.37386018237082069,0.99186991869918695,0,107,15,1,0,0,0]
["Q72","RWY","CALDERDALE AND HUDDERSFIELD NHS FOUNDATION TRUST","RWY01","Huddersfield Royal Infirmary - RWY01",15,18,0.83333333333333337,1,0,15,0,0,0,0,0]
["Q72","RP5","DONCASTER AND BASSETLAW TEACHING HOSPITALS NHS FOUNDATION TRUST","RP5BA","Bassetlaw Hospital - RP5BA",44,83,0.53012048192771088,0.97727272727272729,0,0,43,1,0,0,0]
["Q72","RP5","DONCASTER AND BASSETLAW TEACHING HOSPITALS NHS FOUNDATION TRUST","RP5DR","Doncaster Royal Infirmary - RP5DR",64,247,0.25910931174089069,0.984375,0,51,12,1,0,0,0]
["Q72","RP5","DONCASTER AND BASSETLAW TEACHING HOSPITALS NHS FOUNDATION TRUST","RP5XXX","Non-hospital site - RP5XXX",0,4,0,"NA","NA",0,0,0,0,0,0]
["Q72","RCD","HARROGATE AND DISTRICT NHS FOUNDATION TRUST","RCD01","Harrogate District Hospital - RCD01",56,129,0.43410852713178294,1,0,52,4,0,0,0,0]
["Q72","RWA","HULL AND EAST YORKSHIRE HOSPITALS NHS TRUST","RWA01","Hull Royal Infirmary - RWA01",29,395,7.3417721518987344E-2,1,0,29,0,0,0,0,0]
["Q72","RR8","LEEDS TEACHING HOSPITALS NHS TRUST","RR801","Leeds General Infirmary - RR801",113,298,0.37919463087248323,0.98230088495575218,1.7699115044247787E-2,105,6,0,1,1,0]
["Q72","RR8","LEEDS TEACHING HOSPITALS NHS TRUST","RR8XXX","Non-Hospital Site - RR8XXX",1,23,4.3478260869565216E-2,"*","*","*","*","*","*","*","*"]
["Q72","RR8","LEEDS TEACHING HOSPITALS NHS TRUST","RR813","St James's University Hospital - RR813",85,300,0.28333333333333333,0.97647058823529409,1.1764705882352941E-2,"*","*","*","*","*","*"]
["Q72","RXF","MID YORKSHIRE HOSPITALS NHS TRUST","RXF10","Dewsbury and District Hospital - RXF10",9,18,0.5,0.88888888888888884,0.1111111111111111,8,0,0,0,1,0]
["Q72","RXF","MID YORKSHIRE HOSPITALS NHS TRUST","RXFXXX","Non-hospital site - RXFXXX",0,6,0,"NA","NA",0,0,0,0,0,0]
["Q72","RXF","MID YORKSHIRE HOSPITALS NHS TRUST","RXF05","Pinderfields General Hospital - RXF05",81,445,0.18202247191011237,1,0,70,11,0,0,0,0]
["Q72","RXF","MID YORKSHIRE HOSPITALS NHS TRUST","RXF03","Pontefract General Infirmary - RXF03",5,16,0.3125,1,0,5,0,0,0,0,0]
["Q72","RJL","NORTHERN LINCOLNSHIRE AND GOOLE NHS FOUNDATION TRUST","RJL30","Diana, Princess Of Wales Hospital - RJL30",51,173,0.2947976878612717,1,0,"*","*","*","*","*","*"]
["Q72","RJL","NORTHERN LINCOLNSHIRE AND GOOLE NHS FOUNDATION TRUST","RJL31","Goole and District Hospital (Acute) - RJL31",4,118,3.3898305084745763E-2,"*","*","*","*","*","*","*","*"]
["Q72","RHQ","SHEFFIELD TEACHING HOSPITALS NHS FOUNDATION TRUST","RHQHH","Royal Hallamshire Hospital - RHQHH",118,447,0.26398210290827739,0.98305084745762716,0,91,25,1,0,0,1]
["Q72","RFR","THE ROTHERHAM NHS FOUNDATION TRUST","RFRPA","Rotherham District General Hospital - RFRPA",53,214,0.24766355140186916,0.98113207547169812,1.8867924528301886E-2,46,6,0,0,1,0]
["Q72","RCB","YORK TEACHING HOSPITAL NHS FOUNDATION TRUST","RCBCA","Scarborough General Hospital - RCBCA",48,112,0.42857142857142855,1,0,43,5,0,0,0,0]
["Q72","RCB","YORK TEACHING HOSPITAL NHS FOUNDATION TRUST","RCB55","York Hospital - RCB55",133,211,0.63033175355450233,1,0,113,20,0,0,0,0]
["Q74","RLN","CITY HOSPITALS SUNDERLAND NHS FOUNDATION TRUST","RLNGL","Sunderland Royal Hospital - RLNGL",26,190,0.1368421052631579,1,0,25,1,0,0,0,0]
["Q74","RXP","COUNTY DURHAM AND DARLINGTON NHS FOUNDATION TRUST","RXPDA","Darlington Memorial Hospital - RXPDA",25,151,0.16556291390728478,0.88,0.04,"*","*","*","*","*","*"]
["Q74","RXP","COUNTY DURHAM AND DARLINGTON NHS FOUNDATION TRUST","RXPXXX","Non-hospital site - RXPXXX",0,4,0,"NA","NA",0,0,0,0,0,0]
["Q74","RXP","COUNTY DURHAM AND DARLINGTON NHS FOUNDATION TRUST","RXPCP","University Hospital Of North Durham - RXPCP",4,214,1.8691588785046728E-2,"*","*","*","*","*","*","*","*"]
["Q74","RR7","GATESHEAD HEALTH NHS FOUNDATION TRUST","RR7EN","Queen Elizabeth Hospital - RR7EN",65,135,0.48148148148148145,1,0,62,3,0,0,0,0]
["Q74","RNL","NORTH CUMBRIA UNIVERSITY HOSPITALS NHS TRUST","RNLAY","Cumberland Infirmary - RNLAY",8,122,6.5573770491803282E-2,0.875,0,"*","*","*","*","*","*"]
["Q74","RNL","NORTH CUMBRIA UNIVERSITY HOSPITALS NHS TRUST","RNLBE","Penrith Hospital - RNLBE",2,3,0.66666666666666663,"*","*","*","*","*","*","*","*"]
["Q74","RNL","NORTH CUMBRIA UNIVERSITY HOSPITALS NHS TRUST","RNLBX","West Cumberland Hospital - RNLBX",43,62,0.69354838709677424,0.97674418604651159,0,42,0,1,0,0,0]
["Q74","RVW","NORTH TEES AND HARTLEPOOL NHS FOUNDATION TRUST","RVWAE","University Hospital Of North Tees - RVWAE",36,246,0.14634146341463414,1,0,32,4,0,0,0,0]
["Q74","RTF","NORTHUMBRIA HEALTHCARE NHS FOUNDATION TRUST","RTFDJ","Alnwick Infirmary - RTFDJ",1,1,1,"*","*","*","*","*","*","*","*"]
["Q74","RTF","NORTHUMBRIA HEALTHCARE NHS FOUNDATION TRUST","RTFDH","Berwick Infirmary - RTFDH",0,1,0,"NA","NA",0,0,0,0,0,0]
["Q74","RTF","NORTHUMBRIA HEALTHCARE NHS FOUNDATION TRUST","RTFDR","Hexham General Hospital - RTFDR",2,2,1,"*","*","*","*","*","*","*","*"]
["Q74","RTF","NORTHUMBRIA HEALTHCARE NHS FOUNDATION TRUST","RTFXXX","Non-hospital site - RTFXXX",0,2,0,"NA","NA",0,0,0,0,0,0]
["Q74","RTF","NORTHUMBRIA HEALTHCARE NHS FOUNDATION TRUST","RTF86","The Northumbria - RTF86",51,152,0.33552631578947367,0.94117647058823528,0,46,2,3,0,0,0]
["Q74","RTR","SOUTH TEES HOSPITALS NHS FOUNDATION TRUST","RTR45","Friarage Hospital Site - RTR45",0,15,0,"NA","NA",0,0,0,0,0,0]
["Q74","RTR","SOUTH TEES HOSPITALS NHS FOUNDATION TRUST","RTRAT","The James Cook University Hospital - RTRAT",3,346,8.670520231213872E-3,"*","*","*","*","*","*","*","*"]
["Q74","RE9","SOUTH TYNESIDE NHS FOUNDATION TRUST","RE9XXX","Non-hospital site - RE9XXX",0,2,0,"NA","NA",0,0,0,0,0,0]
["Q74","RE9","SOUTH TYNESIDE NHS FOUNDATION TRUST","RE9GA","South Tyneside District Hospital - RE9GA",1,70,1.4285714285714285E-2,"*","*","*","*","*","*","*","*"]
["Q74","RTD","THE NEWCASTLE UPON TYNE HOSPITALS NHS FOUNDATION TRUST","RTD02","The Royal Victoria Infirmary - RTD02",110,498,0.22088353413654618,1,0,101,9,0,0,0,0]
["Q75","RJR","COUNTESS OF CHESTER HOSPITAL NHS FOUNDATION TRUST","RJR05","Countess Of Chester Hospital - RJR05",75,207,0.36231884057971014,1,0,72,3,0,0,0,0]
["Q75","RJN","EAST CHESHIRE NHS TRUST","RJN71","Macclesfield District General Hospital - RJN71",6,99,6.0606060606060608E-2,1,0,5,1,0,0,0,0]
["Q75","REP","LIVERPOOL WOMEN'S NHS FOUNDATION TRUST","REP01","Liverpool Womens Hospital - REP01",43,636,6.761006289308176E-2,0.93023255813953487,0,36,4,3,0,0,0]
["Q75","RBT","MID CHESHIRE HOSPITALS NHS FOUNDATION TRUST","RBT20","Leighton Hospital - RBT20",26,200,0.13,0.96153846153846156,0,25,0,1,0,0,0]
["Q75","RVY","SOUTHPORT AND ORMSKIRK HOSPITAL NHS TRUST","RVY02","Ormskirk and District General Hospital - RVY02",34,207,0.16425120772946861,0.97058823529411764,0,30,3,0,0,0,1]
["Q75","RBN","ST HELENS AND KNOWSLEY TEACHING HOSPITALS NHS TRUST","RBN01","Whiston Hospital - RBN01",50,284,0.176056338028169,1,0,47,3,0,0,0,0]
["Q75","RWW","WARRINGTON AND HALTON HOSPITALS NHS FOUNDATION TRUST","RWWWH","Warrington Hospital - RWWWH",23,179,0.12849162011173185,1,0,21,2,0,0,0,0]
["Q75","RBL","WIRRAL UNIVERSITY TEACHING HOSPITAL NHS FOUNDATION TRUST","RBL14","Arrowe Park Hospital - RBL14",37,233,0.15879828326180256,1,0,32,5,0,0,0,0]
["Q76","RFS","CHESTERFIELD ROYAL HOSPITAL NHS FOUNDATION TRUST","RFSDA","Chesterfield Royal Hospital - RFSDA",55,216,0.25462962962962965,0.98181818181818181,0,46,8,0,0,0,1]
["Q76","RX1","NOTTINGHAM UNIVERSITY HOSPITALS NHS TRUST","RX1XXX","Non-hospital site - RX1XXX",4,13,0.30769230769230771,"*","*","*","*","*","*","*","*"]
["Q76","RX1","NOTTINGHAM UNIVERSITY HOSPITALS NHS TRUST","RX1CC","Nottingham University Hospitals NHS Trust - City Campus - RX1CC",18,330,5.4545454545454543E-2,1,0,16,2,0,0,0,0]
["Q76","RX1","NOTTINGHAM UNIVERSITY HOSPITALS NHS TRUST","RX1RA","Nottingham University Hospitals NHS Trust - Queen's Medical Centre Campus - RX1RA",1,299,3.3444816053511705E-3,"*","*","*","*","*","*","*","*"]
["Q76","RK5","SHERWOOD FOREST HOSPITALS NHS FOUNDATION TRUST","RK5BC","King's Mill Hospital - RK5BC",8,246,3.2520325203252036E-2,1,0,7,1,0,0,0,0]
["Q76","RK5","SHERWOOD FOREST HOSPITALS NHS FOUNDATION TRUST","RK5XXX","Non-hospital site - RK5XXX",0,3,0,"NA","NA",0,0,0,0,0,0]
["Q76","RXW","SHREWSBURY AND TELFORD HOSPITAL NHS TRUST","RXWMB","Bridgnorth Hospital (Maternity) - RXWMB",0,0,"NA","NA","NA",0,0,0,0,0,0]
["Q76","RXW","SHREWSBURY AND TELFORD HOSPITAL NHS TRUST","RXWML","Ludlow Hospital (Maternity) - RXWML",0,0,"NA","NA","NA",0,0,0,0,0,0]
["Q76","RXW","SHREWSBURY AND TELFORD HOSPITAL NHS TRUST","RXWXXX","Non-hospital site - RXWXXX",0,7,0,"NA","NA",0,0,0,0,0,0]
["Q76","RXW","SHREWSBURY AND TELFORD HOSPITAL NHS TRUST","RXWMJ","Robert Jones & Agnes Hunt Orthopaedic & District Hospital - RXWMJ",0,0,"NA","NA","NA",0,0,0,0,0,0]
["Q76","RXW","SHREWSBURY AND TELFORD HOSPITAL NHS TRUST","RXWAS","Royal Shrewsbury Hospital - RXWAS",2,9,0.22222222222222221,"*","*","*","*","*","*","*","*"]
["Q76","RXW","SHREWSBURY AND TELFORD HOSPITAL NHS TRUST","RXWAT","The Princess Royal Hospital - RXWAT",39,311,0.12540192926045016,1,0,"*","*","*","*","*","*"]
["Q76","RTG","UNIVERSITY HOSPITALS OF DERBY AND BURTON NHS FOUNDATION TRUST","RTG02","Queens Hospital, Burton Upon Trent - RTG02",57,213,0.26760563380281688,1,0,55,2,0,0,0,0]
["Q76","RTG","UNIVERSITY HOSPITALS OF DERBY AND BURTON NHS FOUNDATION TRUST","RTGFG","Royal Derby Hospital - RTGFG",133,421,0.31591448931116389,0.98496240601503759,0,101,30,2,0,0,0]
["Q76","RJE","UNIVERSITY HOSPITALS OF NORTH MIDLANDS NHS TRUST","RJE09","County Hospital - RJE09",0,1,0,"NA","NA",0,0,0,0,0,0]
["Q76","RJE","UNIVERSITY HOSPITALS OF NORTH MIDLANDS NHS TRUST","RJEXXX","Non-hospital site - RJEXXX",0,0,"NA","NA","NA",0,0,0,0,0,0]
["Q76","RJE","UNIVERSITY HOSPITALS OF NORTH MIDLANDS NHS TRUST","RJE01","Royal Stoke University Hospital - RJE01",22,488,4.5081967213114756E-2,1,0,21,1,0,0,0,0]
["Q77","RQ3","BIRMINGHAM WOMEN'S AND CHILDREN'S NHS FOUNDATION TRUST","RQ370","Birmingham Women's Hospital - RQ370",80,548,0.145985401459854,0.98750000000000004,0,68,11,1,0,0,0]
["Q77","RLT","GEORGE ELIOT HOSPITAL NHS TRUST","RLT01","George Eliot Hospital - Acute Services - RLT01",97,170,0.57058823529411762,0.97938144329896903,1.0309278350515464E-2,88,7,0,1,0,1]
["Q77","RXK","SANDWELL AND WEST BIRMINGHAM HOSPITALS NHS TRUST","RXK02","City Hospital - RXK02",19,383,4.960835509138381E-2,0.94736842105263153,5.2631578947368418E-2,14,4,0,1,0,0]
["Q77","RJC","SOUTH WARWICKSHIRE NHS FOUNDATION TRUST","RJCXXX","Non-hospital site - RJCXXX",0,1,0,"NA","NA",0,0,0,0,0,0]
["Q77","RJC","SOUTH WARWICKSHIRE NHS FOUNDATION TRUST","RJC02","Warwick Hospital - RJC02",40,219,0.18264840182648401,0.97499999999999998,0,33,6,0,0,0,1]
["Q77","RNA","THE DUDLEY GROUP NHS FOUNDATION TRUST","RNA01","Russells Hall Hospital - RNA01",117,310,0.3774193548387097,1,0,103,14,0,0,0,0]
["Q77","RL4","THE ROYAL WOLVERHAMPTON NHS TRUST","RL403","New Cross Hospital - RL403",34,346,9.8265895953757232E-2,1,0,33,1,0,0,0,0]
["Q77","RRK","UNIVERSITY HOSPITALS BIRMINGHAM NHS FOUNDATION TRUST","RRK98","Good Hope Hospital - RRK98",24,176,0.13636363636363635,0.95833333333333337,0,"*","*","*","*","*","*"]
["Q77","RRK","UNIVERSITY HOSPITALS BIRMINGHAM NHS FOUNDATION TRUST","RRK97","Heartlands Hospital - RRK97",37,406,9.1133004926108374E-2,0.83783783783783783,0.16216216216216217,25,6,0,3,3,0]
["Q77","RRK","UNIVERSITY HOSPITALS BIRMINGHAM NHS FOUNDATION TRUST","RRK99","Solihull Hospital - RRK99",1,2,0.5,"*","*","*","*","*","*","*","*"]
["Q77","RKB","UNIVERSITY HOSPITALS COVENTRY AND WARWICKSHIRE NHS TRUST","RKB03","Hospital Of St Cross - RKB03",0,0,"NA","NA","NA",0,0,0,0,0,0]
["Q77","RKB","UNIVERSITY HOSPITALS COVENTRY AND WARWICKSHIRE NHS TRUST","RKBXXX","Non-hospital site - RKBXXX",3,2,1.5,"*","*","*","*","*","*","*","*"]
["Q77","RKB","UNIVERSITY HOSPITALS COVENTRY AND WARWICKSHIRE NHS TRUST","RKB01","University Hospital (Coventry) - RKB01",77,418,0.18421052631578946,0.8571428571428571,0.1038961038961039,"*","*","*","*","*","*"]
["Q77","RBK","WALSALL HEALTHCARE NHS TRUST","RBK02","Manor Hospital - RBK02",33,238,0.13865546218487396,0.90909090909090906,3.0303030303030304E-2,21,9,2,1,0,0]
["Q77","RWP","WORCESTERSHIRE ACUTE HOSPITALS NHS TRUST","RWP50","Worcestershire Royal Hospital - RWP50",60,166,0.36144578313253012,1,0,59,1,0,0,0,0]
["Q77","RLQ","WYE VALLEY NHS TRUST","RLQ01","Hereford County Hospital - RLQ01",31,116,0.26724137931034481,0.83870967741935487,0.12903225806451613,20,6,1,2,2,0]
["Q78","RC1","BEDFORD HOSPITAL NHS TRUST","RC110","Bedford Hospital South Wing - RC110",52,54,0.96296296296296291,0.96153846153846156,3.8461538461538464E-2,47,3,0,2,0,0]
["Q78","RWH","EAST AND NORTH HERTFORDSHIRE NHS TRUST","RWH01","Lister Hospital - RWH01",152,394,0.38578680203045684,0.98026315789473684,6.5789473684210523E-3,114,35,1,1,0,1]
["Q78","RWH","EAST AND NORTH HERTFORDSHIRE NHS TRUST","RWHXXX","Non-hospital site - RWHXXX",5,8,0.625,1,0,3,2,0,0,0,0]
["Q78","RNQ","KETTERING GENERAL HOSPITAL NHS FOUNDATION TRUST","RNQ51","Kettering General Hospital - RNQ51",21,215,9.7674418604651161E-2,1,0,20,1,0,0,0,0]
["Q78","RC9","LUTON AND DUNSTABLE UNIVERSITY HOSPITAL NHS FOUNDATION TRUST","RC971","Luton and Dunstable Hospital - RC971",76,381,0.1994750656167979,0.96052631578947367,0,60,13,2,0,0,1]
["Q78","RD8","MILTON KEYNES UNIVERSITY HOSPITAL NHS FOUNDATION TRUST","RD816","Milton Keynes Hospital - RD816",14,283,4.9469964664310952E-2,1,0,14,0,0,0,0,0]
["Q78","RNS","NORTHAMPTON GENERAL HOSPITAL NHS TRUST","RNS01","Northampton General Hospital (Acute) - RNS01",152,319,0.47648902821316613,0.98684210526315785,1.3157894736842105E-2,131,19,0,1,1,0]
["Q78","RWD","UNITED LINCOLNSHIRE HOSPITALS NHS TRUST","RWDLP","Grantham and District Hospital - RWDLP",0,8,0,"NA","NA",0,0,0,0,0,0]
["Q78","RWD","UNITED LINCOLNSHIRE HOSPITALS NHS TRUST","RWDDA","Lincoln County Hospital - RWDDA",17,198,8.5858585858585856E-2,0.94117647058823528,5.8823529411764705E-2,11,5,0,0,1,0]
["Q78","RWD","UNITED LINCOLNSHIRE HOSPITALS NHS TRUST","RWDXXX","Non-hospital site - RWDXXX",0,0,"NA","NA","NA",0,0,0,0,0,0]
["Q78","RWD","UNITED LINCOLNSHIRE HOSPITALS NHS TRUST","RWDLA","Pilgrim Hospital - RWDLA",25,127,0.19685039370078741,1,0,24,1,0,0,0,0]
["Q78","RWE","UNIVERSITY HOSPITALS OF LEICESTER NHS TRUST","RWEAK","Leicester General Hospital - RWEAK",168,258,0.65116279069767447,0.95238095238095233,2.3809523809523808E-2,136,24,2,2,2,2]
["Q78","RWE","UNIVERSITY HOSPITALS OF LEICESTER NHS TRUST","RWEAA","Leicester Royal Infirmary - RWEAA",282,411,0.68613138686131392,0.900709219858156,3.9007092198581561E-2,189,65,8,5,6,9]
["Q78","RWE","UNIVERSITY HOSPITALS OF LEICESTER NHS TRUST","RWEXXX","Non-hospital site - RWEXXX",12,24,0.5,0.83333333333333337,0,5,5,0,0,0,2]
["Q78","RWE","UNIVERSITY HOSPITALS OF LEICESTER NHS TRUST","RWE10","St Mary's Hospital - RWE10",12,9,1.3333333333333333,1,0,10,2,0,0,0,0]
["Q78","RWG","WEST HERTFORDSHIRE HOSPITALS NHS TRUST","RWG02","Watford General Hospital - RWG02",83,311,0.26688102893890675,0.97590361445783136,0,59,22,2,0,0,0]
["Q79","RDD","BASILDON AND THURROCK UNIVERSITY HOSPITALS NHS FOUNDATION TRUST","RDDH0","Basildon University Hospital - RDDH0",34,201,0.1691542288557214,1,0,27,7,0,0,0,0]
["Q79","RGT","CAMBRIDGE UNIVERSITY HOSPITALS NHS FOUNDATION TRUST","RGT32","Rosie Hospital - RGT32",97,364,0.26648351648351648,0.97938144329896903,1.0309278350515464E-2,80,15,0,1,0,1]
["Q79","RDE","EAST SUFFOLK AND NORTH ESSEX NHS FOUNDATION TRUST","RDEE2","Clacton and District Hospital - RDEE2",1,3,0.33333333333333331,"*","*","*","*","*","*","*","*"]
["Q79","RDE","EAST SUFFOLK AND NORTH ESSEX NHS FOUNDATION TRUST","RDEE4","Colchester General Hospital - RDEE4",8,251,3.1872509960159362E-2,1,0,"*","*","*","*","*","*"]
["Q79","RDE","EAST SUFFOLK AND NORTH ESSEX NHS FOUNDATION TRUST","RDE03","Ipswich Hospital - RDE03",102,262,0.38931297709923662,0.99019607843137258,0,88,13,1,0,0,0]
["Q79","RDE","EAST SUFFOLK AND NORTH ESSEX NHS FOUNDATION TRUST","RDEXXX","Non-hospital site - RDEXXX",0,1,0,"NA","NA",0,0,0,0,0,0]
["Q79","RGP","JAMES PAGET UNIVERSITY HOSPITALS NHS FOUNDATION TRUST","RGP75","James Paget University Hospital - RGP75",8,142,5.6338028169014086E-2,1,0,8,0,0,0,0,0]
["Q79","RQ8","MID ESSEX HOSPITAL SERVICES NHS TRUST","RQ8L0","Broomfield Hospital - RQ8L0",48,244,0.19672131147540983,0.89583333333333337,8.3333333333333329E-2,38,5,1,3,1,0]
["Q79","RM1","NORFOLK AND NORWICH UNIVERSITY HOSPITALS NHS FOUNDATION TRUST","RM102","Norfolk and Norwich University Hospital - RM102",21,387,5.4263565891472867E-2,1,0,21,0,0,0,0,0]
["Q79","RGN","NORTH WEST ANGLIA NHS FOUNDATION TRUST","RGN90","Hinchingbrooke Hospital - RGN90",24,144,0.16666666666666666,0.95833333333333337,0,21,2,0,0,0,1]
["Q79","RGN","NORTH WEST ANGLIA NHS FOUNDATION TRUST","RGN80","Peterborough City Hospital - RGN80",100,357,0.28011204481792717,0.98,0,91,7,1,0,0,1]
["Q79","RAJ","SOUTHEND UNIVERSITY HOSPITAL NHS FOUNDATION TRUST","RAJ01","Southend Hospital - RAJ01",25,251,9.9601593625498003E-2,0.88,0.12,20,2,0,0,3,0]
["Q79","RQW","THE PRINCESS ALEXANDRA HOSPITAL NHS TRUST","RQWG0","Princess Alexandra Hospital - RQWG0",191,275,0.69454545454545458,0.99476439790575921,0,182,8,1,0,0,0]
["Q79","RCX","THE QUEEN ELIZABETH HOSPITAL, KING'S LYNN, NHS FOUNDATION TRUST","RCXXXX","Non-hospital site - RCXXXX",3,3,1,"*","*","*","*","*","*","*","*"]
["Q79","RCX","THE QUEEN ELIZABETH HOSPITAL, KING'S LYNN, NHS FOUNDATION TRUST","RCX70","The Queen Elizabeth Hospital - RCX70",34,168,0.20238095238095238,1,0,"*","*","*","*","*","*"]
["Q79","RGR","WEST SUFFOLK NHS FOUNDATION TRUST","RGR50","West Suffolk Hospital - RGR50",0,164,0,"NA","NA",0,0,0,0,0,0]
["Q83","RMC","BOLTON NHS FOUNDATION TRUST","RMC01","Royal Bolton Hospital - RMC01",148,473,0.31289640591966172,0.92567567567567566,4.72972972972973E-2,117,20,4,4,3,0]
["Q83","RY2","BRIDGEWATER COMMUNITY HEALTHCARE NHS FOUNDATION TRUST","RY28P","Health Care Resource Centre - RY28P",0,0,"NA","NA","NA",0,0,0,0,0,0]
["Q83","RY2","BRIDGEWATER COMMUNITY HEALTHCARE NHS FOUNDATION TRUST","RY2XXX","Non-hospital site - RY2XXX",0,0,"NA","NA","NA",0,0,0,0,0,0]
["Q83","R0A","MANCHESTER UNIVERSITY NHS FOUNDATION TRUST","R0AXXX","Non-hospital site - R0AXXX",0,7,0,"NA","NA",0,0,0,0,0,0]
["Q83","R0A","MANCHESTER UNIVERSITY NHS FOUNDATION TRUST","R0A05","St Mary's Hospital - R0A05",112,906,0.12362030905077263,1,0,102,10,0,0,0,0]
["Q83","RW6","PENNINE ACUTE HOSPITALS NHS TRUST","RW6XXX","Non-hospital site - RW6XXX",0,17,0,"NA","NA",0,0,0,0,0,0]
["Q83","RW6","PENNINE ACUTE HOSPITALS NHS TRUST","RW602","North Manchester General Hospital - RW602",39,290,0.13448275862068965,0.82051282051282048,7.6923076923076927E-2,29,3,4,0,3,0]
["Q83","RW6","PENNINE ACUTE HOSPITALS NHS TRUST","RW603","Royal Oldham Hospital - RW603",37,345,0.1072463768115942,0.91891891891891897,2.7027027027027029E-2,30,4,2,0,1,0]
["Q83","RWJ","STOCKPORT NHS FOUNDATION TRUST","RWJXXX","Non-hospital site - RWJXXX",2,2,1,"*","*","*","*","*","*","*","*"]
["Q83","RWJ","STOCKPORT NHS FOUNDATION TRUST","RWJ09","Stepping Hill Hospital - RWJ09",101,256,0.39453125,1,0,"*","*","*","*","*","*"]
["Q83","RMP","TAMESIDE AND GLOSSOP INTEGRATED CARE NHS FOUNDATION TRUST","RMP01","Tameside General Hospital - RMP01",76,168,0.45238095238095238,0.98684210526315785,0,64,11,1,0,0,0]
["Q83","RRF","WRIGHTINGTON, WIGAN AND LEIGH NHS FOUNDATION TRUST","RRF02","Royal Albert Edward Infirmary - RRF02",44,170,0.25882352941176473,0.97727272727272729,0,39,4,1,0,0,0]
["Q84","RXL","BLACKPOOL TEACHING HOSPITALS NHS FOUNDATION TRUST","RXL01","Blackpool Victoria Hospital - RXL01",36,195,0.18461538461538463,1,0,28,8,0,0,0,0]
["Q84","RXR","EAST LANCASHIRE HOSPITALS NHS TRUST","RXR20","Royal Blackburn Hospital - RXR20",89,417,0.21342925659472423,0.97752808988764039,2.247191011235955E-2,85,2,0,0,2,0]
["Q84","RXN","LANCASHIRE TEACHING HOSPITALS NHS FOUNDATION TRUST","RXN01","Chorley and South Ribble Hospital - RXN01",1,10,0.1,"*","*","*","*","*","*","*","*"]
["Q84","RXN","LANCASHIRE TEACHING HOSPITALS NHS FOUNDATION TRUST","RXN02","Royal Preston Hospital - RXN02",38,252,0.15079365079365079,0.94736842105263153,2.6315789473684209E-2,"*","*","*","*","*","*"]
["Q84","RTX","UNIVERSITY HOSPITALS OF MORECAMBE BAY NHS FOUNDATION TRUST","RTXBU","Furness General Hospital - RTXBU",58,55,1.0545454545454545,0.93103448275862066,3.4482758620689655E-2,48,6,1,2,0,1]
["Q84","RTX","UNIVERSITY HOSPITALS OF MORECAMBE BAY NHS FOUNDATION TRUST","RTX02","Royal Lancaster Infirmary - RTX02",45,114,0.39473684210526316,0.91111111111111109,4.4444444444444446E-2,"*","*","*","*","*","*"]
["Q84","RTX","UNIVERSITY HOSPITALS OF MORECAMBE BAY NHS FOUNDATION TRUST","RTXBW","Westmorland General Hospital - RTXBW",4,7,0.5714285714285714,"*","*","*","*","*","*","*","*"]
["Q85","RBD","DORSET COUNTY HOSPITAL NHS FOUNDATION TRUST","RBD01","Dorset County Hospital - RBD01",38,115,0.33043478260869563,0.97368421052631582,0,36,1,0,0,0,1]
["Q85","RBZ","NORTHERN DEVON HEALTHCARE NHS TRUST","RBZ12","North Devon District Hospital - RBZ12",48,95,0.50526315789473686,1,0,44,4,0,0,0,0]
["Q85","RD3","POOLE HOSPITAL NHS FOUNDATION TRUST","RD304","Poole General Hospital NHS Trust HQ - RD304",82,286,0.28671328671328672,1,0,80,2,0,0,0,0]
["Q85","REF","ROYAL CORNWALL HOSPITALS NHS TRUST","REFXXX","Non-hospital site - REFXXX",2,10,0.2,"*","*","*","*","*","*","*","*"]
["Q85","REF","ROYAL CORNWALL HOSPITALS NHS TRUST","REF12","Royal Cornwall Hospital (Treliske) - REF12",49,291,0.16838487972508592,1,0,"*","*","*","*","*","*"]
["Q85","RH8","ROYAL DEVON AND EXETER NHS FOUNDATION TRUST","RH854","Honiton Hospital - RH 854",0,0,"NA","NA","NA",0,0,0,0,0,0]
["Q85","RH8","ROYAL DEVON AND EXETER NHS FOUNDATION TRUST","RH833","Okehampton Community Hospital - RH833",0,0,"NA","NA","NA",0,0,0,0,0,0]
["Q85","RH8","ROYAL DEVON AND EXETER NHS FOUNDATION TRUST","RH801","Royal Devon and Exeter Hospital (Wonford) - RH801",0,301,0,"NA","NA",0,0,0,0,0,0]
["Q85","RH8","ROYAL DEVON AND EXETER NHS FOUNDATION TRUST","RH853","Tiverton and District Hospital - RH853",0,0,"NA","NA","NA",0,0,0,0,0,0]
["Q85","RBA","TAUNTON AND SOMERSET NHS FOUNDATION TRUST","RBAC3","Bridgwater Hospital - RBAC3",1,2,0.5,"*","*","*","*","*","*","*","*"]
["Q85","RBA","TAUNTON AND SOMERSET NHS FOUNDATION TRUST","RBA11","Musgrove Park Hospital - RBA11",62,201,0.30845771144278605,1,0,"*","*","*","*","*","*"]
["Q85","RBA","TAUNTON AND SOMERSET NHS FOUNDATION TRUST","RBAXXX","Non-hospital site - RBAXXX",0,7,0,"NA","NA",0,0,0,0,0,0]
["Q85","RDZ","THE ROYAL BOURNEMOUTH AND CHRISTCHURCH HOSPITALS NHS FOUNDATION TRUST","RDZ20","Royal Bournemouth General Hospital - RDZ20",7,18,0.3888888888888889,1,0,7,0,0,0,0,0]
["Q85","RA9","TORBAY AND SOUTH DEVON NHS FOUNDATION TRUST","RA957","Newton Abbot Community Hospital - RA957",0,3,0,"NA","NA",0,0,0,0,0,0]
["Q85","RA9","TORBAY AND SOUTH DEVON NHS FOUNDATION TRUST","RA9XXX","Non-hospital site - RA9XXX",0,7,0,"NA","NA",0,0,0,0,0,0]
["Q85","RA9","TORBAY AND SOUTH DEVON NHS FOUNDATION TRUST","RA901","Torbay Hospital - RA901",6,163,3.6809815950920248E-2,1,0,6,0,0,0,0,0]
["Q85","RK9","UNIVERSITY HOSPITALS PLYMOUTH NHS TRUST","RK950","Derriford Hospital - RK950",101,267,0.37827715355805241,0.99009900990099009,0,"*","*","*","*","*","*"]
["Q85","RK9","UNIVERSITY HOSPITALS PLYMOUTH NHS TRUST","RK9XXX","Non-hospital site - RK9XXX",3,14,0.21428571428571427,"*","*","*","*","*","*","*","*"]
["Q85","RA4","YEOVIL DISTRICT HOSPITAL NHS FOUNDATION TRUST","RA430","Yeovil District Hospital - RA430",45,101,0.44554455445544555,1,0,40,5,0,0,0,0]
["Q86","RTE","GLOUCESTERSHIRE HOSPITALS NHS FOUNDATION TRUST","RTE01","Cheltenham General Hospital - RTE01",10,19,0.52631578947368418,0.9,0.1,"*","*","*","*","*","*"]
["Q86","RTE","GLOUCESTERSHIRE HOSPITALS NHS FOUNDATION TRUST","RTE03","Gloucestershire Royal Hospital - RTE03",33,134,0.2462686567164179,0.93939393939393945,0,27,4,0,0,0,2]
["Q86","RTE","GLOUCESTERSHIRE HOSPITALS NHS FOUNDATION TRUST","RTEXXX","Non-hospital site - RTEXXX",0,4,0,"NA","NA",0,0,0,0,0,0]
["Q86","RTE","GLOUCESTERSHIRE HOSPITALS NHS FOUNDATION TRUST","RTE27","Stroud Maternity Hospital - RTE27",3,13,0.23076923076923078,"*","*","*","*","*","*","*","*"]
["Q86","RN3","GREAT WESTERN HOSPITALS NHS FOUNDATION TRUST","RN3XXX","Non-hospital site - RN3XXX",0,5,0,"NA","NA",0,0,0,0,0,0]
["Q86","RN3","GREAT WESTERN HOSPITALS NHS FOUNDATION TRUST","RN325","The Great Western Hospital - RN325",10,320,3.125E-2,0.9,0.1,8,1,0,1,0,0]
["Q86","RVJ","NORTH BRISTOL NHS TRUST","RVJXXX","Non-hospital site - RVJXXX",0,2,0,"NA","NA",0,0,0,0,0,0]
["Q86","RVJ","NORTH BRISTOL NHS TRUST","RVJ01","Southmead Hospital - RVJ01",83,451,0.18403547671840353,0.97590361445783136,1.2048192771084338E-2,74,7,1,1,0,0]
["Q86","RD1","ROYAL UNITED HOSPITALS BATH NHS FOUNDATION TRUST","RD102","Chippenham Community Hospital -RD102",10,15,0.66666666666666663,1,0,10,0,0,0,0,0]
["Q86","RD1","ROYAL UNITED HOSPITALS BATH NHS FOUNDATION TRUST","RD121","Frome Community Hospital  - RD121",2,6,0.33333333333333331,"*","*","*","*","*","*","*","*"]
["Q86","RD1","ROYAL UNITED HOSPITALS BATH NHS FOUNDATION TRUST","RD1XXX","Non Hospital Site - RD1XXX",0,11,0,"NA","NA",0,0,0,0,0,0]
["Q86","RD1","ROYAL UNITED HOSPITALS BATH NHS FOUNDATION TRUST","RD129","Paulton Memorial Hospital  - RD129",6,5,1.2,1,0,6,0,0,0,0,0]
["Q86","RD1","ROYAL UNITED HOSPITALS BATH NHS FOUNDATION TRUST","RD130","Princess Anne Wing RUH  - RD130",86,287,0.29965156794425085,0.98837209302325579,0,78,7,1,0,0,0]
["Q86","RD1","ROYAL UNITED HOSPITALS BATH NHS FOUNDATION TRUST","RD108","Trowbridge Community Hospital  - RD108",1,5,0.2,"*","*","*","*","*","*","*","*"]
["Q86","RNZ","SALISBURY NHS FOUNDATION TRUST","RNZXXX","Non-hospital site - RNZXXX",0,11,0,"NA","NA",0,0,0,0,0,0]
["Q86","RNZ","SALISBURY NHS FOUNDATION TRUST","RNZ02","Salisbury District Hospital - RNZ02",8,149,5.3691275167785234E-2,1,0,8,0,0,0,0,0]
["Q86","RA7","UNIVERSITY HOSPITALS BRISTOL NHS FOUNDATION TRUST","RA707","St Michael's Hospital - RA707",86,372,0.23118279569892472,0.98837209302325579,0,76,9,1,0,0,0]
["Q86","RA3","WESTON AREA HEALTH NHS TRUST","RA301","Weston General Hospital - RA301",6,9,0.66666666666666663,1,0,6,0,0,0,0,0]
["Q87","RXQ","BUCKINGHAMSHIRE HEALTHCARE NHS TRUST","RXQXXX","Non-hospital site - RXQXXX",0,1,0,"NA","NA",0,0,0,0,0,0]
["Q87","RXQ","BUCKINGHAMSHIRE HEALTHCARE NHS TRUST","RXQ02","Stoke Mandeville Hospital - RXQ02",52,426,0.12206572769953052,1,0,49,3,0,0,0,0]
["Q87","RXQ","BUCKINGHAMSHIRE HEALTHCARE NHS TRUST","RXQ50","Wycombe Hospital - RXQ50",0,26,0,"NA","NA",0,0,0,0,0,0]
["Q87","RDU","FRIMLEY HEALTH NHS FOUNDATION TRUST","RDU01","Frimley Park Hospital - RDU01",49,434,0.11290322580645161,1,0,47,2,0,0,0,0]
["Q87","RDU","FRIMLEY HEALTH NHS FOUNDATION TRUST","RDU50","Wexham Park Hospital - RDU50",37,351,0.10541310541310542,0.94594594594594594,0,30,5,1,0,0,1]
["Q87","RN5","HAMPSHIRE HOSPITALS NHS FOUNDATION TRUST","RN542","Andover War Memorial Hospital - RN542",0,7,0,"NA","NA",0,0,0,0,0,0]
["Q87","RN5","HAMPSHIRE HOSPITALS NHS FOUNDATION TRUST","RN506","Basingstoke and North Hampshire Hospital - RN506",115,198,0.58080808080808077,0.9826086956521739,0,105,8,1,0,0,1]
["Q87","RN5","HAMPSHIRE HOSPITALS NHS FOUNDATION TRUST","RN541","Royal Hampshire County Hospital - RN541",42,199,0.21105527638190955,1,0,40,2,0,0,0,0]
["Q87","R1F","ISLE OF WIGHT NHS TRUST","R1F01","St Mary's Hospital - R1F01",1,89,1.1235955056179775E-2,"*","*","*","*","*","*","*","*"]
["Q87","RTH","OXFORD UNIVERSITY HOSPITALS NHS FOUNDATION TRUST","RTH19","Chipping Norton Community Hospital - RTH19",7,7,1,1,0,"*","*","*","*","*","*"]
["Q87","RTH","OXFORD UNIVERSITY HOSPITALS NHS FOUNDATION TRUST","RTH05","Horton General Hospital - RTH05",0,13,0,"NA","NA",0,0,0,0,0,0]
["Q87","RTH","OXFORD UNIVERSITY HOSPITALS NHS FOUNDATION TRUST","RTH08","John Radcliffe Hospital - RTH08",20,369,5.4200542005420058E-2,1,0,18,2,0,0,0,0]
["Q87","RTH","OXFORD UNIVERSITY HOSPITALS NHS FOUNDATION TRUST","RTHXXX","Non-hospital site - RTHXXX",2,14,0.14285714285714285,"*","*","*","*","*","*","*","*"]
["Q87","RTH","OXFORD UNIVERSITY HOSPITALS NHS FOUNDATION TRUST","RTH16","Wallingford Community Hospital - RTH16",8,7,1.1428571428571428,1,0,8,0,0,0,0,0]
["Q87","RTH","OXFORD UNIVERSITY HOSPITALS NHS FOUNDATION TRUST","RTH21","Wantage Community Hospital - RTH21",0,2,0,"NA","NA",0,0,0,0,0,0]
["Q87","RHU","PORTSMOUTH HOSPITALS NHS TRUST","RHU10","Gosport War Memorial Hospital - RHU10",0,0,"NA","NA","NA",0,0,0,0,0,0]
["Q87","RHU","PORTSMOUTH HOSPITALS NHS TRUST","RHU04","Petersfield Community Hospital - RHU04",0,0,"NA","NA","NA",0,0,0,0,0,0]
["Q87","RHU","PORTSMOUTH HOSPITALS NHS TRUST","RHU03","Queen Alexandra Hospital - RHU03",96,359,0.26740947075208915,0.98958333333333337,1.0416666666666666E-2,"*","*","*","*","*","*"]
["Q87","RHU","PORTSMOUTH HOSPITALS NHS TRUST","RHU02","St Mary's Hospital - RHU02",3,4,0.75,"*","*","*","*","*","*","*","*"]
["Q87","RHW","ROYAL BERKSHIRE NHS FOUNDATION TRUST","RHW01","Royal Berkshire Hospital - RHW01",97,365,0.26575342465753427,0.97938144329896903,0,79,16,1,0,0,1]
["Q87","RHM","UNIVERSITY HOSPITAL SOUTHAMPTON NHS FOUNDATION TRUST","RHM12","Princess Anne Hospital - RHM12",166,423,0.39243498817966904,0.96987951807228912,2.4096385542168676E-2,125,36,1,2,2,0]
["Q88","RXH","BRIGHTON AND SUSSEX UNIVERSITY HOSPITALS NHS TRUST","RXHXXX","Non-hospital site - RXHXXX",0,23,0,"NA","NA",0,0,0,0,0,0]
["Q88","RXH","BRIGHTON AND SUSSEX UNIVERSITY HOSPITALS NHS TRUST","RXH09","Princess Royal Hospital - RXH09",8,164,4.878048780487805E-2,1,0,7,1,0,0,0,0]
["Q88","RXH","BRIGHTON AND SUSSEX UNIVERSITY HOSPITALS NHS TRUST","RXH01","Royal Sussex County Hospital - RXH01",62,199,0.31155778894472363,0.93548387096774188,6.4516129032258063E-2,54,4,0,1,3,0]
["Q88","RN7","DARTFORD AND GRAVESHAM NHS TRUST","RN707","Darent Valley Hospital - RN707",71,338,0.21005917159763313,1,0,59,12,0,0,0,0]
["Q88","RVV","EAST KENT HOSPITALS UNIVERSITY NHS FOUNDATION TRUST","RVVXXX","Non-hospital site - RVVXXX",0,16,0,"NA","NA",0,0,0,0,0,0]
["Q88","RVV","EAST KENT HOSPITALS UNIVERSITY NHS FOUNDATION TRUST","RVV09","Queen Elizabeth The Queen Mother Hospital - RVV09",95,187,0.50802139037433158,0.96842105263157896,1.0526315789473684E-2,84,8,0,1,0,2]
["Q88","RVV","EAST KENT HOSPITALS UNIVERSITY NHS FOUNDATION TRUST","RVV01","William Harvey Hospital (Ashford) - RVV01",56,278,0.20143884892086331,0.9464285714285714,0,45,8,2,0,0,1]
["Q88","RXC","EAST SUSSEX HEALTHCARE NHS TRUST","RXC01","Conquest Hospital - RXC01",11,187,5.8823529411764705E-2,1,0,9,2,0,0,0,0]
["Q88","RXC","EAST SUSSEX HEALTHCARE NHS TRUST","RXC02","Eastbourne District General Hospital - RXC02",14,21,0.66666666666666663,1,0,13,1,0,0,0,0]
["Q88","RXC","EAST SUSSEX HEALTHCARE NHS TRUST","RXCXXX","Non-hospital site - RXCXXX",0,7,0,"NA","NA",0,0,0,0,0,0]
["Q88","RWF","MAIDSTONE AND TUNBRIDGE WELLS NHS TRUST","RWF03","Maidstone District General Hospital - RWF03",22,30,0.73333333333333328,1,0,21,1,0,0,0,0]
["Q88","RWF","MAIDSTONE AND TUNBRIDGE WELLS NHS TRUST","RWFXXX","Non-hospital site - RWFXXX",13,11,1.1818181818181819,1,0,12,1,0,0,0,0]
["Q88","RWF","MAIDSTONE AND TUNBRIDGE WELLS NHS TRUST","RWFTW","The Tunbridge Wells Hospital - RWFTW",70,360,0.19444444444444445,0.94285714285714284,1.4285714285714285E-2,57,9,0,0,1,3]
["Q88","RPA","MEDWAY NHS FOUNDATION TRUST","RPA02","Medway Maritime Hospital - RPA02",99,264,0.375,1,0,96,3,0,0,0,0]
["Q88","RA2","ROYAL SURREY COUNTY HOSPITAL NHS FOUNDATION TRUST","RA201","Royal Surrey County Hospital - RA201",15,207,7.2463768115942032E-2,1,0,15,0,0,0,0,0]
["Q88","RTP","SURREY AND SUSSEX HEALTHCARE NHS TRUST","RTP04","East Surrey Hospital - RTP04",41,310,0.13225806451612904,1,0,38,3,0,0,0,0]
["Q88","RYR","WESTERN SUSSEX HOSPITALS NHS FOUNDATION TRUST","RYR16","St Richard's Hospital - RYR16",128,203,0.63054187192118227,0.9921875,7.8125E-3,112,15,0,1,0,0]
["Q88","RYR","WESTERN SUSSEX HOSPITALS NHS FOUNDATION TRUST","RYR18","Worthing Hospital - RYR18",133,173,0.76878612716763006,0.99248120300751874,0,109,23,0,0,0,1]
["zIS1","NDE","ONE TO ONE (NORTH WEST) LIMITED","NDE01","One to One (North West) Limited HQ - NDE01",7,31,0.22580645161290322,1,0,7,0,0,0,0,0]

{"sheet":"Region (Local Office) Q3","index":8,"n_rows":28,"n_cols":11,"rows_kept":28,"cut":false,"hidden":false,"merged":[[8,5,8,10],[8,0,9,0],[8,1,9,1],[8,2,9,2],[8,3,9,3],[8,4,9,4]]}
[]
[]
[]
[]
[]
[null,"   Sort data by:           "]
[]
[]
["Region (LO) Code","Region (Local Office)","Total Responses","Percentage Recommended","Percentage Not  Recommended","Breakdown of Responses"]
[null,null,null,null,null,"Extremely Likely","Likely","Neither","Unlikely","Extremely Unlikely","Don't Know"]
[null,"England (including Independent Sector providers)",11096,0.95079307858687812,1.7393655371304974E-2,8304,2246,272,101,92,81]
[null,"England (excluding Independent Sector providers)",11096,0.95079307858687812,1.7393655371304974E-2,8304,2246,272,101,92,81]
[null,"Selection (excluding suppressed data)",{"$f":"SUBTOTAL(9,C14:C40)","v":11096},{"$f":"IFERROR((F13+G13)/SUM(F13:K13), \"-\")","v":0.95079307858687812},{"$f":"IFERROR((I13+J13)/SUM(F13:K13), \"-\")","v":1.7393655371304974E-2},{"$f":"SUBTOTAL(9,F14:F40)","v":8304},2246,272,101,92,81]
["Q72","NHS England Yorkshire & Humber",1071,0.97852474323062555,1.1204481792717087E-2,834,214,11,5,7,0]
["Q74","NHS England Cumbria & North East",445,0.97752808988764039,4.4943820224719105E-3,387,48,7,0,2,1]
["Q75","NHS England Cheshire & Merseyside",435,0.95862068965517244,1.6091954022988506E-2,363,54,8,0,7,3]
["Q83","NHS England Greater Manchester",674,0.96884272997032639,1.7804154302670624E-2,572,81,9,5,7,0]
["Q84","NHS England Lancashire",194,0.96907216494845361,1.0309278350515464E-2,162,26,4,2,0,0]
["Q76","NHS England North Midlands",531,0.967984934086629,1.3182674199623353E-2,402,112,9,6,1,1]
["Q77","NHS England West Midlands",732,0.95355191256830596,1.6393442622950821E-2,568,130,14,6,6,8]
["Q78","NHS England Central Midlands",1174,0.92333901192504264,2.385008517887564E-2,761,323,48,15,13,14]
["Q79","NHS England East",1162,0.95697074010327021,1.0327022375215147E-2,899,213,28,6,6,10]
["Q85","NHS England South West (South West South)",448,0.9665178571428571,4.464285714285714E-3,341,92,13,2,0,0]
["Q86","NHS England South West (South West North)",281,0.94306049822064053,2.491103202846975E-2,237,28,9,5,2,0]
["Q87","NHS England South East (Hampshire, Isle Of Wight & Thames Valley)",855,0.93333333333333335,2.2222222222222223E-2,650,148,29,14,5,9]
["Q88","NHS England South East (Kent, Surrey & Sussex)",870,0.97586206896551719,1.264367816091954E-2,737,112,7,8,3,3]
["Q71","NHS England London",2224,0.92446043165467628,2.6978417266187049E-2,1391,665,76,27,33,32]
["zIS1","Independent Sector Provider",0,"NA","NA",0,0,0,0,0,0]

{"sheet":"Trusts Q3","index":9,"n_rows":144,"n_cols":19,"rows_kept":144,"cut":false,"hidden":false,"merged":[[8,6,8,11],[8,12,8,18],[8,0,9,0],[8,1,9,1],[8,2,9,2],[8,3,9,3],[8,4,9,4],[8,5,9,5]]}
[]
[]
[]
[]
[]
[null,"   Sort data by:           "]
[]
[]
["Region (LO) Code","Trust Code","Trust Name","Total Responses","Percentage Recommended","Percentage Not  Recommended","Breakdown of Responses",null,null,null,null,null,"Mode of Collection"]
[null,null,null,null,null,null,"Extremely Likely","Likely","Neither","Unlikely","Extremely Unlikely","Don't Know","SMS/Text / Smartphone App","Electronic tablet/kiosk at point of discharge","Paper / postcard at point of discharge","Paper survey sent to the patients home","Telephone survey once patient is home","Online survey once patient is home","Other"]
[null,null,"England (including Independent Sector providers)",11096,0.95079307858687812,1.7393655371304974E-2,8304,2246,272,101,92,81,924,3193,6339,153,20,263,204]
[null,null,"England (excluding Independent Sector providers)",11096,0.95079307858687812,1.7393655371304974E-2,8304,2246,272,101,92,81,924,3193,6339,153,20,263,204]
[null,null,"Selection (excluding suppressed data)",{"$f":"SUBTOTAL(9,D14:D299)","v":11096},{"$f":"IFERROR((G13+H13)/SUM(G13:L13), \"-\")","v":0.9507586081584446},{"$f":"IFERROR((J13+K13)/SUM(G13:L13), \"-\")","v":1.7352593803942946E-2},{"$f":"SUBTOTAL(9,G14:G299)","v":8238},2227,271,100,91,80,924,3121,6322,153,20,263,204]
["Q71","RRV","UNIVERSITY COLLEGE LONDON HOSPITALS NHS FOUNDATION TRUST",28,0.9642857142857143,0,22,5,1,0,0,0,0,0,28,0,0,0,0]
["Q71","R1H","BARTS HEALTH NHS TRUST",30,0.93333333333333335,6.6666666666666666E-2,15,13,0,0,2,0,1,0,13,0,0,16,0]
["Q71","RJ6","CROYDON HEALTH SERVICES NHS TRUST",30,0.8,0,20,4,5,0,0,1,4,0,26,0,0,0,0]
["Q71","RAX","KINGSTON HOSPITAL NHS FOUNDATION TRUST",36,0.94444444444444442,0,28,6,2,0,0,0,0,36,0,0,0,0,0]
["Q71","RAL","ROYAL FREE LONDON NHS FOUNDATION TRUST",53,0.90566037735849059,3.7735849056603772E-2,38,10,3,2,0,0,0,0,53,0,0,0,0]
["Q71","RVR","EPSOM AND ST HELIER UNIVERSITY HOSPITALS NHS TRUST",78,0.98717948717948723,0,56,21,1,0,0,0,0,0,77,0,0,1,0]
["Q71","RJ7","ST GEORGE'S UNIVERSITY HOSPITALS NHS FOUNDATION TRUST",92,0.95652173913043481,1.0869565217391304E-2,76,12,2,0,1,1,0,92,0,0,0,0,0]
["Q71","RAS","THE HILLINGDON HOSPITALS NHS FOUNDATION TRUST",109,0.94495412844036697,2.7522935779816515E-2,71,32,3,1,2,0,0,0,109,0,0,0,0]
["Q71","RF4","BARKING, HAVERING AND REDBRIDGE UNIVERSITY HOSPITALS NHS TRUST",112,0.9285714285714286,1.7857142857142856E-2,71,33,4,0,2,2,0,20,92,0,0,0,0]
["Q71","RAP","NORTH MIDDLESEX UNIVERSITY HOSPITAL NHS TRUST",116,0.90517241379310343,4.3103448275862072E-2,83,22,6,1,4,0,0,116,0,0,0,0,0]
["Q71","R1K","LONDON NORTH WEST UNIVERSITY HEALTHCARE NHS TRUST",140,0.9,7.1428571428571426E-3,89,37,4,1,0,9,0,0,139,0,0,1,0]
["Q71","RQX","HOMERTON UNIVERSITY HOSPITAL NHS FOUNDATION TRUST",145,0.93103448275862066,6.2068965517241378E-2,89,46,1,6,3,0,0,143,0,0,0,2,0]
["Q71","RJ1","GUY'S AND ST THOMAS' NHS FOUNDATION TRUST",151,0.90066225165562919,2.6490066225165563E-2,80,56,8,4,0,3,0,0,151,0,0,0,0]
["Q71","RKE","WHITTINGTON HEALTH NHS TRUST",169,0.9349112426035503,3.5502958579881658E-2,88,70,4,2,4,1,0,155,0,0,14,0,0]
["Q71","RYJ","IMPERIAL COLLEGE HEALTHCARE NHS TRUST",174,0.89655172413793105,5.7471264367816091E-2,85,71,5,5,5,3,0,174,0,0,0,0,0]
["Q71","RQM","CHELSEA AND WESTMINSTER HOSPITAL NHS FOUNDATION TRUST",187,0.9197860962566845,4.2780748663101602E-2,137,35,6,2,6,1,152,34,0,0,1,0,0]
["Q71","RJ2","LEWISHAM AND GREENWICH NHS TRUST",221,0.92307692307692313,4.5248868778280547E-3,119,85,9,1,0,7,0,0,221,0,0,0,0]
["Q71","RJZ","KING'S COLLEGE HOSPITAL NHS FOUNDATION TRUST",353,0.93767705382436262,1.69971671388102E-2,224,107,12,2,4,4,0,272,0,0,0,81,0]
["Q72","RAE","BRADFORD TEACHING HOSPITALS NHS FOUNDATION TRUST",0,"NA","NA",0,0,0,0,0,0,0,0,0,0,0,0,0]
["Q72","RCF","AIREDALE NHS FOUNDATION TRUST",5,0.8,0.2,4,0,0,0,1,0,0,0,4,0,0,1,0]
["Q72","RJL","NORTHERN LINCOLNSHIRE AND GOOLE NHS FOUNDATION TRUST",12,1,0,10,2,0,0,0,0,0,0,12,0,0,0,0]
["Q72","RFF","BARNSLEY HOSPITAL NHS FOUNDATION TRUST",18,1,0,14,4,0,0,0,0,0,0,18,0,0,0,0]
["Q72","RXF","MID YORKSHIRE HOSPITALS NHS TRUST",38,0.97368421052631582,0,28,9,1,0,0,0,0,0,38,0,0,0,0]
["Q72","RCD","HARROGATE AND DISTRICT NHS FOUNDATION TRUST",56,1,0,52,4,0,0,0,0,0,0,56,0,0,0,0]
["Q72","RWA","HULL AND EAST YORKSHIRE HOSPITALS NHS TRUST",56,0.9821428571428571,0,53,2,1,0,0,0,0,0,56,0,0,0,0]
["Q72","RFR","THE ROTHERHAM NHS FOUNDATION TRUST",69,1,0,53,16,0,0,0,0,0,0,69,0,0,0,0]
["Q72","RP5","DONCASTER AND BASSETLAW TEACHING HOSPITALS NHS FOUNDATION TRUST",74,0.97297297297297303,1.3513513513513514E-2,36,36,1,0,1,0,0,0,74,0,0,0,0]
["Q72","RHQ","SHEFFIELD TEACHING HOSPITALS NHS FOUNDATION TRUST",112,1,0,85,27,0,0,0,0,0,0,111,0,0,1,0]
["Q72","RCB","YORK TEACHING HOSPITAL NHS FOUNDATION TRUST",177,0.96610169491525422,1.6949152542372881E-2,135,36,3,2,1,0,0,0,177,0,0,0,0]
["Q72","RWY","CALDERDALE AND HUDDERSFIELD NHS FOUNDATION TRUST",219,0.9908675799086758,0,185,32,2,0,0,0,0,219,0,0,0,0,0]
["Q72","RR8","LEEDS TEACHING HOSPITALS NHS TRUST",235,0.95744680851063835,2.9787234042553193E-2,179,46,3,3,4,0,133,0,99,0,3,0,0]
["Q74","RTR","SOUTH TEES HOSPITALS NHS FOUNDATION TRUST",2,"*","*","*","*","*","*","*","*","*","*","*","*","*","*","*"]
["Q74","RE9","SOUTH TYNESIDE NHS FOUNDATION TRUST",4,"*","*","*","*","*","*","*","*","*","*","*","*","*","*","*"]
["Q74","RLN","CITY HOSPITALS SUNDERLAND NHS FOUNDATION TRUST",13,1,0,12,1,0,0,0,0,0,0,13,0,0,0,0]
["Q74","RVW","NORTH TEES AND HARTLEPOOL NHS FOUNDATION TRUST",50,0.98,0,42,7,1,0,0,0,0,0,50,0,0,0,0]
["Q74","RNL","NORTH CUMBRIA UNIVERSITY HOSPITALS NHS TRUST",51,0.96078431372549022,0,47,2,2,0,0,0,0,0,39,0,0,0,12]
["Q74","RTF","NORTHUMBRIA HEALTHCARE NHS FOUNDATION TRUST",54,0.94444444444444442,0,49,2,3,0,0,0,0,0,54,0,0,0,0]
["Q74","RR7","GATESHEAD HEALTH NHS FOUNDATION TRUST",68,1,0,64,4,0,0,0,0,0,0,68,0,0,0,0]
["Q74","RXP","COUNTY DURHAM AND DARLINGTON NHS FOUNDATION TRUST",90,0.97777777777777775,1.1111111111111112E-2,70,18,1,0,1,0,0,0,90,0,0,0,0]
["Q74","RTD","THE NEWCASTLE UPON TYNE HOSPITALS NHS FOUNDATION TRUST",113,0.98230088495575218,8.8495575221238937E-3,98,13,0,0,1,1,0,0,113,0,0,0,0]
["Q75","RWW","WARRINGTON AND HALTON HOSPITALS NHS FOUNDATION TRUST",0,"NA","NA",0,0,0,0,0,0,0,0,0,0,0,0,0]
["Q75","RBT","MID CHESHIRE HOSPITALS NHS FOUNDATION TRUST",25,0.96,0,22,2,1,0,0,0,0,0,25,0,0,0,0]
["Q75","RJN","EAST CHESHIRE NHS TRUST",33,0.96969696969696972,0,31,1,0,0,0,1,0,0,33,0,0,0,0]
["Q75","RVY","SOUTHPORT AND ORMSKIRK HOSPITAL NHS TRUST",33,0.96969696969696972,0,29,3,0,0,0,1,0,14,19,0,0,0,0]
["Q75","RBN","ST HELENS AND KNOWSLEY TEACHING HOSPITALS NHS TRUST",51,0.98039215686274506,0,45,5,0,0,0,1,0,0,51,0,0,0,0]
["Q75","RJR","COUNTESS OF CHESTER HOSPITAL NHS FOUNDATION TRUST",76,1,0,64,12,0,0,0,0,22,0,54,0,0,0,0]
["Q75","RBL","WIRRAL UNIVERSITY TEACHING HOSPITAL NHS FOUNDATION TRUST",83,0.97590361445783136,1.2048192771084338E-2,70,11,1,0,1,0,0,0,83,0,0,0,0]
["Q75","REP","LIVERPOOL WOMEN'S NHS FOUNDATION TRUST",134,0.91044776119402981,4.4776119402985072E-2,102,20,6,0,6,0,0,0,134,0,0,0,0]
["Q76","RK5","SHERWOOD FOREST HOSPITALS NHS FOUNDATION TRUST",2,"*","*","*","*","*","*","*","*","*","*","*","*","*","*","*"]
["Q76","RFS","CHESTERFIELD ROYAL HOSPITAL NHS FOUNDATION TRUST",43,1,0,"*","*","*","*","*","*","*","*","*","*","*","*","*"]
["Q76","RJE","UNIVERSITY HOSPITALS OF NORTH MIDLANDS NHS TRUST",58,0.96551724137931039,1.7241379310344827E-2,50,6,1,1,0,0,0,0,58,0,0,0,0]
["Q76","RXW","SHREWSBURY AND TELFORD HOSPITAL NHS TRUST",73,0.98630136986301364,1.3698630136986301E-2,64,8,0,1,0,0,0,0,73,0,0,0,0]
["Q76","RTG","UNIVERSITY HOSPITALS OF DERBY AND BURTON NHS FOUNDATION TRUST",150,0.98,1.3333333333333334E-2,117,30,1,2,0,0,0,4,146,0,0,0,0]
["Q76","RX1","NOTTINGHAM UNIVERSITY HOSPITALS NHS TRUST",205,0.9463414634146341,1.4634146341463415E-2,135,59,7,2,1,1,0,205,0,0,0,0,0]
["Q77","RXK","SANDWELL AND WEST BIRMINGHAM HOSPITALS NHS TRUST",2,"*","*","*","*","*","*","*","*","*","*","*","*","*","*","*"]
["Q77","RLQ","WYE VALLEY NHS TRUST",29,0.86206896551724133,6.8965517241379309E-2,"*","*","*","*","*","*","*","*","*","*","*","*","*"]
["Q77","RJC","SOUTH WARWICKSHIRE NHS FOUNDATION TRUST",33,0.93939393939393945,3.0303030303030304E-2,24,7,1,1,0,0,0,0,32,0,0,1,0]
["Q77","RBK","WALSALL HEALTHCARE NHS TRUST",51,0.82352941176470584,3.9215686274509803E-2,26,16,4,0,2,3,0,50,1,0,0,0,0]
["Q77","RRK","UNIVERSITY HOSPITALS BIRMINGHAM NHS FOUNDATION TRUST",60,0.96666666666666667,0,47,11,1,0,0,1,0,0,60,0,0,0,0]
["Q77","RKB","UNIVERSITY HOSPITALS COVENTRY AND WARWICKSHIRE NHS TRUST",63,0.92063492063492058,1.5873015873015872E-2,49,9,3,0,1,1,0,9,54,0,0,0,0]
["Q77","RL4","THE ROYAL WOLVERHAMPTON NHS TRUST",68,0.98529411764705888,1.4705882352941176E-2,52,15,0,1,0,0,1,0,67,0,0,0,0]
["Q77","RLT","GEORGE ELIOT HOSPITAL NHS TRUST",82,0.93902439024390238,3.6585365853658534E-2,68,9,0,2,1,2,55,0,27,0,0,0,0]
["Q77","RQ3","BIRMINGHAM WOMEN'S AND CHILDREN'S NHS FOUNDATION TRUST",105,0.96190476190476193,0,82,19,4,0,0,0,0,0,105,0,0,0,0]
["Q77","RNA","THE DUDLEY GROUP NHS FOUNDATION TRUST",117,1,0,99,18,0,0,0,0,0,0,117,0,0,0,0]
["Q77","RWP","WORCESTERSHIRE ACUTE HOSPITALS NHS TRUST",122,0.98360655737704916,1.6393442622950821E-2,102,18,0,1,1,0,0,0,122,0,0,0,0]
["Q78","RNQ","KETTERING GENERAL HOSPITAL NHS FOUNDATION TRUST",24,1,0,22,2,0,0,0,0,0,0,24,0,0,0,0]
["Q78","RWD","UNITED LINCOLNSHIRE HOSPITALS NHS TRUST",41,0.95121951219512191,4.878048780487805E-2,32,7,0,0,2,0,0,0,41,0,0,0,0]
["Q78","RC1","BEDFORD HOSPITAL NHS TRUST",55,0.90909090909090906,3.6363636363636362E-2,43,7,2,2,0,1,25,0,30,0,0,0,0]
["Q78","RD8","MILTON KEYNES UNIVERSITY HOSPITAL NHS FOUNDATION TRUST",74,0.94594594594594594,0,41,29,4,0,0,0,0,0,74,0,0,0,0]
["Q78","RWG","WEST HERTFORDSHIRE HOSPITALS NHS TRUST",80,0.96250000000000002,1.2500000000000001E-2,60,17,2,1,0,0,0,0,79,0,0,0,1]
["Q78","RNS","NORTHAMPTON GENERAL HOSPITAL NHS TRUST",108,0.96296296296296291,1.8518518518518517E-2,91,13,2,1,1,0,0,0,0,108,0,0,0]
["Q78","RWH","EAST AND NORTH HERTFORDSHIRE NHS TRUST",156,0.91666666666666663,1.282051282051282E-2,86,57,10,2,0,1,0,156,0,0,0,0,0]
["Q78","RC9","LUTON AND DUNSTABLE UNIVERSITY HOSPITAL NHS FOUNDATION TRUST",208,0.95673076923076927,1.4423076923076924E-2,132,67,5,0,3,1,0,208,0,0,0,0,0]
["Q78","RWE","UNIVERSITY HOSPITALS OF LEICESTER NHS TRUST",428,0.88317757009345799,3.7383177570093455E-2,254,124,23,9,7,11,0,428,0,0,0,0,0]
["Q79","RGR","WEST SUFFOLK NHS FOUNDATION TRUST",7,1,0,5,2,0,0,0,0,0,7,0,0,0,0,0]
["Q79","RGP","JAMES PAGET UNIVERSITY HOSPITALS NHS FOUNDATION TRUST",17,1,0,16,1,0,0,0,0,0,0,17,0,0,0,0]
["Q79","RM1","NORFOLK AND NORWICH UNIVERSITY HOSPITALS NHS FOUNDATION TRUST",46,0.97826086956521741,0,43,2,1,0,0,0,0,46,0,0,0,0,0]
["Q79","RCX","THE QUEEN ELIZABETH HOSPITAL, KING'S LYNN, NHS FOUNDATION TRUST",47,0.95744680851063835,0,37,8,2,0,0,0,0,47,0,0,0,0,0]
["Q79","RQ8","MID ESSEX HOSPITAL SERVICES NHS TRUST",53,0.96226415094339623,1.8867924528301886E-2,47,4,0,1,0,1,53,0,0,0,0,0,0]
["Q79","RGN","NORTH WEST ANGLIA NHS FOUNDATION TRUST",109,0.96330275229357798,0,84,21,1,0,0,3,0,0,107,0,0,2,0]
["Q79","RAJ","SOUTHEND UNIVERSITY HOSPITAL NHS FOUNDATION TRUST",120,0.95,2.5000000000000001E-2,100,14,2,1,2,1,42,0,78,0,0,0,0]
["Q79","RDE","EAST SUFFOLK AND NORTH ESSEX NHS FOUNDATION TRUST",128,0.9609375,7.8125E-3,103,20,4,1,0,0,0,104,24,0,0,0,0]
["Q79","RQW","THE PRINCESS ALEXANDRA HOSPITAL NHS TRUST",191,0.99476439790575921,0,182,8,1,0,0,0,0,0,0,0,0,0,191]
["Q79","RDD","BASILDON AND THURROCK UNIVERSITY HOSPITALS NHS FOUNDATION TRUST",216,0.96759259259259256,1.3888888888888888E-2,156,53,3,0,3,1,0,0,216,0,0,0,0]
["Q79","RGT","CAMBRIDGE UNIVERSITY HOSPITALS NHS FOUNDATION TRUST",228,0.90350877192982459,1.7543859649122806E-2,126,80,14,3,1,4,0,225,1,0,0,2,0]
["Q83","RY2","BRIDGEWATER COMMUNITY HEALTHCARE NHS FOUNDATION TRUST",0,"NA","NA",0,0,0,0,0,0,0,0,0,0,0,0,0]
["Q83","RMP","TAMESIDE AND GLOSSOP INTEGRATED CARE NHS FOUNDATION TRUST",19,0.68421052631578949,5.2631578947368418E-2,7,6,5,1,0,0,0,15,4,0,0,0,0]
["Q83","RWJ","STOCKPORT NHS FOUNDATION TRUST",45,1,0,40,5,0,0,0,0,0,0,0,45,0,0,0]
["Q83","RW6","PENNINE ACUTE HOSPITALS NHS TRUST",48,0.89583333333333337,0.10416666666666667,38,5,0,1,4,0,24,0,24,0,0,0,0]
["Q83","RRF","WRIGHTINGTON, WIGAN AND LEIGH NHS FOUNDATION TRUST",67,0.97014925373134331,0,56,9,2,0,0,0,0,0,1,0,0,66,0]
["Q83","RMC","BOLTON NHS FOUNDATION TRUST",74,0.93243243243243246,5.4054054054054057E-2,57,12,1,2,2,0,42,0,32,0,0,0,0]
["Q83","R0A","MANCHESTER UNIVERSITY NHS FOUNDATION TRUST",421,0.99287410926365793,4.7505938242280287E-3,374,44,1,1,1,0,0,23,398,0,0,0,0]
["Q84","RXN","LANCASHIRE TEACHING HOSPITALS NHS FOUNDATION TRUST",17,1,0,17,0,0,0,0,0,17,0,0,0,0,0,0]
["Q84","RXL","BLACKPOOL TEACHING HOSPITALS NHS FOUNDATION TRUST",33,0.90909090909090906,0,21,9,3,0,0,0,0,7,26,0,0,0,0]
["Q84","RTX","UNIVERSITY HOSPITALS OF MORECAMBE BAY NHS FOUNDATION TRUST",42,0.95238095238095233,2.3809523809523808E-2,36,4,1,1,0,0,33,0,7,0,1,1,0]
["Q84","RXR","EAST LANCASHIRE HOSPITALS NHS TRUST",102,0.99019607843137258,9.8039215686274508E-3,88,13,0,1,0,0,16,0,86,0,0,0,0]
["Q85","RDZ","THE ROYAL BOURNEMOUTH AND CHRISTCHURCH HOSPITALS NHS FOUNDATION TRUST",0,"NA","NA",0,0,0,0,0,0,0,0,0,0,0,0,0]
["Q85","RH8","ROYAL DEVON AND EXETER NHS FOUNDATION TRUST",0,"NA","NA",0,0,0,0,0,0,0,0,0,0,0,0,0]
["Q85","RA9","TORBAY AND SOUTH DEVON NHS FOUNDATION TRUST",6,1,0,6,0,0,0,0,0,0,0,6,0,0,0,0]
["Q85","RD3","POOLE HOSPITAL NHS FOUNDATION TRUST",32,1,0,30,2,0,0,0,0,0,0,32,0,0,0,0]
["Q85","RBD","DORSET COUNTY HOSPITAL NHS FOUNDATION TRUST",36,0.97222222222222221,0,31,4,1,0,0,0,36,0,0,0,0,0,0]
["Q85","REF","ROYAL CORNWALL HOSPITALS NHS TRUST",40,0.95,2.5000000000000001E-2,28,10,1,1,0,0,0,0,39,0,0,1,0]
["Q85","RA4","YEOVIL DISTRICT HOSPITAL NHS FOUNDATION TRUST",57,0.96491228070175439,0,46,9,2,0,0,0,0,57,0,0,0,0,0]
["Q85","RBZ","NORTHERN DEVON HEALTHCARE NHS TRUST",57,1,0,50,7,0,0,0,0,0,0,57,0,0,0,0]
["Q85","RBA","TAUNTON AND SOMERSET NHS FOUNDATION TRUST",75,0.97333333333333338,0,49,24,2,0,0,0,0,0,75,0,0,0,0]
["Q85","RK9","UNIVERSITY HOSPITALS PLYMOUTH NHS TRUST",145,0.94482758620689655,6.8965517241379309E-3,101,36,7,1,0,0,0,124,21,0,0,0,0]
["Q86","RA3","WESTON AREA HEALTH NHS TRUST",0,"NA","NA",0,0,0,0,0,0,0,0,0,0,0,0,0]
["Q86","RNZ","SALISBURY NHS FOUNDATION TRUST",2,"*","*","*","*","*","*","*","*","*","*","*","*","*","*","*"]
["Q86","RN3","GREAT WESTERN HOSPITALS NHS FOUNDATION TRUST",5,1,0,"*","*","*","*","*","*","*","*","*","*","*","*","*"]
["Q86","RD1","ROYAL UNITED HOSPITALS BATH NHS FOUNDATION TRUST",60,0.98333333333333328,1.6666666666666666E-2,54,5,0,1,0,0,0,0,60,0,0,0,0]
["Q86","RTE","GLOUCESTERSHIRE HOSPITALS NHS FOUNDATION TRUST",61,0.90163934426229508,3.2786885245901641E-2,49,6,4,1,1,0,60,0,0,0,1,0,0]
["Q86","RA7","UNIVERSITY HOSPITALS BRISTOL NHS FOUNDATION TRUST",72,0.97222222222222221,0,62,8,2,0,0,0,0,0,72,0,0,0,0]
["Q86","RVJ","NORTH BRISTOL NHS TRUST",81,0.9135802469135802,4.9382716049382713E-2,66,8,3,3,1,0,80,0,1,0,0,0,0]
["Q87","R1F","ISLE OF WIGHT NHS TRUST",13,1,0,12,1,0,0,0,0,0,0,13,0,0,0,0]
["Q87","RTH","OXFORD UNIVERSITY HOSPITALS NHS FOUNDATION TRUST",24,0.83333333333333337,0,18,2,1,0,0,3,0,0,22,0,0,2,0]
["Q87","RXQ","BUCKINGHAMSHIRE HEALTHCARE NHS TRUST",26,0.96153846153846156,0,22,3,1,0,0,0,0,0,26,0,0,0,0]
["Q87","RHU","PORTSMOUTH HOSPITALS NHS TRUST",66,1,0,60,6,0,0,0,0,0,0,66,0,0,0,0]
["Q87","RHW","ROYAL BERKSHIRE NHS FOUNDATION TRUST",76,0.94736842105263153,0,47,25,3,0,0,1,0,39,35,0,0,2,0]
["Q87","RN5","HAMPSHIRE HOSPITALS NHS FOUNDATION TRUST",156,0.9358974358974359,1.282051282051282E-2,132,14,7,2,0,1,0,0,156,0,0,0,0]
["Q87","RHM","UNIVERSITY HOSPITAL SOUTHAMPTON NHS FOUNDATION TRUST",160,0.83750000000000002,9.375E-2,92,42,8,11,4,3,0,0,86,0,0,74,0]
["Q87","RDU","FRIMLEY HEALTH NHS FOUNDATION TRUST",334,0.9640718562874252,5.9880239520958087E-3,267,55,9,1,1,1,0,0,332,0,0,2,0]
["Q88","RXC","EAST SUSSEX HEALTHCARE NHS TRUST",11,0.90909090909090906,0,6,4,0,0,0,1,0,11,0,0,0,0,0]
["Q88","RWF","MAIDSTONE AND TUNBRIDGE WELLS NHS TRUST",35,0.97142857142857142,0,29,5,1,0,0,0,0,0,35,0,0,0,0]
["Q88","RA2","ROYAL SURREY COUNTY HOSPITAL NHS FOUNDATION TRUST",63,0.98412698412698407,1.5873015873015872E-2,58,4,0,1,0,0,46,0,17,0,0,0,0]
["Q88","RXH","BRIGHTON AND SUSSEX UNIVERSITY HOSPITALS NHS TRUST",82,0.92682926829268297,6.097560975609756E-2,69,7,1,3,2,0,82,0,0,0,0,0,0]
["Q88","RTP","SURREY AND SUSSEX HEALTHCARE NHS TRUST",83,0.95180722891566261,1.2048192771084338E-2,59,20,3,0,1,0,0,81,0,0,0,2,0]
["Q88","RPA","MEDWAY NHS FOUNDATION TRUST",88,1,0,84,4,0,0,0,0,0,0,88,0,0,0,0]
["Q88","RN7","DARTFORD AND GRAVESHAM NHS TRUST",92,1,0,75,17,0,0,0,0,0,0,92,0,0,0,0]
["Q88","RVV","EAST KENT HOSPITALS UNIVERSITY NHS FOUNDATION TRUST",155,0.96129032258064517,1.935483870967742E-2,136,13,2,3,0,1,0,0,155,0,0,0,0]
["Q88","RYR","WESTERN SUSSEX HOSPITALS NHS FOUNDATION TRUST",261,0.9923371647509579,3.8314176245210726E-3,221,38,0,1,0,1,0,0,256,0,0,5,0]
["zIS1","NDE","ONE TO ONE (NORTH WEST) LIMITED",0,"NA","NA",0,0,0,0,0,0,0,0,0,0,0,0,0]

{"sheet":"Sites Q3","index":10,"n_rows":199,"n_cols":14,"rows_kept":199,"cut":false,"hidden":false,"merged":[[8,6,9,6],[8,7,9,7],[8,8,8,13],[8,0,9,0],[8,1,9,1],[8,2,9,2],[8,3,9,3],[8,4,9,4],[8,5,9,5]]}
[]
[]
[]
[]
[]
[null,"   Sort data by:           "]
[]
[]
["Region (LO) Code","Trust Code","Trust Name","Site Code","Site Name","Total Responses","Percentage Recommended","Percentage Not  Recommended","Breakdown of Responses"]
[null,null,null,null,null,null,null,null,"Extremely Likely","Likely","Neither","Unlikely","Extremely Unlikely","Don't Know"]
[null,null,null,null,"England (including Independent Sector providers)",11096,0.95079307858687812,1.7393655371304974E-2,8304,2246,272,101,92,81]
[null,null,null,null,"England (excluding Independent Sector providers)",11096,0.95079307858687812,1.7393655371304974E-2,8304,2246,272,101,92,81]
[null,null,null,null,"Selection (excluding suppressed data)",{"$f":"SUBTOTAL(9,F14:F298)","v":11096},{"$f":"IFERROR((I13+J13)/SUM(I13:N13), \"-\")","v":0.95069323294463315},{"$f":"IFERROR((L13+M13)/SUM(I13:N13), \"-\")","v":1.7353778349095583E-2},{"$f":"SUBTOTAL(9,I14:I298)","v":8158},2196,269,100,89,79]
["Q71","RF4","BARKING, HAVERING AND REDBRIDGE UNIVERSITY HOSPITALS NHS TRUST","RF4QH","Queen's Hospital - RF4QH",112,0.9285714285714286,1.7857142857142856E-2,71,33,4,0,2,2]
["Q71","R1H","BARTS HEALTH NHS TRUST","R1HNH","Newham General Hospital - R1HNH",1,"*","*","*","*","*","*","*","*"]
["Q71","R1H","BARTS HEALTH NHS TRUST","R1H12","The Royal London Hospital - R1H12",16,1,0,10,6,0,0,0,0]
["Q71","R1H","BARTS HEALTH NHS TRUST","R1HKH","Whipps Cross University Hospital - R1HKH",13,0.84615384615384615,0.15384615384615385,"*","*","*","*","*","*"]
["Q71","RQM","CHELSEA AND WESTMINSTER HOSPITAL NHS FOUNDATION TRUST","RQM01","Chelsea and Westminster Hospital - RQM01",111,0.90090090090090091,3.6036036036036036E-2,77,23,6,1,3,1]
["Q71","RQM","CHELSEA AND WESTMINSTER HOSPITAL NHS FOUNDATION TRUST","RQM91","West Middlesex University Hospital - RQM91",76,0.94736842105263153,5.2631578947368418E-2,60,12,0,1,3,0]
["Q71","RJ6","CROYDON HEALTH SERVICES NHS TRUST","RJ611","Croydon University Hospital - RJ611",30,0.8,0,20,4,5,0,0,1]
["Q71","RVR","EPSOM AND ST HELIER UNIVERSITY HOSPITALS NHS TRUST","RVR50","Epsom Hospital - RVR50",47,0.97872340425531912,0,35,11,1,0,0,0]
["Q71","RVR","EPSOM AND ST HELIER UNIVERSITY HOSPITALS NHS TRUST","RVR05","St Helier Hospital - RVR05",31,1,0,21,10,0,0,0,0]
["Q71","RJ1","GUY'S AND ST THOMAS' NHS FOUNDATION TRUST","RJ122","St Thomas' Hospital - RJ122",151,0.90066225165562919,2.6490066225165563E-2,80,56,8,4,0,3]
["Q71","RQX","HOMERTON UNIVERSITY HOSPITAL NHS FOUNDATION TRUST","RQXM1","Homerton University Hospital - RQXM1",145,0.93103448275862066,6.2068965517241378E-2,89,46,1,6,3,0]
["Q71","RYJ","IMPERIAL COLLEGE HEALTHCARE NHS TRUST","RYJ04","Queen Charlotte's Hospital - RYJ04",69,0.92753623188405798,2.8985507246376812E-2,35,29,2,0,2,1]
["Q71","RYJ","IMPERIAL COLLEGE HEALTHCARE NHS TRUST","RYJ01","St Mary's Hospital (HQ) - RYJ01",105,0.87619047619047619,7.6190476190476197E-2,50,42,3,5,3,2]
["Q71","RJZ","KING'S COLLEGE HOSPITAL NHS FOUNDATION TRUST","RJZ01","King's College Hospital (Denmark Hill) - RJZ01",64,0.9375,4.6875E-2,35,25,1,1,2,0]
["Q71","RJZ","KING'S COLLEGE HOSPITAL NHS FOUNDATION TRUST","RJZ30","Princess Royal University Hospital - RJZ30",289,0.93771626297577859,1.0380622837370242E-2,189,82,11,1,2,4]
["Q71","RAX","KINGSTON HOSPITAL NHS FOUNDATION TRUST","RAX01","Kingston Hospital - RAX01",36,0.94444444444444442,0,28,6,2,0,0,0]
["Q71","RJ2","LEWISHAM AND GREENWICH NHS TRUST","RJ231","Queen Elizabeth Hospital - RJ231",97,0.91752577319587625,1.0309278350515464E-2,52,37,4,1,0,3]
["Q71","RJ2","LEWISHAM AND GREENWICH NHS TRUST","RJ224","University Hospital Lewisham - RJ224",124,0.92741935483870963,0,67,48,5,0,0,4]
["Q71","R1K","LONDON NORTH WEST UNIVERSITY HEALTHCARE NHS TRUST","R1K01","Northwick Park Hospital - R1K01",140,0.9,7.1428571428571426E-3,89,37,4,1,0,9]
["Q71","RAP","NORTH MIDDLESEX UNIVERSITY HOSPITAL NHS TRUST","RAPNM","North Middlesex Hospital - RAPNM",116,0.90517241379310343,4.3103448275862072E-2,83,22,6,1,4,0]
["Q71","RAL","ROYAL FREE LONDON NHS FOUNDATION TRUST","RAL26","Barnet Hospital - RAL26",13,1,0,11,2,0,0,0,0]
["Q71","RAL","ROYAL FREE LONDON NHS FOUNDATION TRUST","RAL01","Royal Free Hospital - RAL01",40,0.875,0.05,27,8,3,2,0,0]
["Q71","RJ7","ST GEORGE'S UNIVERSITY HOSPITALS NHS FOUNDATION TRUST","RJ701","St George's Hospital (Tooting) - RJ701",92,0.95652173913043481,1.0869565217391304E-2,76,12,2,0,1,1]
["Q71","RAS","THE HILLINGDON HOSPITALS NHS FOUNDATION TRUST","RAS01","Hillingdon Hospital - RAS01",109,0.94495412844036697,2.7522935779816515E-2,71,32,3,1,2,0]
["Q71","RRV","UNIVERSITY COLLEGE LONDON HOSPITALS NHS FOUNDATION TRUST","RRV11","University College Hospital Elizabeth Garrett Anderson Wing - RRV11",28,0.9642857142857143,0,22,5,1,0,0,0]
["Q71","RKE","WHITTINGTON HEALTH NHS TRUST","RKEQ4","The Whittington Hospital - RKEQ4",169,0.9349112426035503,3.5502958579881658E-2,88,70,4,2,4,1]
["Q72","RCF","AIREDALE NHS FOUNDATION TRUST","RCF22","Airedale General Hospital - RCF22",5,0.8,0.2,4,0,0,0,1,0]
["Q72","RFF","BARNSLEY HOSPITAL NHS FOUNDATION TRUST","RFFAA","Barnsley Hospital NHS Foundation Trust HQ - RFFAA",18,1,0,14,4,0,0,0,0]
["Q72","RAE","BRADFORD TEACHING HOSPITALS NHS FOUNDATION TRUST","RAE01","Bradford Royal Infirmary - RAE01",0,"NA","NA",0,0,0,0,0,0]
["Q72","RWY","CALDERDALE AND HUDDERSFIELD NHS FOUNDATION TRUST","RWY02","Calderdale Royal Hospital - RWY02",205,0.99024390243902438,0,171,32,2,0,0,0]
["Q72","RWY","CALDERDALE AND HUDDERSFIELD NHS FOUNDATION TRUST","RWY01","Huddersfield Royal Infirmary - RWY01",14,1,0,14,0,0,0,0,0]
["Q72","RP5","DONCASTER AND BASSETLAW TEACHING HOSPITALS NHS FOUNDATION TRUST","RP5BA","Bassetlaw Hospital - RP5BA",26,1,0,1,25,0,0,0,0]
["Q72","RP5","DONCASTER AND BASSETLAW TEACHING HOSPITALS NHS FOUNDATION TRUST","RP5DR","Doncaster Royal Infirmary - RP5DR",48,0.95833333333333337,2.0833333333333332E-2,35,11,1,0,1,0]
["Q72","RCD","HARROGATE AND DISTRICT NHS FOUNDATION TRUST","RCD01","Harrogate District Hospital - RCD01",56,1,0,52,4,0,0,0,0]
["Q72","RWA","HULL AND EAST YORKSHIRE HOSPITALS NHS TRUST","RWA01","Hull Royal Infirmary - RWA01",56,0.9821428571428571,0,53,2,1,0,0,0]
["Q72","RR8","LEEDS TEACHING HOSPITALS NHS TRUST","RR801","Leeds General Infirmary - RR801",115,0.94782608695652171,3.4782608695652174E-2,88,21,2,3,1,0]
["Q72","RR8","LEEDS TEACHING HOSPITALS NHS TRUST","RR813","St James's University Hospital - RR813",120,0.96666666666666667,2.5000000000000001E-2,91,25,1,0,3,0]
["Q72","RXF","MID YORKSHIRE HOSPITALS NHS TRUST","RXF05","Pinderfields General Hospital - RXF05",38,0.97368421052631582,0,28,9,1,0,0,0]
["Q72","RJL","NORTHERN LINCOLNSHIRE AND GOOLE NHS FOUNDATION TRUST","RJL32","Scunthorpe General Hospital - RJL32",12,1,0,10,2,0,0,0,0]
["Q72","RHQ","SHEFFIELD TEACHING HOSPITALS NHS FOUNDATION TRUST","RHQHH","Royal Hallamshire Hospital - RHQHH",112,1,0,85,27,0,0,0,0]
["Q72","RFR","THE ROTHERHAM NHS FOUNDATION TRUST","RFRPA","Rotherham District General Hospital - RFRPA",69,1,0,53,16,0,0,0,0]
["Q72","RCB","YORK TEACHING HOSPITAL NHS FOUNDATION TRUST","RCBCA","Scarborough General Hospital - RCBCA",48,0.97916666666666663,0,40,7,1,0,0,0]
["Q72","RCB","YORK TEACHING HOSPITAL NHS FOUNDATION TRUST","RCB55","York Hospital - RCB55",129,0.96124031007751942,2.3255813953488372E-2,95,29,2,2,1,0]
["Q74","RLN","CITY HOSPITALS SUNDERLAND NHS FOUNDATION TRUST","RLNGL","Sunderland Royal Hospital - RLNGL",13,1,0,12,1,0,0,0,0]
["Q74","RXP","COUNTY DURHAM AND DARLINGTON NHS FOUNDATION TRUST","RXPDA","Darlington Memorial Hospital - RXPDA",22,1,0,18,4,0,0,0,0]
["Q74","RXP","COUNTY DURHAM AND DARLINGTON NHS FOUNDATION TRUST","RXPCP","University Hospital Of North Durham - RXPCP",68,0.97058823529411764,1.4705882352941176E-2,52,14,1,0,1,0]
["Q74","RR7","GATESHEAD HEALTH NHS FOUNDATION TRUST","RR7EN","Queen Elizabeth Hospital - RR7EN",68,1,0,64,4,0,0,0,0]
["Q74","RNL","NORTH CUMBRIA UNIVERSITY HOSPITALS NHS TRUST","RNLAY","Cumberland Infirmary - RNLAY",8,0.875,0,5,2,1,0,0,0]
["Q74","RNL","NORTH CUMBRIA UNIVERSITY HOSPITALS NHS TRUST","RNLBX","West Cumberland Hospital - RNLBX",43,0.97674418604651159,0,42,0,1,0,0,0]
["Q74","RVW","NORTH TEES AND HARTLEPOOL NHS FOUNDATION TRUST","RVWAE","University Hospital Of North Tees - RVWAE",50,0.98,0,42,7,1,0,0,0]
["Q74","RTF","NORTHUMBRIA HEALTHCARE NHS FOUNDATION TRUST","RTFDJ","Alnwick Infirmary - RTFDJ",1,"*","*","*","*","*","*","*","*"]
["Q74","RTF","NORTHUMBRIA HEALTHCARE NHS FOUNDATION TRUST","RTFDH","Berwick Infirmary - RTFDH",0,"NA","NA",0,0,0,0,0,0]
["Q74","RTF","NORTHUMBRIA HEALTHCARE NHS FOUNDATION TRUST","RTFDR","Hexham General Hospital - RTFDR",2,"*","*","*","*","*","*","*","*"]
["Q74","RTF","NORTHUMBRIA HEALTHCARE NHS FOUNDATION TRUST","RTF86","The Northumbria - RTF86",51,0.94117647058823528,0,46,2,3,0,0,0]
["Q74","RTR","SOUTH TEES HOSPITALS NHS FOUNDATION TRUST","RTR45","Friarage Hospital Site - RTR45",0,"NA","NA",0,0,0,0,0,0]
["Q74","RTR","SOUTH TEES HOSPITALS NHS FOUNDATION TRUST","RTRAT","The James Cook University Hospital - RTRAT",2,"*","*","*","*","*","*","*","*"]
["Q74","RE9","SOUTH TYNESIDE NHS FOUNDATION TRUST","RE9GA","South Tyneside District Hospital - RE9GA",4,"*","*","*","*","*","*","*","*"]
["Q74","RTD","THE NEWCASTLE UPON TYNE HOSPITALS NHS FOUNDATION TRUST","RTD02","The Royal Victoria Infirmary - RTD02",113,0.98230088495575218,8.8495575221238937E-3,98,13,0,0,1,1]
["Q75","RJR","COUNTESS OF CHESTER HOSPITAL NHS FOUNDATION TRUST","RJR05","Countess Of Chester Hospital - RJR05",76,1,0,64,12,0,0,0,0]
["Q75","RJN","EAST CHESHIRE NHS TRUST","RJN71","Macclesfield District General Hospital - RJN71",33,0.96969696969696972,0,31,1,0,0,0,1]
["Q75","REP","LIVERPOOL WOMEN'S NHS FOUNDATION TRUST","REP01","Liverpool Womens Hospital - REP01",134,0.91044776119402981,4.4776119402985072E-2,102,20,6,0,6,0]
["Q75","RBT","MID CHESHIRE HOSPITALS NHS FOUNDATION TRUST","RBT20","Leighton Hospital - RBT20",25,0.96,0,22,2,1,0,0,0]
["Q75","RVY","SOUTHPORT AND ORMSKIRK HOSPITAL NHS TRUST","RVY02","Ormskirk and District General Hospital - RVY02",33,0.96969696969696972,0,29,3,0,0,0,1]
["Q75","RBN","ST HELENS AND KNOWSLEY TEACHING HOSPITALS NHS TRUST","RBN01","Whiston Hospital - RBN01",51,0.98039215686274506,0,45,5,0,0,0,1]
["Q75","RWW","WARRINGTON AND HALTON HOSPITALS NHS FOUNDATION TRUST","RWWWH","Warrington Hospital - RWWWH",0,"NA","NA",0,0,0,0,0,0]
["Q75","RBL","WIRRAL UNIVERSITY TEACHING HOSPITAL NHS FOUNDATION TRUST","RBL14","Arrowe Park Hospital - RBL14",83,0.97590361445783136,1.2048192771084338E-2,70,11,1,0,1,0]
["Q76","RFS","CHESTERFIELD ROYAL HOSPITAL NHS FOUNDATION TRUST","RFSDA","Chesterfield Royal Hospital - RFSDA",43,1,0,"*","*","*","*","*","*"]
["Q76","RX1","NOTTINGHAM UNIVERSITY HOSPITALS NHS TRUST","RX1CC","Nottingham University Hospitals NHS Trust - City Campus - RX1CC",137,0.95620437956204385,7.2992700729927005E-3,98,33,4,0,1,1]
["Q76","RX1","NOTTINGHAM UNIVERSITY HOSPITALS NHS TRUST","RX1RA","Nottingham University Hospitals NHS Trust - Queen's Medical Centre Campus - RX1RA",68,0.92647058823529416,2.9411764705882353E-2,37,26,3,2,0,0]
["Q76","RK5","SHERWOOD FOREST HOSPITALS NHS FOUNDATION TRUST","RK5BC","King's Mill Hospital - RK5BC",2,"*","*","*","*","*","*","*","*"]
["Q76","RXW","SHREWSBURY AND TELFORD HOSPITAL NHS TRUST","RXWMB","Bridgnorth Hospital (Maternity) - RXWMB",0,"NA","NA",0,0,0,0,0,0]
["Q76","RXW","SHREWSBURY AND TELFORD HOSPITAL NHS TRUST","RXWML","Ludlow Hospital (Maternity) - RXWML",0,"NA","NA",0,0,0,0,0,0]
["Q76","RXW","SHREWSBURY AND TELFORD HOSPITAL NHS TRUST","RXWMJ","Robert Jones & Agnes Hunt Orthopaedic & District Hospital - RXWMJ",0,"NA","NA",0,0,0,0,0,0]
["Q76","RXW","SHREWSBURY AND TELFORD HOSPITAL NHS TRUST","RXWAS","Royal Shrewsbury Hospital - RXWAS",16,1,0,13,3,0,0,0,0]
["Q76","RXW","SHREWSBURY AND TELFORD HOSPITAL NHS TRUST","RXWAT","The Princess Royal Hospital - RXWAT",57,0.98245614035087714,1.7543859649122806E-2,51,5,0,1,0,0]
["Q76","RTG","UNIVERSITY HOSPITALS OF DERBY AND BURTON NHS FOUNDATION TRUST","RTG02","Queens Hospital, Burton Upon Trent - RTG02",50,0.96,0.04,44,4,0,2,0,0]
["Q76","RTG","UNIVERSITY HOSPITALS OF DERBY AND BURTON NHS FOUNDATION TRUST","RTGFG","Royal Derby Hospital - RTGFG",100,0.99,0,73,26,1,0,0,0]
["Q76","RJE","UNIVERSITY HOSPITALS OF NORTH MIDLANDS NHS TRUST","RJE01","Royal Stoke University Hospital - RJE01",58,0.96551724137931039,1.7241379310344827E-2,50,6,1,1,0,0]
["Q77","RQ3","BIRMINGHAM WOMEN'S AND CHILDREN'S NHS FOUNDATION TRUST","RQ370","Birmingham Women's Hospital - RQ370",105,0.96190476190476193,0,82,19,4,0,0,0]
["Q77","RLT","GEORGE ELIOT HOSPITAL NHS TRUST","RLT01","George Eliot Hospital - Acute Services - RLT01",82,0.93902439024390238,3.6585365853658534E-2,68,9,0,2,1,2]
["Q77","RXK","SANDWELL AND WEST BIRMINGHAM HOSPITALS NHS TRUST","RXK02","City Hospital - RXK02",2,"*","*","*","*","*","*","*","*"]
["Q77","RJC","SOUTH WARWICKSHIRE NHS FOUNDATION TRUST","RJC02","Warwick Hospital - RJC02",33,0.93939393939393945,3.0303030303030304E-2,24,7,1,1,0,0]
["Q77","RNA","THE DUDLEY GROUP NHS FOUNDATION TRUST","RNA01","Russells Hall Hospital - RNA01",117,1,0,99,18,0,0,0,0]
["Q77","RL4","THE ROYAL WOLVERHAMPTON NHS TRUST","RL403","New Cross Hospital - RL403",68,0.98529411764705888,1.4705882352941176E-2,52,15,0,1,0,0]
["Q77","RRK","UNIVERSITY HOSPITALS BIRMINGHAM NHS FOUNDATION TRUST","RRK98","Good Hope Hospital - RRK98",20,0.95,0,16,3,0,0,0,1]
["Q77","RRK","UNIVERSITY HOSPITALS BIRMINGHAM NHS FOUNDATION TRUST","RRK97","Heartlands Hospital - RRK97",40,0.97499999999999998,0,31,8,1,0,0,0]
["Q77","RRK","UNIVERSITY HOSPITALS BIRMINGHAM NHS FOUNDATION TRUST","RRK99","Solihull Hospital - RRK99",0,"NA","NA",0,0,0,0,0,0]
["Q77","RKB","UNIVERSITY HOSPITALS COVENTRY AND WARWICKSHIRE NHS TRUST","RKB01","University Hospital (Coventry) - RKB01",63,0.92063492063492058,1.5873015873015872E-2,49,9,3,0,1,1]
["Q77","RBK","WALSALL HEALTHCARE NHS TRUST","RBK02","Manor Hospital - RBK02",51,0.82352941176470584,3.9215686274509803E-2,26,16,4,0,2,3]
["Q77","RWP","WORCESTERSHIRE ACUTE HOSPITALS NHS TRUST","RWP50","Worcestershire Royal Hospital - RWP50",122,0.98360655737704916,1.6393442622950821E-2,102,18,0,1,1,0]
["Q77","RLQ","WYE VALLEY NHS TRUST","RLQ01","Hereford County Hospital - RLQ01",29,0.86206896551724133,6.8965517241379309E-2,"*","*","*","*","*","*"]
["Q78","RC1","BEDFORD HOSPITAL NHS TRUST","RC110","Bedford Hospital South Wing - RC110",55,0.90909090909090906,3.6363636363636362E-2,43,7,2,2,0,1]
["Q78","RWH","EAST AND NORTH HERTFORDSHIRE NHS TRUST","RWH01","Lister Hospital - RWH01",156,0.91666666666666663,1.282051282051282E-2,86,57,10,2,0,1]
["Q78","RNQ","KETTERING GENERAL HOSPITAL NHS FOUNDATION TRUST","RNQ51","Kettering General Hospital - RNQ51",24,1,0,22,2,0,0,0,0]
["Q78","RC9","LUTON AND DUNSTABLE UNIVERSITY HOSPITAL NHS FOUNDATION TRUST","RC971","Luton and Dunstable Hospital - RC971",208,0.95673076923076927,1.4423076923076924E-2,132,67,5,0,3,1]
["Q78","RD8","MILTON KEYNES UNIVERSITY HOSPITAL NHS FOUNDATION TRUST","RD816","Milton Keynes Hospital - RD816",74,0.94594594594594594,0,41,29,4,0,0,0]
["Q78","RNS","NORTHAMPTON GENERAL HOSPITAL NHS TRUST","RNS01","Northampton General Hospital (Acute) - RNS01",108,0.96296296296296291,1.8518518518518517E-2,91,13,2,1,1,0]
["Q78","RWD","UNITED LINCOLNSHIRE HOSPITALS NHS TRUST","RWDLP","Grantham and District Hospital - RWDLP",0,"NA","NA",0,0,0,0,0,0]
["Q78","RWD","UNITED LINCOLNSHIRE HOSPITALS NHS TRUST","RWDDA","Lincoln County Hospital - RWDDA",18,0.88888888888888884,0.1111111111111111,12,4,0,0,2,0]
["Q78","RWD","UNITED LINCOLNSHIRE HOSPITALS NHS TRUST","RWDLA","Pilgrim Hospital - RWDLA",23,1,0,20,3,0,0,0,0]
["Q78","RWE","UNIVERSITY HOSPITALS OF LEICESTER NHS TRUST","RWEAK","Leicester General Hospital - RWEAK",136,0.92647058823529416,2.9411764705882353E-2,92,34,5,2,2,1]
["Q78","RWE","UNIVERSITY HOSPITALS OF LEICESTER NHS TRUST","RWEAA","Leicester Royal Infirmary - RWEAA",272,0.8529411764705882,4.4117647058823532E-2,143,89,18,7,5,10]
["Q78","RWE","UNIVERSITY HOSPITALS OF LEICESTER NHS TRUST","RWE10","St Mary's Hospital - RWE10",20,1,0,19,1,0,0,0,0]
["Q78","RWG","WEST HERTFORDSHIRE HOSPITALS NHS TRUST","RWG02","Watford General Hospital - RWG02",80,0.96250000000000002,1.2500000000000001E-2,60,17,2,1,0,0]
["Q79","RDD","BASILDON AND THURROCK UNIVERSITY HOSPITALS NHS FOUNDATION TRUST","RDDH0","Basildon University Hospital - RDDH0",216,0.96759259259259256,1.3888888888888888E-2,156,53,3,0,3,1]
["Q79","RGT","CAMBRIDGE UNIVERSITY HOSPITALS NHS FOUNDATION TRUST","RGT32","Rosie Hospital - RGT32",228,0.90350877192982459,1.7543859649122806E-2,126,80,14,3,1,4]
["Q79","RDE","EAST SUFFOLK AND NORTH ESSEX NHS FOUNDATION TRUST","RDEE4","Colchester General Hospital - RDEE4",23,1,0,17,6,0,0,0,0]
["Q79","RDE","EAST SUFFOLK AND NORTH ESSEX NHS FOUNDATION TRUST","RDE03","Ipswich Hospital - RDE03",105,0.95238095238095233,9.5238095238095247E-3,86,14,4,1,0,0]
["Q79","RGP","JAMES PAGET UNIVERSITY HOSPITALS NHS FOUNDATION TRUST","RGP75","James Paget University Hospital - RGP75",17,1,0,16,1,0,0,0,0]
["Q79","RQ8","MID ESSEX HOSPITAL SERVICES NHS TRUST","RQ8L0","Broomfield Hospital - RQ8L0",53,0.96226415094339623,1.8867924528301886E-2,47,4,0,1,0,1]
["Q79","RM1","NORFOLK AND NORWICH UNIVERSITY HOSPITALS NHS FOUNDATION TRUST","RM102","Norfolk and Norwich University Hospital - RM102",46,0.97826086956521741,0,43,2,1,0,0,0]
["Q79","RGN","NORTH WEST ANGLIA NHS FOUNDATION TRUST","RGN90","Hinchingbrooke Hospital - RGN90",21,0.95238095238095233,0,19,1,0,0,0,1]
["Q79","RGN","NORTH WEST ANGLIA NHS FOUNDATION TRUST","RGN80","Peterborough City Hospital - RGN80",88,0.96590909090909094,0,65,20,1,0,0,2]
["Q79","RAJ","SOUTHEND UNIVERSITY HOSPITAL NHS FOUNDATION TRUST","RAJ01","Southend Hospital - RAJ01",120,0.95,2.5000000000000001E-2,100,14,2,1,2,1]
["Q79","RQW","THE PRINCESS ALEXANDRA HOSPITAL NHS TRUST","RQWG0","Princess Alexandra Hospital - RQWG0",191,0.99476439790575921,0,182,8,1,0,0,0]
["Q79","RCX","THE QUEEN ELIZABETH HOSPITAL, KING'S LYNN, NHS FOUNDATION TRUST","RCX70","The Queen Elizabeth Hospital - RCX70",47,0.95744680851063835,0,37,8,2,0,0,0]
["Q79","RGR","WEST SUFFOLK NHS FOUNDATION TRUST","RGR50","West Suffolk Hospital - RGR50",7,1,0,5,2,0,0,0,0]
["Q83","RMC","BOLTON NHS FOUNDATION TRUST","RMC01","Royal Bolton Hospital - RMC01",74,0.93243243243243246,5.4054054054054057E-2,57,12,1,2,2,0]
["Q83","RY2","BRIDGEWATER COMMUNITY HEALTHCARE NHS FOUNDATION TRUST","RY28P","Health Care Resource Centre - RY28P",0,"NA","NA",0,0,0,0,0,0]
["Q83","R0A","MANCHESTER UNIVERSITY NHS FOUNDATION TRUST","R0A05","St Mary's Hospital - R0A05",421,0.99287410926365793,4.7505938242280287E-3,374,44,1,1,1,0]
["Q83","RW6","PENNINE ACUTE HOSPITALS NHS TRUST","RW602","North Manchester General Hospital - RW602",21,0.80952380952380953,0.19047619047619047,16,1,0,1,3,0]
["Q83","RW6","PENNINE ACUTE HOSPITALS NHS TRUST","RW603","Royal Oldham Hospital - RW603",27,0.96296296296296291,3.7037037037037035E-2,22,4,0,0,1,0]
["Q83","RWJ","STOCKPORT NHS FOUNDATION TRUST","RWJ09","Stepping Hill Hospital - RWJ09",45,1,0,40,5,0,0,0,0]
["Q83","RMP","TAMESIDE AND GLOSSOP INTEGRATED CARE NHS FOUNDATION TRUST","RMP01","Tameside General Hospital - RMP01",19,0.68421052631578949,5.2631578947368418E-2,7,6,5,1,0,0]
["Q83","RRF","WRIGHTINGTON, WIGAN AND LEIGH NHS FOUNDATION TRUST","RRF02","Royal Albert Edward Infirmary - RRF02",67,0.97014925373134331,0,56,9,2,0,0,0]
["Q84","RXL","BLACKPOOL TEACHING HOSPITALS NHS FOUNDATION TRUST","RXL01","Blackpool Victoria Hospital - RXL01",33,0.90909090909090906,0,21,9,3,0,0,0]
["Q84","RXR","EAST LANCASHIRE HOSPITALS NHS TRUST","RXR20","Royal Blackburn Hospital - RXR20",102,0.99019607843137258,9.8039215686274508E-3,88,13,0,1,0,0]
["Q84","RXN","LANCASHIRE TEACHING HOSPITALS NHS FOUNDATION TRUST","RXN01","Chorley and South Ribble Hospital - RXN01",1,"*","*","*","*","*","*","*","*"]
["Q84","RXN","LANCASHIRE TEACHING HOSPITALS NHS FOUNDATION TRUST","RXN02","Royal Preston Hospital - RXN02",16,1,0,"*","*","*","*","*","*"]
["Q84","RTX","UNIVERSITY HOSPITALS OF MORECAMBE BAY NHS FOUNDATION TRUST","RTXBU","Furness General Hospital - RTXBU",20,1,0,20,0,0,0,0,0]
["Q84","RTX","UNIVERSITY HOSPITALS OF MORECAMBE BAY NHS FOUNDATION TRUST","RTX02","Royal Lancaster Infirmary - RTX02",22,0.90909090909090906,4.5454545454545456E-2,16,4,1,1,0,0]
["Q85","RBD","DORSET COUNTY HOSPITAL NHS FOUNDATION TRUST","RBD01","Dorset County Hospital - RBD01",36,0.97222222222222221,0,31,4,1,0,0,0]
["Q85","RBZ","NORTHERN DEVON HEALTHCARE NHS TRUST","RBZ12","North Devon District Hospital - RBZ12",57,1,0,50,7,0,0,0,0]
["Q85","RD3","POOLE HOSPITAL NHS FOUNDATION TRUST","RD304","Poole General Hospital NHS Trust HQ - RD304",32,1,0,30,2,0,0,0,0]
["Q85","REF","ROYAL CORNWALL HOSPITALS NHS TRUST","REF12","Royal Cornwall Hospital (Treliske) - REF12",40,0.95,2.5000000000000001E-2,28,10,1,1,0,0]
["Q85","RH8","ROYAL DEVON AND EXETER NHS FOUNDATION TRUST","RH854","Honiton Hospital - RH 854",0,"NA","NA",0,0,0,0,0,0]
["Q85","RH8","ROYAL DEVON AND EXETER NHS FOUNDATION TRUST","RH833","Okehampton Community Hospital - RH833",0,"NA","NA",0,0,0,0,0,0]
["Q85","RH8","ROYAL DEVON AND EXETER NHS FOUNDATION TRUST","RH801","Royal Devon and Exeter Hospital (Wonford) - RH801",0,"NA","NA",0,0,0,0,0,0]
["Q85","RH8","ROYAL DEVON AND EXETER NHS FOUNDATION TRUST","RH853","Tiverton and District Hospital - RH853",0,"NA","NA",0,0,0,0,0,0]
["Q85","RBA","TAUNTON AND SOMERSET NHS FOUNDATION TRUST","RBAC3","Bridgwater Hospital - RBAC3",1,"*","*","*","*","*","*","*","*"]
["Q85","RBA","TAUNTON AND SOMERSET NHS FOUNDATION TRUST","RBA11","Musgrove Park Hospital - RBA11",74,0.97297297297297303,0,"*","*","*","*","*","*"]
["Q85","RDZ","THE ROYAL BOURNEMOUTH AND CHRISTCHURCH HOSPITALS NHS FOUNDATION TRUST","RDZ20","Royal Bournemouth General Hospital - RDZ20",0,"NA","NA",0,0,0,0,0,0]
["Q85","RA9","TORBAY AND SOUTH DEVON NHS FOUNDATION TRUST","RA901","Torbay Hospital - RA901",6,1,0,6,0,0,0,0,0]
["Q85","RK9","UNIVERSITY HOSPITALS PLYMOUTH NHS TRUST","RK950","Derriford Hospital - RK950",145,0.94482758620689655,6.8965517241379309E-3,101,36,7,1,0,0]
["Q85","RA4","YEOVIL DISTRICT HOSPITAL NHS FOUNDATION TRUST","RA430","Yeovil District Hospital - RA430",57,0.96491228070175439,0,46,9,2,0,0,0]
["Q86","RTE","GLOUCESTERSHIRE HOSPITALS NHS FOUNDATION TRUST","RTE03","Gloucestershire Royal Hospital - RTE03",48,0.89583333333333337,4.1666666666666664E-2,39,4,3,1,1,0]
["Q86","RTE","GLOUCESTERSHIRE HOSPITALS NHS FOUNDATION TRUST","RTE27","Stroud Maternity Hospital - RTE27",13,0.92307692307692313,0,10,2,1,0,0,0]
["Q86","RN3","GREAT WESTERN HOSPITALS NHS FOUNDATION TRUST","RN325","The Great Western Hospital - RN325",5,1,0,"*","*","*","*","*","*"]
["Q86","RVJ","NORTH BRISTOL NHS TRUST","RVJ01","Southmead Hospital - RVJ01",81,0.9135802469135802,4.9382716049382713E-2,66,8,3,3,1,0]
["Q86","RD1","ROYAL UNITED HOSPITALS BATH NHS FOUNDATION TRUST","RD102","Chippenham Community Hospital -RD102",12,0.91666666666666663,8.3333333333333329E-2,11,0,0,1,0,0]
["Q86","RD1","ROYAL UNITED HOSPITALS BATH NHS FOUNDATION TRUST","RD129","Paulton Memorial Hospital  - RD129",6,1,0,6,0,0,0,0,0]
["Q86","RD1","ROYAL UNITED HOSPITALS BATH NHS FOUNDATION TRUST","RD130","Princess Anne Wing RUH  - RD130",42,1,0,37,5,0,0,0,0]
["Q86","RNZ","SALISBURY NHS FOUNDATION TRUST","RNZ02","Salisbury District Hospital - RNZ02",2,"*","*","*","*","*","*","*","*"]
["Q86","RA7","UNIVERSITY HOSPITALS BRISTOL NHS FOUNDATION TRUST","RA707","St Michael's Hospital - RA707",72,0.97222222222222221,0,62,8,2,0,0,0]
["Q86","RA3","WESTON AREA HEALTH NHS TRUST","RA301","Weston General Hospital - RA301",0,"NA","NA",0,0,0,0,0,0]
["Q87","RXQ","BUCKINGHAMSHIRE HEALTHCARE NHS TRUST","RXQ02","Stoke Mandeville Hospital - RXQ02",26,0.96153846153846156,0,22,3,1,0,0,0]
["Q87","RDU","FRIMLEY HEALTH NHS FOUNDATION TRUST","RDU01","Frimley Park Hospital - RDU01",289,0.96539792387543255,3.4602076124567475E-3,231,48,8,1,0,1]
["Q87","RDU","FRIMLEY HEALTH NHS FOUNDATION TRUST","RDU50","Wexham Park Hospital - RDU50",45,0.9555555555555556,2.2222222222222223E-2,36,7,1,0,1,0]
["Q87","RN5","HAMPSHIRE HOSPITALS NHS FOUNDATION TRUST","RN506","Basingstoke and North Hampshire Hospital - RN506",116,0.92241379310344829,1.7241379310344827E-2,96,11,6,2,0,1]
["Q87","RN5","HAMPSHIRE HOSPITALS NHS FOUNDATION TRUST","RN541","Royal Hampshire County Hospital - RN541",40,0.97499999999999998,0,36,3,1,0,0,0]
["Q87","R1F","ISLE OF WIGHT NHS TRUST","R1F01","St Mary's Hospital - R1F01",13,1,0,12,1,0,0,0,0]
["Q87","RTH","OXFORD UNIVERSITY HOSPITALS NHS FOUNDATION TRUST","RTH19","Chipping Norton Community Hospital - RTH19",6,0.83333333333333337,0,"*","*","*","*","*","*"]
["Q87","RTH","OXFORD UNIVERSITY HOSPITALS NHS FOUNDATION TRUST","RTH05","Horton General Hospital - RTH05",0,"NA","NA",0,0,0,0,0,0]
["Q87","RTH","OXFORD UNIVERSITY HOSPITALS NHS FOUNDATION TRUST","RTH08","John Radcliffe Hospital - RTH08",17,0.82352941176470584,0,12,2,1,0,0,2]
["Q87","RTH","OXFORD UNIVERSITY HOSPITALS NHS FOUNDATION TRUST","RTH16","Wallingford Community Hospital - RTH16",1,"*","*","*","*","*","*","*","*"]
["Q87","RTH","OXFORD UNIVERSITY HOSPITALS NHS FOUNDATION TRUST","RTH21","Wantage Community Hospital - RTH21",0,"NA","NA",0,0,0,0,0,0]
["Q87","RHU","PORTSMOUTH HOSPITALS NHS TRUST","RHU10","Gosport War Memorial Hospital - RHU10",0,"NA","NA",0,0,0,0,0,0]
["Q87","RHU","PORTSMOUTH HOSPITALS NHS TRUST","RHU04","Petersfield Community Hospital - RHU04",0,"NA","NA",0,0,0,0,0,0]
["Q87","RHU","PORTSMOUTH HOSPITALS NHS TRUST","RHU03","Queen Alexandra Hospital - RHU03",66,1,0,60,6,0,0,0,0]
["Q87","RHU","PORTSMOUTH HOSPITALS NHS TRUST","RHU02","St Mary's Hospital - RHU02",0,"NA","NA",0,0,0,0,0,0]
["Q87","RHW","ROYAL BERKSHIRE NHS FOUNDATION TRUST","RHW01","Royal Berkshire Hospital - RHW01",76,0.94736842105263153,0,47,25,3,0,0,1]
["Q87","RHM","UNIVERSITY HOSPITAL SOUTHAMPTON NHS FOUNDATION TRUST","RHM12","Princess Anne Hospital - RHM12",160,0.83750000000000002,9.375E-2,92,42,8,11,4,3]
["Q88","RXH","BRIGHTON AND SUSSEX UNIVERSITY HOSPITALS NHS TRUST","RXH09","Princess Royal Hospital - RXH09",42,0.90476190476190477,7.1428571428571425E-2,35,3,1,3,0,0]
["Q88","RXH","BRIGHTON AND SUSSEX UNIVERSITY HOSPITALS NHS TRUST","RXH01","Royal Sussex County Hospital - RXH01",40,0.95,0.05,34,4,0,0,2,0]
["Q88","RN7","DARTFORD AND GRAVESHAM NHS TRUST","RN707","Darent Valley Hospital - RN707",92,1,0,75,17,0,0,0,0]
["Q88","RVV","EAST KENT HOSPITALS UNIVERSITY NHS FOUNDATION TRUST","RVV09","Queen Elizabeth The Queen Mother Hospital - RVV09",99,0.96969696969696972,1.0101010101010102E-2,88,8,1,1,0,1]
["Q88","RVV","EAST KENT HOSPITALS UNIVERSITY NHS FOUNDATION TRUST","RVV01","William Harvey Hospital (Ashford) - RVV01",56,0.9464285714285714,3.5714285714285712E-2,48,5,1,2,0,0]
["Q88","RXC","EAST SUSSEX HEALTHCARE NHS TRUST","RXC01","Conquest Hospital - RXC01",11,0.90909090909090906,0,6,4,0,0,0,1]
["Q88","RXC","EAST SUSSEX HEALTHCARE NHS TRUST","RXC02","Eastbourne District General Hospital - RXC02",0,"NA","NA",0,0,0,0,0,0]
["Q88","RWF","MAIDSTONE AND TUNBRIDGE WELLS NHS TRUST","RWFTW","The Tunbridge Wells Hospital - RWFTW",35,0.97142857142857142,0,29,5,1,0,0,0]
["Q88","RPA","MEDWAY NHS FOUNDATION TRUST","RPA02","Medway Maritime Hospital - RPA02",88,1,0,84,4,0,0,0,0]
["Q88","RA2","ROYAL SURREY COUNTY HOSPITAL NHS FOUNDATION TRUST","RA201","Royal Surrey County Hospital - RA201",63,0.98412698412698407,1.5873015873015872E-2,58,4,0,1,0,0]
["Q88","RTP","SURREY AND SUSSEX HEALTHCARE NHS TRUST","RTP04","East Surrey Hospital - RTP04",83,0.95180722891566261,1.2048192771084338E-2,59,20,3,0,1,0]
["Q88","RYR","WESTERN SUSSEX HOSPITALS NHS FOUNDATION TRUST","RYR16","St Richard's Hospital - RYR16",128,0.9921875,7.8125E-3,112,15,0,1,0,0]
["Q88","RYR","WESTERN SUSSEX HOSPITALS NHS FOUNDATION TRUST","RYR18","Worthing Hospital - RYR18",133,0.99248120300751874,0,109,23,0,0,0,1]
["zIS1","NDE","ONE TO ONE (NORTH WEST) LIMITED","NDE01","One to One (North West) Limited HQ - NDE01",0,"NA","NA",0,0,0,0,0,0]

{"sheet":"Region (Local Office) Q4","index":11,"n_rows":28,"n_cols":11,"rows_kept":28,"cut":false,"hidden":false,"merged":[[8,5,8,10],[8,0,9,0],[8,1,9,1],[8,2,9,2],[8,3,9,3],[8,4,9,4]]}
[]
[]
[]
[]
[]
[null,"   Sort data by:           "]
[]
[]
["Region (LO) Code","Region (Local Office)","Total Responses","Percentage Recommended","Percentage Not  Recommended","Breakdown of Responses"]
[null,null,null,null,null,"Extremely Likely","Likely","Neither","Unlikely","Extremely Unlikely","Don't Know"]
[null,"England (including Independent Sector providers)",4256,0.97814849624060152,9.3984962406015032E-3,3729,434,42,15,25,11]
[null,"England (excluding Independent Sector providers)",4192,0.97781488549618323,9.5419847328244278E-3,3669,430,42,15,25,11]
[null,"Selection (excluding suppressed data)",{"$f":"SUBTOTAL(9,C14:C40)","v":4256},{"$f":"IFERROR((F13+G13)/SUM(F13:K13), \"-\")","v":0.97814849624060152},{"$f":"IFERROR((I13+J13)/SUM(F13:K13), \"-\")","v":9.3984962406015032E-3},{"$f":"SUBTOTAL(9,F14:F40)","v":3729},434,42,15,25,11]
["Q72","NHS England Yorkshire & Humber",453,0.99779249448123619,0,406,46,1,0,0,0]
["Q74","NHS England Cumbria & North East",94,0.95744680851063835,0,86,4,3,0,0,1]
["Q75","NHS England Cheshire & Merseyside",111,0.98198198198198194,9.0090090090090089E-3,103,6,1,0,1,0]
["Q83","NHS England Greater Manchester",267,0.95131086142322097,3.3707865168539325E-2,236,18,3,3,6,1]
["Q84","NHS England Lancashire",168,0.93452380952380953,4.7619047619047616E-2,141,16,3,2,6,0]
["Q76","NHS England North Midlands",425,0.9882352941176471,2.352941176470588E-3,380,40,3,0,1,1]
["Q77","NHS England West Midlands",245,0.97959183673469385,8.1632653061224497E-3,220,20,2,1,1,1]
["Q78","NHS England Central Midlands",323,0.98142414860681115,3.0959752321981426E-3,284,33,4,1,0,1]
["Q79","NHS England East",461,0.98481561822125818,6.5075921908893707E-3,407,47,2,2,1,2]
["Q85","NHS England South West (South West South)",194,0.97422680412371132,1.0309278350515464E-2,166,23,3,0,2,0]
["Q86","NHS England South West (South West North)",230,0.9695652173913043,1.7391304347826087E-2,201,22,1,2,2,2]
["Q87","NHS England South East (Hampshire, Isle Of Wight & Thames Valley)",328,0.96036585365853655,1.2195121951219513E-2,274,41,9,3,1,0]
["Q88","NHS England South East (Kent, Surrey & Sussex)",149,0.95973154362416102,2.6845637583892617E-2,132,11,1,1,3,1]
["Q71","NHS England London",744,0.989247311827957,1.3440860215053765E-3,633,103,6,0,1,1]
["zIS1","Independent Sector Provider",64,1,0,60,4,0,0,0,0]

{"sheet":"Trusts Q4","index":12,"n_rows":144,"n_cols":19,"rows_kept":144,"cut":false,"hidden":false,"merged":[[8,6,8,11],[8,12,8,18],[8,0,9,0],[8,1,9,1],[8,2,9,2],[8,3,9,3],[8,4,9,4],[8,5,9,5]]}
[]
[]
[]
[]
[]
[null,"   Sort data by:           "]
[]
[]
["Region (LO) Code","Trust Code","Trust Name","Total Responses","Percentage Recommended","Percentage Not  Recommended","Breakdown of Responses",null,null,null,null,null,"Mode of Collection"]
[null,null,null,null,null,null,"Extremely Likely","Likely","Neither","Unlikely","Extremely Unlikely","Don't Know","SMS/Text / Smartphone App","Electronic tablet/kiosk at point of discharge","Paper / postcard at point of discharge","Paper survey sent to the patients home","Telephone survey once patient is home","Online survey once patient is home","Other"]
[null,null,"England (including Independent Sector providers)",4256,0.97814849624060152,9.3984962406015032E-3,3729,434,42,15,25,11,474,343,3173,0,23,225,18]
[null,null,"England (excluding Independent Sector providers)",4192,0.97781488549618323,9.5419847328244278E-3,3669,430,42,15,25,11,474,279,3173,0,23,225,18]
[null,null,"Selection (excluding suppressed data)",{"$f":"SUBTOTAL(9,D14:D299)","v":4256},{"$f":"IFERROR((G13+H13)/SUM(G13:L13), \"-\")","v":0.97854588796185937},{"$f":"IFERROR((J13+K13)/SUM(G13:L13), \"-\")","v":9.2967818831942786E-3},{"$f":"SUBTOTAL(9,G14:G299)","v":3674},431,42,14,25,9,474,341,3116,0,23,223,18]
["Q71","R1K","LONDON NORTH WEST UNIVERSITY HEALTHCARE NHS TRUST",0,"NA","NA",0,0,0,0,0,0,0,0,0,0,0,0,0]
["Q71","RAX","KINGSTON HOSPITAL NHS FOUNDATION TRUST",0,"NA","NA",0,0,0,0,0,0,0,0,0,0,0,0,0]
["Q71","RJZ","KING'S COLLEGE HOSPITAL NHS FOUNDATION TRUST",0,"NA","NA",0,0,0,0,0,0,0,0,0,0,0,0,0]
["Q71","RRV","UNIVERSITY COLLEGE LONDON HOSPITALS NHS FOUNDATION TRUST",0,"NA","NA",0,0,0,0,0,0,0,0,0,0,0,0,0]
["Q71","RJ6","CROYDON HEALTH SERVICES NHS TRUST",1,"*","*","*","*","*","*","*","*","*","*","*","*","*","*","*"]
["Q71","RJ7","ST GEORGE'S UNIVERSITY HOSPITALS NHS FOUNDATION TRUST",2,"*","*","*","*","*","*","*","*","*","*","*","*","*","*","*"]
["Q71","RAL","ROYAL FREE LONDON NHS FOUNDATION TRUST",11,1,0,9,2,0,0,0,0,0,0,11,0,0,0,0]
["Q71","RVR","EPSOM AND ST HELIER UNIVERSITY HOSPITALS NHS TRUST",11,1,0,9,2,0,0,0,0,0,0,11,0,0,0,0]
["Q71","RJ2","LEWISHAM AND GREENWICH NHS TRUST",13,1,0,11,2,0,0,0,0,0,0,13,0,0,0,0]
["Q71","RAS","THE HILLINGDON HOSPITALS NHS FOUNDATION TRUST",14,1,0,12,2,0,0,0,0,0,0,13,0,0,1,0]
["Q71","RQX","HOMERTON UNIVERSITY HOSPITAL NHS FOUNDATION TRUST",39,1,0,32,7,0,0,0,0,0,0,38,0,0,1,0]
["Q71","RKE","WHITTINGTON HEALTH NHS TRUST",45,0.97777777777777775,2.2222222222222223E-2,37,7,0,0,1,0,0,5,40,0,0,0,0]
["Q71","RQM","CHELSEA AND WESTMINSTER HOSPITAL NHS FOUNDATION TRUST",49,1,0,41,8,0,0,0,0,41,8,0,0,0,0,0]
["Q71","RJ1","GUY'S AND ST THOMAS' NHS FOUNDATION TRUST",65,0.96923076923076923,0,51,12,2,0,0,0,0,0,0,0,0,65,0]
["Q71","R1H","BARTS HEALTH NHS TRUST",87,0.97701149425287359,0,61,24,2,0,0,0,0,0,83,0,0,4,0]
["Q71","RAP","NORTH MIDDLESEX UNIVERSITY HOSPITAL NHS TRUST",115,1,0,101,14,0,0,0,0,0,0,115,0,0,0,0]
["Q71","RYJ","IMPERIAL COLLEGE HEALTHCARE NHS TRUST",122,0.98360655737704916,0,104,16,2,0,0,0,7,0,115,0,0,0,0]
["Q71","RF4","BARKING, HAVERING AND REDBRIDGE UNIVERSITY HOSPITALS NHS TRUST",170,1,0,164,6,0,0,0,0,0,0,170,0,0,0,0]
["Q72","RWA","HULL AND EAST YORKSHIRE HOSPITALS NHS TRUST",6,1,0,6,0,0,0,0,0,0,0,6,0,0,0,0]
["Q72","RFF","BARNSLEY HOSPITAL NHS FOUNDATION TRUST",7,1,0,7,0,0,0,0,0,0,0,7,0,0,0,0]
["Q72","RAE","BRADFORD TEACHING HOSPITALS NHS FOUNDATION TRUST",9,1,0,9,0,0,0,0,0,0,0,9,0,0,0,0]
["Q72","RCF","AIREDALE NHS FOUNDATION TRUST",10,1,0,9,1,0,0,0,0,0,0,10,0,0,0,0]
["Q72","RR8","LEEDS TEACHING HOSPITALS NHS TRUST",15,1,0,15,0,0,0,0,0,0,0,14,0,0,1,0]
["Q72","RCD","HARROGATE AND DISTRICT NHS FOUNDATION TRUST",21,1,0,19,2,0,0,0,0,0,0,21,0,0,0,0]
["Q72","RJL","NORTHERN LINCOLNSHIRE AND GOOLE NHS FOUNDATION TRUST",23,1,0,19,4,0,0,0,0,0,0,0,0,23,0,0]
["Q72","RP5","DONCASTER AND BASSETLAW TEACHING HOSPITALS NHS FOUNDATION TRUST",24,1,0,23,1,0,0,0,0,0,0,24,0,0,0,0]
["Q72","RHQ","SHEFFIELD TEACHING HOSPITALS NHS FOUNDATION TRUST",26,1,0,23,3,0,0,0,0,0,0,26,0,0,0,0]
["Q72","RXF","MID YORKSHIRE HOSPITALS NHS TRUST",48,1,0,43,5,0,0,0,0,0,0,46,0,0,2,0]
["Q72","RFR","THE ROTHERHAM NHS FOUNDATION TRUST",62,1,0,57,5,0,0,0,0,0,0,62,0,0,0,0]
["Q72","RCB","YORK TEACHING HOSPITAL NHS FOUNDATION TRUST",66,1,0,62,4,0,0,0,0,0,0,66,0,0,0,0]
["Q72","RWY","CALDERDALE AND HUDDERSFIELD NHS FOUNDATION TRUST",136,0.99264705882352944,0,114,21,1,0,0,0,0,136,0,0,0,0,0]
["Q74","RLN","CITY HOSPITALS SUNDERLAND NHS FOUNDATION TRUST",0,"NA","NA",0,0,0,0,0,0,0,0,0,0,0,0,0]
["Q74","RR7","GATESHEAD HEALTH NHS FOUNDATION TRUST",0,"NA","NA",0,0,0,0,0,0,0,0,0,0,0,0,0]
["Q74","RTD","THE NEWCASTLE UPON TYNE HOSPITALS NHS FOUNDATION TRUST",0,"NA","NA",0,0,0,0,0,0,0,0,0,0,0,0,0]
["Q74","RTR","SOUTH TEES HOSPITALS NHS FOUNDATION TRUST",3,"*","*","*","*","*","*","*","*","*","*","*","*","*","*","*"]
["Q74","RE9","SOUTH TYNESIDE NHS FOUNDATION TRUST",6,0.83333333333333337,0,"*","*","*","*","*","*","*","*","*","*","*","*","*"]
["Q74","RVW","NORTH TEES AND HARTLEPOOL NHS FOUNDATION TRUST",6,1,0,6,0,0,0,0,0,0,0,6,0,0,0,0]
["Q74","RXP","COUNTY DURHAM AND DARLINGTON NHS FOUNDATION TRUST",10,1,0,8,2,0,0,0,0,0,0,10,0,0,0,0]
["Q74","RNL","NORTH CUMBRIA UNIVERSITY HOSPITALS NHS TRUST",20,1,0,19,1,0,0,0,0,0,0,20,0,0,0,0]
["Q74","RTF","NORTHUMBRIA HEALTHCARE NHS FOUNDATION TRUST",49,0.93877551020408168,0,45,1,3,0,0,0,0,0,49,0,0,0,0]
["Q75","RBL","WIRRAL UNIVERSITY TEACHING HOSPITAL NHS FOUNDATION TRUST",0,"NA","NA",0,0,0,0,0,0,0,0,0,0,0,0,0]
["Q75","RBT","MID CHESHIRE HOSPITALS NHS FOUNDATION TRUST",3,"*","*","*","*","*","*","*","*","*","*","*","*","*","*","*"]
["Q75","RVY","SOUTHPORT AND ORMSKIRK HOSPITAL NHS TRUST",3,"*","*","*","*","*","*","*","*","*","*","*","*","*","*","*"]
["Q75","RWW","WARRINGTON AND HALTON HOSPITALS NHS FOUNDATION TRUST",4,"*","*","*","*","*","*","*","*","*","*","*","*","*","*","*"]
["Q75","RBN","ST HELENS AND KNOWSLEY TEACHING HOSPITALS NHS TRUST",5,1,0,5,0,0,0,0,0,0,0,0,0,0,5,0]
["Q75","RJN","EAST CHESHIRE NHS TRUST",8,1,0,8,0,0,0,0,0,0,0,8,0,0,0,0]
["Q75","REP","LIVERPOOL WOMEN'S NHS FOUNDATION TRUST",26,0.92307692307692313,3.8461538461538464E-2,23,1,1,0,1,0,0,0,26,0,0,0,0]
["Q75","RJR","COUNTESS OF CHESTER HOSPITAL NHS FOUNDATION TRUST",62,1,0,57,5,0,0,0,0,24,0,38,0,0,0,0]
["Q76","RXW","SHREWSBURY AND TELFORD HOSPITAL NHS TRUST",1,"*","*","*","*","*","*","*","*","*","*","*","*","*","*","*"]
["Q76","RK5","SHERWOOD FOREST HOSPITALS NHS FOUNDATION TRUST",5,1,0,"*","*","*","*","*","*","*","*","*","*","*","*","*"]
["Q76","RFS","CHESTERFIELD ROYAL HOSPITAL NHS FOUNDATION TRUST",62,1,0,62,0,0,0,0,0,0,0,62,0,0,0,0]
["Q76","RTG","UNIVERSITY HOSPITALS OF DERBY AND BURTON NHS FOUNDATION TRUST",70,0.98571428571428577,1.4285714285714285E-2,56,13,0,0,1,0,22,1,47,0,0,0,0]
["Q76","RJE","UNIVERSITY HOSPITALS OF NORTH MIDLANDS NHS TRUST",101,0.99009900990099009,0,89,11,0,0,0,1,0,0,101,0,0,0,0]
["Q76","RX1","NOTTINGHAM UNIVERSITY HOSPITALS NHS TRUST",186,0.9838709677419355,0,167,16,3,0,0,0,0,0,186,0,0,0,0]
["Q77","RRK","UNIVERSITY HOSPITALS BIRMINGHAM NHS FOUNDATION TRUST",0,"NA","NA",0,0,0,0,0,0,0,0,0,0,0,0,0]
["Q77","RXK","SANDWELL AND WEST BIRMINGHAM HOSPITALS NHS TRUST",0,"NA","NA",0,0,0,0,0,0,0,0,0,0,0,0,0]
["Q77","RJC","SOUTH WARWICKSHIRE NHS FOUNDATION TRUST",1,"*","*","*","*","*","*","*","*","*","*","*","*","*","*","*"]
["Q77","RLQ","WYE VALLEY NHS TRUST",13,1,0,"*","*","*","*","*","*","*","*","*","*","*","*","*"]
["Q77","RNA","THE DUDLEY GROUP NHS FOUNDATION TRUST",15,1,0,14,1,0,0,0,0,0,0,15,0,0,0,0]
["Q77","RBK","WALSALL HEALTHCARE NHS TRUST",19,1,0,19,0,0,0,0,0,0,0,19,0,0,0,0]
["Q77","RLT","GEORGE ELIOT HOSPITAL NHS TRUST",29,0.96551724137931039,3.4482758620689655E-2,25,3,0,0,1,0,21,0,8,0,0,0,0]
["Q77","RKB","UNIVERSITY HOSPITALS COVENTRY AND WARWICKSHIRE NHS TRUST",31,1,0,26,5,0,0,0,0,0,0,31,0,0,0,0]
["Q77","RQ3","BIRMINGHAM WOMEN'S AND CHILDREN'S NHS FOUNDATION TRUST",44,0.97727272727272729,0,36,7,1,0,0,0,0,0,44,0,0,0,0]
["Q77","RWP","WORCESTERSHIRE ACUTE HOSPITALS NHS TRUST",45,1,0,44,1,0,0,0,0,0,0,45,0,0,0,0]
["Q77","RL4","THE ROYAL WOLVERHAMPTON NHS TRUST",48,0.95833333333333337,0,43,3,1,0,0,1,1,0,47,0,0,0,0]
["Q78","RD8","MILTON KEYNES UNIVERSITY HOSPITAL NHS FOUNDATION TRUST",0,"NA","NA",0,0,0,0,0,0,0,0,0,0,0,0,0]
["Q78","RWG","WEST HERTFORDSHIRE HOSPITALS NHS TRUST",5,1,0,5,0,0,0,0,0,0,0,5,0,0,0,0]
["Q78","RC9","LUTON AND DUNSTABLE UNIVERSITY HOSPITAL NHS FOUNDATION TRUST",6,1,0,6,0,0,0,0,0,0,6,0,0,0,0,0]
["Q78","RWD","UNITED LINCOLNSHIRE HOSPITALS NHS TRUST",11,1,0,10,1,0,0,0,0,0,0,11,0,0,0,0]
["Q78","RWH","EAST AND NORTH HERTFORDSHIRE NHS TRUST",15,1,0,14,1,0,0,0,0,0,15,0,0,0,0,0]
["Q78","RC1","BEDFORD HOSPITAL NHS TRUST",19,0.89473684210526316,5.2631578947368418E-2,14,3,1,1,0,0,19,0,0,0,0,0,0]
["Q78","RNQ","KETTERING GENERAL HOSPITAL NHS FOUNDATION TRUST",31,1,0,31,0,0,0,0,0,0,0,31,0,0,0,0]
["Q78","RNS","NORTHAMPTON GENERAL HOSPITAL NHS TRUST",64,0.984375,0,55,8,1,0,0,0,0,0,0,0,0,64,0]
["Q78","RWE","UNIVERSITY HOSPITALS OF LEICESTER NHS TRUST",172,0.98255813953488369,0,149,20,2,0,0,1,0,6,166,0,0,0,0]
["Q79","RGP","JAMES PAGET UNIVERSITY HOSPITALS NHS FOUNDATION TRUST",0,"NA","NA",0,0,0,0,0,0,0,0,0,0,0,0,0]
["Q79","RGT","CAMBRIDGE UNIVERSITY HOSPITALS NHS FOUNDATION TRUST",5,0.8,0.2,2,2,0,0,1,0,0,0,5,0,0,0,0]
["Q79","RM1","NORFOLK AND NORWICH UNIVERSITY HOSPITALS NHS FOUNDATION TRUST",6,1,0,5,1,0,0,0,0,0,0,6,0,0,0,0]
["Q79","RGR","WEST SUFFOLK NHS FOUNDATION TRUST",13,1,0,11,2,0,0,0,0,0,2,11,0,0,0,0]
["Q79","RQW","THE PRINCESS ALEXANDRA HOSPITAL NHS TRUST",18,0.88888888888888884,0,15,1,1,0,0,1,0,0,0,0,0,0,18]
["Q79","RCX","THE QUEEN ELIZABETH HOSPITAL, KING'S LYNN, NHS FOUNDATION TRUST",27,1,0,22,5,0,0,0,0,0,27,0,0,0,0,0]
["Q79","RQ8","MID ESSEX HOSPITAL SERVICES NHS TRUST",38,0.94736842105263153,5.2631578947368418E-2,35,1,0,2,0,0,38,0,0,0,0,0,0]
["Q79","RDD","BASILDON AND THURROCK UNIVERSITY HOSPITALS NHS FOUNDATION TRUST",41,1,0,38,3,0,0,0,0,0,0,41,0,0,0,0]
["Q79","RAJ","SOUTHEND UNIVERSITY HOSPITAL NHS FOUNDATION TRUST",56,1,0,50,6,0,0,0,0,0,0,56,0,0,0,0]
["Q79","RDE","EAST SUFFOLK AND NORTH ESSEX NHS FOUNDATION TRUST",74,1,0,69,5,0,0,0,0,0,71,3,0,0,0,0]
["Q79","RGN","NORTH WEST ANGLIA NHS FOUNDATION TRUST",183,0.98907103825136611,0,160,21,1,0,0,1,0,0,182,0,0,1,0]
["Q83","RRF","WRIGHTINGTON, WIGAN AND LEIGH NHS FOUNDATION TRUST",2,"*","*","*","*","*","*","*","*","*","*","*","*","*","*","*"]
["Q83","RMP","TAMESIDE AND GLOSSOP INTEGRATED CARE NHS FOUNDATION TRUST",8,1,0,"*","*","*","*","*","*","*","*","*","*","*","*","*"]
["Q83","RWJ","STOCKPORT NHS FOUNDATION TRUST",13,1,0,11,2,0,0,0,0,0,0,13,0,0,0,0]
["Q83","RW6","PENNINE ACUTE HOSPITALS NHS TRUST",14,0.8571428571428571,7.1428571428571425E-2,11,1,1,1,0,0,14,0,0,0,0,0,0]
["Q83","RY2","BRIDGEWATER COMMUNITY HEALTHCARE NHS FOUNDATION TRUST",19,1,0,17,2,0,0,0,0,0,0,19,0,0,0,0]
["Q83","R0A","MANCHESTER UNIVERSITY NHS FOUNDATION TRUST",65,0.98461538461538467,0,60,4,0,0,0,1,0,0,65,0,0,0,0]
["Q83","RMC","BOLTON NHS FOUNDATION TRUST",146,0.93150684931506844,5.4794520547945202E-2,129,7,2,2,6,0,21,0,125,0,0,0,0]
["Q84","RTX","UNIVERSITY HOSPITALS OF MORECAMBE BAY NHS FOUNDATION TRUST",10,1,0,8,2,0,0,0,0,0,0,10,0,0,0,0]
["Q84","RXN","LANCASHIRE TEACHING HOSPITALS NHS FOUNDATION TRUST",39,0.92307692307692313,2.564102564102564E-2,31,5,2,1,0,0,39,0,0,0,0,0,0]
["Q84","RXL","BLACKPOOL TEACHING HOSPITALS NHS FOUNDATION TRUST",45,1,0,40,5,0,0,0,0,0,0,45,0,0,0,0]
["Q84","RXR","EAST LANCASHIRE HOSPITALS NHS TRUST",74,0.89189189189189189,9.45945945945946E-2,62,4,1,1,6,0,35,0,39,0,0,0,0]
["Q85","RA4","YEOVIL DISTRICT HOSPITAL NHS FOUNDATION TRUST",1,"*","*","*","*","*","*","*","*","*","*","*","*","*","*","*"]
["Q85","RA9","TORBAY AND SOUTH DEVON NHS FOUNDATION TRUST",5,1,0,"*","*","*","*","*","*","*","*","*","*","*","*","*"]
["Q85","REF","ROYAL CORNWALL HOSPITALS NHS TRUST",5,0.6,0.2,3,0,1,0,1,0,0,0,5,0,0,0,0]
["Q85","RBZ","NORTHERN DEVON HEALTHCARE NHS TRUST",8,1,0,7,1,0,0,0,0,0,0,8,0,0,0,0]
["Q85","RH8","ROYAL DEVON AND EXETER NHS FOUNDATION TRUST",19,1,0,16,3,0,0,0,0,0,0,19,0,0,0,0]
["Q85","RD3","POOLE HOSPITAL NHS FOUNDATION TRUST",21,0.90476190476190477,0,17,2,2,0,0,0,21,0,0,0,0,0,0]
["Q85","RDZ","THE ROYAL BOURNEMOUTH AND CHRISTCHURCH HOSPITALS NHS FOUNDATION TRUST",21,1,0,17,4,0,0,0,0,0,0,21,0,0,0,0]
["Q85","RBD","DORSET COUNTY HOSPITAL NHS FOUNDATION TRUST",26,0.96153846153846156,3.8461538461538464E-2,21,4,0,0,1,0,26,0,0,0,0,0,0]
["Q85","RK9","UNIVERSITY HOSPITALS PLYMOUTH NHS TRUST",39,1,0,33,6,0,0,0,0,0,0,39,0,0,0,0]
["Q85","RBA","TAUNTON AND SOMERSET NHS FOUNDATION TRUST",49,1,0,46,3,0,0,0,0,0,0,49,0,0,0,0]
["Q86","RTE","GLOUCESTERSHIRE HOSPITALS NHS FOUNDATION TRUST",0,"NA","NA",0,0,0,0,0,0,0,0,0,0,0,0,0]
["Q86","RNZ","SALISBURY NHS FOUNDATION TRUST",1,"*","*","*","*","*","*","*","*","*","*","*","*","*","*","*"]
["Q86","RN3","GREAT WESTERN HOSPITALS NHS FOUNDATION TRUST",2,"*","*","*","*","*","*","*","*","*","*","*","*","*","*","*"]
["Q86","RA3","WESTON AREA HEALTH NHS TRUST",22,1,0,18,4,0,0,0,0,0,0,22,0,0,0,0]
["Q86","RA7","UNIVERSITY HOSPITALS BRISTOL NHS FOUNDATION TRUST",40,1,0,34,6,0,0,0,0,0,0,40,0,0,0,0]
["Q86","RD1","ROYAL UNITED HOSPITALS BATH NHS FOUNDATION TRUST",73,0.98630136986301364,0,68,4,0,0,0,1,0,0,73,0,0,0,0]
["Q86","RVJ","NORTH BRISTOL NHS TRUST",92,0.93478260869565222,4.3478260869565216E-2,78,8,1,2,2,1,74,0,18,0,0,0,0]
["Q87","R1F","ISLE OF WIGHT NHS TRUST",0,"NA","NA",0,0,0,0,0,0,0,0,0,0,0,0,0]
["Q87","RN5","HAMPSHIRE HOSPITALS NHS FOUNDATION TRUST",11,1,0,9,2,0,0,0,0,0,0,11,0,0,0,0]
["Q87","RHU","PORTSMOUTH HOSPITALS NHS TRUST",22,1,0,20,2,0,0,0,0,0,0,22,0,0,0,0]
["Q87","RHW","ROYAL BERKSHIRE NHS FOUNDATION TRUST",24,1,0,22,2,0,0,0,0,0,0,24,0,0,0,0]
["Q87","RXQ","BUCKINGHAMSHIRE HEALTHCARE NHS TRUST",38,1,0,36,2,0,0,0,0,0,0,38,0,0,0,0]
["Q87","RTH","OXFORD UNIVERSITY HOSPITALS NHS FOUNDATION TRUST",62,1,0,56,6,0,0,0,0,0,0,56,0,0,6,0]
["Q87","RDU","FRIMLEY HEALTH NHS FOUNDATION TRUST",85,0.97647058823529409,2.3529411764705882E-2,78,5,0,1,1,0,0,0,82,0,0,3,0]
["Q87","RHM","UNIVERSITY HOSPITAL SOUTHAMPTON NHS FOUNDATION TRUST",86,0.87209302325581395,2.3255813953488372E-2,53,22,9,2,0,0,0,0,20,0,0,66,0]
["Q88","RN7","DARTFORD AND GRAVESHAM NHS TRUST",0,"NA","NA",0,0,0,0,0,0,0,0,0,0,0,0,0]
["Q88","RPA","MEDWAY NHS FOUNDATION TRUST",0,"NA","NA",0,0,0,0,0,0,0,0,0,0,0,0,0]
["Q88","RXC","EAST SUSSEX HEALTHCARE NHS TRUST",0,"NA","NA",0,0,0,0,0,0,0,0,0,0,0,0,0]
["Q88","RYR","WESTERN SUSSEX HOSPITALS NHS FOUNDATION TRUST",5,1,0,4,1,0,0,0,0,0,0,4,0,0,1,0]
["Q88","RTP","SURREY AND SUSSEX HEALTHCARE NHS TRUST",6,1,0,5,1,0,0,0,0,0,0,6,0,0,0,0]
["Q88","RWF","MAIDSTONE AND TUNBRIDGE WELLS NHS TRUST",7,1,0,6,1,0,0,0,0,0,0,4,0,0,3,0]
["Q88","RXH","BRIGHTON AND SUSSEX UNIVERSITY HOSPITALS NHS TRUST",34,0.91176470588235292,5.8823529411764705E-2,30,1,0,0,2,1,34,0,0,0,0,0,0]
["Q88","RA2","ROYAL SURREY COUNTY HOSPITAL NHS FOUNDATION TRUST",40,0.95,2.5000000000000001E-2,38,0,1,0,1,0,37,0,3,0,0,0,0]
["Q88","RVV","EAST KENT HOSPITALS UNIVERSITY NHS FOUNDATION TRUST",57,0.98245614035087714,1.7543859649122806E-2,49,7,0,1,0,0,0,0,57,0,0,0,0]
["zIS1","NDE","ONE TO ONE (NORTH WEST) LIMITED",64,1,0,60,4,0,0,0,0,0,64,0,0,0,0,0]

{"sheet":"BSQ1","index":13,"n_rows":209,"n_cols":33,"rows_kept":209,"cut":false,"hidden":true,"merged":[]}
[null,"Sort","Region (LO)","Region (LO)","Trusts","Trusts","Sites","Sites",null,"Sort ranges:","Sort range…","Sort range…","Sort range…","Reference Region List:","Code…","Name…","Linked Region List:","Code…","Name…","Reference Lists:","Code…","Code…","Name…","Code…","Name…","Trusts Linked Lists:","Code…","Name…","Site Linked Lists:","Code…","Name…","Code…","Name…"]
["Region (LO)",1,1,1,"-","-","-","-",null,null,"Region (LO) Code","Region (LO) Code","Region (LO) Code",null,"Q72","NHS England Yorkshire & Humber",null,"Q71","Independent Sector Provider",null,"Q71","RF4","BARKING, HAVERING AND REDBRIDGE UNIVERSITY HOSPITALS NHS TRUST","RF4XXX","Non-hospital site - RF4XXX",null,"NDE","AIREDALE NHS FOUNDATION TRUST",null,"NDE","AIREDALE NHS FOUNDATION TRUST","NDE01","Airedale General Hospital - RCF22"]
["Trusts",1,1,1,1,1,"-","-",null,null,"Region (Local Office)","Trust Code","Trust Code",null,"Q74","NHS England Cumbria & North East",null,"Q72","NHS England Cheshire & Merseyside",null,"Q71","R1H","BARTS HEALTH NHS TRUST","R1HNH","Newham General Hospital - R1HNH",null,"R0A","BARKING, HAVERING AND REDBRIDGE UNIVERSITY HOSPITALS NHS TRUST",null,"R0A","BARKING, HAVERING AND REDBRIDGE UNIVERSITY HOSPITALS NHS TRUST","R0A05","Alexandra Hospital - RWP01"]
["Sites",1,1,1,1,1,1,1,null,null,"Total Responses","Trust Name","Trust Name",null,"Q75","NHS England Cheshire & Merseyside",null,"Q74","NHS England Cumbria & North East",null,"Q71","R1H","BARTS HEALTH NHS TRUST","R1H12","The Royal London Hospital - R1H12",null,"R1F","BARNSLEY HOSPITAL NHS FOUNDATION TRUST",null,"R1F","BARNSLEY HOSPITAL NHS FOUNDATION TRUST","R1F01","Andover War Memorial Hospital - RN542"]
[null,null,null,null,null,null,null,null,null,null,"Percentage Recommended","Total Responses","Site Code",null,"Q83","NHS England Greater Manchester",null,"Q75","NHS England East",null,"Q71","R1H","BARTS HEALTH NHS TRUST","R1HKH","Whipps Cross University Hospital - R1HKH",null,"R1H","BARTS HEALTH NHS TRUST",null,"R1H","BARTS HEALTH NHS TRUST","R1H12","Arrowe Park Hospital - RBL14"]
[null,null,null,null,null,null,null,null,null,null,"Percentage Not  Recommended","Percentage Recommended","Site Name",null,"Q84","NHS England Lancashire",null,"Q76","NHS England Greater Manchester",null,"Q71","RQM","CHELSEA AND WESTMINSTER HOSPITAL NHS FOUNDATION TRUST","RQM01","Chelsea and Westminster Hospital - RQM01",null,"R1K","BASILDON AND THURROCK UNIVERSITY HOSPITALS NHS FOUNDATION TRUST",null,"R1K","BASILDON AND THURROCK UNIVERSITY HOSPITALS NHS FOUNDATION TRUST","R1HKH","Barnet Hospital - RAL26"]
[null,null,null,null,null,null,null,null,null,null,"Extremely Likely","Percentage Not  Recommended","Total Responses",null,"Q76","NHS England North Midlands",null,"Q77","NHS England Lancashire",null,"Q71","RQM","CHELSEA AND WESTMINSTER HOSPITAL NHS FOUNDATION TRUST","RQM91","West Middlesex University Hospital - RQM91",null,"RA2","BEDFORD HOSPITAL NHS TRUST",null,"RA2","BEDFORD HOSPITAL NHS TRUST","R1HNH","Barnsley Hospital NHS Foundation Trust HQ - RFFAA"]
[null,null,null,null,null,null,null,null,null,null,"Likely","Extremely Likely","Percentage Recommended",null,"Q77","NHS England West Midlands",null,"Q78","NHS England London",null,"Q71","RJ6","CROYDON HEALTH SERVICES NHS TRUST","RJ611","Croydon University Hospital - RJ611",null,"RA3","BIRMINGHAM WOMEN'S AND CHILDREN'S NHS FOUNDATION TRUST",null,"RA3","BIRMINGHAM WOMEN'S AND CHILDREN'S NHS FOUNDATION TRUST","R1K01","Basildon University Hospital - RDDH0"]
[null,null,null,null,null,null,null,null,null,null,"Neither","Likely","Percentage Not  Recommended",null,"Q78","NHS England Central Midlands",null,"Q79","NHS England North Midlands",null,"Q71","RVR","EPSOM AND ST HELIER UNIVERSITY HOSPITALS NHS TRUST","RVR50","Epsom Hospital - RVR50",null,"RA4","BLACKPOOL TEACHING HOSPITALS NHS FOUNDATION TRUST",null,"RA4","BLACKPOOL TEACHING HOSPITALS NHS FOUNDATION TRUST","R1K02","Basingstoke and North Hampshire Hospital - RN506"]
[null,null,null,null,null,null,null,null,null,null,"Unlikely","Neither","Extremely Likely",null,"Q79","NHS England East",null,"Q83","NHS England Central Midlands",null,"Q71","RVR","EPSOM AND ST HELIER UNIVERSITY HOSPITALS NHS TRUST","RVRXXX","Non-hospital site - RVRXXX",null,"RA7","BOLTON NHS FOUNDATION TRUST",null,"RA7","BOLTON NHS FOUNDATION TRUST","R1K04","Bassetlaw Hospital - RP5BA"]
[null,null,null,null,null,null,null,null,null,null,"Extremely Unlikely","Unlikely","Likely",null,"Q85","NHS England South West (South West South)",null,"Q84","NHS England South East (Hampshire, Isle Of Wight & Thames Valley)",null,"Q71","RVR","EPSOM AND ST HELIER UNIVERSITY HOSPITALS NHS TRUST","RVR05","St Helier Hospital - RVR05",null,"RA9","BRADFORD TEACHING HOSPITALS NHS FOUNDATION TRUST",null,"RA9","BRADFORD TEACHING HOSPITALS NHS FOUNDATION TRUST","R1KXXX","Bedford Hospital South Wing - RC110"]
[null,null,null,null,null,null,null,null,null,null,"Don't Know","Extremely Unlikely","Neither",null,"Q86","NHS England South West (South West North)",null,"Q85","NHS England South East (Kent, Surrey & Sussex)",null,"Q71","RJ1","GUY'S AND ST THOMAS' NHS FOUNDATION TRUST","RJ122","St Thomas' Hospital - RJ122",null,"RAE","BRIDGEWATER COMMUNITY HEALTHCARE NHS FOUNDATION TRUST",null,"RAE","BRIDGEWATER COMMUNITY HEALTHCARE NHS FOUNDATION TRUST","RA201","Birmingham Women's Hospital - RQ370"]
[null,null,null,null,null,null,null,null,null,null,null,"Don't Know","Unlikely",null,"Q87","NHS England South East (Hampshire, Isle Of Wight & Thames Valley)",null,"Q86","NHS England South West (South West North)",null,"Q71","RQX","HOMERTON UNIVERSITY HOSPITAL NHS FOUNDATION TRUST","RQXM1","Homerton University Hospital - RQXM1",null,"RAJ","BRIGHTON AND SUSSEX UNIVERSITY HOSPITALS NHS TRUST",null,"RAJ","BRIGHTON AND SUSSEX UNIVERSITY HOSPITALS NHS TRUST","RA301","Blackpool Victoria Hospital - RXL01"]
[null,null,null,null,null,null,null,null,null,null,null,"SMS/Text / Smartphone App","Extremely Unlikely",null,"Q88","NHS England South East (Kent, Surrey & Sussex)",null,"Q87","NHS England South West (South West South)",null,"Q71","RYJ","IMPERIAL COLLEGE HEALTHCARE NHS TRUST","RYJ04","Queen Charlotte's Hospital - RYJ04",null,"RAL","BUCKINGHAMSHIRE HEALTHCARE NHS TRUST",null,"RAL","BUCKINGHAMSHIRE HEALTHCARE NHS TRUST","RA430","Bradford Royal Infirmary - RAE01"]
[null,null,null,null,null,null,null,null,null,null,null,"Electronic tablet/kiosk at point of discharge","Don't Know",null,"Q71","NHS England London",null,"Q88","NHS England West Midlands",null,"Q71","RYJ","IMPERIAL COLLEGE HEALTHCARE NHS TRUST","RYJ01","St Mary's Hospital (HQ) - RYJ01",null,"RAP","CALDERDALE AND HUDDERSFIELD NHS FOUNDATION TRUST",null,"RAP","CALDERDALE AND HUDDERSFIELD NHS FOUNDATION TRUST","RA707","Bridgwater Hospital - RBAC3"]
[null,null,null,null,null,null,null,null,null,null,null,"Paper / postcard at point of discharge",null,null,"zIS1","Independent Sector Provider",null,"zIS1","NHS England Yorkshire & Humber",null,"Q71","RJZ","KING'S COLLEGE HOSPITAL NHS FOUNDATION TRUST","RJZ01","King's College Hospital (Denmark Hill) - RJZ01",null,"RAS","CAMBRIDGE UNIVERSITY HOSPITALS NHS FOUNDATION TRUST",null,"RAS","CAMBRIDGE UNIVERSITY HOSPITALS NHS FOUNDATION TRUST","RA9XXX","Broomfield Hospital - RQ8L0"]
[null,null,null,null,null,null,null,null,null,null,null,"Paper survey, sent to the patients home",null,null,null,null,null,null,null,null,"Q71","RJZ","KING'S COLLEGE HOSPITAL NHS FOUNDATION TRUST","RJZ30","Princess Royal University Hospital - RJZ30",null,"RAX","CHELSEA AND WESTMINSTER HOSPITAL NHS FOUNDATION TRUST",null,"RAX","CHELSEA AND WESTMINSTER HOSPITAL NHS FOUNDATION TRUST","RAE01","Central Middlesex Hospital - R1K02"]
[null,null,null,null,null,null,null,null,null,null,null,"Telephone survey once patient is home",null,null,null,null,null,null,null,null,"Q71","RAX","KINGSTON HOSPITAL NHS FOUNDATION TRUST","RAX01","Kingston Hospital - RAX01",null,"RBA","CHESTERFIELD ROYAL HOSPITAL NHS FOUNDATION TRUST",null,"RBA","CHESTERFIELD ROYAL HOSPITAL NHS FOUNDATION TRUST","RAEXXX","Chelsea and Westminster Hospital - RQM01"]
[null,null,null,null,null,null,null,null,null,null,null,"Online survey once patient is home",null,null,null,null,null,null,null,null,"Q71","RJ2","LEWISHAM AND GREENWICH NHS TRUST","RJ2XXX","Non-hospital site - RJ2XXX",null,"RBD","CITY HOSPITALS SUNDERLAND NHS FOUNDATION TRUST",null,"RBD","CITY HOSPITALS SUNDERLAND NHS FOUNDATION TRUST","RAJ01","Chesterfield Royal Hospital - RFSDA"]
[null,null,null,null,null,null,null,null,null,null,null,"Other",null,null,null,null,null,null,null,null,"Q71","RJ2","LEWISHAM AND GREENWICH NHS TRUST","RJ231","Queen Elizabeth Hospital - RJ231",null,"RBK","COUNTESS OF CHESTER HOSPITAL NHS FOUNDATION TRUST",null,"RBK","COUNTESS OF CHESTER HOSPITAL NHS FOUNDATION TRUST","RAL01","Chippenham Community Hospital -RD102"]
[null,null,null,null,null,null,null,null,null,null,null,null,null,null,null,null,null,null,null,null,"Q71","RJ2","LEWISHAM AND GREENWICH NHS TRUST","RJ224","University Hospital Lewisham - RJ224",null,"RBL","COUNTY DURHAM AND DARLINGTON NHS FOUNDATION TRUST",null,"RBL","COUNTY DURHAM AND DARLINGTON NHS FOUNDATION TRUST","RAL26","City Hospital - RXK02"]
[null,null,null,null,null,null,null,null,null,null,null,null,null,null,null,null,null,null,null,null,"Q71","R1K","LONDON NORTH WEST UNIVERSITY HEALTHCARE NHS TRUST","R1K02","Central Middlesex Hospital - R1K02",null,"RBN","CROYDON HEALTH SERVICES NHS TRUST",null,"RBN","CROYDON HEALTH SERVICES NHS TRUST","RAPNM","Colchester General Hospital - RDEE4"]
[null,null,null,null,null,null,null,null,null,null,null,null,null,null,null,null,null,null,null,null,"Q71","R1K","LONDON NORTH WEST UNIVERSITY HEALTHCARE NHS TRUST","R1K04","Ealing Hospital - R1K04",null,"RBT","DARTFORD AND GRAVESHAM NHS TRUST",null,"RBT","DARTFORD AND GRAVESHAM NHS TRUST","RAS01","Conquest Hospital - RXC01"]
[null,null,null,null,null,null,null,null,null,null,null,null,null,null,null,null,null,null,null,null,"Q71","R1K","LONDON NORTH WEST UNIVERSITY HEALTHCARE NHS TRUST","R1KXXX","Non-hospital site - R1KXXX",null,"RBZ","DONCASTER AND BASSETLAW TEACHING HOSPITALS NHS FOUNDATION TRUST",null,"RBZ","DONCASTER AND BASSETLAW TEACHING HOSPITALS NHS FOUNDATION TRUST","RAX01","Countess Of Chester Hospital - RJR05"]
[null,null,null,null,null,null,null,null,null,null,null,null,null,null,null,null,null,null,null,null,"Q71","R1K","LONDON NORTH WEST UNIVERSITY HEALTHCARE NHS TRUST","R1K01","Northwick Park Hospital - R1K01",null,"RC1","DORSET COUNTY HOSPITAL NHS FOUNDATION TRUST",null,"RC1","DORSET COUNTY HOSPITAL NHS FOUNDATION TRUST","RBA11","County Hospital - RJE09"]
[null,null,null,null,null,null,null,null,null,null,null,null,null,null,null,null,null,null,null,null,"Q71","RAP","NORTH MIDDLESEX UNIVERSITY HOSPITAL NHS TRUST","RAPNM","North Middlesex Hospital - RAPNM",null,"RC9","EAST AND NORTH HERTFORDSHIRE NHS TRUST",null,"RC9","EAST AND NORTH HERTFORDSHIRE NHS TRUST","RBAC3","Croydon University Hospital - RJ611"]
[null,null,null,null,null,null,null,null,null,null,null,null,null,null,null,null,null,null,null,null,"Q71","RAL","ROYAL FREE LONDON NHS FOUNDATION TRUST","RAL26","Barnet Hospital - RAL26",null,"RCB","EAST CHESHIRE NHS TRUST",null,"RCB","EAST CHESHIRE NHS TRUST","RBAXXX","Darent Valley Hospital - RN707"]
[null,null,null,null,null,null,null,null,null,null,null,null,null,null,null,null,null,null,null,null,"Q71","RAL","ROYAL FREE LONDON NHS FOUNDATION TRUST","RAL01","Royal Free Hospital - RAL01",null,"RCD","EAST KENT HOSPITALS UNIVERSITY NHS FOUNDATION TRUST",null,"RCD","EAST KENT HOSPITALS UNIVERSITY NHS FOUNDATION TRUST","RBD01","Darlington Memorial Hospital - RXPDA"]
[null,null,null,null,null,null,null,null,null,null,null,null,null,null,null,null,null,null,null,null,"Q71","RJ7","ST GEORGE'S UNIVERSITY HOSPITALS NHS FOUNDATION TRUST","RJ7XXX","Non-hospital site - RJ7XXX",null,"RCF","EAST LANCASHIRE HOSPITALS NHS TRUST",null,"RCF","EAST LANCASHIRE HOSPITALS NHS TRUST","RBK02","Derriford Hospital - RK950"]
[null,null,null,null,null,null,null,null,null,null,null,null,null,null,null,null,null,null,null,null,"Q71","RJ7","ST GEORGE'S UNIVERSITY HOSPITALS NHS FOUNDATION TRUST","RJ701","St George's Hospital (Tooting) - RJ701",null,"RCX","EAST SUFFOLK AND NORTH ESSEX NHS FOUNDATION TRUST",null,"RCX","EAST SUFFOLK AND NORTH ESSEX NHS FOUNDATION TRUST","RBL14","Dewsbury and District Hospital - RXF10"]
[null,null,null,null,null,null,null,null,null,null,null,null,null,null,null,null,null,null,null,null,"Q71","RAS","THE HILLINGDON HOSPITALS NHS FOUNDATION TRUST","RAS01","Hillingdon Hospital - RAS01",null,"RD1","EAST SUSSEX HEALTHCARE NHS TRUST",null,"RD1","EAST SUSSEX HEALTHCARE NHS TRUST","RBN01","Diana, Princess Of Wales Hospital - RJL30"]
[null,null,null,null,null,null,null,null,null,null,null,null,null,null,null,null,null,null,null,null,"Q71","RRV","UNIVERSITY COLLEGE LONDON HOSPITALS NHS FOUNDATION TRUST","RRV11","University College Hospital Elizabeth Garrett Anderson Wing - RRV11",null,"RD3","EPSOM AND ST HELIER UNIVERSITY HOSPITALS NHS TRUST",null,"RD3","EPSOM AND ST HELIER UNIVERSITY HOSPITALS NHS TRUST","RBT20","Doncaster Royal Infirmary - RP5DR"]
[null,null,null,null,null,null,null,null,null,null,null,null,null,null,null,null,null,null,null,null,"Q71","RKE","WHITTINGTON HEALTH NHS TRUST","RKEXXX","Non-hospital site - RKEXXX",null,"RD8","FRIMLEY HEALTH NHS FOUNDATION TRUST",null,"RD8","FRIMLEY HEALTH NHS FOUNDATION TRUST","RBZ12","Dorset County Hospital - RBD01"]
[null,null,null,null,null,null,null,null,null,null,null,null,null,null,null,null,null,null,null,null,"Q71","RKE","WHITTINGTON HEALTH NHS TRUST","RKEQ4","The Whittington Hospital - RKEQ4",null,"RDD","GATESHEAD HEALTH NHS FOUNDATION TRUST",null,"RDD","GATESHEAD HEALTH NHS FOUNDATION TRUST","RC110","Ealing Hospital - R1K04"]
[null,null,null,null,null,null,null,null,null,null,null,null,null,null,null,null,null,null,null,null,"Q72","RCF","AIREDALE NHS FOUNDATION TRUST","RCF22","Airedale General Hospital - RCF22",null,"RDE","GEORGE ELIOT HOSPITAL NHS TRUST",null,"RDE","GEORGE ELIOT HOSPITAL NHS TRUST","RC971","East Surrey Hospital - RTP04"]
[null,null,null,null,null,null,null,null,null,null,null,null,null,null,null,null,null,null,null,null,"Q72","RFF","BARNSLEY HOSPITAL NHS FOUNDATION TRUST","RFFAA","Barnsley Hospital NHS Foundation Trust HQ - RFFAA",null,"RDU","GLOUCESTERSHIRE HOSPITALS NHS FOUNDATION TRUST",null,"RDU","GLOUCESTERSHIRE HOSPITALS NHS FOUNDATION TRUST","RCB55","Eastbourne District General Hospital - RXC02"]
[null,null,null,null,null,null,null,null,null,null,null,null,null,null,null,null,null,null,null,null,"Q72","RAE","BRADFORD TEACHING HOSPITALS NHS FOUNDATION TRUST","RAE01","Bradford Royal Infirmary - RAE01",null,"RDZ","GREAT WESTERN HOSPITALS NHS FOUNDATION TRUST",null,"RDZ","GREAT WESTERN HOSPITALS NHS FOUNDATION TRUST","RCBCA","Epsom Hospital - RVR50"]
[null,null,null,null,null,null,null,null,null,null,null,null,null,null,null,null,null,null,null,null,"Q72","RAE","BRADFORD TEACHING HOSPITALS NHS FOUNDATION TRUST","RAEXXX","Non-hospital site - RAEXXX",null,"RE9","GUY'S AND ST THOMAS' NHS FOUNDATION TRUST",null,"RE9","GUY'S AND ST THOMAS' NHS FOUNDATION TRUST","RCD01","Fairfield General Hospital - RW601"]
[null,null,null,null,null,null,null,null,null,null,null,null,null,null,null,null,null,null,null,null,"Q72","RWY","CALDERDALE AND HUDDERSFIELD NHS FOUNDATION TRUST","RWYXXX","Non-hospital site - RWYXXX",null,"REF","HAMPSHIRE HOSPITALS NHS FOUNDATION TRUST",null,"REF","HAMPSHIRE HOSPITALS NHS FOUNDATION TRUST","RCDXXX","Frimley Park Hospital - RDU01"]
[null,null,null,null,null,null,null,null,null,null,null,null,null,null,null,null,null,null,null,null,"Q72","RP5","DONCASTER AND BASSETLAW TEACHING HOSPITALS NHS FOUNDATION TRUST","RP5BA","Bassetlaw Hospital - RP5BA",null,"REP","HARROGATE AND DISTRICT NHS FOUNDATION TRUST",null,"REP","HARROGATE AND DISTRICT NHS FOUNDATION TRUST","RCF22","Frome Community Hospital  - RD121"]
[null,null,null,null,null,null,null,null,null,null,null,null,null,null,null,null,null,null,null,null,"Q72","RP5","DONCASTER AND BASSETLAW TEACHING HOSPITALS NHS FOUNDATION TRUST","RP5DR","Doncaster Royal Infirmary - RP5DR",null,"RF4","HOMERTON UNIVERSITY HOSPITAL NHS FOUNDATION TRUST",null,"RF4","HOMERTON UNIVERSITY HOSPITAL NHS FOUNDATION TRUST","RCX66","Furness General Hospital - RTXBU"]
[null,null,null,null,null,null,null,null,null,null,null,null,null,null,null,null,null,null,null,null,"Q72","RP5","DONCASTER AND BASSETLAW TEACHING HOSPITALS NHS FOUNDATION TRUST","RP5XXX","Non-hospital site - RP5XXX",null,"RFF","HULL AND EAST YORKSHIRE HOSPITALS NHS TRUST",null,"RFF","HULL AND EAST YORKSHIRE HOSPITALS NHS TRUST","RCX70","George Eliot Hospital - Acute Services - RLT01"]
[null,null,null,null,null,null,null,null,null,null,null,null,null,null,null,null,null,null,null,null,"Q72","RCD","HARROGATE AND DISTRICT NHS FOUNDATION TRUST","RCD01","Harrogate District Hospital - RCD01",null,"RFR","IMPERIAL COLLEGE HEALTHCARE NHS TRUST",null,"RFR","IMPERIAL COLLEGE HEALTHCARE NHS TRUST","RCXXXX","Gloucestershire Royal Hospital - RTE03"]
[null,null,null,null,null,null,null,null,null,null,null,null,null,null,null,null,null,null,null,null,"Q72","RCD","HARROGATE AND DISTRICT NHS FOUNDATION TRUST","RCDXXX","Non-hospital site - RCDXXX",null,"RFS","ISLE OF WIGHT NHS TRUST",null,"RFS","ISLE OF WIGHT NHS TRUST","RD102","Good Hope Hospital - RRK98"]
[null,null,null,null,null,null,null,null,null,null,null,null,null,null,null,null,null,null,null,null,"Q72","RWA","HULL AND EAST YORKSHIRE HOSPITALS NHS TRUST","RWA01","Hull Royal Infirmary - RWA01",null,"RGN","JAMES PAGET UNIVERSITY HOSPITALS NHS FOUNDATION TRUST",null,"RGN","JAMES PAGET UNIVERSITY HOSPITALS NHS FOUNDATION TRUST","RD108","Gosport War Memorial Hospital - RHU10"]
[null,null,null,null,null,null,null,null,null,null,null,null,null,null,null,null,null,null,null,null,"Q72","RR8","LEEDS TEACHING HOSPITALS NHS TRUST","RR801","Leeds General Infirmary - RR801",null,"RGP","KETTERING GENERAL HOSPITAL NHS FOUNDATION TRUST",null,"RGP","KETTERING GENERAL HOSPITAL NHS FOUNDATION TRUST","RD121","Grantham and District Hospital - RWDLP"]
[null,null,null,null,null,null,null,null,null,null,null,null,null,null,null,null,null,null,null,null,"Q72","RR8","LEEDS TEACHING HOSPITALS NHS TRUST","RR8XXX","Non-Hospital Site - RR8XXX",null,"RGR","KING'S COLLEGE HOSPITAL NHS FOUNDATION TRUST",null,"RGR","KING'S COLLEGE HOSPITAL NHS FOUNDATION TRUST","RD129","Harrogate District Hospital - RCD01"]
[null,null,null,null,null,null,null,null,null,null,null,null,null,null,null,null,null,null,null,null,"Q72","RR8","LEEDS TEACHING HOSPITALS NHS TRUST","RR813","St James's University Hospital - RR813",null,"RGT","KINGSTON HOSPITAL NHS FOUNDATION TRUST",null,"RGT","KINGSTON HOSPITAL NHS FOUNDATION TRUST","RD130","Health Care Resource Centre - RY28P"]
[null,null,null,null,null,null,null,null,null,null,null,null,null,null,null,null,null,null,null,null,"Q72","RXF","MID YORKSHIRE HOSPITALS NHS TRUST","RXF10","Dewsbury and District Hospital - RXF10",null,"RH8","LANCASHIRE TEACHING HOSPITALS NHS FOUNDATION TRUST",null,"RH8","LANCASHIRE TEACHING HOSPITALS NHS FOUNDATION TRUST","RD167","Heartlands Hospital - RRK97"]
[null,null,null,null,null,null,null,null,null,null,null,null,null,null,null,null,null,null,null,null,"Q72","RXF","MID YORKSHIRE HOSPITALS NHS TRUST","RXF05","Pinderfields General Hospital - RXF05",null,"RHM","LEEDS TEACHING HOSPITALS NHS TRUST",null,"RHM","LEEDS TEACHING HOSPITALS NHS TRUST","RD304","Hereford County Hospital - RLQ01"]
[null,null,null,null,null,null,null,null,null,null,null,null,null,null,null,null,null,null,null,null,"Q72","RXF","MID YORKSHIRE HOSPITALS NHS TRUST","RXF03","Pontefract General Infirmary - RXF03",null,"RHQ","LEWISHAM AND GREENWICH NHS TRUST",null,"RHQ","LEWISHAM AND GREENWICH NHS TRUST","RD816","Hillingdon Hospital - RAS01"]
[null,null,null,null,null,null,null,null,null,null,null,null,null,null,null,null,null,null,null,null,"Q72","RJL","NORTHERN LINCOLNSHIRE AND GOOLE NHS FOUNDATION TRUST","RJL30","Diana, Princess Of Wales Hospital - RJL30",null,"RHU","LIVERPOOL WOMEN'S NHS FOUNDATION TRUST",null,"RHU","LIVERPOOL WOMEN'S NHS FOUNDATION TRUST","RDDH0","Hinchingbrooke Hospital - RGN90"]
[null,null,null,null,null,null,null,null,null,null,null,null,null,null,null,null,null,null,null,null,"Q72","RJL","NORTHERN LINCOLNSHIRE AND GOOLE NHS FOUNDATION TRUST","RJL32","Scunthorpe General Hospital - RJL32",null,"RHW","LONDON NORTH WEST UNIVERSITY HEALTHCARE NHS TRUST",null,"RHW","LONDON NORTH WEST UNIVERSITY HEALTHCARE NHS TRUST","RDE03","Homerton University Hospital - RQXM1"]
[null,null,null,null,null,null,null,null,null,null,null,null,null,null,null,null,null,null,null,null,"Q72","RHQ","SHEFFIELD TEACHING HOSPITALS NHS FOUNDATION TRUST","RHQHH","Royal Hallamshire Hospital - RHQHH",null,"RJ1","LUTON AND DUNSTABLE UNIVERSITY HOSPITAL NHS FOUNDATION TRUST",null,"RJ1","LUTON AND DUNSTABLE UNIVERSITY HOSPITAL NHS FOUNDATION TRUST","RDEE4","Honiton Hospital - RH 854"]
[null,null,null,null,null,null,null,null,null,null,null,null,null,null,null,null,null,null,null,null,"Q72","RFR","THE ROTHERHAM NHS FOUNDATION TRUST","RFRPA","Rotherham District General Hospital - RFRPA",null,"RJ2","MAIDSTONE AND TUNBRIDGE WELLS NHS TRUST",null,"RJ2","MAIDSTONE AND TUNBRIDGE WELLS NHS TRUST","RDU01","Hospital Of St Cross - RKB03"]
[null,null,null,null,null,null,null,null,null,null,null,null,null,null,null,null,null,null,null,null,"Q72","RCB","YORK TEACHING HOSPITAL NHS FOUNDATION TRUST","RCBCA","Scarborough General Hospital - RCBCA",null,"RJ6","MANCHESTER UNIVERSITY NHS FOUNDATION TRUST",null,"RJ6","MANCHESTER UNIVERSITY NHS FOUNDATION TRUST","RDU50","Hull Royal Infirmary - RWA01"]
[null,null,null,null,null,null,null,null,null,null,null,null,null,null,null,null,null,null,null,null,"Q72","RCB","YORK TEACHING HOSPITAL NHS FOUNDATION TRUST","RCB55","York Hospital - RCB55",null,"RJ7","MEDWAY NHS FOUNDATION TRUST",null,"RJ7","MEDWAY NHS FOUNDATION TRUST","RDZ20","Ipswich Hospital - RDE03"]
[null,null,null,null,null,null,null,null,null,null,null,null,null,null,null,null,null,null,null,null,"Q74","RLN","CITY HOSPITALS SUNDERLAND NHS FOUNDATION TRUST","RLNGL","Sunderland Royal Hospital - RLNGL",null,"RJC","MID CHESHIRE HOSPITALS NHS FOUNDATION TRUST",null,"RJC","MID CHESHIRE HOSPITALS NHS FOUNDATION TRUST","RE9GA","James Paget University Hospital - RGP75"]
[null,null,null,null,null,null,null,null,null,null,null,null,null,null,null,null,null,null,null,null,"Q74","RXP","COUNTY DURHAM AND DARLINGTON NHS FOUNDATION TRUST","RXPDA","Darlington Memorial Hospital - RXPDA",null,"RJE","MID ESSEX HOSPITAL SERVICES NHS TRUST",null,"RJE","MID ESSEX HOSPITAL SERVICES NHS TRUST","REF12","John Radcliffe Hospital - RTH08"]
[null,null,null,null,null,null,null,null,null,null,null,null,null,null,null,null,null,null,null,null,"Q74","RXP","COUNTY DURHAM AND DARLINGTON NHS FOUNDATION TRUST","RXPCP","University Hospital Of North Durham - RXPCP",null,"RJL","MID YORKSHIRE HOSPITALS NHS TRUST",null,"RJL","MID YORKSHIRE HOSPITALS NHS TRUST","REFXXX","Kettering General Hospital - RNQ51"]
[null,null,null,null,null,null,null,null,null,null,null,null,null,null,null,null,null,null,null,null,"Q74","RR7","GATESHEAD HEALTH NHS FOUNDATION TRUST","RR7EN","Queen Elizabeth Hospital - RR7EN",null,"RJN","MILTON KEYNES UNIVERSITY HOSPITAL NHS FOUNDATION TRUST",null,"RJN","MILTON KEYNES UNIVERSITY HOSPITAL NHS FOUNDATION TRUST","REP01","Kidderminster Hospital - RWP31"]
[null,null,null,null,null,null,null,null,null,null,null,null,null,null,null,null,null,null,null,null,"Q74","RNL","NORTH CUMBRIA UNIVERSITY HOSPITALS NHS TRUST","RNLXXX","Non-hospital site - RNLXXX",null,"RJR","NORFOLK AND NORWICH UNIVERSITY HOSPITALS NHS FOUNDATION TRUST",null,"RJR","NORFOLK AND NORWICH UNIVERSITY HOSPITALS NHS FOUNDATION TRUST","RF4XXX","King's College Hospital (Denmark Hill) - RJZ01"]
[null,null,null,null,null,null,null,null,null,null,null,null,null,null,null,null,null,null,null,null,"Q74","RVW","NORTH TEES AND HARTLEPOOL NHS FOUNDATION TRUST","RVWXXX","Non-hospital site - RVWXXX",null,"RJZ","NORTH BRISTOL NHS TRUST",null,"RJZ","NORTH BRISTOL NHS TRUST","RFFAA","King's Mill Hospital - RK5BC"]
[null,null,null,null,null,null,null,null,null,null,null,null,null,null,null,null,null,null,null,null,"Q74","RTF","NORTHUMBRIA HEALTHCARE NHS FOUNDATION TRUST","RTFXXX","Non-hospital site - RTFXXX",null,"RK5","NORTH CUMBRIA UNIVERSITY HOSPITALS NHS TRUST",null,"RK5","NORTH CUMBRIA UNIVERSITY HOSPITALS NHS TRUST","RFRPA","Kingston Hospital - RAX01"]
[null,null,null,null,null,null,null,null,null,null,null,null,null,null,null,null,null,null,null,null,"Q74","RTR","SOUTH TEES HOSPITALS NHS FOUNDATION TRUST","RTRXXX","Non-hospital site - RTRXXX",null,"RK9","NORTH MIDDLESEX UNIVERSITY HOSPITAL NHS TRUST",null,"RK9","NORTH MIDDLESEX UNIVERSITY HOSPITAL NHS TRUST","RFSDA","Leeds General Infirmary - RR801"]
[null,null,null,null,null,null,null,null,null,null,null,null,null,null,null,null,null,null,null,null,"Q74","RE9","SOUTH TYNESIDE NHS FOUNDATION TRUST","RE9GA","South Tyneside District Hospital - RE9GA",null,"RKB","NORTH TEES AND HARTLEPOOL NHS FOUNDATION TRUST",null,"RKB","NORTH TEES AND HARTLEPOOL NHS FOUNDATION TRUST","RGN80","Leicester General Hospital - RWEAK"]
[null,null,null,null,null,null,null,null,null,null,null,null,null,null,null,null,null,null,null,null,"Q74","RTD","THE NEWCASTLE UPON TYNE HOSPITALS NHS FOUNDATION TRUST","RTD02","The Royal Victoria Infirmary - RTD02",null,"RKE","NORTH WEST ANGLIA NHS FOUNDATION TRUST",null,"RKE","NORTH WEST ANGLIA NHS FOUNDATION TRUST","RGN90","Leicester Royal Infirmary - RWEAA"]
[null,null,null,null,null,null,null,null,null,null,null,null,null,null,null,null,null,null,null,null,"Q75","RJR","COUNTESS OF CHESTER HOSPITAL NHS FOUNDATION TRUST","RJR05","Countess Of Chester Hospital - RJR05",null,"RL4","NORTHAMPTON GENERAL HOSPITAL NHS TRUST",null,"RL4","NORTHAMPTON GENERAL HOSPITAL NHS TRUST","RGP75","Leighton Hospital - RBT20"]
[null,null,null,null,null,null,null,null,null,null,null,null,null,null,null,null,null,null,null,null,"Q75","RJR","COUNTESS OF CHESTER HOSPITAL NHS FOUNDATION TRUST","RJRXXX","Non-hospital site - RJRXXX",null,"RLN","NORTHERN DEVON HEALTHCARE NHS TRUST",null,"RLN","NORTHERN DEVON HEALTHCARE NHS TRUST","RGR50","Lincoln County Hospital - RWDDA"]
[null,null,null,null,null,null,null,null,null,null,null,null,null,null,null,null,null,null,null,null,"Q75","RJN","EAST CHESHIRE NHS TRUST","RJN71","Macclesfield District General Hospital - RJN71",null,"RLQ","NORTHERN LINCOLNSHIRE AND GOOLE NHS FOUNDATION TRUST",null,"RLQ","NORTHERN LINCOLNSHIRE AND GOOLE NHS FOUNDATION TRUST","RGT32","Lister Hospital - RWH01"]
[null,null,null,null,null,null,null,null,null,null,null,null,null,null,null,null,null,null,null,null,"Q75","REP","LIVERPOOL WOMEN'S NHS FOUNDATION TRUST","REP01","Liverpool Womens Hospital - REP01",null,"RLT","NORTHUMBRIA HEALTHCARE NHS FOUNDATION TRUST",null,"RLT","NORTHUMBRIA HEALTHCARE NHS FOUNDATION TRUST","RH801","Liverpool Womens Hospital - REP01"]
[null,null,null,null,null,null,null,null,null,null,null,null,null,null,null,null,null,null,null,null,"Q75","RBT","MID CHESHIRE HOSPITALS NHS FOUNDATION TRUST","RBT20","Leighton Hospital - RBT20",null,"RM1","NOTTINGHAM UNIVERSITY HOSPITALS NHS TRUST",null,"RM1","NOTTINGHAM UNIVERSITY HOSPITALS NHS TRUST","RH833","Luton and Dunstable Hospital - RC971"]
[null,null,null,null,null,null,null,null,null,null,null,null,null,null,null,null,null,null,null,null,"Q75","RVY","SOUTHPORT AND ORMSKIRK HOSPITAL NHS TRUST","RVYXXX","Non-hospital site - RVYXXX",null,"RMC","ONE TO ONE (NORTH WEST) LIMITED",null,"RMC","ONE TO ONE (NORTH WEST) LIMITED","RH853","Macclesfield District General Hospital - RJN71"]
[null,null,null,null,null,null,null,null,null,null,null,null,null,null,null,null,null,null,null,null,"Q75","RBN","ST HELENS AND KNOWSLEY TEACHING HOSPITALS NHS TRUST","RBN01","Whiston Hospital - RBN01",null,"RMP","OXFORD UNIVERSITY HOSPITALS NHS FOUNDATION TRUST",null,"RMP","OXFORD UNIVERSITY HOSPITALS NHS FOUNDATION TRUST","RH854","Maidstone District General Hospital - RWF03"]
[null,null,null,null,null,null,null,null,null,null,null,null,null,null,null,null,null,null,null,null,"Q75","RWW","WARRINGTON AND HALTON HOSPITALS NHS FOUNDATION TRUST","RWWWH","Warrington Hospital - RWWWH",null,"RN3","PENNINE ACUTE HOSPITALS NHS TRUST",null,"RN3","PENNINE ACUTE HOSPITALS NHS TRUST","RHM12","Manor Hospital - RBK02"]
[null,null,null,null,null,null,null,null,null,null,null,null,null,null,null,null,null,null,null,null,"Q75","RBL","WIRRAL UNIVERSITY TEACHING HOSPITAL NHS FOUNDATION TRUST","RBL14","Arrowe Park Hospital - RBL14",null,"RN5","POOLE HOSPITAL NHS FOUNDATION TRUST",null,"RN5","POOLE HOSPITAL NHS FOUNDATION TRUST","RHQHH","Medway Maritime Hospital - RPA02"]
[null,null,null,null,null,null,null,null,null,null,null,null,null,null,null,null,null,null,null,null,"Q76","RFS","CHESTERFIELD ROYAL HOSPITAL NHS FOUNDATION TRUST","RFSDA","Chesterfield Royal Hospital - RFSDA",null,"RN7","PORTSMOUTH HOSPITALS NHS TRUST",null,"RN7","PORTSMOUTH HOSPITALS NHS TRUST","RHU02","Milton Keynes Hospital - RD816"]
[null,null,null,null,null,null,null,null,null,null,null,null,null,null,null,null,null,null,null,null,"Q76","RX1","NOTTINGHAM UNIVERSITY HOSPITALS NHS TRUST","RX1XXX","Non-hospital site - RX1XXX",null,"RNA","ROYAL BERKSHIRE NHS FOUNDATION TRUST",null,"RNA","ROYAL BERKSHIRE NHS FOUNDATION TRUST","RHU03","Musgrove Park Hospital - RBA11"]
[null,null,null,null,null,null,null,null,null,null,null,null,null,null,null,null,null,null,null,null,"Q76","RK5","SHERWOOD FOREST HOSPITALS NHS FOUNDATION TRUST","RK5BC","King's Mill Hospital - RK5BC",null,"RNL","ROYAL CORNWALL HOSPITALS NHS TRUST",null,"RNL","ROYAL CORNWALL HOSPITALS NHS TRUST","RHU04","New Cross Hospital - RL403"]
[null,null,null,null,null,null,null,null,null,null,null,null,null,null,null,null,null,null,null,null,"Q76","RXW","SHREWSBURY AND TELFORD HOSPITAL NHS TRUST","RXWXXX","Non-hospital site - RXWXXX",null,"RNQ","ROYAL DEVON AND EXETER NHS FOUNDATION TRUST",null,"RNQ","ROYAL DEVON AND EXETER NHS FOUNDATION TRUST","RHU10","Newham General Hospital - R1HNH"]
[null,null,null,null,null,null,null,null,null,null,null,null,null,null,null,null,null,null,null,null,"Q76","RTG","UNIVERSITY HOSPITALS OF DERBY AND BURTON NHS FOUNDATION TRUST","RTG02","Queens Hospital, Burton Upon Trent - RTG02",null,"RNS","ROYAL FREE LONDON NHS FOUNDATION TRUST",null,"RNS","ROYAL FREE LONDON NHS FOUNDATION TRUST","RHW01","Non-hospital site - R1KXXX"]
[null,null,null,null,null,null,null,null,null,null,null,null,null,null,null,null,null,null,null,null,"Q76","RTG","UNIVERSITY HOSPITALS OF DERBY AND BURTON NHS FOUNDATION TRUST","RTGFG","Royal Derby Hospital - RTGFG",null,"RNZ","ROYAL SURREY COUNTY HOSPITAL NHS FOUNDATION TRUST",null,"RNZ","ROYAL SURREY COUNTY HOSPITAL NHS FOUNDATION TRUST","RJ122","Non-hospital site - RA9XXX"]
[null,null,null,null,null,null,null,null,null,null,null,null,null,null,null,null,null,null,null,null,"Q76","RJE","UNIVERSITY HOSPITALS OF NORTH MIDLANDS NHS TRUST","RJE09","County Hospital - RJE09",null,"RP5","ROYAL UNITED HOSPITALS BATH NHS FOUNDATION TRUST",null,"RP5","ROYAL UNITED HOSPITALS BATH NHS FOUNDATION TRUST","RJ224","Non-hospital site - RAEXXX"]
[null,null,null,null,null,null,null,null,null,null,null,null,null,null,null,null,null,null,null,null,"Q76","RJE","UNIVERSITY HOSPITALS OF NORTH MIDLANDS NHS TRUST","RJE01","Royal Stoke University Hospital - RJE01",null,"RPA","SALISBURY NHS FOUNDATION TRUST",null,"RPA","SALISBURY NHS FOUNDATION TRUST","RJ231","Non-hospital site - RBAXXX"]
[null,null,null,null,null,null,null,null,null,null,null,null,null,null,null,null,null,null,null,null,"Q77","RQ3","BIRMINGHAM WOMEN'S AND CHILDREN'S NHS FOUNDATION TRUST","RQ370","Birmingham Women's Hospital - RQ370",null,"RQ3","SANDWELL AND WEST BIRMINGHAM HOSPITALS NHS TRUST",null,"RQ3","SANDWELL AND WEST BIRMINGHAM HOSPITALS NHS TRUST","RJ2XXX","Non-hospital site - RCDXXX"]
[null,null,null,null,null,null,null,null,null,null,null,null,null,null,null,null,null,null,null,null,"Q77","RLT","GEORGE ELIOT HOSPITAL NHS TRUST","RLT01","George Eliot Hospital - Acute Services - RLT01",null,"RQ8","SHEFFIELD TEACHING HOSPITALS NHS FOUNDATION TRUST",null,"RQ8","SHEFFIELD TEACHING HOSPITALS NHS FOUNDATION TRUST","RJ611","Non-hospital site - RCXXXX"]
[null,null,null,null,null,null,null,null,null,null,null,null,null,null,null,null,null,null,null,null,"Q77","RXK","SANDWELL AND WEST BIRMINGHAM HOSPITALS NHS TRUST","RXK02","City Hospital - RXK02",null,"RQM","SHERWOOD FOREST HOSPITALS NHS FOUNDATION TRUST",null,"RQM","SHERWOOD FOREST HOSPITALS NHS FOUNDATION TRUST","RJ701","Non-hospital site - REFXXX"]
[null,null,null,null,null,null,null,null,null,null,null,null,null,null,null,null,null,null,null,null,"Q77","RJC","SOUTH WARWICKSHIRE NHS FOUNDATION TRUST","RJCXXX","Non-hospital site - RJCXXX",null,"RQW","SHREWSBURY AND TELFORD HOSPITAL NHS TRUST",null,"RQW","SHREWSBURY AND TELFORD HOSPITAL NHS TRUST","RJ7XXX","Non-hospital site - RF4XXX"]
[null,null,null,null,null,null,null,null,null,null,null,null,null,null,null,null,null,null,null,null,"Q77","RNA","THE DUDLEY GROUP NHS FOUNDATION TRUST","RNAXXX","Non-hospital site - RNAXXX",null,"RQX","SOUTH TEES HOSPITALS NHS FOUNDATION TRUST",null,"RQX","SOUTH TEES HOSPITALS NHS FOUNDATION TRUST","RJCXXX","Non-hospital site - RJ2XXX"]
[null,null,null,null,null,null,null,null,null,null,null,null,null,null,null,null,null,null,null,null,"Q77","RNA","THE DUDLEY GROUP NHS FOUNDATION TRUST","RNA01","Russells Hall Hospital - RNA01",null,"RR7","SOUTH TYNESIDE NHS FOUNDATION TRUST",null,"RR7","SOUTH TYNESIDE NHS FOUNDATION TRUST","RJE01","Non-hospital site - RJ7XXX"]
[null,null,null,null,null,null,null,null,null,null,null,null,null,null,null,null,null,null,null,null,"Q77","RL4","THE ROYAL WOLVERHAMPTON NHS TRUST","RL403","New Cross Hospital - RL403",null,"RR8","SOUTH WARWICKSHIRE NHS FOUNDATION TRUST",null,"RR8","SOUTH WARWICKSHIRE NHS FOUNDATION TRUST","RJE09","Non-hospital site - RJCXXX"]
[null,null,null,null,null,null,null,null,null,null,null,null,null,null,null,null,null,null,null,null,"Q77","RRK","UNIVERSITY HOSPITALS BIRMINGHAM NHS FOUNDATION TRUST","RRK98","Good Hope Hospital - RRK98",null,"RRF","SOUTHEND UNIVERSITY HOSPITAL NHS FOUNDATION TRUST",null,"RRF","SOUTHEND UNIVERSITY HOSPITAL NHS FOUNDATION TRUST","RJL30","Non-hospital site - RJRXXX"]
[null,null,null,null,null,null,null,null,null,null,null,null,null,null,null,null,null,null,null,null,"Q77","RRK","UNIVERSITY HOSPITALS BIRMINGHAM NHS FOUNDATION TRUST","RRK97","Heartlands Hospital - RRK97",null,"RRK","SOUTHPORT AND ORMSKIRK HOSPITAL NHS TRUST",null,"RRK","SOUTHPORT AND ORMSKIRK HOSPITAL NHS TRUST","RJL32","Non-hospital site - RK9XXX"]
[null,null,null,null,null,null,null,null,null,null,null,null,null,null,null,null,null,null,null,null,"Q77","RRK","UNIVERSITY HOSPITALS BIRMINGHAM NHS FOUNDATION TRUST","RRK99","Solihull Hospital - RRK99",null,"RRV","ST GEORGE'S UNIVERSITY HOSPITALS NHS FOUNDATION TRUST",null,"RRV","ST GEORGE'S UNIVERSITY HOSPITALS NHS FOUNDATION TRUST","RJN71","Non-hospital site - RKBXXX"]
[null,null,null,null,null,null,null,null,null,null,null,null,null,null,null,null,null,null,null,null,"Q77","RKB","UNIVERSITY HOSPITALS COVENTRY AND WARWICKSHIRE NHS TRUST","RKB03","Hospital Of St Cross - RKB03",null,"RTD","ST HELENS AND KNOWSLEY TEACHING HOSPITALS NHS TRUST",null,"RTD","ST HELENS AND KNOWSLEY TEACHING HOSPITALS NHS TRUST","RJR05","Non-hospital site - RKEXXX"]
[null,null,null,null,null,null,null,null,null,null,null,null,null,null,null,null,null,null,null,null,"Q77","RKB","UNIVERSITY HOSPITALS COVENTRY AND WARWICKSHIRE NHS TRUST","RKBXXX","Non-hospital site - RKBXXX",null,"RTE","STOCKPORT NHS FOUNDATION TRUST",null,"RTE","STOCKPORT NHS FOUNDATION TRUST","RJRXXX","Non-hospital site - RN3XXX"]
[null,null,null,null,null,null,null,null,null,null,null,null,null,null,null,null,null,null,null,null,"Q77","RKB","UNIVERSITY HOSPITALS COVENTRY AND WARWICKSHIRE NHS TRUST","RKB01","University Hospital (Coventry) - RKB01",null,"RTF","SURREY AND SUSSEX HEALTHCARE NHS TRUST",null,"RTF","SURREY AND SUSSEX HEALTHCARE NHS TRUST","RJZ01","Non-hospital site - RNAXXX"]
[null,null,null,null,null,null,null,null,null,null,null,null,null,null,null,null,null,null,null,null,"Q77","RBK","WALSALL HEALTHCARE NHS TRUST","RBK02","Manor Hospital - RBK02",null,"RTG","TAMESIDE AND GLOSSOP INTEGRATED CARE NHS FOUNDATION TRUST",null,"RTG","TAMESIDE AND GLOSSOP INTEGRATED CARE NHS FOUNDATION TRUST","RJZ30","Non-hospital site - RNLXXX"]
[null,null,null,null,null,null,null,null,null,null,null,null,null,null,null,null,null,null,null,null,"Q77","RWP","WORCESTERSHIRE ACUTE HOSPITALS NHS TRUST","RWP01","Alexandra Hospital - RWP01",null,"RTH","TAUNTON AND SOMERSET NHS FOUNDATION TRUST",null,"RTH","TAUNTON AND SOMERSET NHS FOUNDATION TRUST","RK5BC","Non-hospital site - RP5XXX"]
[null,null,null,null,null,null,null,null,null,null,null,null,null,null,null,null,null,null,null,null,"Q77","RWP","WORCESTERSHIRE ACUTE HOSPITALS NHS TRUST","RWP31","Kidderminster Hospital - RWP31",null,"RTP","THE DUDLEY GROUP NHS FOUNDATION TRUST",null,"RTP","THE DUDLEY GROUP NHS FOUNDATION TRUST","RK950","Non-Hospital Site - RR8XXX"]
[null,null,null,null,null,null,null,null,null,null,null,null,null,null,null,null,null,null,null,null,"Q77","RWP","WORCESTERSHIRE ACUTE HOSPITALS NHS TRUST","RWP50","Worcestershire Royal Hospital - RWP50",null,"RTR","THE HILLINGDON HOSPITALS NHS FOUNDATION TRUST",null,"RTR","THE HILLINGDON HOSPITALS NHS FOUNDATION TRUST","RK9XXX","Non-hospital site - RTFXXX"]
[null,null,null,null,null,null,null,null,null,null,null,null,null,null,null,null,null,null,null,null,"Q77","RLQ","WYE VALLEY NHS TRUST","RLQ01","Hereford County Hospital - RLQ01",null,"RTX","THE NEWCASTLE UPON TYNE HOSPITALS NHS FOUNDATION TRUST",null,"RTX","THE NEWCASTLE UPON TYNE HOSPITALS NHS FOUNDATION TRUST","RKB01","Non-hospital site - RTRXXX"]
[null,null,null,null,null,null,null,null,null,null,null,null,null,null,null,null,null,null,null,null,"Q78","RC1","BEDFORD HOSPITAL NHS TRUST","RC110","Bedford Hospital South Wing - RC110",null,"RVJ","THE PRINCESS ALEXANDRA HOSPITAL NHS TRUST",null,"RVJ","THE PRINCESS ALEXANDRA HOSPITAL NHS TRUST","RKB03","Non-hospital site - RTXXXX"]
[null,null,null,null,null,null,null,null,null,null,null,null,null,null,null,null,null,null,null,null,"Q78","RWH","EAST AND NORTH HERTFORDSHIRE NHS TRUST","RWH01","Lister Hospital - RWH01",null,"RVR","THE QUEEN ELIZABETH HOSPITAL, KING'S LYNN, NHS FOUNDATION TRUST",null,"RVR","THE QUEEN ELIZABETH HOSPITAL, KING'S LYNN, NHS FOUNDATION TRUST","RKBXXX","Non-hospital site - RVRXXX"]
[null,null,null,null,null,null,null,null,null,null,null,null,null,null,null,null,null,null,null,null,"Q78","RWH","EAST AND NORTH HERTFORDSHIRE NHS TRUST","RWHXXX","Non-hospital site - RWHXXX",null,"RVV","THE ROTHERHAM NHS FOUNDATION TRUST",null,"RVV","THE ROTHERHAM NHS FOUNDATION TRUST","RKEQ4","Non-hospital site - RVVXXX"]
[null,null,null,null,null,null,null,null,null,null,null,null,null,null,null,null,null,null,null,null,"Q78","RNQ","KETTERING GENERAL HOSPITAL NHS FOUNDATION TRUST","RNQ51","Kettering General Hospital - RNQ51",null,"RVW","THE ROYAL BOURNEMOUTH AND CHRISTCHURCH HOSPITALS NHS FOUNDATION TRUST",null,"RVW","THE ROYAL BOURNEMOUTH AND CHRISTCHURCH HOSPITALS NHS FOUNDATION TRUST","RKEXXX","Non-hospital site - RVWXXX"]
[null,null,null,null,null,null,null,null,null,null,null,null,null,null,null,null,null,null,null,null,"Q78","RC9","LUTON AND DUNSTABLE UNIVERSITY HOSPITAL NHS FOUNDATION TRUST","RC971","Luton and Dunstable Hospital - RC971",null,"RVY","THE ROYAL WOLVERHAMPTON NHS TRUST",null,"RVY","THE ROYAL WOLVERHAMPTON NHS TRUST","RL403","Non-hospital site - RVYXXX"]
[null,null,null,null,null,null,null,null,null,null,null,null,null,null,null,null,null,null,null,null,"Q78","RD8","MILTON KEYNES UNIVERSITY HOSPITAL NHS FOUNDATION TRUST","RD816","Milton Keynes Hospital - RD816",null,"RW6","TORBAY AND SOUTH DEVON NHS FOUNDATION TRUST",null,"RW6","TORBAY AND SOUTH DEVON NHS FOUNDATION TRUST","RLNGL","Non-hospital site - RWDXXX"]
[null,null,null,null,null,null,null,null,null,null,null,null,null,null,null,null,null,null,null,null,"Q78","RNS","NORTHAMPTON GENERAL HOSPITAL NHS TRUST","RNS01","Northampton General Hospital (Acute) - RNS01",null,"RWA","UNITED LINCOLNSHIRE HOSPITALS NHS TRUST",null,"RWA","UNITED LINCOLNSHIRE HOSPITALS NHS TRUST","RLQ01","Non-hospital site - RWEXXX"]
[null,null,null,null,null,null,null,null,null,null,null,null,null,null,null,null,null,null,null,null,"Q78","RWD","UNITED LINCOLNSHIRE HOSPITALS NHS TRUST","RWDLP","Grantham and District Hospital - RWDLP",null,"RWD","UNIVERSITY COLLEGE LONDON HOSPITALS NHS FOUNDATION TRUST",null,"RWD","UNIVERSITY COLLEGE LONDON HOSPITALS NHS FOUNDATION TRUST","RLT01","Non-hospital site - RWFXXX"]
[null,null,null,null,null,null,null,null,null,null,null,null,null,null,null,null,null,null,null,null,"Q78","RWD","UNITED LINCOLNSHIRE HOSPITALS NHS TRUST","RWDDA","Lincoln County Hospital - RWDDA",null,"RWE","UNIVERSITY HOSPITAL SOUTHAMPTON NHS FOUNDATION TRUST",null,"RWE","UNIVERSITY HOSPITAL SOUTHAMPTON NHS FOUNDATION TRUST","RM102","Non-hospital site - RWHXXX"]
[null,null,null,null,null,null,null,null,null,null,null,null,null,null,null,null,null,null,null,null,"Q78","RWD","UNITED LINCOLNSHIRE HOSPITALS NHS TRUST","RWDXXX","Non-hospital site - RWDXXX",null,"RWF","UNIVERSITY HOSPITALS BIRMINGHAM NHS FOUNDATION TRUST",null,"RWF","UNIVERSITY HOSPITALS BIRMINGHAM NHS FOUNDATION TRUST","RMC01","Non-hospital site - RWYXXX"]
[null,null,null,null,null,null,null,null,null,null,null,null,null,null,null,null,null,null,null,null,"Q78","RWD","UNITED LINCOLNSHIRE HOSPITALS NHS TRUST","RWDLA","Pilgrim Hospital - RWDLA",null,"RWG","UNIVERSITY HOSPITALS BRISTOL NHS FOUNDATION TRUST",null,"RWG","UNIVERSITY HOSPITALS BRISTOL NHS FOUNDATION TRUST","RMP01","Non-hospital site - RX1XXX"]
[null,null,null,null,null,null,null,null,null,null,null,null,null,null,null,null,null,null,null,null,"Q78","RWE","UNIVERSITY HOSPITALS OF LEICESTER NHS TRUST","RWEAK","Leicester General Hospital - RWEAK",null,"RWH","UNIVERSITY HOSPITALS COVENTRY AND WARWICKSHIRE NHS TRUST",null,"RWH","UNIVERSITY HOSPITALS COVENTRY AND WARWICKSHIRE NHS TRUST","RN325","Non-hospital site - RXCXXX"]
[null,null,null,null,null,null,null,null,null,null,null,null,null,null,null,null,null,null,null,null,"Q78","RWE","UNIVERSITY HOSPITALS OF LEICESTER NHS TRUST","RWEAA","Leicester Royal Infirmary - RWEAA",null,"RWJ","UNIVERSITY HOSPITALS OF DERBY AND BURTON NHS FOUNDATION TRUST",null,"RWJ","UNIVERSITY HOSPITALS OF DERBY AND BURTON NHS FOUNDATION TRUST","RN3XXX","Non-hospital site - RXWXXX"]
[null,null,null,null,null,null,null,null,null,null,null,null,null,null,null,null,null,null,null,null,"Q78","RWE","UNIVERSITY HOSPITALS OF LEICESTER NHS TRUST","RWEXXX","Non-hospital site - RWEXXX",null,"RWP","UNIVERSITY HOSPITALS OF LEICESTER NHS TRUST",null,"RWP","UNIVERSITY HOSPITALS OF LEICESTER NHS TRUST","RN506","Non-hospital site - RY2XXX"]
[null,null,null,null,null,null,null,null,null,null,null,null,null,null,null,null,null,null,null,null,"Q78","RWG","WEST HERTFORDSHIRE HOSPITALS NHS TRUST","RWG02","Watford General Hospital - RWG02",null,"RWW","UNIVERSITY HOSPITALS OF MORECAMBE BAY NHS FOUNDATION TRUST",null,"RWW","UNIVERSITY HOSPITALS OF MORECAMBE BAY NHS FOUNDATION TRUST","RN541","Norfolk and Norwich University Hospital - RM102"]
[null,null,null,null,null,null,null,null,null,null,null,null,null,null,null,null,null,null,null,null,"Q79","RDD","BASILDON AND THURROCK UNIVERSITY HOSPITALS NHS FOUNDATION TRUST","RDDH0","Basildon University Hospital - RDDH0",null,"RWY","UNIVERSITY HOSPITALS OF NORTH MIDLANDS NHS TRUST",null,"RWY","UNIVERSITY HOSPITALS OF NORTH MIDLANDS NHS TRUST","RN542","North Cambridgeshire Hospital - RCX66"]
[null,null,null,null,null,null,null,null,null,null,null,null,null,null,null,null,null,null,null,null,"Q79","RGT","CAMBRIDGE UNIVERSITY HOSPITALS NHS FOUNDATION TRUST","RGT32","Rosie Hospital - RGT32",null,"RX1","UNIVERSITY HOSPITALS PLYMOUTH NHS TRUST",null,"RX1","UNIVERSITY HOSPITALS PLYMOUTH NHS TRUST","RN707","North Devon District Hospital - RBZ12"]
[null,null,null,null,null,null,null,null,null,null,null,null,null,null,null,null,null,null,null,null,"Q79","RDE","EAST SUFFOLK AND NORTH ESSEX NHS FOUNDATION TRUST","RDEE4","Colchester General Hospital - RDEE4",null,"RXC","WALSALL HEALTHCARE NHS TRUST",null,"RXC","WALSALL HEALTHCARE NHS TRUST","RNA01","North Manchester General Hospital - RW602"]
[null,null,null,null,null,null,null,null,null,null,null,null,null,null,null,null,null,null,null,null,"Q79","RDE","EAST SUFFOLK AND NORTH ESSEX NHS FOUNDATION TRUST","RDE03","Ipswich Hospital - RDE03",null,"RXF","WARRINGTON AND HALTON HOSPITALS NHS FOUNDATION TRUST",null,"RXF","WARRINGTON AND HALTON HOSPITALS NHS FOUNDATION TRUST","RNAXXX","North Middlesex Hospital - RAPNM"]
[null,null,null,null,null,null,null,null,null,null,null,null,null,null,null,null,null,null,null,null,"Q79","RGP","JAMES PAGET UNIVERSITY HOSPITALS NHS FOUNDATION TRUST","RGP75","James Paget University Hospital - RGP75",null,"RXH","WEST HERTFORDSHIRE HOSPITALS NHS TRUST",null,"RXH","WEST HERTFORDSHIRE HOSPITALS NHS TRUST","RNLXXX","Northampton General Hospital (Acute) - RNS01"]
[null,null,null,null,null,null,null,null,null,null,null,null,null,null,null,null,null,null,null,null,"Q79","RQ8","MID ESSEX HOSPITAL SERVICES NHS TRUST","RQ8L0","Broomfield Hospital - RQ8L0",null,"RXK","WEST SUFFOLK NHS FOUNDATION TRUST",null,"RXK","WEST SUFFOLK NHS FOUNDATION TRUST","RNQ51","Northwick Park Hospital - R1K01"]
[null,null,null,null,null,null,null,null,null,null,null,null,null,null,null,null,null,null,null,null,"Q79","RM1","NORFOLK AND NORWICH UNIVERSITY HOSPITALS NHS FOUNDATION TRUST","RM102","Norfolk and Norwich University Hospital - RM102",null,"RXL","WESTERN SUSSEX HOSPITALS NHS FOUNDATION TRUST",null,"RXL","WESTERN SUSSEX HOSPITALS NHS FOUNDATION TRUST","RNS01","Okehampton Community Hospital - RH833"]
[null,null,null,null,null,null,null,null,null,null,null,null,null,null,null,null,null,null,null,null,"Q79","RGN","NORTH WEST ANGLIA NHS FOUNDATION TRUST","RGN90","Hinchingbrooke Hospital - RGN90",null,"RXN","WESTON AREA HEALTH NHS TRUST",null,"RXN","WESTON AREA HEALTH NHS TRUST","RNZ02","One to One (North West) Limited HQ - NDE01"]
[null,null,null,null,null,null,null,null,null,null,null,null,null,null,null,null,null,null,null,null,"Q79","RGN","NORTH WEST ANGLIA NHS FOUNDATION TRUST","RGN80","Peterborough City Hospital - RGN80",null,"RXP","WHITTINGTON HEALTH NHS TRUST",null,"RXP","WHITTINGTON HEALTH NHS TRUST","RP5BA","Paulton Memorial Hospital  - RD129"]
[null,null,null,null,null,null,null,null,null,null,null,null,null,null,null,null,null,null,null,null,"Q79","RAJ","SOUTHEND UNIVERSITY HOSPITAL NHS FOUNDATION TRUST","RAJ01","Southend Hospital - RAJ01",null,"RXQ","WIRRAL UNIVERSITY TEACHING HOSPITAL NHS FOUNDATION TRUST",null,"RXQ","WIRRAL UNIVERSITY TEACHING HOSPITAL NHS FOUNDATION TRUST","RP5DR","Peterborough City Hospital - RGN80"]
[null,null,null,null,null,null,null,null,null,null,null,null,null,null,null,null,null,null,null,null,"Q79","RQW","THE PRINCESS ALEXANDRA HOSPITAL NHS TRUST","RQWG0","Princess Alexandra Hospital - RQWG0",null,"RXR","WORCESTERSHIRE ACUTE HOSPITALS NHS TRUST",null,"RXR","WORCESTERSHIRE ACUTE HOSPITALS NHS TRUST","RP5XXX","Petersfield Community Hospital - RHU04"]
[null,null,null,null,null,null,null,null,null,null,null,null,null,null,null,null,null,null,null,null,"Q79","RCX","THE QUEEN ELIZABETH HOSPITAL, KING'S LYNN, NHS FOUNDATION TRUST","RCXXXX","Non-hospital site - RCXXXX",null,"RXW","WRIGHTINGTON, WIGAN AND LEIGH NHS FOUNDATION TRUST",null,"RXW","WRIGHTINGTON, WIGAN AND LEIGH NHS FOUNDATION TRUST","RPA02","Pilgrim Hospital - RWDLA"]
[null,null,null,null,null,null,null,null,null,null,null,null,null,null,null,null,null,null,null,null,"Q79","RCX","THE QUEEN ELIZABETH HOSPITAL, KING'S LYNN, NHS FOUNDATION TRUST","RCX66","North Cambridgeshire Hospital - RCX66",null,"RY2","WYE VALLEY NHS TRUST",null,"RY2","WYE VALLEY NHS TRUST","RQ370","Pinderfields General Hospital - RXF05"]
[null,null,null,null,null,null,null,null,null,null,null,null,null,null,null,null,null,null,null,null,"Q79","RCX","THE QUEEN ELIZABETH HOSPITAL, KING'S LYNN, NHS FOUNDATION TRUST","RCX70","The Queen Elizabeth Hospital - RCX70",null,"RYJ","YEOVIL DISTRICT HOSPITAL NHS FOUNDATION TRUST",null,"RYJ","YEOVIL DISTRICT HOSPITAL NHS FOUNDATION TRUST","RQ8L0","Pontefract General Infirmary - RXF03"]
[null,null,null,null,null,null,null,null,null,null,null,null,null,null,null,null,null,null,null,null,"Q79","RGR","WEST SUFFOLK NHS FOUNDATION TRUST","RGR50","West Suffolk Hospital - RGR50",null,"RYR","YORK TEACHING HOSPITAL NHS FOUNDATION TRUST",null,"RYR","YORK TEACHING HOSPITAL NHS FOUNDATION TRUST","RQM01","Poole General Hospital NHS Trust HQ - RD304"]
[null,null,null,null,null,null,null,null,null,null,null,null,null,null,null,null,null,null,null,null,"Q83","RMC","BOLTON NHS FOUNDATION TRUST","RMC01","Royal Bolton Hospital - RMC01",null,null,null,null,null,null,"RQM91","Princess Alexandra Hospital - RQWG0"]
[null,null,null,null,null,null,null,null,null,null,null,null,null,null,null,null,null,null,null,null,"Q83","RY2","BRIDGEWATER COMMUNITY HEALTHCARE NHS FOUNDATION TRUST","RY28P","Health Care Resource Centre - RY28P",null,null,null,null,null,null,"RQWG0","Princess Anne Hospital - RHM12"]
[null,null,null,null,null,null,null,null,null,null,null,null,null,null,null,null,null,null,null,null,"Q83","RY2","BRIDGEWATER COMMUNITY HEALTHCARE NHS FOUNDATION TRUST","RY2XXX","Non-hospital site - RY2XXX",null,null,null,null,null,null,"RQXM1","Princess Anne Wing RUH  - RD130"]
[null,null,null,null,null,null,null,null,null,null,null,null,null,null,null,null,null,null,null,null,"Q83","R0A","MANCHESTER UNIVERSITY NHS FOUNDATION TRUST","R0A05","St Mary's Hospital - R0A05",null,null,null,null,null,null,"RR7EN","Princess Royal University Hospital - RJZ30"]
[null,null,null,null,null,null,null,null,null,null,null,null,null,null,null,null,null,null,null,null,"Q83","RW6","PENNINE ACUTE HOSPITALS NHS TRUST","RW601","Fairfield General Hospital - RW601",null,null,null,null,null,null,"RR801","Queen Alexandra Hospital - RHU03"]
[null,null,null,null,null,null,null,null,null,null,null,null,null,null,null,null,null,null,null,null,"Q83","RW6","PENNINE ACUTE HOSPITALS NHS TRUST","RW602","North Manchester General Hospital - RW602",null,null,null,null,null,null,"RR813","Queen Charlotte's Hospital - RYJ04"]
[null,null,null,null,null,null,null,null,null,null,null,null,null,null,null,null,null,null,null,null,"Q83","RW6","PENNINE ACUTE HOSPITALS NHS TRUST","RW604","Rochdale Infirmary - RW604",null,null,null,null,null,null,"RR8XXX","Queen Elizabeth Hospital - RJ231"]
[null,null,null,null,null,null,null,null,null,null,null,null,null,null,null,null,null,null,null,null,"Q83","RW6","PENNINE ACUTE HOSPITALS NHS TRUST","RW603","Royal Oldham Hospital - RW603",null,null,null,null,null,null,"RRF02","Queen Elizabeth Hospital - RR7EN"]
[null,null,null,null,null,null,null,null,null,null,null,null,null,null,null,null,null,null,null,null,"Q83","RWJ","STOCKPORT NHS FOUNDATION TRUST","RWJ09","Stepping Hill Hospital - RWJ09",null,null,null,null,null,null,"RRK97","Queens Hospital, Burton Upon Trent - RTG02"]
[null,null,null,null,null,null,null,null,null,null,null,null,null,null,null,null,null,null,null,null,"Q83","RMP","TAMESIDE AND GLOSSOP INTEGRATED CARE NHS FOUNDATION TRUST","RMP01","Tameside General Hospital - RMP01",null,null,null,null,null,null,"RRK98","Rochdale Infirmary - RW604"]
[null,null,null,null,null,null,null,null,null,null,null,null,null,null,null,null,null,null,null,null,"Q83","RRF","WRIGHTINGTON, WIGAN AND LEIGH NHS FOUNDATION TRUST","RRF02","Royal Albert Edward Infirmary - RRF02",null,null,null,null,null,null,"RRK99","Rosie Hospital - RGT32"]
[null,null,null,null,null,null,null,null,null,null,null,null,null,null,null,null,null,null,null,null,"Q84","RXL","BLACKPOOL TEACHING HOSPITALS NHS FOUNDATION TRUST","RXL01","Blackpool Victoria Hospital - RXL01",null,null,null,null,null,null,"RRV11","Rotherham District General Hospital - RFRPA"]
[null,null,null,null,null,null,null,null,null,null,null,null,null,null,null,null,null,null,null,null,"Q84","RXR","EAST LANCASHIRE HOSPITALS NHS TRUST","RXR20","Royal Blackburn Hospital - RXR20",null,null,null,null,null,null,"RTD02","Royal Albert Edward Infirmary - RRF02"]
[null,null,null,null,null,null,null,null,null,null,null,null,null,null,null,null,null,null,null,null,"Q84","RXN","LANCASHIRE TEACHING HOSPITALS NHS FOUNDATION TRUST","RXN02","Royal Preston Hospital - RXN02",null,null,null,null,null,null,"RTE03","Royal Berkshire Hospital - RHW01"]
[null,null,null,null,null,null,null,null,null,null,null,null,null,null,null,null,null,null,null,null,"Q84","RTX","UNIVERSITY HOSPITALS OF MORECAMBE BAY NHS FOUNDATION TRUST","RTXBU","Furness General Hospital - RTXBU",null,null,null,null,null,null,"RTE27","Royal Blackburn Hospital - RXR20"]
[null,null,null,null,null,null,null,null,null,null,null,null,null,null,null,null,null,null,null,null,"Q84","RTX","UNIVERSITY HOSPITALS OF MORECAMBE BAY NHS FOUNDATION TRUST","RTXXXX","Non-hospital site - RTXXXX",null,null,null,null,null,null,"RTFXXX","Royal Bolton Hospital - RMC01"]
[null,null,null,null,null,null,null,null,null,null,null,null,null,null,null,null,null,null,null,null,"Q84","RTX","UNIVERSITY HOSPITALS OF MORECAMBE BAY NHS FOUNDATION TRUST","RTX02","Royal Lancaster Infirmary - RTX02",null,null,null,null,null,null,"RTG02","Royal Bournemouth General Hospital - RDZ20"]
[null,null,null,null,null,null,null,null,null,null,null,null,null,null,null,null,null,null,null,null,"Q85","RBD","DORSET COUNTY HOSPITAL NHS FOUNDATION TRUST","RBD01","Dorset County Hospital - RBD01",null,null,null,null,null,null,"RTGFG","Royal Cornwall Hospital (Treliske) - REF12"]
[null,null,null,null,null,null,null,null,null,null,null,null,null,null,null,null,null,null,null,null,"Q85","RBZ","NORTHERN DEVON HEALTHCARE NHS TRUST","RBZ12","North Devon District Hospital - RBZ12",null,null,null,null,null,null,"RTH08","Royal Derby Hospital - RTGFG"]
[null,null,null,null,null,null,null,null,null,null,null,null,null,null,null,null,null,null,null,null,"Q85","RD3","POOLE HOSPITAL NHS FOUNDATION TRUST","RD304","Poole General Hospital NHS Trust HQ - RD304",null,null,null,null,null,null,"RTP04","Royal Devon and Exeter Hospital (Wonford) - RH801"]
[null,null,null,null,null,null,null,null,null,null,null,null,null,null,null,null,null,null,null,null,"Q85","REF","ROYAL CORNWALL HOSPITALS NHS TRUST","REFXXX","Non-hospital site - REFXXX",null,null,null,null,null,null,"RTRXXX","Royal Free Hospital - RAL01"]
[null,null,null,null,null,null,null,null,null,null,null,null,null,null,null,null,null,null,null,null,"Q85","REF","ROYAL CORNWALL HOSPITALS NHS TRUST","REF12","Royal Cornwall Hospital (Treliske) - REF12",null,null,null,null,null,null,"RTX02","Royal Hallamshire Hospital - RHQHH"]
[null,null,null,null,null,null,null,null,null,null,null,null,null,null,null,null,null,null,null,null,"Q85","RH8","ROYAL DEVON AND EXETER NHS FOUNDATION TRUST","RH854","Honiton Hospital - RH 854",null,null,null,null,null,null,"RTXBU","Royal Hampshire County Hospital - RN541"]
[null,null,null,null,null,null,null,null,null,null,null,null,null,null,null,null,null,null,null,null,"Q85","RH8","ROYAL DEVON AND EXETER NHS FOUNDATION TRUST","RH833","Okehampton Community Hospital - RH833",null,null,null,null,null,null,"RTXXXX","Royal Lancaster Infirmary - RTX02"]
[null,null,null,null,null,null,null,null,null,null,null,null,null,null,null,null,null,null,null,null,"Q85","RH8","ROYAL DEVON AND EXETER NHS FOUNDATION TRUST","RH801","Royal Devon and Exeter Hospital (Wonford) - RH801",null,null,null,null,null,null,"RVJ01","Royal Oldham Hospital - RW603"]
[null,null,null,null,null,null,null,null,null,null,null,null,null,null,null,null,null,null,null,null,"Q85","RH8","ROYAL DEVON AND EXETER NHS FOUNDATION TRUST","RH853","Tiverton and District Hospital - RH853",null,null,null,null,null,null,"RVR05","Royal Preston Hospital - RXN02"]
[null,null,null,null,null,null,null,null,null,null,null,null,null,null,null,null,null,null,null,null,"Q85","RBA","TAUNTON AND SOMERSET NHS FOUNDATION TRUST","RBAC3","Bridgwater Hospital - RBAC3",null,null,null,null,null,null,"RVR50","Royal Stoke University Hospital - RJE01"]
[null,null,null,null,null,null,null,null,null,null,null,null,null,null,null,null,null,null,null,null,"Q85","RBA","TAUNTON AND SOMERSET NHS FOUNDATION TRUST","RBA11","Musgrove Park Hospital - RBA11",null,null,null,null,null,null,"RVRXXX","Royal Surrey County Hospital - RA201"]
[null,null,null,null,null,null,null,null,null,null,null,null,null,null,null,null,null,null,null,null,"Q85","RBA","TAUNTON AND SOMERSET NHS FOUNDATION TRUST","RBAXXX","Non-hospital site - RBAXXX",null,null,null,null,null,null,"RVVXXX","Royal Sussex County Hospital - RXH01"]
[null,null,null,null,null,null,null,null,null,null,null,null,null,null,null,null,null,null,null,null,"Q85","RDZ","THE ROYAL BOURNEMOUTH AND CHRISTCHURCH HOSPITALS NHS FOUNDATION TRUST","RDZ20","Royal Bournemouth General Hospital - RDZ20",null,null,null,null,null,null,"RVWXXX","Russells Hall Hospital - RNA01"]
[null,null,null,null,null,null,null,null,null,null,null,null,null,null,null,null,null,null,null,null,"Q85","RA9","TORBAY AND SOUTH DEVON NHS FOUNDATION TRUST","RA9XXX","Non-hospital site - RA9XXX",null,null,null,null,null,null,"RVYXXX","Salisbury District Hospital - RNZ02"]
[null,null,null,null,null,null,null,null,null,null,null,null,null,null,null,null,null,null,null,null,"Q85","RK9","UNIVERSITY HOSPITALS PLYMOUTH NHS TRUST","RK950","Derriford Hospital - RK950",null,null,null,null,null,null,"RW601","Scarborough General Hospital - RCBCA"]
[null,null,null,null,null,null,null,null,null,null,null,null,null,null,null,null,null,null,null,null,"Q85","RK9","UNIVERSITY HOSPITALS PLYMOUTH NHS TRUST","RK9XXX","Non-hospital site - RK9XXX",null,null,null,null,null,null,"RW602","Scunthorpe General Hospital - RJL32"]
[null,null,null,null,null,null,null,null,null,null,null,null,null,null,null,null,null,null,null,null,"Q85","RA4","YEOVIL DISTRICT HOSPITAL NHS FOUNDATION TRUST","RA430","Yeovil District Hospital - RA430",null,null,null,null,null,null,"RW603","Shepton Mallet Community Hospital  - RD167"]
[null,null,null,null,null,null,null,null,null,null,null,null,null,null,null,null,null,null,null,null,"Q86","RTE","GLOUCESTERSHIRE HOSPITALS NHS FOUNDATION TRUST","RTE03","Gloucestershire Royal Hospital - RTE03",null,null,null,null,null,null,"RW604","Solihull Hospital - RRK99"]
[null,null,null,null,null,null,null,null,null,null,null,null,null,null,null,null,null,null,null,null,"Q86","RTE","GLOUCESTERSHIRE HOSPITALS NHS FOUNDATION TRUST","RTE27","Stroud Maternity Hospital - RTE27",null,null,null,null,null,null,"RWA01","South Tyneside District Hospital - RE9GA"]
[null,null,null,null,null,null,null,null,null,null,null,null,null,null,null,null,null,null,null,null,"Q86","RN3","GREAT WESTERN HOSPITALS NHS FOUNDATION TRUST","RN3XXX","Non-hospital site - RN3XXX",null,null,null,null,null,null,"RWDDA","Southend Hospital - RAJ01"]
[null,null,null,null,null,null,null,null,null,null,null,null,null,null,null,null,null,null,null,null,"Q86","RN3","GREAT WESTERN HOSPITALS NHS FOUNDATION TRUST","RN325","The Great Western Hospital - RN325",null,null,null,null,null,null,"RWDLA","Southmead Hospital - RVJ01"]
[null,null,null,null,null,null,null,null,null,null,null,null,null,null,null,null,null,null,null,null,"Q86","RVJ","NORTH BRISTOL NHS TRUST","RVJ01","Southmead Hospital - RVJ01",null,null,null,null,null,null,"RWDLP","St George's Hospital (Tooting) - RJ701"]
[null,null,null,null,null,null,null,null,null,null,null,null,null,null,null,null,null,null,null,null,"Q86","RD1","ROYAL UNITED HOSPITALS BATH NHS FOUNDATION TRUST","RD102","Chippenham Community Hospital -RD102",null,null,null,null,null,null,"RWDXXX","St Helier Hospital - RVR05"]
[null,null,null,null,null,null,null,null,null,null,null,null,null,null,null,null,null,null,null,null,"Q86","RD1","ROYAL UNITED HOSPITALS BATH NHS FOUNDATION TRUST","RD121","Frome Community Hospital  - RD121",null,null,null,null,null,null,"RWEAA","St James's University Hospital - RR813"]
[null,null,null,null,null,null,null,null,null,null,null,null,null,null,null,null,null,null,null,null,"Q86","RD1","ROYAL UNITED HOSPITALS BATH NHS FOUNDATION TRUST","RD129","Paulton Memorial Hospital  - RD129",null,null,null,null,null,null,"RWEAK","St Mary's Hospital - R0A05"]
[null,null,null,null,null,null,null,null,null,null,null,null,null,null,null,null,null,null,null,null,"Q86","RD1","ROYAL UNITED HOSPITALS BATH NHS FOUNDATION TRUST","RD130","Princess Anne Wing RUH  - RD130",null,null,null,null,null,null,"RWEXXX","St Mary's Hospital - R1F01"]
[null,null,null,null,null,null,null,null,null,null,null,null,null,null,null,null,null,null,null,null,"Q86","RD1","ROYAL UNITED HOSPITALS BATH NHS FOUNDATION TRUST","RD167","Shepton Mallet Community Hospital  - RD167",null,null,null,null,null,null,"RWF03","St Mary's Hospital - RHU02"]
[null,null,null,null,null,null,null,null,null,null,null,null,null,null,null,null,null,null,null,null,"Q86","RD1","ROYAL UNITED HOSPITALS BATH NHS FOUNDATION TRUST","RD108","Trowbridge Community Hospital  - RD108",null,null,null,null,null,null,"RWFTW","St Mary's Hospital (HQ) - RYJ01"]
[null,null,null,null,null,null,null,null,null,null,null,null,null,null,null,null,null,null,null,null,"Q86","RNZ","SALISBURY NHS FOUNDATION TRUST","RNZ02","Salisbury District Hospital - RNZ02",null,null,null,null,null,null,"RWFXXX","St Michael's Hospital - RA707"]
[null,null,null,null,null,null,null,null,null,null,null,null,null,null,null,null,null,null,null,null,"Q86","RA7","UNIVERSITY HOSPITALS BRISTOL NHS FOUNDATION TRUST","RA707","St Michael's Hospital - RA707",null,null,null,null,null,null,"RWG02","St Richard's Hospital - RYR16"]
[null,null,null,null,null,null,null,null,null,null,null,null,null,null,null,null,null,null,null,null,"Q86","RA3","WESTON AREA HEALTH NHS TRUST","RA301","Weston General Hospital - RA301",null,null,null,null,null,null,"RWH01","St Thomas' Hospital - RJ122"]
[null,null,null,null,null,null,null,null,null,null,null,null,null,null,null,null,null,null,null,null,"Q87","RXQ","BUCKINGHAMSHIRE HEALTHCARE NHS TRUST","RXQ02","Stoke Mandeville Hospital - RXQ02",null,null,null,null,null,null,"RWHXXX","Stepping Hill Hospital - RWJ09"]
[null,null,null,null,null,null,null,null,null,null,null,null,null,null,null,null,null,null,null,null,"Q87","RDU","FRIMLEY HEALTH NHS FOUNDATION TRUST","RDU01","Frimley Park Hospital - RDU01",null,null,null,null,null,null,"RWJ09","Stoke Mandeville Hospital - RXQ02"]
[null,null,null,null,null,null,null,null,null,null,null,null,null,null,null,null,null,null,null,null,"Q87","RDU","FRIMLEY HEALTH NHS FOUNDATION TRUST","RDU50","Wexham Park Hospital - RDU50",null,null,null,null,null,null,"RWP01","Stroud Maternity Hospital - RTE27"]
[null,null,null,null,null,null,null,null,null,null,null,null,null,null,null,null,null,null,null,null,"Q87","RN5","HAMPSHIRE HOSPITALS NHS FOUNDATION TRUST","RN542","Andover War Memorial Hospital - RN542",null,null,null,null,null,null,"RWP31","Sunderland Royal Hospital - RLNGL"]
[null,null,null,null,null,null,null,null,null,null,null,null,null,null,null,null,null,null,null,null,"Q87","RN5","HAMPSHIRE HOSPITALS NHS FOUNDATION TRUST","RN506","Basingstoke and North Hampshire Hospital - RN506",null,null,null,null,null,null,"RWP50","Tameside General Hospital - RMP01"]
[null,null,null,null,null,null,null,null,null,null,null,null,null,null,null,null,null,null,null,null,"Q87","RN5","HAMPSHIRE HOSPITALS NHS FOUNDATION TRUST","RN541","Royal Hampshire County Hospital - RN541",null,null,null,null,null,null,"RWWWH","The Great Western Hospital - RN325"]
[null,null,null,null,null,null,null,null,null,null,null,null,null,null,null,null,null,null,null,null,"Q87","R1F","ISLE OF WIGHT NHS TRUST","R1F01","St Mary's Hospital - R1F01",null,null,null,null,null,null,"RWYXXX","The Queen Elizabeth Hospital - RCX70"]
[null,null,null,null,null,null,null,null,null,null,null,null,null,null,null,null,null,null,null,null,"Q87","RTH","OXFORD UNIVERSITY HOSPITALS NHS FOUNDATION TRUST","RTH08","John Radcliffe Hospital - RTH08",null,null,null,null,null,null,"RX1XXX","The Royal London Hospital - R1H12"]
[null,null,null,null,null,null,null,null,null,null,null,null,null,null,null,null,null,null,null,null,"Q87","RHU","PORTSMOUTH HOSPITALS NHS TRUST","RHU10","Gosport War Memorial Hospital - RHU10",null,null,null,null,null,null,"RXC01","The Royal Victoria Infirmary - RTD02"]
[null,null,null,null,null,null,null,null,null,null,null,null,null,null,null,null,null,null,null,null,"Q87","RHU","PORTSMOUTH HOSPITALS NHS TRUST","RHU04","Petersfield Community Hospital - RHU04",null,null,null,null,null,null,"RXC02","The Tunbridge Wells Hospital - RWFTW"]
[null,null,null,null,null,null,null,null,null,null,null,null,null,null,null,null,null,null,null,null,"Q87","RHU","PORTSMOUTH HOSPITALS NHS TRUST","RHU03","Queen Alexandra Hospital - RHU03",null,null,null,null,null,null,"RXCXXX","The Whittington Hospital - RKEQ4"]
[null,null,null,null,null,null,null,null,null,null,null,null,null,null,null,null,null,null,null,null,"Q87","RHU","PORTSMOUTH HOSPITALS NHS TRUST","RHU02","St Mary's Hospital - RHU02",null,null,null,null,null,null,"RXF03","Tiverton and District Hospital - RH853"]
[null,null,null,null,null,null,null,null,null,null,null,null,null,null,null,null,null,null,null,null,"Q87","RHW","ROYAL BERKSHIRE NHS FOUNDATION TRUST","RHW01","Royal Berkshire Hospital - RHW01",null,null,null,null,null,null,"RXF05","Trowbridge Community Hospital  - RD108"]
[null,null,null,null,null,null,null,null,null,null,null,null,null,null,null,null,null,null,null,null,"Q87","RHM","UNIVERSITY HOSPITAL SOUTHAMPTON NHS FOUNDATION TRUST","RHM12","Princess Anne Hospital - RHM12",null,null,null,null,null,null,"RXF10","University College Hospital Elizabeth Garrett Anderson Wing - RRV11"]
[null,null,null,null,null,null,null,null,null,null,null,null,null,null,null,null,null,null,null,null,"Q88","RXH","BRIGHTON AND SUSSEX UNIVERSITY HOSPITALS NHS TRUST","RXH01","Royal Sussex County Hospital - RXH01",null,null,null,null,null,null,"RXH01","University Hospital (Coventry) - RKB01"]
[null,null,null,null,null,null,null,null,null,null,null,null,null,null,null,null,null,null,null,null,"Q88","RN7","DARTFORD AND GRAVESHAM NHS TRUST","RN707","Darent Valley Hospital - RN707",null,null,null,null,null,null,"RXK02","University Hospital Lewisham - RJ224"]
[null,null,null,null,null,null,null,null,null,null,null,null,null,null,null,null,null,null,null,null,"Q88","RVV","EAST KENT HOSPITALS UNIVERSITY NHS FOUNDATION TRUST","RVVXXX","Non-hospital site - RVVXXX",null,null,null,null,null,null,"RXL01","University Hospital Of North Durham - RXPCP"]
[null,null,null,null,null,null,null,null,null,null,null,null,null,null,null,null,null,null,null,null,"Q88","RXC","EAST SUSSEX HEALTHCARE NHS TRUST","RXC01","Conquest Hospital - RXC01",null,null,null,null,null,null,"RXN02","Warrington Hospital - RWWWH"]
[null,null,null,null,null,null,null,null,null,null,null,null,null,null,null,null,null,null,null,null,"Q88","RXC","EAST SUSSEX HEALTHCARE NHS TRUST","RXC02","Eastbourne District General Hospital - RXC02",null,null,null,null,null,null,"RXPCP","Watford General Hospital - RWG02"]
[null,null,null,null,null,null,null,null,null,null,null,null,null,null,null,null,null,null,null,null,"Q88","RXC","EAST SUSSEX HEALTHCARE NHS TRUST","RXCXXX","Non-hospital site - RXCXXX",null,null,null,null,null,null,"RXPDA","West Middlesex University Hospital - RQM91"]
[null,null,null,null,null,null,null,null,null,null,null,null,null,null,null,null,null,null,null,null,"Q88","RWF","MAIDSTONE AND TUNBRIDGE WELLS NHS TRUST","RWF03","Maidstone District General Hospital - RWF03",null,null,null,null,null,null,"RXQ02","West Suffolk Hospital - RGR50"]
[null,null,null,null,null,null,null,null,null,null,null,null,null,null,null,null,null,null,null,null,"Q88","RWF","MAIDSTONE AND TUNBRIDGE WELLS NHS TRUST","RWFXXX","Non-hospital site - RWFXXX",null,null,null,null,null,null,"RXR20","Weston General Hospital - RA301"]
[null,null,null,null,null,null,null,null,null,null,null,null,null,null,null,null,null,null,null,null,"Q88","RWF","MAIDSTONE AND TUNBRIDGE WELLS NHS TRUST","RWFTW","The Tunbridge Wells Hospital - RWFTW",null,null,null,null,null,null,"RXWXXX","Wexham Park Hospital - RDU50"]
[null,null,null,null,null,null,null,null,null,null,null,null,null,null,null,null,null,null,null,null,"Q88","RPA","MEDWAY NHS FOUNDATION TRUST","RPA02","Medway Maritime Hospital - RPA02",null,null,null,null,null,null,"RY28P","Whipps Cross University Hospital - R1HKH"]
[null,null,null,null,null,null,null,null,null,null,null,null,null,null,null,null,null,null,null,null,"Q88","RA2","ROYAL SURREY COUNTY HOSPITAL NHS FOUNDATION TRUST","RA201","Royal Surrey County Hospital - RA201",null,null,null,null,null,null,"RY2XXX","Whiston Hospital - RBN01"]
[null,null,null,null,null,null,null,null,null,null,null,null,null,null,null,null,null,null,null,null,"Q88","RTP","SURREY AND SUSSEX HEALTHCARE NHS TRUST","RTP04","East Surrey Hospital - RTP04",null,null,null,null,null,null,"RYJ01","Worcestershire Royal Hospital - RWP50"]
[null,null,null,null,null,null,null,null,null,null,null,null,null,null,null,null,null,null,null,null,"Q88","RYR","WESTERN SUSSEX HOSPITALS NHS FOUNDATION TRUST","RYR16","St Richard's Hospital - RYR16",null,null,null,null,null,null,"RYJ04","Worthing Hospital - RYR18"]
[null,null,null,null,null,null,null,null,null,null,null,null,null,null,null,null,null,null,null,null,"Q88","RYR","WESTERN SUSSEX HOSPITALS NHS FOUNDATION TRUST","RYR18","Worthing Hospital - RYR18",null,null,null,null,null,null,"RYR16","Yeovil District Hospital - RA430"]
[null,null,null,null,null,null,null,null,null,null,null,null,null,null,null,null,null,null,null,null,"zIS1","NDE","ONE TO ONE (NORTH WEST) LIMITED","NDE01","One to One (North West) Limited HQ - NDE01",null,null,null,null,null,null,"RYR18","York Hospital - RCB55"]

{"sheet":"BSQ2","index":14,"n_rows":244,"n_cols":33,"rows_kept":244,"cut":false,"hidden":true,"merged":[]}
[null,"Sort","Region (LO)","Region (LO)","Trusts","Trusts","Sites","Sites",null,"Sort ranges:","Sort range…","Sort range…","Sort range…","Reference Region List:","Code…","Name…","Linked Region List:","Code…","Name…","Reference Lists:","Code…","Code…","Name…","Code…","Name…","Trusts Linked Lists:","Code…","Name…","Site Linked Lists:","Code…","Name…","Code…","Name…"]
["Region (LO)",1,1,1,"-","-","-","-",null,null,"Region (LO) Code","Region (LO) Code","Region (LO) Code",null,"Q72","NHS England Yorkshire & Humber",null,"Q71","Independent Sector Provider",null,"Q71","RF4","BARKING, HAVERING AND REDBRIDGE UNIVERSITY HOSPITALS NHS TRUST","RF4XXX","Non-hospital site - RF4XXX",null,"NDE","AIREDALE NHS FOUNDATION TRUST",null,"NDE","AIREDALE NHS FOUNDATION TRUST","NDE01","Airedale General Hospital - RCF22"]
["Trusts",1,1,1,1,1,"-","-",null,null,"Region (Local Office)","Trust Code","Trust Code",null,"Q74","NHS England Cumbria & North East",null,"Q72","NHS England Cheshire & Merseyside",null,"Q71","RF4","BARKING, HAVERING AND REDBRIDGE UNIVERSITY HOSPITALS NHS TRUST","RF4QH","Queen's Hospital - RF4QH",null,"R0A","BARKING, HAVERING AND REDBRIDGE UNIVERSITY HOSPITALS NHS TRUST",null,"R0A","BARKING, HAVERING AND REDBRIDGE UNIVERSITY HOSPITALS NHS TRUST","R0A05","Alnwick Infirmary - RTFDJ"]
["Sites",1,1,1,1,1,1,1,null,null,"Total Responses","Trust Name","Trust Name",null,"Q75","NHS England Cheshire & Merseyside",null,"Q74","NHS England Cumbria & North East",null,"Q71","R1H","BARTS HEALTH NHS TRUST","R1HNH","Newham General Hospital - R1HNH",null,"R1F","BARNSLEY HOSPITAL NHS FOUNDATION TRUST",null,"R1F","BARNSLEY HOSPITAL NHS FOUNDATION TRUST","R0AXXX","Andover War Memorial Hospital - RN542"]
[null,null,null,null,null,null,null,null,null,null,"Total Eligible","Total Responses","Site Code",null,"Q83","NHS England Greater Manchester",null,"Q75","NHS England East",null,"Q71","R1H","BARTS HEALTH NHS TRUST","R1H12","The Royal London Hospital - R1H12",null,"R1H","BARTS HEALTH NHS TRUST",null,"R1H","BARTS HEALTH NHS TRUST","R1F01","Arrowe Park Hospital - RBL14"]
[null,null,null,null,null,null,null,null,null,null,"Response Rate","Total Eligible","Site Name",null,"Q84","NHS England Lancashire",null,"Q76","NHS England Greater Manchester",null,"Q71","R1H","BARTS HEALTH NHS TRUST","R1HKH","Whipps Cross University Hospital - R1HKH",null,"R1K","BASILDON AND THURROCK UNIVERSITY HOSPITALS NHS FOUNDATION TRUST",null,"R1K","BASILDON AND THURROCK UNIVERSITY HOSPITALS NHS FOUNDATION TRUST","R1H12","Barnet Hospital - RAL26"]
[null,null,null,null,null,null,null,null,null,null,"Percentage Recommended","Response Rate","Total Responses",null,"Q76","NHS England North Midlands",null,"Q77","NHS England Lancashire",null,"Q71","RQM","CHELSEA AND WESTMINSTER HOSPITAL NHS FOUNDATION TRUST","RQM01","Chelsea and Westminster Hospital - RQM01",null,"RA2","BEDFORD HOSPITAL NHS TRUST",null,"RA2","BEDFORD HOSPITAL NHS TRUST","R1HKH","Barnsley Hospital NHS Foundation Trust HQ - RFFAA"]
[null,null,null,null,null,null,null,null,null,null,"Percentage Not  Recommended","Percentage Recommended","Total Eligible",null,"Q77","NHS England West Midlands",null,"Q78","NHS England London",null,"Q71","RQM","CHELSEA AND WESTMINSTER HOSPITAL NHS FOUNDATION TRUST","RQM91","West Middlesex University Hospital - RQM91",null,"RA3","BIRMINGHAM WOMEN'S AND CHILDREN'S NHS FOUNDATION TRUST",null,"RA3","BIRMINGHAM WOMEN'S AND CHILDREN'S NHS FOUNDATION TRUST","R1HNH","Basildon University Hospital - RDDH0"]
[null,null,null,null,null,null,null,null,null,null,"Extremely Likely","Percentage Not  Recommended","Response Rate",null,"Q78","NHS England Central Midlands",null,"Q79","NHS England North Midlands",null,"Q71","RJ6","CROYDON HEALTH SERVICES NHS TRUST","RJ611","Croydon University Hospital - RJ611",null,"RA4","BLACKPOOL TEACHING HOSPITALS NHS FOUNDATION TRUST",null,"RA4","BLACKPOOL TEACHING HOSPITALS NHS FOUNDATION TRUST","R1K01","Basingstoke and North Hampshire Hospital - RN506"]
[null,null,null,null,null,null,null,null,null,null,"Likely","Extremely Likely","Percentage Recommended",null,"Q79","NHS England East",null,"Q83","NHS England Central Midlands",null,"Q71","RVR","EPSOM AND ST HELIER UNIVERSITY HOSPITALS NHS TRUST","RVR50","Epsom Hospital - RVR50",null,"RA7","BOLTON NHS FOUNDATION TRUST",null,"RA7","BOLTON NHS FOUNDATION TRUST","RA201","Bassetlaw Hospital - RP5BA"]
[null,null,null,null,null,null,null,null,null,null,"Neither","Likely","Percentage Not  Recommended",null,"Q85","NHS England South West (South West South)",null,"Q84","NHS England South East (Hampshire, Isle Of Wight & Thames Valley)",null,"Q71","RVR","EPSOM AND ST HELIER UNIVERSITY HOSPITALS NHS TRUST","RVRXXX","Non-hospital site - RVRXXX",null,"RA9","BRADFORD TEACHING HOSPITALS NHS FOUNDATION TRUST",null,"RA9","BRADFORD TEACHING HOSPITALS NHS FOUNDATION TRUST","RA301","Bedford Hospital South Wing - RC110"]
[null,null,null,null,null,null,null,null,null,null,"Unlikely","Neither","Extremely Likely",null,"Q86","NHS England South West (South West North)",null,"Q85","NHS England South East (Kent, Surrey & Sussex)",null,"Q71","RVR","EPSOM AND ST HELIER UNIVERSITY HOSPITALS NHS TRUST","RVR05","St Helier Hospital - RVR05",null,"RAE","BRIDGEWATER COMMUNITY HEALTHCARE NHS FOUNDATION TRUST",null,"RAE","BRIDGEWATER COMMUNITY HEALTHCARE NHS FOUNDATION TRUST","RA430","Berwick Infirmary - RTFDH"]
[null,null,null,null,null,null,null,null,null,null,"Extremely Unlikely","Unlikely","Likely",null,"Q87","NHS England South East (Hampshire, Isle Of Wight & Thames Valley)",null,"Q86","NHS England South West (South West North)",null,"Q71","RJ1","GUY'S AND ST THOMAS' NHS FOUNDATION TRUST","RJ1XXX","Non-hospital site - RJ1XXX",null,"RAJ","BRIGHTON AND SUSSEX UNIVERSITY HOSPITALS NHS TRUST",null,"RAJ","BRIGHTON AND SUSSEX UNIVERSITY HOSPITALS NHS TRUST","RA707","Birmingham Women's Hospital - RQ370"]
[null,null,null,null,null,null,null,null,null,null,"Don't Know","Extremely Unlikely","Neither",null,"Q88","NHS England South East (Kent, Surrey & Sussex)",null,"Q87","NHS England South West (South West South)",null,"Q71","RJ1","GUY'S AND ST THOMAS' NHS FOUNDATION TRUST","RJ122","St Thomas' Hospital - RJ122",null,"RAL","BUCKINGHAMSHIRE HEALTHCARE NHS TRUST",null,"RAL","BUCKINGHAMSHIRE HEALTHCARE NHS TRUST","RA901","Blackpool Victoria Hospital - RXL01"]
[null,null,null,null,null,null,null,null,null,null,null,"Don't Know","Unlikely",null,"Q71","NHS England London",null,"Q88","NHS England West Midlands",null,"Q71","RQX","HOMERTON UNIVERSITY HOSPITAL NHS FOUNDATION TRUST","RQXM1","Homerton University Hospital - RQXM1",null,"RAP","CALDERDALE AND HUDDERSFIELD NHS FOUNDATION TRUST",null,"RAP","CALDERDALE AND HUDDERSFIELD NHS FOUNDATION TRUST","RA957","Bradford Royal Infirmary - RAE01"]
[null,null,null,null,null,null,null,null,null,null,null,"SMS/Text / Smartphone App","Extremely Unlikely",null,"zIS1","Independent Sector Provider",null,"zIS1","NHS England Yorkshire & Humber",null,"Q71","RYJ","IMPERIAL COLLEGE HEALTHCARE NHS TRUST","RYJ04","Queen Charlotte's Hospital - RYJ04",null,"RAS","CAMBRIDGE UNIVERSITY HOSPITALS NHS FOUNDATION TRUST",null,"RAS","CAMBRIDGE UNIVERSITY HOSPITALS NHS FOUNDATION TRUST","RA9XXX","Bridgnorth Hospital (Maternity) - RXWMB"]
[null,null,null,null,null,null,null,null,null,null,null,"Electronic tablet/kiosk at point of discharge","Don't Know",null,null,null,null,null,null,null,"Q71","RYJ","IMPERIAL COLLEGE HEALTHCARE NHS TRUST","RYJ01","St Mary's Hospital (HQ) - RYJ01",null,"RAX","CHELSEA AND WESTMINSTER HOSPITAL NHS FOUNDATION TRUST",null,"RAX","CHELSEA AND WESTMINSTER HOSPITAL NHS FOUNDATION TRUST","RAE01","Bridgwater Hospital - RBAC3"]
[null,null,null,null,null,null,null,null,null,null,null,"Paper / postcard at point of discharge",null,null,null,null,null,null,null,null,"Q71","RJZ","KING'S COLLEGE HOSPITAL NHS FOUNDATION TRUST","RJZ01","King's College Hospital (Denmark Hill) - RJZ01",null,"RBA","CHESTERFIELD ROYAL HOSPITAL NHS FOUNDATION TRUST",null,"RBA","CHESTERFIELD ROYAL HOSPITAL NHS FOUNDATION TRUST","RAJ01","Broomfield Hospital - RQ8L0"]
[null,null,null,null,null,null,null,null,null,null,null,"Paper survey, sent to the patients home",null,null,null,null,null,null,null,null,"Q71","RJZ","KING'S COLLEGE HOSPITAL NHS FOUNDATION TRUST","RJZ30","Princess Royal University Hospital - RJZ30",null,"RBD","CITY HOSPITALS SUNDERLAND NHS FOUNDATION TRUST",null,"RBD","CITY HOSPITALS SUNDERLAND NHS FOUNDATION TRUST","RAL01","Calderdale Royal Hospital - RWY02"]
[null,null,null,null,null,null,null,null,null,null,null,"Telephone survey once patient is home",null,null,null,null,null,null,null,null,"Q71","RAX","KINGSTON HOSPITAL NHS FOUNDATION TRUST","RAX01","Kingston Hospital - RAX01",null,"RBK","COUNTESS OF CHESTER HOSPITAL NHS FOUNDATION TRUST",null,"RBK","COUNTESS OF CHESTER HOSPITAL NHS FOUNDATION TRUST","RAL26","Chelsea and Westminster Hospital - RQM01"]
[null,null,null,null,null,null,null,null,null,null,null,"Online survey once patient is home",null,null,null,null,null,null,null,null,"Q71","RJ2","LEWISHAM AND GREENWICH NHS TRUST","RJ2XXX","Non-hospital site - RJ2XXX",null,"RBL","COUNTY DURHAM AND DARLINGTON NHS FOUNDATION TRUST",null,"RBL","COUNTY DURHAM AND DARLINGTON NHS FOUNDATION TRUST","RAPNM","Cheltenham General Hospital - RTE01"]
[null,null,null,null,null,null,null,null,null,null,null,"Other",null,null,null,null,null,null,null,null,"Q71","RJ2","LEWISHAM AND GREENWICH NHS TRUST","RJ231","Queen Elizabeth Hospital - RJ231",null,"RBN","CROYDON HEALTH SERVICES NHS TRUST",null,"RBN","CROYDON HEALTH SERVICES NHS TRUST","RAS01","Chesterfield Royal Hospital - RFSDA"]
[null,null,null,null,null,null,null,null,null,null,null,null,null,null,null,null,null,null,null,null,"Q71","RJ2","LEWISHAM AND GREENWICH NHS TRUST","RJ224","University Hospital Lewisham - RJ224",null,"RBT","DARTFORD AND GRAVESHAM NHS TRUST",null,"RBT","DARTFORD AND GRAVESHAM NHS TRUST","RASXXX","Chippenham Community Hospital -RD102"]
[null,null,null,null,null,null,null,null,null,null,null,null,null,null,null,null,null,null,null,null,"Q71","R1K","LONDON NORTH WEST UNIVERSITY HEALTHCARE NHS TRUST","R1K01","Northwick Park Hospital - R1K01",null,"RBZ","DONCASTER AND BASSETLAW TEACHING HOSPITALS NHS FOUNDATION TRUST",null,"RBZ","DONCASTER AND BASSETLAW TEACHING HOSPITALS NHS FOUNDATION TRUST","RAX01","Chipping Norton Community Hospital - RTH19"]
[null,null,null,null,null,null,null,null,null,null,null,null,null,null,null,null,null,null,null,null,"Q71","RAP","NORTH MIDDLESEX UNIVERSITY HOSPITAL NHS TRUST","RAPNM","North Middlesex Hospital - RAPNM",null,"RC1","DORSET COUNTY HOSPITAL NHS FOUNDATION TRUST",null,"RC1","DORSET COUNTY HOSPITAL NHS FOUNDATION TRUST","RBA11","Chorley and South Ribble Hospital - RXN01"]
[null,null,null,null,null,null,null,null,null,null,null,null,null,null,null,null,null,null,null,null,"Q71","RAL","ROYAL FREE LONDON NHS FOUNDATION TRUST","RAL26","Barnet Hospital - RAL26",null,"RC9","EAST AND NORTH HERTFORDSHIRE NHS TRUST",null,"RC9","EAST AND NORTH HERTFORDSHIRE NHS TRUST","RBAC3","City Hospital - RXK02"]
[null,null,null,null,null,null,null,null,null,null,null,null,null,null,null,null,null,null,null,null,"Q71","RAL","ROYAL FREE LONDON NHS FOUNDATION TRUST","RAL01","Royal Free Hospital - RAL01",null,"RCB","EAST CHESHIRE NHS TRUST",null,"RCB","EAST CHESHIRE NHS TRUST","RBAXXX","Clacton and District Hospital - RDEE2"]
[null,null,null,null,null,null,null,null,null,null,null,null,null,null,null,null,null,null,null,null,"Q71","RJ7","ST GEORGE'S UNIVERSITY HOSPITALS NHS FOUNDATION TRUST","RJ701","St George's Hospital (Tooting) - RJ701",null,"RCD","EAST KENT HOSPITALS UNIVERSITY NHS FOUNDATION TRUST",null,"RCD","EAST KENT HOSPITALS UNIVERSITY NHS FOUNDATION TRUST","RBD01","Colchester General Hospital - RDEE4"]
[null,null,null,null,null,null,null,null,null,null,null,null,null,null,null,null,null,null,null,null,"Q71","RAS","THE HILLINGDON HOSPITALS NHS FOUNDATION TRUST","RAS01","Hillingdon Hospital - RAS01",null,"RCF","EAST LANCASHIRE HOSPITALS NHS TRUST",null,"RCF","EAST LANCASHIRE HOSPITALS NHS TRUST","RBK02","Conquest Hospital - RXC01"]
[null,null,null,null,null,null,null,null,null,null,null,null,null,null,null,null,null,null,null,null,"Q71","RAS","THE HILLINGDON HOSPITALS NHS FOUNDATION TRUST","RASXXX","Non-hospital site - RASXXX",null,"RCX","EAST SUFFOLK AND NORTH ESSEX NHS FOUNDATION TRUST",null,"RCX","EAST SUFFOLK AND NORTH ESSEX NHS FOUNDATION TRUST","RBL14","Countess Of Chester Hospital - RJR05"]
[null,null,null,null,null,null,null,null,null,null,null,null,null,null,null,null,null,null,null,null,"Q71","RRV","UNIVERSITY COLLEGE LONDON HOSPITALS NHS FOUNDATION TRUST","RRV11","University College Hospital Elizabeth Garrett Anderson Wing - RRV11",null,"RD1","EAST SUSSEX HEALTHCARE NHS TRUST",null,"RD1","EAST SUSSEX HEALTHCARE NHS TRUST","RBN01","County Hospital - RJE09"]
[null,null,null,null,null,null,null,null,null,null,null,null,null,null,null,null,null,null,null,null,"Q71","RKE","WHITTINGTON HEALTH NHS TRUST","RKEXXX","Non-hospital site - RKEXXX",null,"RD3","EPSOM AND ST HELIER UNIVERSITY HOSPITALS NHS TRUST",null,"RD3","EPSOM AND ST HELIER UNIVERSITY HOSPITALS NHS TRUST","RBT20","Croydon University Hospital - RJ611"]
[null,null,null,null,null,null,null,null,null,null,null,null,null,null,null,null,null,null,null,null,"Q71","RKE","WHITTINGTON HEALTH NHS TRUST","RKEQ4","The Whittington Hospital - RKEQ4",null,"RD8","FRIMLEY HEALTH NHS FOUNDATION TRUST",null,"RD8","FRIMLEY HEALTH NHS FOUNDATION TRUST","RBZ12","Cumberland Infirmary - RNLAY"]
[null,null,null,null,null,null,null,null,null,null,null,null,null,null,null,null,null,null,null,null,"Q72","RCF","AIREDALE NHS FOUNDATION TRUST","RCF22","Airedale General Hospital - RCF22",null,"RDD","GATESHEAD HEALTH NHS FOUNDATION TRUST",null,"RDD","GATESHEAD HEALTH NHS FOUNDATION TRUST","RC110","Darent Valley Hospital - RN707"]
[null,null,null,null,null,null,null,null,null,null,null,null,null,null,null,null,null,null,null,null,"Q72","RFF","BARNSLEY HOSPITAL NHS FOUNDATION TRUST","RFFAA","Barnsley Hospital NHS Foundation Trust HQ - RFFAA",null,"RDE","GEORGE ELIOT HOSPITAL NHS TRUST",null,"RDE","GEORGE ELIOT HOSPITAL NHS TRUST","RC971","Darlington Memorial Hospital - RXPDA"]
[null,null,null,null,null,null,null,null,null,null,null,null,null,null,null,null,null,null,null,null,"Q72","RAE","BRADFORD TEACHING HOSPITALS NHS FOUNDATION TRUST","RAE01","Bradford Royal Infirmary - RAE01",null,"RDU","GLOUCESTERSHIRE HOSPITALS NHS FOUNDATION TRUST",null,"RDU","GLOUCESTERSHIRE HOSPITALS NHS FOUNDATION TRUST","RCB55","Derriford Hospital - RK950"]
[null,null,null,null,null,null,null,null,null,null,null,null,null,null,null,null,null,null,null,null,"Q72","RWY","CALDERDALE AND HUDDERSFIELD NHS FOUNDATION TRUST","RWY02","Calderdale Royal Hospital - RWY02",null,"RDZ","GREAT WESTERN HOSPITALS NHS FOUNDATION TRUST",null,"RDZ","GREAT WESTERN HOSPITALS NHS FOUNDATION TRUST","RCBCA","Dewsbury and District Hospital - RXF10"]
[null,null,null,null,null,null,null,null,null,null,null,null,null,null,null,null,null,null,null,null,"Q72","RWY","CALDERDALE AND HUDDERSFIELD NHS FOUNDATION TRUST","RWY01","Huddersfield Royal Infirmary - RWY01",null,"RE9","GUY'S AND ST THOMAS' NHS FOUNDATION TRUST",null,"RE9","GUY'S AND ST THOMAS' NHS FOUNDATION TRUST","RCD01","Diana, Princess Of Wales Hospital - RJL30"]
[null,null,null,null,null,null,null,null,null,null,null,null,null,null,null,null,null,null,null,null,"Q72","RP5","DONCASTER AND BASSETLAW TEACHING HOSPITALS NHS FOUNDATION TRUST","RP5BA","Bassetlaw Hospital - RP5BA",null,"REF","HAMPSHIRE HOSPITALS NHS FOUNDATION TRUST",null,"REF","HAMPSHIRE HOSPITALS NHS FOUNDATION TRUST","RCF22","Doncaster Royal Infirmary - RP5DR"]
[null,null,null,null,null,null,null,null,null,null,null,null,null,null,null,null,null,null,null,null,"Q72","RP5","DONCASTER AND BASSETLAW TEACHING HOSPITALS NHS FOUNDATION TRUST","RP5DR","Doncaster Royal Infirmary - RP5DR",null,"REP","HARROGATE AND DISTRICT NHS FOUNDATION TRUST",null,"REP","HARROGATE AND DISTRICT NHS FOUNDATION TRUST","RCX70","Dorset County Hospital - RBD01"]
[null,null,null,null,null,null,null,null,null,null,null,null,null,null,null,null,null,null,null,null,"Q72","RP5","DONCASTER AND BASSETLAW TEACHING HOSPITALS NHS FOUNDATION TRUST","RP5XXX","Non-hospital site - RP5XXX",null,"RF4","HOMERTON UNIVERSITY HOSPITAL NHS FOUNDATION TRUST",null,"RF4","HOMERTON UNIVERSITY HOSPITAL NHS FOUNDATION TRUST","RCXXXX","East Surrey Hospital - RTP04"]
[null,null,null,null,null,null,null,null,null,null,null,null,null,null,null,null,null,null,null,null,"Q72","RCD","HARROGATE AND DISTRICT NHS FOUNDATION TRUST","RCD01","Harrogate District Hospital - RCD01",null,"RFF","HULL AND EAST YORKSHIRE HOSPITALS NHS TRUST",null,"RFF","HULL AND EAST YORKSHIRE HOSPITALS NHS TRUST","RD102","Eastbourne District General Hospital - RXC02"]
[null,null,null,null,null,null,null,null,null,null,null,null,null,null,null,null,null,null,null,null,"Q72","RWA","HULL AND EAST YORKSHIRE HOSPITALS NHS TRUST","RWA01","Hull Royal Infirmary - RWA01",null,"RFR","IMPERIAL COLLEGE HEALTHCARE NHS TRUST",null,"RFR","IMPERIAL COLLEGE HEALTHCARE NHS TRUST","RD108","Epsom Hospital - RVR50"]
[null,null,null,null,null,null,null,null,null,null,null,null,null,null,null,null,null,null,null,null,"Q72","RR8","LEEDS TEACHING HOSPITALS NHS TRUST","RR801","Leeds General Infirmary - RR801",null,"RFS","ISLE OF WIGHT NHS TRUST",null,"RFS","ISLE OF WIGHT NHS TRUST","RD121","Friarage Hospital Site - RTR45"]
[null,null,null,null,null,null,null,null,null,null,null,null,null,null,null,null,null,null,null,null,"Q72","RR8","LEEDS TEACHING HOSPITALS NHS TRUST","RR8XXX","Non-Hospital Site - RR8XXX",null,"RGN","JAMES PAGET UNIVERSITY HOSPITALS NHS FOUNDATION TRUST",null,"RGN","JAMES PAGET UNIVERSITY HOSPITALS NHS FOUNDATION TRUST","RD129","Frimley Park Hospital - RDU01"]
[null,null,null,null,null,null,null,null,null,null,null,null,null,null,null,null,null,null,null,null,"Q72","RR8","LEEDS TEACHING HOSPITALS NHS TRUST","RR813","St James's University Hospital - RR813",null,"RGP","KETTERING GENERAL HOSPITAL NHS FOUNDATION TRUST",null,"RGP","KETTERING GENERAL HOSPITAL NHS FOUNDATION TRUST","RD130","Frome Community Hospital  - RD121"]
[null,null,null,null,null,null,null,null,null,null,null,null,null,null,null,null,null,null,null,null,"Q72","RXF","MID YORKSHIRE HOSPITALS NHS TRUST","RXF10","Dewsbury and District Hospital - RXF10",null,"RGR","KING'S COLLEGE HOSPITAL NHS FOUNDATION TRUST",null,"RGR","KING'S COLLEGE HOSPITAL NHS FOUNDATION TRUST","RD1XXX","Furness General Hospital - RTXBU"]
[null,null,null,null,null,null,null,null,null,null,null,null,null,null,null,null,null,null,null,null,"Q72","RXF","MID YORKSHIRE HOSPITALS NHS TRUST","RXFXXX","Non-hospital site - RXFXXX",null,"RGT","KINGSTON HOSPITAL NHS FOUNDATION TRUST",null,"RGT","KINGSTON HOSPITAL NHS FOUNDATION TRUST","RD304","George Eliot Hospital - Acute Services - RLT01"]
[null,null,null,null,null,null,null,null,null,null,null,null,null,null,null,null,null,null,null,null,"Q72","RXF","MID YORKSHIRE HOSPITALS NHS TRUST","RXF05","Pinderfields General Hospital - RXF05",null,"RH8","LANCASHIRE TEACHING HOSPITALS NHS FOUNDATION TRUST",null,"RH8","LANCASHIRE TEACHING HOSPITALS NHS FOUNDATION TRUST","RD816","Gloucestershire Royal Hospital - RTE03"]
[null,null,null,null,null,null,null,null,null,null,null,null,null,null,null,null,null,null,null,null,"Q72","RXF","MID YORKSHIRE HOSPITALS NHS TRUST","RXF03","Pontefract General Infirmary - RXF03",null,"RHM","LEEDS TEACHING HOSPITALS NHS TRUST",null,"RHM","LEEDS TEACHING HOSPITALS NHS TRUST","RDDH0","Good Hope Hospital - RRK98"]
[null,null,null,null,null,null,null,null,null,null,null,null,null,null,null,null,null,null,null,null,"Q72","RJL","NORTHERN LINCOLNSHIRE AND GOOLE NHS FOUNDATION TRUST","RJL30","Diana, Princess Of Wales Hospital - RJL30",null,"RHQ","LEWISHAM AND GREENWICH NHS TRUST",null,"RHQ","LEWISHAM AND GREENWICH NHS TRUST","RDE03","Goole and District Hospital (Acute) - RJL31"]
[null,null,null,null,null,null,null,null,null,null,null,null,null,null,null,null,null,null,null,null,"Q72","RJL","NORTHERN LINCOLNSHIRE AND GOOLE NHS FOUNDATION TRUST","RJL31","Goole and District Hospital (Acute) - RJL31",null,"RHU","LIVERPOOL WOMEN'S NHS FOUNDATION TRUST",null,"RHU","LIVERPOOL WOMEN'S NHS FOUNDATION TRUST","RDEE2","Gosport War Memorial Hospital - RHU10"]
[null,null,null,null,null,null,null,null,null,null,null,null,null,null,null,null,null,null,null,null,"Q72","RHQ","SHEFFIELD TEACHING HOSPITALS NHS FOUNDATION TRUST","RHQHH","Royal Hallamshire Hospital - RHQHH",null,"RHW","LONDON NORTH WEST UNIVERSITY HEALTHCARE NHS TRUST",null,"RHW","LONDON NORTH WEST UNIVERSITY HEALTHCARE NHS TRUST","RDEE4","Grantham and District Hospital - RWDLP"]
[null,null,null,null,null,null,null,null,null,null,null,null,null,null,null,null,null,null,null,null,"Q72","RFR","THE ROTHERHAM NHS FOUNDATION TRUST","RFRPA","Rotherham District General Hospital - RFRPA",null,"RJ1","LUTON AND DUNSTABLE UNIVERSITY HOSPITAL NHS FOUNDATION TRUST",null,"RJ1","LUTON AND DUNSTABLE UNIVERSITY HOSPITAL NHS FOUNDATION TRUST","RDEXXX","Harrogate District Hospital - RCD01"]
[null,null,null,null,null,null,null,null,null,null,null,null,null,null,null,null,null,null,null,null,"Q72","RCB","YORK TEACHING HOSPITAL NHS FOUNDATION TRUST","RCBCA","Scarborough General Hospital - RCBCA",null,"RJ2","MAIDSTONE AND TUNBRIDGE WELLS NHS TRUST",null,"RJ2","MAIDSTONE AND TUNBRIDGE WELLS NHS TRUST","RDU01","Health Care Resource Centre - RY28P"]
[null,null,null,null,null,null,null,null,null,null,null,null,null,null,null,null,null,null,null,null,"Q72","RCB","YORK TEACHING HOSPITAL NHS FOUNDATION TRUST","RCB55","York Hospital - RCB55",null,"RJ6","MANCHESTER UNIVERSITY NHS FOUNDATION TRUST",null,"RJ6","MANCHESTER UNIVERSITY NHS FOUNDATION TRUST","RDU50","Heartlands Hospital - RRK97"]
[null,null,null,null,null,null,null,null,null,null,null,null,null,null,null,null,null,null,null,null,"Q74","RLN","CITY HOSPITALS SUNDERLAND NHS FOUNDATION TRUST","RLNGL","Sunderland Royal Hospital - RLNGL",null,"RJ7","MEDWAY NHS FOUNDATION TRUST",null,"RJ7","MEDWAY NHS FOUNDATION TRUST","RDZ20","Hereford County Hospital - RLQ01"]
[null,null,null,null,null,null,null,null,null,null,null,null,null,null,null,null,null,null,null,null,"Q74","RXP","COUNTY DURHAM AND DARLINGTON NHS FOUNDATION TRUST","RXPDA","Darlington Memorial Hospital - RXPDA",null,"RJC","MID CHESHIRE HOSPITALS NHS FOUNDATION TRUST",null,"RJC","MID CHESHIRE HOSPITALS NHS FOUNDATION TRUST","RE9GA","Hexham General Hospital - RTFDR"]
[null,null,null,null,null,null,null,null,null,null,null,null,null,null,null,null,null,null,null,null,"Q74","RXP","COUNTY DURHAM AND DARLINGTON NHS FOUNDATION TRUST","RXPXXX","Non-hospital site - RXPXXX",null,"RJE","MID ESSEX HOSPITAL SERVICES NHS TRUST",null,"RJE","MID ESSEX HOSPITAL SERVICES NHS TRUST","RE9XXX","Hillingdon Hospital - RAS01"]
[null,null,null,null,null,null,null,null,null,null,null,null,null,null,null,null,null,null,null,null,"Q74","RXP","COUNTY DURHAM AND DARLINGTON NHS FOUNDATION TRUST","RXPCP","University Hospital Of North Durham - RXPCP",null,"RJL","MID YORKSHIRE HOSPITALS NHS TRUST",null,"RJL","MID YORKSHIRE HOSPITALS NHS TRUST","REF12","Hinchingbrooke Hospital - RGN90"]
[null,null,null,null,null,null,null,null,null,null,null,null,null,null,null,null,null,null,null,null,"Q74","RR7","GATESHEAD HEALTH NHS FOUNDATION TRUST","RR7EN","Queen Elizabeth Hospital - RR7EN",null,"RJN","MILTON KEYNES UNIVERSITY HOSPITAL NHS FOUNDATION TRUST",null,"RJN","MILTON KEYNES UNIVERSITY HOSPITAL NHS FOUNDATION TRUST","REFXXX","Homerton University Hospital - RQXM1"]
[null,null,null,null,null,null,null,null,null,null,null,null,null,null,null,null,null,null,null,null,"Q74","RNL","NORTH CUMBRIA UNIVERSITY HOSPITALS NHS TRUST","RNLAY","Cumberland Infirmary - RNLAY",null,"RJR","NORFOLK AND NORWICH UNIVERSITY HOSPITALS NHS FOUNDATION TRUST",null,"RJR","NORFOLK AND NORWICH UNIVERSITY HOSPITALS NHS FOUNDATION TRUST","REP01","Honiton Hospital - RH 854"]
[null,null,null,null,null,null,null,null,null,null,null,null,null,null,null,null,null,null,null,null,"Q74","RNL","NORTH CUMBRIA UNIVERSITY HOSPITALS NHS TRUST","RNLBE","Penrith Hospital - RNLBE",null,"RJZ","NORTH BRISTOL NHS TRUST",null,"RJZ","NORTH BRISTOL NHS TRUST","RF4QH","Horton General Hospital - RTH05"]
[null,null,null,null,null,null,null,null,null,null,null,null,null,null,null,null,null,null,null,null,"Q74","RNL","NORTH CUMBRIA UNIVERSITY HOSPITALS NHS TRUST","RNLBX","West Cumberland Hospital - RNLBX",null,"RK5","NORTH CUMBRIA UNIVERSITY HOSPITALS NHS TRUST",null,"RK5","NORTH CUMBRIA UNIVERSITY HOSPITALS NHS TRUST","RF4XXX","Hospital Of St Cross - RKB03"]
[null,null,null,null,null,null,null,null,null,null,null,null,null,null,null,null,null,null,null,null,"Q74","RVW","NORTH TEES AND HARTLEPOOL NHS FOUNDATION TRUST","RVWAE","University Hospital Of North Tees - RVWAE",null,"RK9","NORTH MIDDLESEX UNIVERSITY HOSPITAL NHS TRUST",null,"RK9","NORTH MIDDLESEX UNIVERSITY HOSPITAL NHS TRUST","RFFAA","Huddersfield Royal Infirmary - RWY01"]
[null,null,null,null,null,null,null,null,null,null,null,null,null,null,null,null,null,null,null,null,"Q74","RTF","NORTHUMBRIA HEALTHCARE NHS FOUNDATION TRUST","RTFDJ","Alnwick Infirmary - RTFDJ",null,"RKB","NORTH TEES AND HARTLEPOOL NHS FOUNDATION TRUST",null,"RKB","NORTH TEES AND HARTLEPOOL NHS FOUNDATION TRUST","RFRPA","Hull Royal Infirmary - RWA01"]
[null,null,null,null,null,null,null,null,null,null,null,null,null,null,null,null,null,null,null,null,"Q74","RTF","NORTHUMBRIA HEALTHCARE NHS FOUNDATION TRUST","RTFDH","Berwick Infirmary - RTFDH",null,"RKE","NORTH WEST ANGLIA NHS FOUNDATION TRUST",null,"RKE","NORTH WEST ANGLIA NHS FOUNDATION TRUST","RFSDA","Ipswich Hospital - RDE03"]
[null,null,null,null,null,null,null,null,null,null,null,null,null,null,null,null,null,null,null,null,"Q74","RTF","NORTHUMBRIA HEALTHCARE NHS FOUNDATION TRUST","RTFDR","Hexham General Hospital - RTFDR",null,"RL4","NORTHAMPTON GENERAL HOSPITAL NHS TRUST",null,"RL4","NORTHAMPTON GENERAL HOSPITAL NHS TRUST","RGN80","James Paget University Hospital - RGP75"]
[null,null,null,null,null,null,null,null,null,null,null,null,null,null,null,null,null,null,null,null,"Q74","RTF","NORTHUMBRIA HEALTHCARE NHS FOUNDATION TRUST","RTFXXX","Non-hospital site - RTFXXX",null,"RLN","NORTHERN DEVON HEALTHCARE NHS TRUST",null,"RLN","NORTHERN DEVON HEALTHCARE NHS TRUST","RGN90","John Radcliffe Hospital - RTH08"]
[null,null,null,null,null,null,null,null,null,null,null,null,null,null,null,null,null,null,null,null,"Q74","RTF","NORTHUMBRIA HEALTHCARE NHS FOUNDATION TRUST","RTF86","The Northumbria - RTF86",null,"RLQ","NORTHERN LINCOLNSHIRE AND GOOLE NHS FOUNDATION TRUST",null,"RLQ","NORTHERN LINCOLNSHIRE AND GOOLE NHS FOUNDATION TRUST","RGP75","Kettering General Hospital - RNQ51"]
[null,null,null,null,null,null,null,null,null,null,null,null,null,null,null,null,null,null,null,null,"Q74","RTR","SOUTH TEES HOSPITALS NHS FOUNDATION TRUST","RTR45","Friarage Hospital Site - RTR45",null,"RLT","NORTHUMBRIA HEALTHCARE NHS FOUNDATION TRUST",null,"RLT","NORTHUMBRIA HEALTHCARE NHS FOUNDATION TRUST","RGR50","King's College Hospital (Denmark Hill) - RJZ01"]
[null,null,null,null,null,null,null,null,null,null,null,null,null,null,null,null,null,null,null,null,"Q74","RTR","SOUTH TEES HOSPITALS NHS FOUNDATION TRUST","RTRAT","The James Cook University Hospital - RTRAT",null,"RM1","NOTTINGHAM UNIVERSITY HOSPITALS NHS TRUST",null,"RM1","NOTTINGHAM UNIVERSITY HOSPITALS NHS TRUST","RGT32","King's Mill Hospital - RK5BC"]
[null,null,null,null,null,null,null,null,null,null,null,null,null,null,null,null,null,null,null,null,"Q74","RE9","SOUTH TYNESIDE NHS FOUNDATION TRUST","RE9XXX","Non-hospital site - RE9XXX",null,"RMC","ONE TO ONE (NORTH WEST) LIMITED",null,"RMC","ONE TO ONE (NORTH WEST) LIMITED","RH801","Kingston Hospital - RAX01"]
[null,null,null,null,null,null,null,null,null,null,null,null,null,null,null,null,null,null,null,null,"Q74","RE9","SOUTH TYNESIDE NHS FOUNDATION TRUST","RE9GA","South Tyneside District Hospital - RE9GA",null,"RMP","OXFORD UNIVERSITY HOSPITALS NHS FOUNDATION TRUST",null,"RMP","OXFORD UNIVERSITY HOSPITALS NHS FOUNDATION TRUST","RH833","Leeds General Infirmary - RR801"]
[null,null,null,null,null,null,null,null,null,null,null,null,null,null,null,null,null,null,null,null,"Q74","RTD","THE NEWCASTLE UPON TYNE HOSPITALS NHS FOUNDATION TRUST","RTD02","The Royal Victoria Infirmary - RTD02",null,"RN3","PENNINE ACUTE HOSPITALS NHS TRUST",null,"RN3","PENNINE ACUTE HOSPITALS NHS TRUST","RH853","Leicester General Hospital - RWEAK"]
[null,null,null,null,null,null,null,null,null,null,null,null,null,null,null,null,null,null,null,null,"Q75","RJR","COUNTESS OF CHESTER HOSPITAL NHS FOUNDATION TRUST","RJR05","Countess Of Chester Hospital - RJR05",null,"RN5","POOLE HOSPITAL NHS FOUNDATION TRUST",null,"RN5","POOLE HOSPITAL NHS FOUNDATION TRUST","RH854","Leicester Royal Infirmary - RWEAA"]
[null,null,null,null,null,null,null,null,null,null,null,null,null,null,null,null,null,null,null,null,"Q75","RJN","EAST CHESHIRE NHS TRUST","RJN71","Macclesfield District General Hospital - RJN71",null,"RN7","PORTSMOUTH HOSPITALS NHS TRUST",null,"RN7","PORTSMOUTH HOSPITALS NHS TRUST","RHM12","Leighton Hospital - RBT20"]
[null,null,null,null,null,null,null,null,null,null,null,null,null,null,null,null,null,null,null,null,"Q75","REP","LIVERPOOL WOMEN'S NHS FOUNDATION TRUST","REP01","Liverpool Womens Hospital - REP01",null,"RNA","ROYAL BERKSHIRE NHS FOUNDATION TRUST",null,"RNA","ROYAL BERKSHIRE NHS FOUNDATION TRUST","RHQHH","Lincoln County Hospital - RWDDA"]
[null,null,null,null,null,null,null,null,null,null,null,null,null,null,null,null,null,null,null,null,"Q75","RBT","MID CHESHIRE HOSPITALS NHS FOUNDATION TRUST","RBT20","Leighton Hospital - RBT20",null,"RNL","ROYAL CORNWALL HOSPITALS NHS TRUST",null,"RNL","ROYAL CORNWALL HOSPITALS NHS TRUST","RHU02","Lister Hospital - RWH01"]
[null,null,null,null,null,null,null,null,null,null,null,null,null,null,null,null,null,null,null,null,"Q75","RVY","SOUTHPORT AND ORMSKIRK HOSPITAL NHS TRUST","RVY02","Ormskirk and District General Hospital - RVY02",null,"RNQ","ROYAL DEVON AND EXETER NHS FOUNDATION TRUST",null,"RNQ","ROYAL DEVON AND EXETER NHS FOUNDATION TRUST","RHU03","Liverpool Womens Hospital - REP01"]
[null,null,null,null,null,null,null,null,null,null,null,null,null,null,null,null,null,null,null,null,"Q75","RBN","ST HELENS AND KNOWSLEY TEACHING HOSPITALS NHS TRUST","RBN01","Whiston Hospital - RBN01",null,"RNS","ROYAL FREE LONDON NHS FOUNDATION TRUST",null,"RNS","ROYAL FREE LONDON NHS FOUNDATION TRUST","RHU04","Ludlow Hospital (Maternity) - RXWML"]
[null,null,null,null,null,null,null,null,null,null,null,null,null,null,null,null,null,null,null,null,"Q75","RWW","WARRINGTON AND HALTON HOSPITALS NHS FOUNDATION TRUST","RWWWH","Warrington Hospital - RWWWH",null,"RNZ","ROYAL SURREY COUNTY HOSPITAL NHS FOUNDATION TRUST",null,"RNZ","ROYAL SURREY COUNTY HOSPITAL NHS FOUNDATION TRUST","RHU10","Luton and Dunstable Hospital - RC971"]
[null,null,null,null,null,null,null,null,null,null,null,null,null,null,null,null,null,null,null,null,"Q75","RBL","WIRRAL UNIVERSITY TEACHING HOSPITAL NHS FOUNDATION TRUST","RBL14","Arrowe Park Hospital - RBL14",null,"RP5","ROYAL UNITED HOSPITALS BATH NHS FOUNDATION TRUST",null,"RP5","ROYAL UNITED HOSPITALS BATH NHS FOUNDATION TRUST","RHW01","Macclesfield District General Hospital - RJN71"]
[null,null,null,null,null,null,null,null,null,null,null,null,null,null,null,null,null,null,null,null,"Q76","RFS","CHESTERFIELD ROYAL HOSPITAL NHS FOUNDATION TRUST","RFSDA","Chesterfield Royal Hospital - RFSDA",null,"RPA","SALISBURY NHS FOUNDATION TRUST",null,"RPA","SALISBURY NHS FOUNDATION TRUST","RJ122","Maidstone District General Hospital - RWF03"]
[null,null,null,null,null,null,null,null,null,null,null,null,null,null,null,null,null,null,null,null,"Q76","RX1","NOTTINGHAM UNIVERSITY HOSPITALS NHS TRUST","RX1XXX","Non-hospital site - RX1XXX",null,"RQ3","SANDWELL AND WEST BIRMINGHAM HOSPITALS NHS TRUST",null,"RQ3","SANDWELL AND WEST BIRMINGHAM HOSPITALS NHS TRUST","RJ1XXX","Manor Hospital - RBK02"]
[null,null,null,null,null,null,null,null,null,null,null,null,null,null,null,null,null,null,null,null,"Q76","RX1","NOTTINGHAM UNIVERSITY HOSPITALS NHS TRUST","RX1CC","Nottingham University Hospitals NHS Trust - City Campus - RX1CC",null,"RQ8","SHEFFIELD TEACHING HOSPITALS NHS FOUNDATION TRUST",null,"RQ8","SHEFFIELD TEACHING HOSPITALS NHS FOUNDATION TRUST","RJ224","Medway Maritime Hospital - RPA02"]
[null,null,null,null,null,null,null,null,null,null,null,null,null,null,null,null,null,null,null,null,"Q76","RX1","NOTTINGHAM UNIVERSITY HOSPITALS NHS TRUST","RX1RA","Nottingham University Hospitals NHS Trust - Queen's Medical Centre Campus - RX1RA",null,"RQM","SHERWOOD FOREST HOSPITALS NHS FOUNDATION TRUST",null,"RQM","SHERWOOD FOREST HOSPITALS NHS FOUNDATION TRUST","RJ231","Milton Keynes Hospital - RD816"]
[null,null,null,null,null,null,null,null,null,null,null,null,null,null,null,null,null,null,null,null,"Q76","RK5","SHERWOOD FOREST HOSPITALS NHS FOUNDATION TRUST","RK5BC","King's Mill Hospital - RK5BC",null,"RQW","SHREWSBURY AND TELFORD HOSPITAL NHS TRUST",null,"RQW","SHREWSBURY AND TELFORD HOSPITAL NHS TRUST","RJ2XXX","Musgrove Park Hospital - RBA11"]
[null,null,null,null,null,null,null,null,null,null,null,null,null,null,null,null,null,null,null,null,"Q76","RK5","SHERWOOD FOREST HOSPITALS NHS FOUNDATION TRUST","RK5XXX","Non-hospital site - RK5XXX",null,"RQX","SOUTH TEES HOSPITALS NHS FOUNDATION TRUST",null,"RQX","SOUTH TEES HOSPITALS NHS FOUNDATION TRUST","RJ611","New Cross Hospital - RL403"]
[null,null,null,null,null,null,null,null,null,null,null,null,null,null,null,null,null,null,null,null,"Q76","RXW","SHREWSBURY AND TELFORD HOSPITAL NHS TRUST","RXWMB","Bridgnorth Hospital (Maternity) - RXWMB",null,"RR7","SOUTH TYNESIDE NHS FOUNDATION TRUST",null,"RR7","SOUTH TYNESIDE NHS FOUNDATION TRUST","RJ701","Newham General Hospital - R1HNH"]
[null,null,null,null,null,null,null,null,null,null,null,null,null,null,null,null,null,null,null,null,"Q76","RXW","SHREWSBURY AND TELFORD HOSPITAL NHS TRUST","RXWML","Ludlow Hospital (Maternity) - RXWML",null,"RR8","SOUTH WARWICKSHIRE NHS FOUNDATION TRUST",null,"RR8","SOUTH WARWICKSHIRE NHS FOUNDATION TRUST","RJC02","Newton Abbot Community Hospital - RA957"]
[null,null,null,null,null,null,null,null,null,null,null,null,null,null,null,null,null,null,null,null,"Q76","RXW","SHREWSBURY AND TELFORD HOSPITAL NHS TRUST","RXWXXX","Non-hospital site - RXWXXX",null,"RRF","SOUTHEND UNIVERSITY HOSPITAL NHS FOUNDATION TRUST",null,"RRF","SOUTHEND UNIVERSITY HOSPITAL NHS FOUNDATION TRUST","RJCXXX","Non Hospital Site - RD1XXX"]
[null,null,null,null,null,null,null,null,null,null,null,null,null,null,null,null,null,null,null,null,"Q76","RXW","SHREWSBURY AND TELFORD HOSPITAL NHS TRUST","RXWMJ","Robert Jones & Agnes Hunt Orthopaedic & District Hospital - RXWMJ",null,"RRK","SOUTHPORT AND ORMSKIRK HOSPITAL NHS TRUST",null,"RRK","SOUTHPORT AND ORMSKIRK HOSPITAL NHS TRUST","RJE01","Non-hospital site - R0AXXX"]
[null,null,null,null,null,null,null,null,null,null,null,null,null,null,null,null,null,null,null,null,"Q76","RXW","SHREWSBURY AND TELFORD HOSPITAL NHS TRUST","RXWAS","Royal Shrewsbury Hospital - RXWAS",null,"RRV","ST GEORGE'S UNIVERSITY HOSPITALS NHS FOUNDATION TRUST",null,"RRV","ST GEORGE'S UNIVERSITY HOSPITALS NHS FOUNDATION TRUST","RJE09","Non-hospital site - RA9XXX"]
[null,null,null,null,null,null,null,null,null,null,null,null,null,null,null,null,null,null,null,null,"Q76","RXW","SHREWSBURY AND TELFORD HOSPITAL NHS TRUST","RXWAT","The Princess Royal Hospital - RXWAT",null,"RTD","ST HELENS AND KNOWSLEY TEACHING HOSPITALS NHS TRUST",null,"RTD","ST HELENS AND KNOWSLEY TEACHING HOSPITALS NHS TRUST","RJEXXX","Non-hospital site - RASXXX"]
[null,null,null,null,null,null,null,null,null,null,null,null,null,null,null,null,null,null,null,null,"Q76","RTG","UNIVERSITY HOSPITALS OF DERBY AND BURTON NHS FOUNDATION TRUST","RTG02","Queens Hospital, Burton Upon Trent - RTG02",null,"RTE","STOCKPORT NHS FOUNDATION TRUST",null,"RTE","STOCKPORT NHS FOUNDATION TRUST","RJL30","Non-hospital site - RBAXXX"]
[null,null,null,null,null,null,null,null,null,null,null,null,null,null,null,null,null,null,null,null,"Q76","RTG","UNIVERSITY HOSPITALS OF DERBY AND BURTON NHS FOUNDATION TRUST","RTGFG","Royal Derby Hospital - RTGFG",null,"RTF","SURREY AND SUSSEX HEALTHCARE NHS TRUST",null,"RTF","SURREY AND SUSSEX HEALTHCARE NHS TRUST","RJL31","Non-hospital site - RCXXXX"]
[null,null,null,null,null,null,null,null,null,null,null,null,null,null,null,null,null,null,null,null,"Q76","RJE","UNIVERSITY HOSPITALS OF NORTH MIDLANDS NHS TRUST","RJE09","County Hospital - RJE09",null,"RTG","TAMESIDE AND GLOSSOP INTEGRATED CARE NHS FOUNDATION TRUST",null,"RTG","TAMESIDE AND GLOSSOP INTEGRATED CARE NHS FOUNDATION TRUST","RJN71","Non-hospital site - RDEXXX"]
[null,null,null,null,null,null,null,null,null,null,null,null,null,null,null,null,null,null,null,null,"Q76","RJE","UNIVERSITY HOSPITALS OF NORTH MIDLANDS NHS TRUST","RJEXXX","Non-hospital site - RJEXXX",null,"RTH","TAUNTON AND SOMERSET NHS FOUNDATION TRUST",null,"RTH","TAUNTON AND SOMERSET NHS FOUNDATION TRUST","RJR05","Non-hospital site - RE9XXX"]
[null,null,null,null,null,null,null,null,null,null,null,null,null,null,null,null,null,null,null,null,"Q76","RJE","UNIVERSITY HOSPITALS OF NORTH MIDLANDS NHS TRUST","RJE01","Royal Stoke University Hospital - RJE01",null,"RTP","THE DUDLEY GROUP NHS FOUNDATION TRUST",null,"RTP","THE DUDLEY GROUP NHS FOUNDATION TRUST","RJZ01","Non-hospital site - REFXXX"]
[null,null,null,null,null,null,null,null,null,null,null,null,null,null,null,null,null,null,null,null,"Q77","RQ3","BIRMINGHAM WOMEN'S AND CHILDREN'S NHS FOUNDATION TRUST","RQ370","Birmingham Women's Hospital - RQ370",null,"RTR","THE HILLINGDON HOSPITALS NHS FOUNDATION TRUST",null,"RTR","THE HILLINGDON HOSPITALS NHS FOUNDATION TRUST","RJZ30","Non-hospital site - RF4XXX"]
[null,null,null,null,null,null,null,null,null,null,null,null,null,null,null,null,null,null,null,null,"Q77","RLT","GEORGE ELIOT HOSPITAL NHS TRUST","RLT01","George Eliot Hospital - Acute Services - RLT01",null,"RTX","THE NEWCASTLE UPON TYNE HOSPITALS NHS FOUNDATION TRUST",null,"RTX","THE NEWCASTLE UPON TYNE HOSPITALS NHS FOUNDATION TRUST","RK5BC","Non-hospital site - RJ1XXX"]
[null,null,null,null,null,null,null,null,null,null,null,null,null,null,null,null,null,null,null,null,"Q77","RXK","SANDWELL AND WEST BIRMINGHAM HOSPITALS NHS TRUST","RXK02","City Hospital - RXK02",null,"RVJ","THE PRINCESS ALEXANDRA HOSPITAL NHS TRUST",null,"RVJ","THE PRINCESS ALEXANDRA HOSPITAL NHS TRUST","RK5XXX","Non-hospital site - RJ2XXX"]
[null,null,null,null,null,null,null,null,null,null,null,null,null,null,null,null,null,null,null,null,"Q77","RJC","SOUTH WARWICKSHIRE NHS FOUNDATION TRUST","RJCXXX","Non-hospital site - RJCXXX",null,"RVR","THE QUEEN ELIZABETH HOSPITAL, KING'S LYNN, NHS FOUNDATION TRUST",null,"RVR","THE QUEEN ELIZABETH HOSPITAL, KING'S LYNN, NHS FOUNDATION TRUST","RK950","Non-hospital site - RJCXXX"]
[null,null,null,null,null,null,null,null,null,null,null,null,null,null,null,null,null,null,null,null,"Q77","RJC","SOUTH WARWICKSHIRE NHS FOUNDATION TRUST","RJC02","Warwick Hospital - RJC02",null,"RVV","THE ROTHERHAM NHS FOUNDATION TRUST",null,"RVV","THE ROTHERHAM NHS FOUNDATION TRUST","RK9XXX","Non-hospital site - RJEXXX"]
[null,null,null,null,null,null,null,null,null,null,null,null,null,null,null,null,null,null,null,null,"Q77","RNA","THE DUDLEY GROUP NHS FOUNDATION TRUST","RNA01","Russells Hall Hospital - RNA01",null,"RVW","THE ROYAL BOURNEMOUTH AND CHRISTCHURCH HOSPITALS NHS FOUNDATION TRUST",null,"RVW","THE ROYAL BOURNEMOUTH AND CHRISTCHURCH HOSPITALS NHS FOUNDATION TRUST","RKB01","Non-hospital site - RK5XXX"]
[null,null,null,null,null,null,null,null,null,null,null,null,null,null,null,null,null,null,null,null,"Q77","RL4","THE ROYAL WOLVERHAMPTON NHS TRUST","RL403","New Cross Hospital - RL403",null,"RVY","THE ROYAL WOLVERHAMPTON NHS TRUST",null,"RVY","THE ROYAL WOLVERHAMPTON NHS TRUST","RKB03","Non-hospital site - RK9XXX"]
[null,null,null,null,null,null,null,null,null,null,null,null,null,null,null,null,null,null,null,null,"Q77","RRK","UNIVERSITY HOSPITALS BIRMINGHAM NHS FOUNDATION TRUST","RRK98","Good Hope Hospital - RRK98",null,"RW6","TORBAY AND SOUTH DEVON NHS FOUNDATION TRUST",null,"RW6","TORBAY AND SOUTH DEVON NHS FOUNDATION TRUST","RKBXXX","Non-hospital site - RKBXXX"]
[null,null,null,null,null,null,null,null,null,null,null,null,null,null,null,null,null,null,null,null,"Q77","RRK","UNIVERSITY HOSPITALS BIRMINGHAM NHS FOUNDATION TRUST","RRK97","Heartlands Hospital - RRK97",null,"RWA","UNITED LINCOLNSHIRE HOSPITALS NHS TRUST",null,"RWA","UNITED LINCOLNSHIRE HOSPITALS NHS TRUST","RKEQ4","Non-hospital site - RKEXXX"]
[null,null,null,null,null,null,null,null,null,null,null,null,null,null,null,null,null,null,null,null,"Q77","RRK","UNIVERSITY HOSPITALS BIRMINGHAM NHS FOUNDATION TRUST","RRK99","Solihull Hospital - RRK99",null,"RWD","UNIVERSITY COLLEGE LONDON HOSPITALS NHS FOUNDATION TRUST",null,"RWD","UNIVERSITY COLLEGE LONDON HOSPITALS NHS FOUNDATION TRUST","RKEXXX","Non-hospital site - RN3XXX"]
[null,null,null,null,null,null,null,null,null,null,null,null,null,null,null,null,null,null,null,null,"Q77","RKB","UNIVERSITY HOSPITALS COVENTRY AND WARWICKSHIRE NHS TRUST","RKB03","Hospital Of St Cross - RKB03",null,"RWE","UNIVERSITY HOSPITAL SOUTHAMPTON NHS FOUNDATION TRUST",null,"RWE","UNIVERSITY HOSPITAL SOUTHAMPTON NHS FOUNDATION TRUST","RL403","Non-hospital site - RNZXXX"]
[null,null,null,null,null,null,null,null,null,null,null,null,null,null,null,null,null,null,null,null,"Q77","RKB","UNIVERSITY HOSPITALS COVENTRY AND WARWICKSHIRE NHS TRUST","RKBXXX","Non-hospital site - RKBXXX",null,"RWF","UNIVERSITY HOSPITALS BIRMINGHAM NHS FOUNDATION TRUST",null,"RWF","UNIVERSITY HOSPITALS BIRMINGHAM NHS FOUNDATION TRUST","RLNGL","Non-hospital site - RP5XXX"]
[null,null,null,null,null,null,null,null,null,null,null,null,null,null,null,null,null,null,null,null,"Q77","RKB","UNIVERSITY HOSPITALS COVENTRY AND WARWICKSHIRE NHS TRUST","RKB01","University Hospital (Coventry) - RKB01",null,"RWG","UNIVERSITY HOSPITALS BRISTOL NHS FOUNDATION TRUST",null,"RWG","UNIVERSITY HOSPITALS BRISTOL NHS FOUNDATION TRUST","RLQ01","Non-Hospital Site - RR8XXX"]
[null,null,null,null,null,null,null,null,null,null,null,null,null,null,null,null,null,null,null,null,"Q77","RBK","WALSALL HEALTHCARE NHS TRUST","RBK02","Manor Hospital - RBK02",null,"RWH","UNIVERSITY HOSPITALS COVENTRY AND WARWICKSHIRE NHS TRUST",null,"RWH","UNIVERSITY HOSPITALS COVENTRY AND WARWICKSHIRE NHS TRUST","RLT01","Non-hospital site - RTEXXX"]
[null,null,null,null,null,null,null,null,null,null,null,null,null,null,null,null,null,null,null,null,"Q77","RWP","WORCESTERSHIRE ACUTE HOSPITALS NHS TRUST","RWP50","Worcestershire Royal Hospital - RWP50",null,"RWJ","UNIVERSITY HOSPITALS OF DERBY AND BURTON NHS FOUNDATION TRUST",null,"RWJ","UNIVERSITY HOSPITALS OF DERBY AND BURTON NHS FOUNDATION TRUST","RM102","Non-hospital site - RTFXXX"]
[null,null,null,null,null,null,null,null,null,null,null,null,null,null,null,null,null,null,null,null,"Q77","RLQ","WYE VALLEY NHS TRUST","RLQ01","Hereford County Hospital - RLQ01",null,"RWP","UNIVERSITY HOSPITALS OF LEICESTER NHS TRUST",null,"RWP","UNIVERSITY HOSPITALS OF LEICESTER NHS TRUST","RMC01","Non-hospital site - RTHXXX"]
[null,null,null,null,null,null,null,null,null,null,null,null,null,null,null,null,null,null,null,null,"Q78","RC1","BEDFORD HOSPITAL NHS TRUST","RC110","Bedford Hospital South Wing - RC110",null,"RWW","UNIVERSITY HOSPITALS OF MORECAMBE BAY NHS FOUNDATION TRUST",null,"RWW","UNIVERSITY HOSPITALS OF MORECAMBE BAY NHS FOUNDATION TRUST","RMP01","Non-hospital site - RVJXXX"]
[null,null,null,null,null,null,null,null,null,null,null,null,null,null,null,null,null,null,null,null,"Q78","RWH","EAST AND NORTH HERTFORDSHIRE NHS TRUST","RWH01","Lister Hospital - RWH01",null,"RWY","UNIVERSITY HOSPITALS OF NORTH MIDLANDS NHS TRUST",null,"RWY","UNIVERSITY HOSPITALS OF NORTH MIDLANDS NHS TRUST","RN325","Non-hospital site - RVRXXX"]
[null,null,null,null,null,null,null,null,null,null,null,null,null,null,null,null,null,null,null,null,"Q78","RWH","EAST AND NORTH HERTFORDSHIRE NHS TRUST","RWHXXX","Non-hospital site - RWHXXX",null,"RX1","UNIVERSITY HOSPITALS PLYMOUTH NHS TRUST",null,"RX1","UNIVERSITY HOSPITALS PLYMOUTH NHS TRUST","RN3XXX","Non-hospital site - RVVXXX"]
[null,null,null,null,null,null,null,null,null,null,null,null,null,null,null,null,null,null,null,null,"Q78","RNQ","KETTERING GENERAL HOSPITAL NHS FOUNDATION TRUST","RNQ51","Kettering General Hospital - RNQ51",null,"RXC","WALSALL HEALTHCARE NHS TRUST",null,"RXC","WALSALL HEALTHCARE NHS TRUST","RN506","Non-hospital site - RW6XXX"]
[null,null,null,null,null,null,null,null,null,null,null,null,null,null,null,null,null,null,null,null,"Q78","RC9","LUTON AND DUNSTABLE UNIVERSITY HOSPITAL NHS FOUNDATION TRUST","RC971","Luton and Dunstable Hospital - RC971",null,"RXF","WARRINGTON AND HALTON HOSPITALS NHS FOUNDATION TRUST",null,"RXF","WARRINGTON AND HALTON HOSPITALS NHS FOUNDATION TRUST","RN541","Non-hospital site - RWDXXX"]
[null,null,null,null,null,null,null,null,null,null,null,null,null,null,null,null,null,null,null,null,"Q78","RD8","MILTON KEYNES UNIVERSITY HOSPITAL NHS FOUNDATION TRUST","RD816","Milton Keynes Hospital - RD816",null,"RXH","WEST HERTFORDSHIRE HOSPITALS NHS TRUST",null,"RXH","WEST HERTFORDSHIRE HOSPITALS NHS TRUST","RN542","Non-hospital site - RWEXXX"]
[null,null,null,null,null,null,null,null,null,null,null,null,null,null,null,null,null,null,null,null,"Q78","RNS","NORTHAMPTON GENERAL HOSPITAL NHS TRUST","RNS01","Northampton General Hospital (Acute) - RNS01",null,"RXK","WEST SUFFOLK NHS FOUNDATION TRUST",null,"RXK","WEST SUFFOLK NHS FOUNDATION TRUST","RN707","Non-hospital site - RWFXXX"]
[null,null,null,null,null,null,null,null,null,null,null,null,null,null,null,null,null,null,null,null,"Q78","RWD","UNITED LINCOLNSHIRE HOSPITALS NHS TRUST","RWDLP","Grantham and District Hospital - RWDLP",null,"RXL","WESTERN SUSSEX HOSPITALS NHS FOUNDATION TRUST",null,"RXL","WESTERN SUSSEX HOSPITALS NHS FOUNDATION TRUST","RNA01","Non-hospital site - RWHXXX"]
[null,null,null,null,null,null,null,null,null,null,null,null,null,null,null,null,null,null,null,null,"Q78","RWD","UNITED LINCOLNSHIRE HOSPITALS NHS TRUST","RWDDA","Lincoln County Hospital - RWDDA",null,"RXN","WESTON AREA HEALTH NHS TRUST",null,"RXN","WESTON AREA HEALTH NHS TRUST","RNLAY","Non-hospital site - RWJXXX"]
[null,null,null,null,null,null,null,null,null,null,null,null,null,null,null,null,null,null,null,null,"Q78","RWD","UNITED LINCOLNSHIRE HOSPITALS NHS TRUST","RWDXXX","Non-hospital site - RWDXXX",null,"RXP","WHITTINGTON HEALTH NHS TRUST",null,"RXP","WHITTINGTON HEALTH NHS TRUST","RNLBE","Non-hospital site - RX1XXX"]
[null,null,null,null,null,null,null,null,null,null,null,null,null,null,null,null,null,null,null,null,"Q78","RWD","UNITED LINCOLNSHIRE HOSPITALS NHS TRUST","RWDLA","Pilgrim Hospital - RWDLA",null,"RXQ","WIRRAL UNIVERSITY TEACHING HOSPITAL NHS FOUNDATION TRUST",null,"RXQ","WIRRAL UNIVERSITY TEACHING HOSPITAL NHS FOUNDATION TRUST","RNLBX","Non-hospital site - RXCXXX"]
[null,null,null,null,null,null,null,null,null,null,null,null,null,null,null,null,null,null,null,null,"Q78","RWE","UNIVERSITY HOSPITALS OF LEICESTER NHS TRUST","RWEAK","Leicester General Hospital - RWEAK",null,"RXR","WORCESTERSHIRE ACUTE HOSPITALS NHS TRUST",null,"RXR","WORCESTERSHIRE ACUTE HOSPITALS NHS TRUST","RNQ51","Non-hospital site - RXFXXX"]
[null,null,null,null,null,null,null,null,null,null,null,null,null,null,null,null,null,null,null,null,"Q78","RWE","UNIVERSITY HOSPITALS OF LEICESTER NHS TRUST","RWEAA","Leicester Royal Infirmary - RWEAA",null,"RXW","WRIGHTINGTON, WIGAN AND LEIGH NHS FOUNDATION TRUST",null,"RXW","WRIGHTINGTON, WIGAN AND LEIGH NHS FOUNDATION TRUST","RNS01","Non-hospital site - RXHXXX"]
[null,null,null,null,null,null,null,null,null,null,null,null,null,null,null,null,null,null,null,null,"Q78","RWE","UNIVERSITY HOSPITALS OF LEICESTER NHS TRUST","RWEXXX","Non-hospital site - RWEXXX",null,"RY2","WYE VALLEY NHS TRUST",null,"RY2","WYE VALLEY NHS TRUST","RNZ02","Non-hospital site - RXPXXX"]
[null,null,null,null,null,null,null,null,null,null,null,null,null,null,null,null,null,null,null,null,"Q78","RWE","UNIVERSITY HOSPITALS OF LEICESTER NHS TRUST","RWE10","St Mary's Hospital - RWE10",null,"RYJ","YEOVIL DISTRICT HOSPITAL NHS FOUNDATION TRUST",null,"RYJ","YEOVIL DISTRICT HOSPITAL NHS FOUNDATION TRUST","RNZXXX","Non-hospital site - RXQXXX"]
[null,null,null,null,null,null,null,null,null,null,null,null,null,null,null,null,null,null,null,null,"Q78","RWG","WEST HERTFORDSHIRE HOSPITALS NHS TRUST","RWG02","Watford General Hospital - RWG02",null,"RYR","YORK TEACHING HOSPITAL NHS FOUNDATION TRUST",null,"RYR","YORK TEACHING HOSPITAL NHS FOUNDATION TRUST","RP5BA","Non-hospital site - RXWXXX"]
[null,null,null,null,null,null,null,null,null,null,null,null,null,null,null,null,null,null,null,null,"Q79","RDD","BASILDON AND THURROCK UNIVERSITY HOSPITALS NHS FOUNDATION TRUST","RDDH0","Basildon University Hospital - RDDH0",null,null,null,null,null,null,"RP5DR","Non-hospital site - RY2XXX"]
[null,null,null,null,null,null,null,null,null,null,null,null,null,null,null,null,null,null,null,null,"Q79","RGT","CAMBRIDGE UNIVERSITY HOSPITALS NHS FOUNDATION TRUST","RGT32","Rosie Hospital - RGT32",null,null,null,null,null,null,"RP5XXX","Norfolk and Norwich University Hospital - RM102"]
[null,null,null,null,null,null,null,null,null,null,null,null,null,null,null,null,null,null,null,null,"Q79","RDE","EAST SUFFOLK AND NORTH ESSEX NHS FOUNDATION TRUST","RDEE2","Clacton and District Hospital - RDEE2",null,null,null,null,null,null,"RPA02","North Devon District Hospital - RBZ12"]
[null,null,null,null,null,null,null,null,null,null,null,null,null,null,null,null,null,null,null,null,"Q79","RDE","EAST SUFFOLK AND NORTH ESSEX NHS FOUNDATION TRUST","RDEE4","Colchester General Hospital - RDEE4",null,null,null,null,null,null,"RQ370","North Manchester General Hospital - RW602"]
[null,null,null,null,null,null,null,null,null,null,null,null,null,null,null,null,null,null,null,null,"Q79","RDE","EAST SUFFOLK AND NORTH ESSEX NHS FOUNDATION TRUST","RDE03","Ipswich Hospital - RDE03",null,null,null,null,null,null,"RQ8L0","North Middlesex Hospital - RAPNM"]
[null,null,null,null,null,null,null,null,null,null,null,null,null,null,null,null,null,null,null,null,"Q79","RDE","EAST SUFFOLK AND NORTH ESSEX NHS FOUNDATION TRUST","RDEXXX","Non-hospital site - RDEXXX",null,null,null,null,null,null,"RQM01","Northampton General Hospital (Acute) - RNS01"]
[null,null,null,null,null,null,null,null,null,null,null,null,null,null,null,null,null,null,null,null,"Q79","RGP","JAMES PAGET UNIVERSITY HOSPITALS NHS FOUNDATION TRUST","RGP75","James Paget University Hospital - RGP75",null,null,null,null,null,null,"RQM91","Northwick Park Hospital - R1K01"]
[null,null,null,null,null,null,null,null,null,null,null,null,null,null,null,null,null,null,null,null,"Q79","RQ8","MID ESSEX HOSPITAL SERVICES NHS TRUST","RQ8L0","Broomfield Hospital - RQ8L0",null,null,null,null,null,null,"RQWG0","Nottingham University Hospitals NHS Trust - City Campus - RX1CC"]
[null,null,null,null,null,null,null,null,null,null,null,null,null,null,null,null,null,null,null,null,"Q79","RM1","NORFOLK AND NORWICH UNIVERSITY HOSPITALS NHS FOUNDATION TRUST","RM102","Norfolk and Norwich University Hospital - RM102",null,null,null,null,null,null,"RQXM1","Nottingham University Hospitals NHS Trust - Queen's Medical Centre Campus - RX1RA"]
[null,null,null,null,null,null,null,null,null,null,null,null,null,null,null,null,null,null,null,null,"Q79","RGN","NORTH WEST ANGLIA NHS FOUNDATION TRUST","RGN90","Hinchingbrooke Hospital - RGN90",null,null,null,null,null,null,"RR7EN","Okehampton Community Hospital - RH833"]
[null,null,null,null,null,null,null,null,null,null,null,null,null,null,null,null,null,null,null,null,"Q79","RGN","NORTH WEST ANGLIA NHS FOUNDATION TRUST","RGN80","Peterborough City Hospital - RGN80",null,null,null,null,null,null,"RR801","One to One (North West) Limited HQ - NDE01"]
[null,null,null,null,null,null,null,null,null,null,null,null,null,null,null,null,null,null,null,null,"Q79","RAJ","SOUTHEND UNIVERSITY HOSPITAL NHS FOUNDATION TRUST","RAJ01","Southend Hospital - RAJ01",null,null,null,null,null,null,"RR813","Ormskirk and District General Hospital - RVY02"]
[null,null,null,null,null,null,null,null,null,null,null,null,null,null,null,null,null,null,null,null,"Q79","RQW","THE PRINCESS ALEXANDRA HOSPITAL NHS TRUST","RQWG0","Princess Alexandra Hospital - RQWG0",null,null,null,null,null,null,"RR8XXX","Paulton Memorial Hospital  - RD129"]
[null,null,null,null,null,null,null,null,null,null,null,null,null,null,null,null,null,null,null,null,"Q79","RCX","THE QUEEN ELIZABETH HOSPITAL, KING'S LYNN, NHS FOUNDATION TRUST","RCXXXX","Non-hospital site - RCXXXX",null,null,null,null,null,null,"RRF02","Penrith Hospital - RNLBE"]
[null,null,null,null,null,null,null,null,null,null,null,null,null,null,null,null,null,null,null,null,"Q79","RCX","THE QUEEN ELIZABETH HOSPITAL, KING'S LYNN, NHS FOUNDATION TRUST","RCX70","The Queen Elizabeth Hospital - RCX70",null,null,null,null,null,null,"RRK97","Peterborough City Hospital - RGN80"]
[null,null,null,null,null,null,null,null,null,null,null,null,null,null,null,null,null,null,null,null,"Q79","RGR","WEST SUFFOLK NHS FOUNDATION TRUST","RGR50","West Suffolk Hospital - RGR50",null,null,null,null,null,null,"RRK98","Petersfield Community Hospital - RHU04"]
[null,null,null,null,null,null,null,null,null,null,null,null,null,null,null,null,null,null,null,null,"Q83","RMC","BOLTON NHS FOUNDATION TRUST","RMC01","Royal Bolton Hospital - RMC01",null,null,null,null,null,null,"RRK99","Pilgrim Hospital - RWDLA"]
[null,null,null,null,null,null,null,null,null,null,null,null,null,null,null,null,null,null,null,null,"Q83","RY2","BRIDGEWATER COMMUNITY HEALTHCARE NHS FOUNDATION TRUST","RY28P","Health Care Resource Centre - RY28P",null,null,null,null,null,null,"RRV11","Pinderfields General Hospital - RXF05"]
[null,null,null,null,null,null,null,null,null,null,null,null,null,null,null,null,null,null,null,null,"Q83","RY2","BRIDGEWATER COMMUNITY HEALTHCARE NHS FOUNDATION TRUST","RY2XXX","Non-hospital site - RY2XXX",null,null,null,null,null,null,"RTD02","Pontefract General Infirmary - RXF03"]
[null,null,null,null,null,null,null,null,null,null,null,null,null,null,null,null,null,null,null,null,"Q83","R0A","MANCHESTER UNIVERSITY NHS FOUNDATION TRUST","R0AXXX","Non-hospital site - R0AXXX",null,null,null,null,null,null,"RTE01","Poole General Hospital NHS Trust HQ - RD304"]
[null,null,null,null,null,null,null,null,null,null,null,null,null,null,null,null,null,null,null,null,"Q83","R0A","MANCHESTER UNIVERSITY NHS FOUNDATION TRUST","R0A05","St Mary's Hospital - R0A05",null,null,null,null,null,null,"RTE03","Princess Alexandra Hospital - RQWG0"]
[null,null,null,null,null,null,null,null,null,null,null,null,null,null,null,null,null,null,null,null,"Q83","RW6","PENNINE ACUTE HOSPITALS NHS TRUST","RW6XXX","Non-hospital site - RW6XXX",null,null,null,null,null,null,"RTE27","Princess Anne Hospital - RHM12"]
[null,null,null,null,null,null,null,null,null,null,null,null,null,null,null,null,null,null,null,null,"Q83","RW6","PENNINE ACUTE HOSPITALS NHS TRUST","RW602","North Manchester General Hospital - RW602",null,null,null,null,null,null,"RTEXXX","Princess Anne Wing RUH  - RD130"]
[null,null,null,null,null,null,null,null,null,null,null,null,null,null,null,null,null,null,null,null,"Q83","RW6","PENNINE ACUTE HOSPITALS NHS TRUST","RW603","Royal Oldham Hospital - RW603",null,null,null,null,null,null,"RTF86","Princess Royal Hospital - RXH09"]
[null,null,null,null,null,null,null,null,null,null,null,null,null,null,null,null,null,null,null,null,"Q83","RWJ","STOCKPORT NHS FOUNDATION TRUST","RWJXXX","Non-hospital site - RWJXXX",null,null,null,null,null,null,"RTFDH","Princess Royal University Hospital - RJZ30"]
[null,null,null,null,null,null,null,null,null,null,null,null,null,null,null,null,null,null,null,null,"Q83","RWJ","STOCKPORT NHS FOUNDATION TRUST","RWJ09","Stepping Hill Hospital - RWJ09",null,null,null,null,null,null,"RTFDJ","Queen Alexandra Hospital - RHU03"]
[null,null,null,null,null,null,null,null,null,null,null,null,null,null,null,null,null,null,null,null,"Q83","RMP","TAMESIDE AND GLOSSOP INTEGRATED CARE NHS FOUNDATION TRUST","RMP01","Tameside General Hospital - RMP01",null,null,null,null,null,null,"RTFDR","Queen Charlotte's Hospital - RYJ04"]
[null,null,null,null,null,null,null,null,null,null,null,null,null,null,null,null,null,null,null,null,"Q83","RRF","WRIGHTINGTON, WIGAN AND LEIGH NHS FOUNDATION TRUST","RRF02","Royal Albert Edward Infirmary - RRF02",null,null,null,null,null,null,"RTFXXX","Queen Elizabeth Hospital - RJ231"]
[null,null,null,null,null,null,null,null,null,null,null,null,null,null,null,null,null,null,null,null,"Q84","RXL","BLACKPOOL TEACHING HOSPITALS NHS FOUNDATION TRUST","RXL01","Blackpool Victoria Hospital - RXL01",null,null,null,null,null,null,"RTG02","Queen Elizabeth Hospital - RR7EN"]
[null,null,null,null,null,null,null,null,null,null,null,null,null,null,null,null,null,null,null,null,"Q84","RXR","EAST LANCASHIRE HOSPITALS NHS TRUST","RXR20","Royal Blackburn Hospital - RXR20",null,null,null,null,null,null,"RTGFG","Queen Elizabeth The Queen Mother Hospital - RVV09"]
[null,null,null,null,null,null,null,null,null,null,null,null,null,null,null,null,null,null,null,null,"Q84","RXN","LANCASHIRE TEACHING HOSPITALS NHS FOUNDATION TRUST","RXN01","Chorley and South Ribble Hospital - RXN01",null,null,null,null,null,null,"RTH05","Queen's Hospital - RF4QH"]
[null,null,null,null,null,null,null,null,null,null,null,null,null,null,null,null,null,null,null,null,"Q84","RXN","LANCASHIRE TEACHING HOSPITALS NHS FOUNDATION TRUST","RXN02","Royal Preston Hospital - RXN02",null,null,null,null,null,null,"RTH08","Queens Hospital, Burton Upon Trent - RTG02"]
[null,null,null,null,null,null,null,null,null,null,null,null,null,null,null,null,null,null,null,null,"Q84","RTX","UNIVERSITY HOSPITALS OF MORECAMBE BAY NHS FOUNDATION TRUST","RTXBU","Furness General Hospital - RTXBU",null,null,null,null,null,null,"RTH16","Robert Jones & Agnes Hunt Orthopaedic & District Hospital - RXWMJ"]
[null,null,null,null,null,null,null,null,null,null,null,null,null,null,null,null,null,null,null,null,"Q84","RTX","UNIVERSITY HOSPITALS OF MORECAMBE BAY NHS FOUNDATION TRUST","RTX02","Royal Lancaster Infirmary - RTX02",null,null,null,null,null,null,"RTH19","Rosie Hospital - RGT32"]
[null,null,null,null,null,null,null,null,null,null,null,null,null,null,null,null,null,null,null,null,"Q84","RTX","UNIVERSITY HOSPITALS OF MORECAMBE BAY NHS FOUNDATION TRUST","RTXBW","Westmorland General Hospital - RTXBW",null,null,null,null,null,null,"RTH21","Rotherham District General Hospital - RFRPA"]
[null,null,null,null,null,null,null,null,null,null,null,null,null,null,null,null,null,null,null,null,"Q85","RBD","DORSET COUNTY HOSPITAL NHS FOUNDATION TRUST","RBD01","Dorset County Hospital - RBD01",null,null,null,null,null,null,"RTHXXX","Royal Albert Edward Infirmary - RRF02"]
[null,null,null,null,null,null,null,null,null,null,null,null,null,null,null,null,null,null,null,null,"Q85","RBZ","NORTHERN DEVON HEALTHCARE NHS TRUST","RBZ12","North Devon District Hospital - RBZ12",null,null,null,null,null,null,"RTP04","Royal Berkshire Hospital - RHW01"]
[null,null,null,null,null,null,null,null,null,null,null,null,null,null,null,null,null,null,null,null,"Q85","RD3","POOLE HOSPITAL NHS FOUNDATION TRUST","RD304","Poole General Hospital NHS Trust HQ - RD304",null,null,null,null,null,null,"RTR45","Royal Blackburn Hospital - RXR20"]
[null,null,null,null,null,null,null,null,null,null,null,null,null,null,null,null,null,null,null,null,"Q85","REF","ROYAL CORNWALL HOSPITALS NHS TRUST","REFXXX","Non-hospital site - REFXXX",null,null,null,null,null,null,"RTRAT","Royal Bolton Hospital - RMC01"]
[null,null,null,null,null,null,null,null,null,null,null,null,null,null,null,null,null,null,null,null,"Q85","REF","ROYAL CORNWALL HOSPITALS NHS TRUST","REF12","Royal Cornwall Hospital (Treliske) - REF12",null,null,null,null,null,null,"RTX02","Royal Bournemouth General Hospital - RDZ20"]
[null,null,null,null,null,null,null,null,null,null,null,null,null,null,null,null,null,null,null,null,"Q85","RH8","ROYAL DEVON AND EXETER NHS FOUNDATION TRUST","RH854","Honiton Hospital - RH 854",null,null,null,null,null,null,"RTXBU","Royal Cornwall Hospital (Treliske) - REF12"]
[null,null,null,null,null,null,null,null,null,null,null,null,null,null,null,null,null,null,null,null,"Q85","RH8","ROYAL DEVON AND EXETER NHS FOUNDATION TRUST","RH833","Okehampton Community Hospital - RH833",null,null,null,null,null,null,"RTXBW","Royal Derby Hospital - RTGFG"]
[null,null,null,null,null,null,null,null,null,null,null,null,null,null,null,null,null,null,null,null,"Q85","RH8","ROYAL DEVON AND EXETER NHS FOUNDATION TRUST","RH801","Royal Devon and Exeter Hospital (Wonford) - RH801",null,null,null,null,null,null,"RVJ01","Royal Devon and Exeter Hospital (Wonford) - RH801"]
[null,null,null,null,null,null,null,null,null,null,null,null,null,null,null,null,null,null,null,null,"Q85","RH8","ROYAL DEVON AND EXETER NHS FOUNDATION TRUST","RH853","Tiverton and District Hospital - RH853",null,null,null,null,null,null,"RVJXXX","Royal Free Hospital - RAL01"]
[null,null,null,null,null,null,null,null,null,null,null,null,null,null,null,null,null,null,null,null,"Q85","RBA","TAUNTON AND SOMERSET NHS FOUNDATION TRUST","RBAC3","Bridgwater Hospital - RBAC3",null,null,null,null,null,null,"RVR05","Royal Hallamshire Hospital - RHQHH"]
[null,null,null,null,null,null,null,null,null,null,null,null,null,null,null,null,null,null,null,null,"Q85","RBA","TAUNTON AND SOMERSET NHS FOUNDATION TRUST","RBA11","Musgrove Park Hospital - RBA11",null,null,null,null,null,null,"RVR50","Royal Hampshire County Hospital - RN541"]
[null,null,null,null,null,null,null,null,null,null,null,null,null,null,null,null,null,null,null,null,"Q85","RBA","TAUNTON AND SOMERSET NHS FOUNDATION TRUST","RBAXXX","Non-hospital site - RBAXXX",null,null,null,null,null,null,"RVRXXX","Royal Lancaster Infirmary - RTX02"]
[null,null,null,null,null,null,null,null,null,null,null,null,null,null,null,null,null,null,null,null,"Q85","RDZ","THE ROYAL BOURNEMOUTH AND CHRISTCHURCH HOSPITALS NHS FOUNDATION TRUST","RDZ20","Royal Bournemouth General Hospital - RDZ20",null,null,null,null,null,null,"RVV01","Royal Oldham Hospital - RW603"]
[null,null,null,null,null,null,null,null,null,null,null,null,null,null,null,null,null,null,null,null,"Q85","RA9","TORBAY AND SOUTH DEVON NHS FOUNDATION TRUST","RA957","Newton Abbot Community Hospital - RA957",null,null,null,null,null,null,"RVV09","Royal Preston Hospital - RXN02"]
[null,null,null,null,null,null,null,null,null,null,null,null,null,null,null,null,null,null,null,null,"Q85","RA9","TORBAY AND SOUTH DEVON NHS FOUNDATION TRUST","RA9XXX","Non-hospital site - RA9XXX",null,null,null,null,null,null,"RVVXXX","Royal Shrewsbury Hospital - RXWAS"]
[null,null,null,null,null,null,null,null,null,null,null,null,null,null,null,null,null,null,null,null,"Q85","RA9","TORBAY AND SOUTH DEVON NHS FOUNDATION TRUST","RA901","Torbay Hospital - RA901",null,null,null,null,null,null,"RVWAE","Royal Stoke University Hospital - RJE01"]
[null,null,null,null,null,null,null,null,null,null,null,null,null,null,null,null,null,null,null,null,"Q85","RK9","UNIVERSITY HOSPITALS PLYMOUTH NHS TRUST","RK950","Derriford Hospital - RK950",null,null,null,null,null,null,"RVY02","Royal Surrey County Hospital - RA201"]
[null,null,null,null,null,null,null,null,null,null,null,null,null,null,null,null,null,null,null,null,"Q85","RK9","UNIVERSITY HOSPITALS PLYMOUTH NHS TRUST","RK9XXX","Non-hospital site - RK9XXX",null,null,null,null,null,null,"RW602","Royal Sussex County Hospital - RXH01"]
[null,null,null,null,null,null,null,null,null,null,null,null,null,null,null,null,null,null,null,null,"Q85","RA4","YEOVIL DISTRICT HOSPITAL NHS FOUNDATION TRUST","RA430","Yeovil District Hospital - RA430",null,null,null,null,null,null,"RW603","Russells Hall Hospital - RNA01"]
[null,null,null,null,null,null,null,null,null,null,null,null,null,null,null,null,null,null,null,null,"Q86","RTE","GLOUCESTERSHIRE HOSPITALS NHS FOUNDATION TRUST","RTE01","Cheltenham General Hospital - RTE01",null,null,null,null,null,null,"RW6XXX","Salisbury District Hospital - RNZ02"]
[null,null,null,null,null,null,null,null,null,null,null,null,null,null,null,null,null,null,null,null,"Q86","RTE","GLOUCESTERSHIRE HOSPITALS NHS FOUNDATION TRUST","RTE03","Gloucestershire Royal Hospital - RTE03",null,null,null,null,null,null,"RWA01","Scarborough General Hospital - RCBCA"]
[null,null,null,null,null,null,null,null,null,null,null,null,null,null,null,null,null,null,null,null,"Q86","RTE","GLOUCESTERSHIRE HOSPITALS NHS FOUNDATION TRUST","RTEXXX","Non-hospital site - RTEXXX",null,null,null,null,null,null,"RWDDA","Solihull Hospital - RRK99"]
[null,null,null,null,null,null,null,null,null,null,null,null,null,null,null,null,null,null,null,null,"Q86","RTE","GLOUCESTERSHIRE HOSPITALS NHS FOUNDATION TRUST","RTE27","Stroud Maternity Hospital - RTE27",null,null,null,null,null,null,"RWDLA","South Tyneside District Hospital - RE9GA"]
[null,null,null,null,null,null,null,null,null,null,null,null,null,null,null,null,null,null,null,null,"Q86","RN3","GREAT WESTERN HOSPITALS NHS FOUNDATION TRUST","RN3XXX","Non-hospital site - RN3XXX",null,null,null,null,null,null,"RWDLP","Southend Hospital - RAJ01"]
[null,null,null,null,null,null,null,null,null,null,null,null,null,null,null,null,null,null,null,null,"Q86","RN3","GREAT WESTERN HOSPITALS NHS FOUNDATION TRUST","RN325","The Great Western Hospital - RN325",null,null,null,null,null,null,"RWDXXX","Southmead Hospital - RVJ01"]
[null,null,null,null,null,null,null,null,null,null,null,null,null,null,null,null,null,null,null,null,"Q86","RVJ","NORTH BRISTOL NHS TRUST","RVJXXX","Non-hospital site - RVJXXX",null,null,null,null,null,null,"RWE10","St George's Hospital (Tooting) - RJ701"]
[null,null,null,null,null,null,null,null,null,null,null,null,null,null,null,null,null,null,null,null,"Q86","RVJ","NORTH BRISTOL NHS TRUST","RVJ01","Southmead Hospital - RVJ01",null,null,null,null,null,null,"RWEAA","St Helier Hospital - RVR05"]
[null,null,null,null,null,null,null,null,null,null,null,null,null,null,null,null,null,null,null,null,"Q86","RD1","ROYAL UNITED HOSPITALS BATH NHS FOUNDATION TRUST","RD102","Chippenham Community Hospital -RD102",null,null,null,null,null,null,"RWEAK","St James's University Hospital - RR813"]
[null,null,null,null,null,null,null,null,null,null,null,null,null,null,null,null,null,null,null,null,"Q86","RD1","ROYAL UNITED HOSPITALS BATH NHS FOUNDATION TRUST","RD121","Frome Community Hospital  - RD121",null,null,null,null,null,null,"RWEXXX","St Mary's Hospital - R0A05"]
[null,null,null,null,null,null,null,null,null,null,null,null,null,null,null,null,null,null,null,null,"Q86","RD1","ROYAL UNITED HOSPITALS BATH NHS FOUNDATION TRUST","RD1XXX","Non Hospital Site - RD1XXX",null,null,null,null,null,null,"RWF03","St Mary's Hospital - R1F01"]
[null,null,null,null,null,null,null,null,null,null,null,null,null,null,null,null,null,null,null,null,"Q86","RD1","ROYAL UNITED HOSPITALS BATH NHS FOUNDATION TRUST","RD129","Paulton Memorial Hospital  - RD129",null,null,null,null,null,null,"RWFTW","St Mary's Hospital - RHU02"]
[null,null,null,null,null,null,null,null,null,null,null,null,null,null,null,null,null,null,null,null,"Q86","RD1","ROYAL UNITED HOSPITALS BATH NHS FOUNDATION TRUST","RD130","Princess Anne Wing RUH  - RD130",null,null,null,null,null,null,"RWFXXX","St Mary's Hospital - RWE10"]
[null,null,null,null,null,null,null,null,null,null,null,null,null,null,null,null,null,null,null,null,"Q86","RD1","ROYAL UNITED HOSPITALS BATH NHS FOUNDATION TRUST","RD108","Trowbridge Community Hospital  - RD108",null,null,null,null,null,null,"RWG02","St Mary's Hospital (HQ) - RYJ01"]
[null,null,null,null,null,null,null,null,null,null,null,null,null,null,null,null,null,null,null,null,"Q86","RNZ","SALISBURY NHS FOUNDATION TRUST","RNZXXX","Non-hospital site - RNZXXX",null,null,null,null,null,null,"RWH01","St Michael's Hospital - RA707"]
[null,null,null,null,null,null,null,null,null,null,null,null,null,null,null,null,null,null,null,null,"Q86","RNZ","SALISBURY NHS FOUNDATION TRUST","RNZ02","Salisbury District Hospital - RNZ02",null,null,null,null,null,null,"RWHXXX","St Richard's Hospital - RYR16"]
[null,null,null,null,null,null,null,null,null,null,null,null,null,null,null,null,null,null,null,null,"Q86","RA7","UNIVERSITY HOSPITALS BRISTOL NHS FOUNDATION TRUST","RA707","St Michael's Hospital - RA707",null,null,null,null,null,null,"RWJ09","St Thomas' Hospital - RJ122"]
[null,null,null,null,null,null,null,null,null,null,null,null,null,null,null,null,null,null,null,null,"Q86","RA3","WESTON AREA HEALTH NHS TRUST","RA301","Weston General Hospital - RA301",null,null,null,null,null,null,"RWJXXX","Stepping Hill Hospital - RWJ09"]
[null,null,null,null,null,null,null,null,null,null,null,null,null,null,null,null,null,null,null,null,"Q87","RXQ","BUCKINGHAMSHIRE HEALTHCARE NHS TRUST","RXQXXX","Non-hospital site - RXQXXX",null,null,null,null,null,null,"RWP50","Stoke Mandeville Hospital - RXQ02"]
[null,null,null,null,null,null,null,null,null,null,null,null,null,null,null,null,null,null,null,null,"Q87","RXQ","BUCKINGHAMSHIRE HEALTHCARE NHS TRUST","RXQ02","Stoke Mandeville Hospital - RXQ02",null,null,null,null,null,null,"RWWWH","Stroud Maternity Hospital - RTE27"]
[null,null,null,null,null,null,null,null,null,null,null,null,null,null,null,null,null,null,null,null,"Q87","RXQ","BUCKINGHAMSHIRE HEALTHCARE NHS TRUST","RXQ50","Wycombe Hospital - RXQ50",null,null,null,null,null,null,"RWY01","Sunderland Royal Hospital - RLNGL"]
[null,null,null,null,null,null,null,null,null,null,null,null,null,null,null,null,null,null,null,null,"Q87","RDU","FRIMLEY HEALTH NHS FOUNDATION TRUST","RDU01","Frimley Park Hospital - RDU01",null,null,null,null,null,null,"RWY02","Tameside General Hospital - RMP01"]
[null,null,null,null,null,null,null,null,null,null,null,null,null,null,null,null,null,null,null,null,"Q87","RDU","FRIMLEY HEALTH NHS FOUNDATION TRUST","RDU50","Wexham Park Hospital - RDU50",null,null,null,null,null,null,"RX1CC","The Great Western Hospital - RN325"]
[null,null,null,null,null,null,null,null,null,null,null,null,null,null,null,null,null,null,null,null,"Q87","RN5","HAMPSHIRE HOSPITALS NHS FOUNDATION TRUST","RN542","Andover War Memorial Hospital - RN542",null,null,null,null,null,null,"RX1RA","The James Cook University Hospital - RTRAT"]
[null,null,null,null,null,null,null,null,null,null,null,null,null,null,null,null,null,null,null,null,"Q87","RN5","HAMPSHIRE HOSPITALS NHS FOUNDATION TRUST","RN506","Basingstoke and North Hampshire Hospital - RN506",null,null,null,null,null,null,"RX1XXX","The Northumbria - RTF86"]
[null,null,null,null,null,null,null,null,null,null,null,null,null,null,null,null,null,null,null,null,"Q87","RN5","HAMPSHIRE HOSPITALS NHS FOUNDATION TRUST","RN541","Royal Hampshire County Hospital - RN541",null,null,null,null,null,null,"RXC01","The Princess Royal Hospital - RXWAT"]
[null,null,null,null,null,null,null,null,null,null,null,null,null,null,null,null,null,null,null,null,"Q87","R1F","ISLE OF WIGHT NHS TRUST","R1F01","St Mary's Hospital - R1F01",null,null,null,null,null,null,"RXC02","The Queen Elizabeth Hospital - RCX70"]
[null,null,null,null,null,null,null,null,null,null,null,null,null,null,null,null,null,null,null,null,"Q87","RTH","OXFORD UNIVERSITY HOSPITALS NHS FOUNDATION TRUST","RTH19","Chipping Norton Community Hospital - RTH19",null,null,null,null,null,null,"RXCXXX","The Royal London Hospital - R1H12"]
[null,null,null,null,null,null,null,null,null,null,null,null,null,null,null,null,null,null,null,null,"Q87","RTH","OXFORD UNIVERSITY HOSPITALS NHS FOUNDATION TRUST","RTH05","Horton General Hospital - RTH05",null,null,null,null,null,null,"RXF03","The Royal Victoria Infirmary - RTD02"]
[null,null,null,null,null,null,null,null,null,null,null,null,null,null,null,null,null,null,null,null,"Q87","RTH","OXFORD UNIVERSITY HOSPITALS NHS FOUNDATION TRUST","RTH08","John Radcliffe Hospital - RTH08",null,null,null,null,null,null,"RXF05","The Tunbridge Wells Hospital - RWFTW"]
[null,null,null,null,null,null,null,null,null,null,null,null,null,null,null,null,null,null,null,null,"Q87","RTH","OXFORD UNIVERSITY HOSPITALS NHS FOUNDATION TRUST","RTHXXX","Non-hospital site - RTHXXX",null,null,null,null,null,null,"RXF10","The Whittington Hospital - RKEQ4"]
[null,null,null,null,null,null,null,null,null,null,null,null,null,null,null,null,null,null,null,null,"Q87","RTH","OXFORD UNIVERSITY HOSPITALS NHS FOUNDATION TRUST","RTH16","Wallingford Community Hospital - RTH16",null,null,null,null,null,null,"RXFXXX","Tiverton and District Hospital - RH853"]
[null,null,null,null,null,null,null,null,null,null,null,null,null,null,null,null,null,null,null,null,"Q87","RTH","OXFORD UNIVERSITY HOSPITALS NHS FOUNDATION TRUST","RTH21","Wantage Community Hospital - RTH21",null,null,null,null,null,null,"RXH01","Torbay Hospital - RA901"]
[null,null,null,null,null,null,null,null,null,null,null,null,null,null,null,null,null,null,null,null,"Q87","RHU","PORTSMOUTH HOSPITALS NHS TRUST","RHU10","Gosport War Memorial Hospital - RHU10",null,null,null,null,null,null,"RXH09","Trowbridge Community Hospital  - RD108"]
[null,null,null,null,null,null,null,null,null,null,null,null,null,null,null,null,null,null,null,null,"Q87","RHU","PORTSMOUTH HOSPITALS NHS TRUST","RHU04","Petersfield Community Hospital - RHU04",null,null,null,null,null,null,"RXHXXX","University College Hospital Elizabeth Garrett Anderson Wing - RRV11"]
[null,null,null,null,null,null,null,null,null,null,null,null,null,null,null,null,null,null,null,null,"Q87","RHU","PORTSMOUTH HOSPITALS NHS TRUST","RHU03","Queen Alexandra Hospital - RHU03",null,null,null,null,null,null,"RXK02","University Hospital (Coventry) - RKB01"]
[null,null,null,null,null,null,null,null,null,null,null,null,null,null,null,null,null,null,null,null,"Q87","RHU","PORTSMOUTH HOSPITALS NHS TRUST","RHU02","St Mary's Hospital - RHU02",null,null,null,null,null,null,"RXL01","University Hospital Lewisham - RJ224"]
[null,null,null,null,null,null,null,null,null,null,null,null,null,null,null,null,null,null,null,null,"Q87","RHW","ROYAL BERKSHIRE NHS FOUNDATION TRUST","RHW01","Royal Berkshire Hospital - RHW01",null,null,null,null,null,null,"RXN01","University Hospital Of North Durham - RXPCP"]
[null,null,null,null,null,null,null,null,null,null,null,null,null,null,null,null,null,null,null,null,"Q87","RHM","UNIVERSITY HOSPITAL SOUTHAMPTON NHS FOUNDATION TRUST","RHM12","Princess Anne Hospital - RHM12",null,null,null,null,null,null,"RXN02","University Hospital Of North Tees - RVWAE"]
[null,null,null,null,null,null,null,null,null,null,null,null,null,null,null,null,null,null,null,null,"Q88","RXH","BRIGHTON AND SUSSEX UNIVERSITY HOSPITALS NHS TRUST","RXHXXX","Non-hospital site - RXHXXX",null,null,null,null,null,null,"RXPCP","Wallingford Community Hospital - RTH16"]
[null,null,null,null,null,null,null,null,null,null,null,null,null,null,null,null,null,null,null,null,"Q88","RXH","BRIGHTON AND SUSSEX UNIVERSITY HOSPITALS NHS TRUST","RXH09","Princess Royal Hospital - RXH09",null,null,null,null,null,null,"RXPDA","Wantage Community Hospital - RTH21"]
[null,null,null,null,null,null,null,null,null,null,null,null,null,null,null,null,null,null,null,null,"Q88","RXH","BRIGHTON AND SUSSEX UNIVERSITY HOSPITALS NHS TRUST","RXH01","Royal Sussex County Hospital - RXH01",null,null,null,null,null,null,"RXPXXX","Warrington Hospital - RWWWH"]
[null,null,null,null,null,null,null,null,null,null,null,null,null,null,null,null,null,null,null,null,"Q88","RN7","DARTFORD AND GRAVESHAM NHS TRUST","RN707","Darent Valley Hospital - RN707",null,null,null,null,null,null,"RXQ02","Warwick Hospital - RJC02"]
[null,null,null,null,null,null,null,null,null,null,null,null,null,null,null,null,null,null,null,null,"Q88","RVV","EAST KENT HOSPITALS UNIVERSITY NHS FOUNDATION TRUST","RVVXXX","Non-hospital site - RVVXXX",null,null,null,null,null,null,"RXQ50","Watford General Hospital - RWG02"]
[null,null,null,null,null,null,null,null,null,null,null,null,null,null,null,null,null,null,null,null,"Q88","RVV","EAST KENT HOSPITALS UNIVERSITY NHS FOUNDATION TRUST","RVV09","Queen Elizabeth The Queen Mother Hospital - RVV09",null,null,null,null,null,null,"RXQXXX","West Cumberland Hospital - RNLBX"]
[null,null,null,null,null,null,null,null,null,null,null,null,null,null,null,null,null,null,null,null,"Q88","RVV","EAST KENT HOSPITALS UNIVERSITY NHS FOUNDATION TRUST","RVV01","William Harvey Hospital (Ashford) - RVV01",null,null,null,null,null,null,"RXR20","West Middlesex University Hospital - RQM91"]
[null,null,null,null,null,null,null,null,null,null,null,null,null,null,null,null,null,null,null,null,"Q88","RXC","EAST SUSSEX HEALTHCARE NHS TRUST","RXC01","Conquest Hospital - RXC01",null,null,null,null,null,null,"RXWAS","West Suffolk Hospital - RGR50"]
[null,null,null,null,null,null,null,null,null,null,null,null,null,null,null,null,null,null,null,null,"Q88","RXC","EAST SUSSEX HEALTHCARE NHS TRUST","RXC02","Eastbourne District General Hospital - RXC02",null,null,null,null,null,null,"RXWAT","Westmorland General Hospital - RTXBW"]
[null,null,null,null,null,null,null,null,null,null,null,null,null,null,null,null,null,null,null,null,"Q88","RXC","EAST SUSSEX HEALTHCARE NHS TRUST","RXCXXX","Non-hospital site - RXCXXX",null,null,null,null,null,null,"RXWMB","Weston General Hospital - RA301"]
[null,null,null,null,null,null,null,null,null,null,null,null,null,null,null,null,null,null,null,null,"Q88","RWF","MAIDSTONE AND TUNBRIDGE WELLS NHS TRUST","RWF03","Maidstone District General Hospital - RWF03",null,null,null,null,null,null,"RXWMJ","Wexham Park Hospital - RDU50"]
[null,null,null,null,null,null,null,null,null,null,null,null,null,null,null,null,null,null,null,null,"Q88","RWF","MAIDSTONE AND TUNBRIDGE WELLS NHS TRUST","RWFXXX","Non-hospital site - RWFXXX",null,null,null,null,null,null,"RXWML","Whipps Cross University Hospital - R1HKH"]
[null,null,null,null,null,null,null,null,null,null,null,null,null,null,null,null,null,null,null,null,"Q88","RWF","MAIDSTONE AND TUNBRIDGE WELLS NHS TRUST","RWFTW","The Tunbridge Wells Hospital - RWFTW",null,null,null,null,null,null,"RXWXXX","Whiston Hospital - RBN01"]
[null,null,null,null,null,null,null,null,null,null,null,null,null,null,null,null,null,null,null,null,"Q88","RPA","MEDWAY NHS FOUNDATION TRUST","RPA02","Medway Maritime Hospital - RPA02",null,null,null,null,null,null,"RY28P","William Harvey Hospital (Ashford) - RVV01"]
[null,null,null,null,null,null,null,null,null,null,null,null,null,null,null,null,null,null,null,null,"Q88","RA2","ROYAL SURREY COUNTY HOSPITAL NHS FOUNDATION TRUST","RA201","Royal Surrey County Hospital - RA201",null,null,null,null,null,null,"RY2XXX","Worcestershire Royal Hospital - RWP50"]
[null,null,null,null,null,null,null,null,null,null,null,null,null,null,null,null,null,null,null,null,"Q88","RTP","SURREY AND SUSSEX HEALTHCARE NHS TRUST","RTP04","East Surrey Hospital - RTP04",null,null,null,null,null,null,"RYJ01","Worthing Hospital - RYR18"]
[null,null,null,null,null,null,null,null,null,null,null,null,null,null,null,null,null,null,null,null,"Q88","RYR","WESTERN SUSSEX HOSPITALS NHS FOUNDATION TRUST","RYR16","St Richard's Hospital - RYR16",null,null,null,null,null,null,"RYJ04","Wycombe Hospital - RXQ50"]
[null,null,null,null,null,null,null,null,null,null,null,null,null,null,null,null,null,null,null,null,"Q88","RYR","WESTERN SUSSEX HOSPITALS NHS FOUNDATION TRUST","RYR18","Worthing Hospital - RYR18",null,null,null,null,null,null,"RYR16","Yeovil District Hospital - RA430"]
[null,null,null,null,null,null,null,null,null,null,null,null,null,null,null,null,null,null,null,null,"zIS1","NDE","ONE TO ONE (NORTH WEST) LIMITED","NDE01","One to One (North West) Limited HQ - NDE01",null,null,null,null,null,null,"RYR18","York Hospital - RCB55"]

{"sheet":"BSQ3","index":15,"n_rows":187,"n_cols":33,"rows_kept":187,"cut":false,"hidden":true,"merged":[]}
[null,"Sort","Region (LO)","Region (LO)","Trusts","Trusts","Sites","Sites",null,"Sort ranges:","Sort range…","Sort range…","Sort range…","Reference Region List:","Code…","Name…","Linked Region List:","Code…","Name…","Reference Lists:","Code…","Code…","Name…","Code…","Name…","Trusts Linked Lists:","Code…","Name…","Site Linked Lists:","Code…","Name…","Code…","Name…"]
["Region (LO)",1,1,1,"-","-","-","-",null,null,"Region (LO) Code","Region (LO) Code","Region (LO) Code",null,"Q72","NHS England Yorkshire & Humber",null,"Q71","Independent Sector Provider",null,"Q71","RF4","BARKING, HAVERING AND REDBRIDGE UNIVERSITY HOSPITALS NHS TRUST","RF4QH","Queen's Hospital - RF4QH",null,"NDE","AIREDALE NHS FOUNDATION TRUST",null,"NDE","AIREDALE NHS FOUNDATION TRUST","NDE01","Airedale General Hospital - RCF22"]
["Trusts",1,1,1,1,1,"-","-",null,null,"Region (Local Office)","Trust Code","Trust Code",null,"Q74","NHS England Cumbria & North East",null,"Q72","NHS England Cheshire & Merseyside",null,"Q71","R1H","BARTS HEALTH NHS TRUST","R1HNH","Newham General Hospital - R1HNH",null,"R0A","BARKING, HAVERING AND REDBRIDGE UNIVERSITY HOSPITALS NHS TRUST",null,"R0A","BARKING, HAVERING AND REDBRIDGE UNIVERSITY HOSPITALS NHS TRUST","R0A05","Alnwick Infirmary - RTFDJ"]
["Sites",1,1,1,1,1,1,1,null,null,"Total Responses","Trust Name","Trust Name",null,"Q75","NHS England Cheshire & Merseyside",null,"Q74","NHS England Cumbria & North East",null,"Q71","R1H","BARTS HEALTH NHS TRUST","R1H12","The Royal London Hospital - R1H12",null,"R1F","BARNSLEY HOSPITAL NHS FOUNDATION TRUST",null,"R1F","BARNSLEY HOSPITAL NHS FOUNDATION TRUST","R1F01","Arrowe Park Hospital - RBL14"]
[null,null,null,null,null,null,null,null,null,null,"Percentage Recommended","Total Responses","Site Code",null,"Q83","NHS England Greater Manchester",null,"Q75","NHS England East",null,"Q71","R1H","BARTS HEALTH NHS TRUST","R1HKH","Whipps Cross University Hospital - R1HKH",null,"R1H","BARTS HEALTH NHS TRUST",null,"R1H","BARTS HEALTH NHS TRUST","R1H12","Barnet Hospital - RAL26"]
[null,null,null,null,null,null,null,null,null,null,"Percentage Not  Recommended","Percentage Recommended","Site Name",null,"Q84","NHS England Lancashire",null,"Q76","NHS England Greater Manchester",null,"Q71","RQM","CHELSEA AND WESTMINSTER HOSPITAL NHS FOUNDATION TRUST","RQM01","Chelsea and Westminster Hospital - RQM01",null,"R1K","BASILDON AND THURROCK UNIVERSITY HOSPITALS NHS FOUNDATION TRUST",null,"R1K","BASILDON AND THURROCK UNIVERSITY HOSPITALS NHS FOUNDATION TRUST","R1HKH","Barnsley Hospital NHS Foundation Trust HQ - RFFAA"]
[null,null,null,null,null,null,null,null,null,null,"Extremely Likely","Percentage Not  Recommended","Total Responses",null,"Q76","NHS England North Midlands",null,"Q77","NHS England Lancashire",null,"Q71","RQM","CHELSEA AND WESTMINSTER HOSPITAL NHS FOUNDATION TRUST","RQM91","West Middlesex University Hospital - RQM91",null,"RA2","BEDFORD HOSPITAL NHS TRUST",null,"RA2","BEDFORD HOSPITAL NHS TRUST","R1HNH","Basildon University Hospital - RDDH0"]
[null,null,null,null,null,null,null,null,null,null,"Likely","Extremely Likely","Percentage Recommended",null,"Q77","NHS England West Midlands",null,"Q78","NHS England London",null,"Q71","RJ6","CROYDON HEALTH SERVICES NHS TRUST","RJ611","Croydon University Hospital - RJ611",null,"RA3","BIRMINGHAM WOMEN'S AND CHILDREN'S NHS FOUNDATION TRUST",null,"RA3","BIRMINGHAM WOMEN'S AND CHILDREN'S NHS FOUNDATION TRUST","R1K01","Basingstoke and North Hampshire Hospital - RN506"]
[null,null,null,null,null,null,null,null,null,null,"Neither","Likely","Percentage Not  Recommended",null,"Q78","NHS England Central Midlands",null,"Q79","NHS England North Midlands",null,"Q71","RVR","EPSOM AND ST HELIER UNIVERSITY HOSPITALS NHS TRUST","RVR50","Epsom Hospital - RVR50",null,"RA4","BLACKPOOL TEACHING HOSPITALS NHS FOUNDATION TRUST",null,"RA4","BLACKPOOL TEACHING HOSPITALS NHS FOUNDATION TRUST","RA201","Bassetlaw Hospital - RP5BA"]
[null,null,null,null,null,null,null,null,null,null,"Unlikely","Neither","Extremely Likely",null,"Q79","NHS England East",null,"Q83","NHS England Central Midlands",null,"Q71","RVR","EPSOM AND ST HELIER UNIVERSITY HOSPITALS NHS TRUST","RVR05","St Helier Hospital - RVR05",null,"RA7","BOLTON NHS FOUNDATION TRUST",null,"RA7","BOLTON NHS FOUNDATION TRUST","RA301","Bedford Hospital South Wing - RC110"]
[null,null,null,null,null,null,null,null,null,null,"Extremely Unlikely","Unlikely","Likely",null,"Q85","NHS England South West (South West South)",null,"Q84","NHS England South East (Hampshire, Isle Of Wight & Thames Valley)",null,"Q71","RJ1","GUY'S AND ST THOMAS' NHS FOUNDATION TRUST","RJ122","St Thomas' Hospital - RJ122",null,"RA9","BRADFORD TEACHING HOSPITALS NHS FOUNDATION TRUST",null,"RA9","BRADFORD TEACHING HOSPITALS NHS FOUNDATION TRUST","RA430","Berwick Infirmary - RTFDH"]
[null,null,null,null,null,null,null,null,null,null,"Don't Know","Extremely Unlikely","Neither",null,"Q86","NHS England South West (South West North)",null,"Q85","NHS England South East (Kent, Surrey & Sussex)",null,"Q71","RQX","HOMERTON UNIVERSITY HOSPITAL NHS FOUNDATION TRUST","RQXM1","Homerton University Hospital - RQXM1",null,"RAE","BRIDGEWATER COMMUNITY HEALTHCARE NHS FOUNDATION TRUST",null,"RAE","BRIDGEWATER COMMUNITY HEALTHCARE NHS FOUNDATION TRUST","RA707","Birmingham Women's Hospital - RQ370"]
[null,null,null,null,null,null,null,null,null,null,null,"Don't Know","Unlikely",null,"Q87","NHS England South East (Hampshire, Isle Of Wight & Thames Valley)",null,"Q86","NHS England South West (South West North)",null,"Q71","RYJ","IMPERIAL COLLEGE HEALTHCARE NHS TRUST","RYJ04","Queen Charlotte's Hospital - RYJ04",null,"RAJ","BRIGHTON AND SUSSEX UNIVERSITY HOSPITALS NHS TRUST",null,"RAJ","BRIGHTON AND SUSSEX UNIVERSITY HOSPITALS NHS TRUST","RA901","Blackpool Victoria Hospital - RXL01"]
[null,null,null,null,null,null,null,null,null,null,null,"SMS/Text / Smartphone App","Extremely Unlikely",null,"Q88","NHS England South East (Kent, Surrey & Sussex)",null,"Q87","NHS England South West (South West South)",null,"Q71","RYJ","IMPERIAL COLLEGE HEALTHCARE NHS TRUST","RYJ01","St Mary's Hospital (HQ) - RYJ01",null,"RAL","BUCKINGHAMSHIRE HEALTHCARE NHS TRUST",null,"RAL","BUCKINGHAMSHIRE HEALTHCARE NHS TRUST","RAE01","Bradford Royal Infirmary - RAE01"]
[null,null,null,null,null,null,null,null,null,null,null,"Electronic tablet/kiosk at point of discharge","Don't Know",null,"Q71","NHS England London",null,"Q88","NHS England West Midlands",null,"Q71","RJZ","KING'S COLLEGE HOSPITAL NHS FOUNDATION TRUST","RJZ01","King's College Hospital (Denmark Hill) - RJZ01",null,"RAP","CALDERDALE AND HUDDERSFIELD NHS FOUNDATION TRUST",null,"RAP","CALDERDALE AND HUDDERSFIELD NHS FOUNDATION TRUST","RAJ01","Bridgnorth Hospital (Maternity) - RXWMB"]
[null,null,null,null,null,null,null,null,null,null,null,"Paper / postcard at point of discharge",null,null,"zIS1","Independent Sector Provider",null,"zIS1","NHS England Yorkshire & Humber",null,"Q71","RJZ","KING'S COLLEGE HOSPITAL NHS FOUNDATION TRUST","RJZ30","Princess Royal University Hospital - RJZ30",null,"RAS","CAMBRIDGE UNIVERSITY HOSPITALS NHS FOUNDATION TRUST",null,"RAS","CAMBRIDGE UNIVERSITY HOSPITALS NHS FOUNDATION TRUST","RAL01","Bridgwater Hospital - RBAC3"]
[null,null,null,null,null,null,null,null,null,null,null,"Paper survey, sent to the patients home",null,null,null,null,null,null,null,null,"Q71","RAX","KINGSTON HOSPITAL NHS FOUNDATION TRUST","RAX01","Kingston Hospital - RAX01",null,"RAX","CHELSEA AND WESTMINSTER HOSPITAL NHS FOUNDATION TRUST",null,"RAX","CHELSEA AND WESTMINSTER HOSPITAL NHS FOUNDATION TRUST","RAL26","Broomfield Hospital - RQ8L0"]
[null,null,null,null,null,null,null,null,null,null,null,"Telephone survey once patient is home",null,null,null,null,null,null,null,null,"Q71","RJ2","LEWISHAM AND GREENWICH NHS TRUST","RJ231","Queen Elizabeth Hospital - RJ231",null,"RBA","CHESTERFIELD ROYAL HOSPITAL NHS FOUNDATION TRUST",null,"RBA","CHESTERFIELD ROYAL HOSPITAL NHS FOUNDATION TRUST","RAPNM","Calderdale Royal Hospital - RWY02"]
[null,null,null,null,null,null,null,null,null,null,null,"Online survey once patient is home",null,null,null,null,null,null,null,null,"Q71","RJ2","LEWISHAM AND GREENWICH NHS TRUST","RJ224","University Hospital Lewisham - RJ224",null,"RBD","CITY HOSPITALS SUNDERLAND NHS FOUNDATION TRUST",null,"RBD","CITY HOSPITALS SUNDERLAND NHS FOUNDATION TRUST","RAS01","Chelsea and Westminster Hospital - RQM01"]
[null,null,null,null,null,null,null,null,null,null,null,"Other",null,null,null,null,null,null,null,null,"Q71","R1K","LONDON NORTH WEST UNIVERSITY HEALTHCARE NHS TRUST","R1K01","Northwick Park Hospital - R1K01",null,"RBK","COUNTESS OF CHESTER HOSPITAL NHS FOUNDATION TRUST",null,"RBK","COUNTESS OF CHESTER HOSPITAL NHS FOUNDATION TRUST","RAX01","Chesterfield Royal Hospital - RFSDA"]
[null,null,null,null,null,null,null,null,null,null,null,null,null,null,null,null,null,null,null,null,"Q71","RAP","NORTH MIDDLESEX UNIVERSITY HOSPITAL NHS TRUST","RAPNM","North Middlesex Hospital - RAPNM",null,"RBL","COUNTY DURHAM AND DARLINGTON NHS FOUNDATION TRUST",null,"RBL","COUNTY DURHAM AND DARLINGTON NHS FOUNDATION TRUST","RBA11","Chippenham Community Hospital -RD102"]
[null,null,null,null,null,null,null,null,null,null,null,null,null,null,null,null,null,null,null,null,"Q71","RAL","ROYAL FREE LONDON NHS FOUNDATION TRUST","RAL26","Barnet Hospital - RAL26",null,"RBN","CROYDON HEALTH SERVICES NHS TRUST",null,"RBN","CROYDON HEALTH SERVICES NHS TRUST","RBAC3","Chipping Norton Community Hospital - RTH19"]
[null,null,null,null,null,null,null,null,null,null,null,null,null,null,null,null,null,null,null,null,"Q71","RAL","ROYAL FREE LONDON NHS FOUNDATION TRUST","RAL01","Royal Free Hospital - RAL01",null,"RBT","DARTFORD AND GRAVESHAM NHS TRUST",null,"RBT","DARTFORD AND GRAVESHAM NHS TRUST","RBD01","Chorley and South Ribble Hospital - RXN01"]
[null,null,null,null,null,null,null,null,null,null,null,null,null,null,null,null,null,null,null,null,"Q71","RJ7","ST GEORGE'S UNIVERSITY HOSPITALS NHS FOUNDATION TRUST","RJ701","St George's Hospital (Tooting) - RJ701",null,"RBZ","DONCASTER AND BASSETLAW TEACHING HOSPITALS NHS FOUNDATION TRUST",null,"RBZ","DONCASTER AND BASSETLAW TEACHING HOSPITALS NHS FOUNDATION TRUST","RBK02","City Hospital - RXK02"]
[null,null,null,null,null,null,null,null,null,null,null,null,null,null,null,null,null,null,null,null,"Q71","RAS","THE HILLINGDON HOSPITALS NHS FOUNDATION TRUST","RAS01","Hillingdon Hospital - RAS01",null,"RC1","DORSET COUNTY HOSPITAL NHS FOUNDATION TRUST",null,"RC1","DORSET COUNTY HOSPITAL NHS FOUNDATION TRUST","RBL14","Colchester General Hospital - RDEE4"]
[null,null,null,null,null,null,null,null,null,null,null,null,null,null,null,null,null,null,null,null,"Q71","RRV","UNIVERSITY COLLEGE LONDON HOSPITALS NHS FOUNDATION TRUST","RRV11","University College Hospital Elizabeth Garrett Anderson Wing - RRV11",null,"RC9","EAST AND NORTH HERTFORDSHIRE NHS TRUST",null,"RC9","EAST AND NORTH HERTFORDSHIRE NHS TRUST","RBN01","Conquest Hospital - RXC01"]
[null,null,null,null,null,null,null,null,null,null,null,null,null,null,null,null,null,null,null,null,"Q71","RKE","WHITTINGTON HEALTH NHS TRUST","RKEQ4","The Whittington Hospital - RKEQ4",null,"RCB","EAST CHESHIRE NHS TRUST",null,"RCB","EAST CHESHIRE NHS TRUST","RBT20","Countess Of Chester Hospital - RJR05"]
[null,null,null,null,null,null,null,null,null,null,null,null,null,null,null,null,null,null,null,null,"Q72","RCF","AIREDALE NHS FOUNDATION TRUST","RCF22","Airedale General Hospital - RCF22",null,"RCD","EAST KENT HOSPITALS UNIVERSITY NHS FOUNDATION TRUST",null,"RCD","EAST KENT HOSPITALS UNIVERSITY NHS FOUNDATION TRUST","RBZ12","Croydon University Hospital - RJ611"]
[null,null,null,null,null,null,null,null,null,null,null,null,null,null,null,null,null,null,null,null,"Q72","RFF","BARNSLEY HOSPITAL NHS FOUNDATION TRUST","RFFAA","Barnsley Hospital NHS Foundation Trust HQ - RFFAA",null,"RCF","EAST LANCASHIRE HOSPITALS NHS TRUST",null,"RCF","EAST LANCASHIRE HOSPITALS NHS TRUST","RC110","Cumberland Infirmary - RNLAY"]
[null,null,null,null,null,null,null,null,null,null,null,null,null,null,null,null,null,null,null,null,"Q72","RAE","BRADFORD TEACHING HOSPITALS NHS FOUNDATION TRUST","RAE01","Bradford Royal Infirmary - RAE01",null,"RCX","EAST SUFFOLK AND NORTH ESSEX NHS FOUNDATION TRUST",null,"RCX","EAST SUFFOLK AND NORTH ESSEX NHS FOUNDATION TRUST","RC971","Darent Valley Hospital - RN707"]
[null,null,null,null,null,null,null,null,null,null,null,null,null,null,null,null,null,null,null,null,"Q72","RWY","CALDERDALE AND HUDDERSFIELD NHS FOUNDATION TRUST","RWY02","Calderdale Royal Hospital - RWY02",null,"RD1","EAST SUSSEX HEALTHCARE NHS TRUST",null,"RD1","EAST SUSSEX HEALTHCARE NHS TRUST","RCB55","Darlington Memorial Hospital - RXPDA"]
[null,null,null,null,null,null,null,null,null,null,null,null,null,null,null,null,null,null,null,null,"Q72","RWY","CALDERDALE AND HUDDERSFIELD NHS FOUNDATION TRUST","RWY01","Huddersfield Royal Infirmary - RWY01",null,"RD3","EPSOM AND ST HELIER UNIVERSITY HOSPITALS NHS TRUST",null,"RD3","EPSOM AND ST HELIER UNIVERSITY HOSPITALS NHS TRUST","RCBCA","Derriford Hospital - RK950"]
[null,null,null,null,null,null,null,null,null,null,null,null,null,null,null,null,null,null,null,null,"Q72","RP5","DONCASTER AND BASSETLAW TEACHING HOSPITALS NHS FOUNDATION TRUST","RP5BA","Bassetlaw Hospital - RP5BA",null,"RD8","FRIMLEY HEALTH NHS FOUNDATION TRUST",null,"RD8","FRIMLEY HEALTH NHS FOUNDATION TRUST","RCD01","Doncaster Royal Infirmary - RP5DR"]
[null,null,null,null,null,null,null,null,null,null,null,null,null,null,null,null,null,null,null,null,"Q72","RP5","DONCASTER AND BASSETLAW TEACHING HOSPITALS NHS FOUNDATION TRUST","RP5DR","Doncaster Royal Infirmary - RP5DR",null,"RDD","GATESHEAD HEALTH NHS FOUNDATION TRUST",null,"RDD","GATESHEAD HEALTH NHS FOUNDATION TRUST","RCF22","Dorset County Hospital - RBD01"]
[null,null,null,null,null,null,null,null,null,null,null,null,null,null,null,null,null,null,null,null,"Q72","RCD","HARROGATE AND DISTRICT NHS FOUNDATION TRUST","RCD01","Harrogate District Hospital - RCD01",null,"RDE","GEORGE ELIOT HOSPITAL NHS TRUST",null,"RDE","GEORGE ELIOT HOSPITAL NHS TRUST","RCX70","East Surrey Hospital - RTP04"]
[null,null,null,null,null,null,null,null,null,null,null,null,null,null,null,null,null,null,null,null,"Q72","RWA","HULL AND EAST YORKSHIRE HOSPITALS NHS TRUST","RWA01","Hull Royal Infirmary - RWA01",null,"RDU","GLOUCESTERSHIRE HOSPITALS NHS FOUNDATION TRUST",null,"RDU","GLOUCESTERSHIRE HOSPITALS NHS FOUNDATION TRUST","RD102","Eastbourne District General Hospital - RXC02"]
[null,null,null,null,null,null,null,null,null,null,null,null,null,null,null,null,null,null,null,null,"Q72","RR8","LEEDS TEACHING HOSPITALS NHS TRUST","RR801","Leeds General Infirmary - RR801",null,"RDZ","GREAT WESTERN HOSPITALS NHS FOUNDATION TRUST",null,"RDZ","GREAT WESTERN HOSPITALS NHS FOUNDATION TRUST","RD129","Epsom Hospital - RVR50"]
[null,null,null,null,null,null,null,null,null,null,null,null,null,null,null,null,null,null,null,null,"Q72","RR8","LEEDS TEACHING HOSPITALS NHS TRUST","RR813","St James's University Hospital - RR813",null,"RE9","GUY'S AND ST THOMAS' NHS FOUNDATION TRUST",null,"RE9","GUY'S AND ST THOMAS' NHS FOUNDATION TRUST","RD130","Friarage Hospital Site - RTR45"]
[null,null,null,null,null,null,null,null,null,null,null,null,null,null,null,null,null,null,null,null,"Q72","RXF","MID YORKSHIRE HOSPITALS NHS TRUST","RXF05","Pinderfields General Hospital - RXF05",null,"REF","HAMPSHIRE HOSPITALS NHS FOUNDATION TRUST",null,"REF","HAMPSHIRE HOSPITALS NHS FOUNDATION TRUST","RD304","Frimley Park Hospital - RDU01"]
[null,null,null,null,null,null,null,null,null,null,null,null,null,null,null,null,null,null,null,null,"Q72","RJL","NORTHERN LINCOLNSHIRE AND GOOLE NHS FOUNDATION TRUST","RJL32","Scunthorpe General Hospital - RJL32",null,"REP","HARROGATE AND DISTRICT NHS FOUNDATION TRUST",null,"REP","HARROGATE AND DISTRICT NHS FOUNDATION TRUST","RD816","Furness General Hospital - RTXBU"]
[null,null,null,null,null,null,null,null,null,null,null,null,null,null,null,null,null,null,null,null,"Q72","RHQ","SHEFFIELD TEACHING HOSPITALS NHS FOUNDATION TRUST","RHQHH","Royal Hallamshire Hospital - RHQHH",null,"RF4","HOMERTON UNIVERSITY HOSPITAL NHS FOUNDATION TRUST",null,"RF4","HOMERTON UNIVERSITY HOSPITAL NHS FOUNDATION TRUST","RDDH0","George Eliot Hospital - Acute Services - RLT01"]
[null,null,null,null,null,null,null,null,null,null,null,null,null,null,null,null,null,null,null,null,"Q72","RFR","THE ROTHERHAM NHS FOUNDATION TRUST","RFRPA","Rotherham District General Hospital - RFRPA",null,"RFF","HULL AND EAST YORKSHIRE HOSPITALS NHS TRUST",null,"RFF","HULL AND EAST YORKSHIRE HOSPITALS NHS TRUST","RDE03","Gloucestershire Royal Hospital - RTE03"]
[null,null,null,null,null,null,null,null,null,null,null,null,null,null,null,null,null,null,null,null,"Q72","RCB","YORK TEACHING HOSPITAL NHS FOUNDATION TRUST","RCBCA","Scarborough General Hospital - RCBCA",null,"RFR","IMPERIAL COLLEGE HEALTHCARE NHS TRUST",null,"RFR","IMPERIAL COLLEGE HEALTHCARE NHS TRUST","RDEE4","Good Hope Hospital - RRK98"]
[null,null,null,null,null,null,null,null,null,null,null,null,null,null,null,null,null,null,null,null,"Q72","RCB","YORK TEACHING HOSPITAL NHS FOUNDATION TRUST","RCB55","York Hospital - RCB55",null,"RFS","ISLE OF WIGHT NHS TRUST",null,"RFS","ISLE OF WIGHT NHS TRUST","RDU01","Gosport War Memorial Hospital - RHU10"]
[null,null,null,null,null,null,null,null,null,null,null,null,null,null,null,null,null,null,null,null,"Q74","RLN","CITY HOSPITALS SUNDERLAND NHS FOUNDATION TRUST","RLNGL","Sunderland Royal Hospital - RLNGL",null,"RGN","JAMES PAGET UNIVERSITY HOSPITALS NHS FOUNDATION TRUST",null,"RGN","JAMES PAGET UNIVERSITY HOSPITALS NHS FOUNDATION TRUST","RDU50","Grantham and District Hospital - RWDLP"]
[null,null,null,null,null,null,null,null,null,null,null,null,null,null,null,null,null,null,null,null,"Q74","RXP","COUNTY DURHAM AND DARLINGTON NHS FOUNDATION TRUST","RXPDA","Darlington Memorial Hospital - RXPDA",null,"RGP","KETTERING GENERAL HOSPITAL NHS FOUNDATION TRUST",null,"RGP","KETTERING GENERAL HOSPITAL NHS FOUNDATION TRUST","RDZ20","Harrogate District Hospital - RCD01"]
[null,null,null,null,null,null,null,null,null,null,null,null,null,null,null,null,null,null,null,null,"Q74","RXP","COUNTY DURHAM AND DARLINGTON NHS FOUNDATION TRUST","RXPCP","University Hospital Of North Durham - RXPCP",null,"RGR","KING'S COLLEGE HOSPITAL NHS FOUNDATION TRUST",null,"RGR","KING'S COLLEGE HOSPITAL NHS FOUNDATION TRUST","RE9GA","Health Care Resource Centre - RY28P"]
[null,null,null,null,null,null,null,null,null,null,null,null,null,null,null,null,null,null,null,null,"Q74","RR7","GATESHEAD HEALTH NHS FOUNDATION TRUST","RR7EN","Queen Elizabeth Hospital - RR7EN",null,"RGT","KINGSTON HOSPITAL NHS FOUNDATION TRUST",null,"RGT","KINGSTON HOSPITAL NHS FOUNDATION TRUST","REF12","Heartlands Hospital - RRK97"]
[null,null,null,null,null,null,null,null,null,null,null,null,null,null,null,null,null,null,null,null,"Q74","RNL","NORTH CUMBRIA UNIVERSITY HOSPITALS NHS TRUST","RNLAY","Cumberland Infirmary - RNLAY",null,"RH8","LANCASHIRE TEACHING HOSPITALS NHS FOUNDATION TRUST",null,"RH8","LANCASHIRE TEACHING HOSPITALS NHS FOUNDATION TRUST","REP01","Hereford County Hospital - RLQ01"]
[null,null,null,null,null,null,null,null,null,null,null,null,null,null,null,null,null,null,null,null,"Q74","RNL","NORTH CUMBRIA UNIVERSITY HOSPITALS NHS TRUST","RNLBX","West Cumberland Hospital - RNLBX",null,"RHM","LEEDS TEACHING HOSPITALS NHS TRUST",null,"RHM","LEEDS TEACHING HOSPITALS NHS TRUST","RF4QH","Hexham General Hospital - RTFDR"]
[null,null,null,null,null,null,null,null,null,null,null,null,null,null,null,null,null,null,null,null,"Q74","RVW","NORTH TEES AND HARTLEPOOL NHS FOUNDATION TRUST","RVWAE","University Hospital Of North Tees - RVWAE",null,"RHQ","LEWISHAM AND GREENWICH NHS TRUST",null,"RHQ","LEWISHAM AND GREENWICH NHS TRUST","RFFAA","Hillingdon Hospital - RAS01"]
[null,null,null,null,null,null,null,null,null,null,null,null,null,null,null,null,null,null,null,null,"Q74","RTF","NORTHUMBRIA HEALTHCARE NHS FOUNDATION TRUST","RTFDJ","Alnwick Infirmary - RTFDJ",null,"RHU","LIVERPOOL WOMEN'S NHS FOUNDATION TRUST",null,"RHU","LIVERPOOL WOMEN'S NHS FOUNDATION TRUST","RFRPA","Hinchingbrooke Hospital - RGN90"]
[null,null,null,null,null,null,null,null,null,null,null,null,null,null,null,null,null,null,null,null,"Q74","RTF","NORTHUMBRIA HEALTHCARE NHS FOUNDATION TRUST","RTFDH","Berwick Infirmary - RTFDH",null,"RHW","LONDON NORTH WEST UNIVERSITY HEALTHCARE NHS TRUST",null,"RHW","LONDON NORTH WEST UNIVERSITY HEALTHCARE NHS TRUST","RFSDA","Homerton University Hospital - RQXM1"]
[null,null,null,null,null,null,null,null,null,null,null,null,null,null,null,null,null,null,null,null,"Q74","RTF","NORTHUMBRIA HEALTHCARE NHS FOUNDATION TRUST","RTFDR","Hexham General Hospital - RTFDR",null,"RJ1","LUTON AND DUNSTABLE UNIVERSITY HOSPITAL NHS FOUNDATION TRUST",null,"RJ1","LUTON AND DUNSTABLE UNIVERSITY HOSPITAL NHS FOUNDATION TRUST","RGN80","Honiton Hospital - RH 854"]
[null,null,null,null,null,null,null,null,null,null,null,null,null,null,null,null,null,null,null,null,"Q74","RTF","NORTHUMBRIA HEALTHCARE NHS FOUNDATION TRUST","RTF86","The Northumbria - RTF86",null,"RJ2","MAIDSTONE AND TUNBRIDGE WELLS NHS TRUST",null,"RJ2","MAIDSTONE AND TUNBRIDGE WELLS NHS TRUST","RGN90","Horton General Hospital - RTH05"]
[null,null,null,null,null,null,null,null,null,null,null,null,null,null,null,null,null,null,null,null,"Q74","RTR","SOUTH TEES HOSPITALS NHS FOUNDATION TRUST","RTR45","Friarage Hospital Site - RTR45",null,"RJ6","MANCHESTER UNIVERSITY NHS FOUNDATION TRUST",null,"RJ6","MANCHESTER UNIVERSITY NHS FOUNDATION TRUST","RGP75","Huddersfield Royal Infirmary - RWY01"]
[null,null,null,null,null,null,null,null,null,null,null,null,null,null,null,null,null,null,null,null,"Q74","RTR","SOUTH TEES HOSPITALS NHS FOUNDATION TRUST","RTRAT","The James Cook University Hospital - RTRAT",null,"RJ7","MEDWAY NHS FOUNDATION TRUST",null,"RJ7","MEDWAY NHS FOUNDATION TRUST","RGR50","Hull Royal Infirmary - RWA01"]
[null,null,null,null,null,null,null,null,null,null,null,null,null,null,null,null,null,null,null,null,"Q74","RE9","SOUTH TYNESIDE NHS FOUNDATION TRUST","RE9GA","South Tyneside District Hospital - RE9GA",null,"RJC","MID CHESHIRE HOSPITALS NHS FOUNDATION TRUST",null,"RJC","MID CHESHIRE HOSPITALS NHS FOUNDATION TRUST","RGT32","Ipswich Hospital - RDE03"]
[null,null,null,null,null,null,null,null,null,null,null,null,null,null,null,null,null,null,null,null,"Q74","RTD","THE NEWCASTLE UPON TYNE HOSPITALS NHS FOUNDATION TRUST","RTD02","The Royal Victoria Infirmary - RTD02",null,"RJE","MID ESSEX HOSPITAL SERVICES NHS TRUST",null,"RJE","MID ESSEX HOSPITAL SERVICES NHS TRUST","RH801","James Paget University Hospital - RGP75"]
[null,null,null,null,null,null,null,null,null,null,null,null,null,null,null,null,null,null,null,null,"Q75","RJR","COUNTESS OF CHESTER HOSPITAL NHS FOUNDATION TRUST","RJR05","Countess Of Chester Hospital - RJR05",null,"RJL","MID YORKSHIRE HOSPITALS NHS TRUST",null,"RJL","MID YORKSHIRE HOSPITALS NHS TRUST","RH833","John Radcliffe Hospital - RTH08"]
[null,null,null,null,null,null,null,null,null,null,null,null,null,null,null,null,null,null,null,null,"Q75","RJN","EAST CHESHIRE NHS TRUST","RJN71","Macclesfield District General Hospital - RJN71",null,"RJN","MILTON KEYNES UNIVERSITY HOSPITAL NHS FOUNDATION TRUST",null,"RJN","MILTON KEYNES UNIVERSITY HOSPITAL NHS FOUNDATION TRUST","RH853","Kettering General Hospital - RNQ51"]
[null,null,null,null,null,null,null,null,null,null,null,null,null,null,null,null,null,null,null,null,"Q75","REP","LIVERPOOL WOMEN'S NHS FOUNDATION TRUST","REP01","Liverpool Womens Hospital - REP01",null,"RJR","NORFOLK AND NORWICH UNIVERSITY HOSPITALS NHS FOUNDATION TRUST",null,"RJR","NORFOLK AND NORWICH UNIVERSITY HOSPITALS NHS FOUNDATION TRUST","RH854","King's College Hospital (Denmark Hill) - RJZ01"]
[null,null,null,null,null,null,null,null,null,null,null,null,null,null,null,null,null,null,null,null,"Q75","RBT","MID CHESHIRE HOSPITALS NHS FOUNDATION TRUST","RBT20","Leighton Hospital - RBT20",null,"RJZ","NORTH BRISTOL NHS TRUST",null,"RJZ","NORTH BRISTOL NHS TRUST","RHM12","King's Mill Hospital - RK5BC"]
[null,null,null,null,null,null,null,null,null,null,null,null,null,null,null,null,null,null,null,null,"Q75","RVY","SOUTHPORT AND ORMSKIRK HOSPITAL NHS TRUST","RVY02","Ormskirk and District General Hospital - RVY02",null,"RK5","NORTH CUMBRIA UNIVERSITY HOSPITALS NHS TRUST",null,"RK5","NORTH CUMBRIA UNIVERSITY HOSPITALS NHS TRUST","RHQHH","Kingston Hospital - RAX01"]
[null,null,null,null,null,null,null,null,null,null,null,null,null,null,null,null,null,null,null,null,"Q75","RBN","ST HELENS AND KNOWSLEY TEACHING HOSPITALS NHS TRUST","RBN01","Whiston Hospital - RBN01",null,"RK9","NORTH MIDDLESEX UNIVERSITY HOSPITAL NHS TRUST",null,"RK9","NORTH MIDDLESEX UNIVERSITY HOSPITAL NHS TRUST","RHU02","Leeds General Infirmary - RR801"]
[null,null,null,null,null,null,null,null,null,null,null,null,null,null,null,null,null,null,null,null,"Q75","RWW","WARRINGTON AND HALTON HOSPITALS NHS FOUNDATION TRUST","RWWWH","Warrington Hospital - RWWWH",null,"RKB","NORTH TEES AND HARTLEPOOL NHS FOUNDATION TRUST",null,"RKB","NORTH TEES AND HARTLEPOOL NHS FOUNDATION TRUST","RHU03","Leicester General Hospital - RWEAK"]
[null,null,null,null,null,null,null,null,null,null,null,null,null,null,null,null,null,null,null,null,"Q75","RBL","WIRRAL UNIVERSITY TEACHING HOSPITAL NHS FOUNDATION TRUST","RBL14","Arrowe Park Hospital - RBL14",null,"RKE","NORTH WEST ANGLIA NHS FOUNDATION TRUST",null,"RKE","NORTH WEST ANGLIA NHS FOUNDATION TRUST","RHU04","Leicester Royal Infirmary - RWEAA"]
[null,null,null,null,null,null,null,null,null,null,null,null,null,null,null,null,null,null,null,null,"Q76","RFS","CHESTERFIELD ROYAL HOSPITAL NHS FOUNDATION TRUST","RFSDA","Chesterfield Royal Hospital - RFSDA",null,"RL4","NORTHAMPTON GENERAL HOSPITAL NHS TRUST",null,"RL4","NORTHAMPTON GENERAL HOSPITAL NHS TRUST","RHU10","Leighton Hospital - RBT20"]
[null,null,null,null,null,null,null,null,null,null,null,null,null,null,null,null,null,null,null,null,"Q76","RX1","NOTTINGHAM UNIVERSITY HOSPITALS NHS TRUST","RX1CC","Nottingham University Hospitals NHS Trust - City Campus - RX1CC",null,"RLN","NORTHERN DEVON HEALTHCARE NHS TRUST",null,"RLN","NORTHERN DEVON HEALTHCARE NHS TRUST","RHW01","Lincoln County Hospital - RWDDA"]
[null,null,null,null,null,null,null,null,null,null,null,null,null,null,null,null,null,null,null,null,"Q76","RX1","NOTTINGHAM UNIVERSITY HOSPITALS NHS TRUST","RX1RA","Nottingham University Hospitals NHS Trust - Queen's Medical Centre Campus - RX1RA",null,"RLQ","NORTHERN LINCOLNSHIRE AND GOOLE NHS FOUNDATION TRUST",null,"RLQ","NORTHERN LINCOLNSHIRE AND GOOLE NHS FOUNDATION TRUST","RJ122","Lister Hospital - RWH01"]
[null,null,null,null,null,null,null,null,null,null,null,null,null,null,null,null,null,null,null,null,"Q76","RK5","SHERWOOD FOREST HOSPITALS NHS FOUNDATION TRUST","RK5BC","King's Mill Hospital - RK5BC",null,"RLT","NORTHUMBRIA HEALTHCARE NHS FOUNDATION TRUST",null,"RLT","NORTHUMBRIA HEALTHCARE NHS FOUNDATION TRUST","RJ224","Liverpool Womens Hospital - REP01"]
[null,null,null,null,null,null,null,null,null,null,null,null,null,null,null,null,null,null,null,null,"Q76","RXW","SHREWSBURY AND TELFORD HOSPITAL NHS TRUST","RXWMB","Bridgnorth Hospital (Maternity) - RXWMB",null,"RM1","NOTTINGHAM UNIVERSITY HOSPITALS NHS TRUST",null,"RM1","NOTTINGHAM UNIVERSITY HOSPITALS NHS TRUST","RJ231","Ludlow Hospital (Maternity) - RXWML"]
[null,null,null,null,null,null,null,null,null,null,null,null,null,null,null,null,null,null,null,null,"Q76","RXW","SHREWSBURY AND TELFORD HOSPITAL NHS TRUST","RXWML","Ludlow Hospital (Maternity) - RXWML",null,"RMC","ONE TO ONE (NORTH WEST) LIMITED",null,"RMC","ONE TO ONE (NORTH WEST) LIMITED","RJ611","Luton and Dunstable Hospital - RC971"]
[null,null,null,null,null,null,null,null,null,null,null,null,null,null,null,null,null,null,null,null,"Q76","RXW","SHREWSBURY AND TELFORD HOSPITAL NHS TRUST","RXWMJ","Robert Jones & Agnes Hunt Orthopaedic & District Hospital - RXWMJ",null,"RMP","OXFORD UNIVERSITY HOSPITALS NHS FOUNDATION TRUST",null,"RMP","OXFORD UNIVERSITY HOSPITALS NHS FOUNDATION TRUST","RJ701","Macclesfield District General Hospital - RJN71"]
[null,null,null,null,null,null,null,null,null,null,null,null,null,null,null,null,null,null,null,null,"Q76","RXW","SHREWSBURY AND TELFORD HOSPITAL NHS TRUST","RXWAS","Royal Shrewsbury Hospital - RXWAS",null,"RN3","PENNINE ACUTE HOSPITALS NHS TRUST",null,"RN3","PENNINE ACUTE HOSPITALS NHS TRUST","RJC02","Manor Hospital - RBK02"]
[null,null,null,null,null,null,null,null,null,null,null,null,null,null,null,null,null,null,null,null,"Q76","RXW","SHREWSBURY AND TELFORD HOSPITAL NHS TRUST","RXWAT","The Princess Royal Hospital - RXWAT",null,"RN5","POOLE HOSPITAL NHS FOUNDATION TRUST",null,"RN5","POOLE HOSPITAL NHS FOUNDATION TRUST","RJE01","Medway Maritime Hospital - RPA02"]
[null,null,null,null,null,null,null,null,null,null,null,null,null,null,null,null,null,null,null,null,"Q76","RTG","UNIVERSITY HOSPITALS OF DERBY AND BURTON NHS FOUNDATION TRUST","RTG02","Queens Hospital, Burton Upon Trent - RTG02",null,"RN7","PORTSMOUTH HOSPITALS NHS TRUST",null,"RN7","PORTSMOUTH HOSPITALS NHS TRUST","RJL32","Milton Keynes Hospital - RD816"]
[null,null,null,null,null,null,null,null,null,null,null,null,null,null,null,null,null,null,null,null,"Q76","RTG","UNIVERSITY HOSPITALS OF DERBY AND BURTON NHS FOUNDATION TRUST","RTGFG","Royal Derby Hospital - RTGFG",null,"RNA","ROYAL BERKSHIRE NHS FOUNDATION TRUST",null,"RNA","ROYAL BERKSHIRE NHS FOUNDATION TRUST","RJN71","Musgrove Park Hospital - RBA11"]
[null,null,null,null,null,null,null,null,null,null,null,null,null,null,null,null,null,null,null,null,"Q76","RJE","UNIVERSITY HOSPITALS OF NORTH MIDLANDS NHS TRUST","RJE01","Royal Stoke University Hospital - RJE01",null,"RNL","ROYAL CORNWALL HOSPITALS NHS TRUST",null,"RNL","ROYAL CORNWALL HOSPITALS NHS TRUST","RJR05","New Cross Hospital - RL403"]
[null,null,null,null,null,null,null,null,null,null,null,null,null,null,null,null,null,null,null,null,"Q77","RQ3","BIRMINGHAM WOMEN'S AND CHILDREN'S NHS FOUNDATION TRUST","RQ370","Birmingham Women's Hospital - RQ370",null,"RNQ","ROYAL DEVON AND EXETER NHS FOUNDATION TRUST",null,"RNQ","ROYAL DEVON AND EXETER NHS FOUNDATION TRUST","RJZ01","Newham General Hospital - R1HNH"]
[null,null,null,null,null,null,null,null,null,null,null,null,null,null,null,null,null,null,null,null,"Q77","RLT","GEORGE ELIOT HOSPITAL NHS TRUST","RLT01","George Eliot Hospital - Acute Services - RLT01",null,"RNS","ROYAL FREE LONDON NHS FOUNDATION TRUST",null,"RNS","ROYAL FREE LONDON NHS FOUNDATION TRUST","RJZ30","Norfolk and Norwich University Hospital - RM102"]
[null,null,null,null,null,null,null,null,null,null,null,null,null,null,null,null,null,null,null,null,"Q77","RXK","SANDWELL AND WEST BIRMINGHAM HOSPITALS NHS TRUST","RXK02","City Hospital - RXK02",null,"RNZ","ROYAL SURREY COUNTY HOSPITAL NHS FOUNDATION TRUST",null,"RNZ","ROYAL SURREY COUNTY HOSPITAL NHS FOUNDATION TRUST","RK5BC","North Devon District Hospital - RBZ12"]
[null,null,null,null,null,null,null,null,null,null,null,null,null,null,null,null,null,null,null,null,"Q77","RJC","SOUTH WARWICKSHIRE NHS FOUNDATION TRUST","RJC02","Warwick Hospital - RJC02",null,"RP5","ROYAL UNITED HOSPITALS BATH NHS FOUNDATION TRUST",null,"RP5","ROYAL UNITED HOSPITALS BATH NHS FOUNDATION TRUST","RK950","North Manchester General Hospital - RW602"]
[null,null,null,null,null,null,null,null,null,null,null,null,null,null,null,null,null,null,null,null,"Q77","RNA","THE DUDLEY GROUP NHS FOUNDATION TRUST","RNA01","Russells Hall Hospital - RNA01",null,"RPA","SALISBURY NHS FOUNDATION TRUST",null,"RPA","SALISBURY NHS FOUNDATION TRUST","RKB01","North Middlesex Hospital - RAPNM"]
[null,null,null,null,null,null,null,null,null,null,null,null,null,null,null,null,null,null,null,null,"Q77","RL4","THE ROYAL WOLVERHAMPTON NHS TRUST","RL403","New Cross Hospital - RL403",null,"RQ3","SANDWELL AND WEST BIRMINGHAM HOSPITALS NHS TRUST",null,"RQ3","SANDWELL AND WEST BIRMINGHAM HOSPITALS NHS TRUST","RKEQ4","Northampton General Hospital (Acute) - RNS01"]
[null,null,null,null,null,null,null,null,null,null,null,null,null,null,null,null,null,null,null,null,"Q77","RRK","UNIVERSITY HOSPITALS BIRMINGHAM NHS FOUNDATION TRUST","RRK98","Good Hope Hospital - RRK98",null,"RQ8","SHEFFIELD TEACHING HOSPITALS NHS FOUNDATION TRUST",null,"RQ8","SHEFFIELD TEACHING HOSPITALS NHS FOUNDATION TRUST","RL403","Northwick Park Hospital - R1K01"]
[null,null,null,null,null,null,null,null,null,null,null,null,null,null,null,null,null,null,null,null,"Q77","RRK","UNIVERSITY HOSPITALS BIRMINGHAM NHS FOUNDATION TRUST","RRK97","Heartlands Hospital - RRK97",null,"RQM","SHERWOOD FOREST HOSPITALS NHS FOUNDATION TRUST",null,"RQM","SHERWOOD FOREST HOSPITALS NHS FOUNDATION TRUST","RLNGL","Nottingham University Hospitals NHS Trust - City Campus - RX1CC"]
[null,null,null,null,null,null,null,null,null,null,null,null,null,null,null,null,null,null,null,null,"Q77","RRK","UNIVERSITY HOSPITALS BIRMINGHAM NHS FOUNDATION TRUST","RRK99","Solihull Hospital - RRK99",null,"RQW","SHREWSBURY AND TELFORD HOSPITAL NHS TRUST",null,"RQW","SHREWSBURY AND TELFORD HOSPITAL NHS TRUST","RLQ01","Nottingham University Hospitals NHS Trust - Queen's Medical Centre Campus - RX1RA"]
[null,null,null,null,null,null,null,null,null,null,null,null,null,null,null,null,null,null,null,null,"Q77","RKB","UNIVERSITY HOSPITALS COVENTRY AND WARWICKSHIRE NHS TRUST","RKB01","University Hospital (Coventry) - RKB01",null,"RQX","SOUTH TEES HOSPITALS NHS FOUNDATION TRUST",null,"RQX","SOUTH TEES HOSPITALS NHS FOUNDATION TRUST","RLT01","Okehampton Community Hospital - RH833"]
[null,null,null,null,null,null,null,null,null,null,null,null,null,null,null,null,null,null,null,null,"Q77","RBK","WALSALL HEALTHCARE NHS TRUST","RBK02","Manor Hospital - RBK02",null,"RR7","SOUTH TYNESIDE NHS FOUNDATION TRUST",null,"RR7","SOUTH TYNESIDE NHS FOUNDATION TRUST","RM102","One to One (North West) Limited HQ - NDE01"]
[null,null,null,null,null,null,null,null,null,null,null,null,null,null,null,null,null,null,null,null,"Q77","RWP","WORCESTERSHIRE ACUTE HOSPITALS NHS TRUST","RWP50","Worcestershire Royal Hospital - RWP50",null,"RR8","SOUTH WARWICKSHIRE NHS FOUNDATION TRUST",null,"RR8","SOUTH WARWICKSHIRE NHS FOUNDATION TRUST","RMC01","Ormskirk and District General Hospital - RVY02"]
[null,null,null,null,null,null,null,null,null,null,null,null,null,null,null,null,null,null,null,null,"Q77","RLQ","WYE VALLEY NHS TRUST","RLQ01","Hereford County Hospital - RLQ01",null,"RRF","SOUTHEND UNIVERSITY HOSPITAL NHS FOUNDATION TRUST",null,"RRF","SOUTHEND UNIVERSITY HOSPITAL NHS FOUNDATION TRUST","RMP01","Paulton Memorial Hospital  - RD129"]
[null,null,null,null,null,null,null,null,null,null,null,null,null,null,null,null,null,null,null,null,"Q78","RC1","BEDFORD HOSPITAL NHS TRUST","RC110","Bedford Hospital South Wing - RC110",null,"RRK","SOUTHPORT AND ORMSKIRK HOSPITAL NHS TRUST",null,"RRK","SOUTHPORT AND ORMSKIRK HOSPITAL NHS TRUST","RN325","Peterborough City Hospital - RGN80"]
[null,null,null,null,null,null,null,null,null,null,null,null,null,null,null,null,null,null,null,null,"Q78","RWH","EAST AND NORTH HERTFORDSHIRE NHS TRUST","RWH01","Lister Hospital - RWH01",null,"RRV","ST GEORGE'S UNIVERSITY HOSPITALS NHS FOUNDATION TRUST",null,"RRV","ST GEORGE'S UNIVERSITY HOSPITALS NHS FOUNDATION TRUST","RN506","Petersfield Community Hospital - RHU04"]
[null,null,null,null,null,null,null,null,null,null,null,null,null,null,null,null,null,null,null,null,"Q78","RNQ","KETTERING GENERAL HOSPITAL NHS FOUNDATION TRUST","RNQ51","Kettering General Hospital - RNQ51",null,"RTD","ST HELENS AND KNOWSLEY TEACHING HOSPITALS NHS TRUST",null,"RTD","ST HELENS AND KNOWSLEY TEACHING HOSPITALS NHS TRUST","RN541","Pilgrim Hospital - RWDLA"]
[null,null,null,null,null,null,null,null,null,null,null,null,null,null,null,null,null,null,null,null,"Q78","RC9","LUTON AND DUNSTABLE UNIVERSITY HOSPITAL NHS FOUNDATION TRUST","RC971","Luton and Dunstable Hospital - RC971",null,"RTE","STOCKPORT NHS FOUNDATION TRUST",null,"RTE","STOCKPORT NHS FOUNDATION TRUST","RN707","Pinderfields General Hospital - RXF05"]
[null,null,null,null,null,null,null,null,null,null,null,null,null,null,null,null,null,null,null,null,"Q78","RD8","MILTON KEYNES UNIVERSITY HOSPITAL NHS FOUNDATION TRUST","RD816","Milton Keynes Hospital - RD816",null,"RTF","SURREY AND SUSSEX HEALTHCARE NHS TRUST",null,"RTF","SURREY AND SUSSEX HEALTHCARE NHS TRUST","RNA01","Poole General Hospital NHS Trust HQ - RD304"]
[null,null,null,null,null,null,null,null,null,null,null,null,null,null,null,null,null,null,null,null,"Q78","RNS","NORTHAMPTON GENERAL HOSPITAL NHS TRUST","RNS01","Northampton General Hospital (Acute) - RNS01",null,"RTG","TAMESIDE AND GLOSSOP INTEGRATED CARE NHS FOUNDATION TRUST",null,"RTG","TAMESIDE AND GLOSSOP INTEGRATED CARE NHS FOUNDATION TRUST","RNLAY","Princess Alexandra Hospital - RQWG0"]
[null,null,null,null,null,null,null,null,null,null,null,null,null,null,null,null,null,null,null,null,"Q78","RWD","UNITED LINCOLNSHIRE HOSPITALS NHS TRUST","RWDLP","Grantham and District Hospital - RWDLP",null,"RTH","TAUNTON AND SOMERSET NHS FOUNDATION TRUST",null,"RTH","TAUNTON AND SOMERSET NHS FOUNDATION TRUST","RNLBX","Princess Anne Hospital - RHM12"]
[null,null,null,null,null,null,null,null,null,null,null,null,null,null,null,null,null,null,null,null,"Q78","RWD","UNITED LINCOLNSHIRE HOSPITALS NHS TRUST","RWDDA","Lincoln County Hospital - RWDDA",null,"RTP","THE DUDLEY GROUP NHS FOUNDATION TRUST",null,"RTP","THE DUDLEY GROUP NHS FOUNDATION TRUST","RNQ51","Princess Anne Wing RUH  - RD130"]
[null,null,null,null,null,null,null,null,null,null,null,null,null,null,null,null,null,null,null,null,"Q78","RWD","UNITED LINCOLNSHIRE HOSPITALS NHS TRUST","RWDLA","Pilgrim Hospital - RWDLA",null,"RTR","THE HILLINGDON HOSPITALS NHS FOUNDATION TRUST",null,"RTR","THE HILLINGDON HOSPITALS NHS FOUNDATION TRUST","RNS01","Princess Royal Hospital - RXH09"]
[null,null,null,null,null,null,null,null,null,null,null,null,null,null,null,null,null,null,null,null,"Q78","RWE","UNIVERSITY HOSPITALS OF LEICESTER NHS TRUST","RWEAK","Leicester General Hospital - RWEAK",null,"RTX","THE NEWCASTLE UPON TYNE HOSPITALS NHS FOUNDATION TRUST",null,"RTX","THE NEWCASTLE UPON TYNE HOSPITALS NHS FOUNDATION TRUST","RNZ02","Princess Royal University Hospital - RJZ30"]
[null,null,null,null,null,null,null,null,null,null,null,null,null,null,null,null,null,null,null,null,"Q78","RWE","UNIVERSITY HOSPITALS OF LEICESTER NHS TRUST","RWEAA","Leicester Royal Infirmary - RWEAA",null,"RVJ","THE PRINCESS ALEXANDRA HOSPITAL NHS TRUST",null,"RVJ","THE PRINCESS ALEXANDRA HOSPITAL NHS TRUST","RP5BA","Queen Alexandra Hospital - RHU03"]
[null,null,null,null,null,null,null,null,null,null,null,null,null,null,null,null,null,null,null,null,"Q78","RWE","UNIVERSITY HOSPITALS OF LEICESTER NHS TRUST","RWE10","St Mary's Hospital - RWE10",null,"RVR","THE QUEEN ELIZABETH HOSPITAL, KING'S LYNN, NHS FOUNDATION TRUST",null,"RVR","THE QUEEN ELIZABETH HOSPITAL, KING'S LYNN, NHS FOUNDATION TRUST","RP5DR","Queen Charlotte's Hospital - RYJ04"]
[null,null,null,null,null,null,null,null,null,null,null,null,null,null,null,null,null,null,null,null,"Q78","RWG","WEST HERTFORDSHIRE HOSPITALS NHS TRUST","RWG02","Watford General Hospital - RWG02",null,"RVV","THE ROTHERHAM NHS FOUNDATION TRUST",null,"RVV","THE ROTHERHAM NHS FOUNDATION TRUST","RPA02","Queen Elizabeth Hospital - RJ231"]
[null,null,null,null,null,null,null,null,null,null,null,null,null,null,null,null,null,null,null,null,"Q79","RDD","BASILDON AND THURROCK UNIVERSITY HOSPITALS NHS FOUNDATION TRUST","RDDH0","Basildon University Hospital - RDDH0",null,"RVW","THE ROYAL BOURNEMOUTH AND CHRISTCHURCH HOSPITALS NHS FOUNDATION TRUST",null,"RVW","THE ROYAL BOURNEMOUTH AND CHRISTCHURCH HOSPITALS NHS FOUNDATION TRUST","RQ370","Queen Elizabeth Hospital - RR7EN"]
[null,null,null,null,null,null,null,null,null,null,null,null,null,null,null,null,null,null,null,null,"Q79","RGT","CAMBRIDGE UNIVERSITY HOSPITALS NHS FOUNDATION TRUST","RGT32","Rosie Hospital - RGT32",null,"RVY","THE ROYAL WOLVERHAMPTON NHS TRUST",null,"RVY","THE ROYAL WOLVERHAMPTON NHS TRUST","RQ8L0","Queen Elizabeth The Queen Mother Hospital - RVV09"]
[null,null,null,null,null,null,null,null,null,null,null,null,null,null,null,null,null,null,null,null,"Q79","RDE","EAST SUFFOLK AND NORTH ESSEX NHS FOUNDATION TRUST","RDEE4","Colchester General Hospital - RDEE4",null,"RW6","TORBAY AND SOUTH DEVON NHS FOUNDATION TRUST",null,"RW6","TORBAY AND SOUTH DEVON NHS FOUNDATION TRUST","RQM01","Queen's Hospital - RF4QH"]
[null,null,null,null,null,null,null,null,null,null,null,null,null,null,null,null,null,null,null,null,"Q79","RDE","EAST SUFFOLK AND NORTH ESSEX NHS FOUNDATION TRUST","RDE03","Ipswich Hospital - RDE03",null,"RWA","UNITED LINCOLNSHIRE HOSPITALS NHS TRUST",null,"RWA","UNITED LINCOLNSHIRE HOSPITALS NHS TRUST","RQM91","Queens Hospital, Burton Upon Trent - RTG02"]
[null,null,null,null,null,null,null,null,null,null,null,null,null,null,null,null,null,null,null,null,"Q79","RGP","JAMES PAGET UNIVERSITY HOSPITALS NHS FOUNDATION TRUST","RGP75","James Paget University Hospital - RGP75",null,"RWD","UNIVERSITY COLLEGE LONDON HOSPITALS NHS FOUNDATION TRUST",null,"RWD","UNIVERSITY COLLEGE LONDON HOSPITALS NHS FOUNDATION TRUST","RQWG0","Robert Jones & Agnes Hunt Orthopaedic & District Hospital - RXWMJ"]
[null,null,null,null,null,null,null,null,null,null,null,null,null,null,null,null,null,null,null,null,"Q79","RQ8","MID ESSEX HOSPITAL SERVICES NHS TRUST","RQ8L0","Broomfield Hospital - RQ8L0",null,"RWE","UNIVERSITY HOSPITAL SOUTHAMPTON NHS FOUNDATION TRUST",null,"RWE","UNIVERSITY HOSPITAL SOUTHAMPTON NHS FOUNDATION TRUST","RQXM1","Rosie Hospital - RGT32"]
[null,null,null,null,null,null,null,null,null,null,null,null,null,null,null,null,null,null,null,null,"Q79","RM1","NORFOLK AND NORWICH UNIVERSITY HOSPITALS NHS FOUNDATION TRUST","RM102","Norfolk and Norwich University Hospital - RM102",null,"RWF","UNIVERSITY HOSPITALS BIRMINGHAM NHS FOUNDATION TRUST",null,"RWF","UNIVERSITY HOSPITALS BIRMINGHAM NHS FOUNDATION TRUST","RR7EN","Rotherham District General Hospital - RFRPA"]
[null,null,null,null,null,null,null,null,null,null,null,null,null,null,null,null,null,null,null,null,"Q79","RGN","NORTH WEST ANGLIA NHS FOUNDATION TRUST","RGN90","Hinchingbrooke Hospital - RGN90",null,"RWG","UNIVERSITY HOSPITALS BRISTOL NHS FOUNDATION TRUST",null,"RWG","UNIVERSITY HOSPITALS BRISTOL NHS FOUNDATION TRUST","RR801","Royal Albert Edward Infirmary - RRF02"]
[null,null,null,null,null,null,null,null,null,null,null,null,null,null,null,null,null,null,null,null,"Q79","RGN","NORTH WEST ANGLIA NHS FOUNDATION TRUST","RGN80","Peterborough City Hospital - RGN80",null,"RWH","UNIVERSITY HOSPITALS COVENTRY AND WARWICKSHIRE NHS TRUST",null,"RWH","UNIVERSITY HOSPITALS COVENTRY AND WARWICKSHIRE NHS TRUST","RR813","Royal Berkshire Hospital - RHW01"]
[null,null,null,null,null,null,null,null,null,null,null,null,null,null,null,null,null,null,null,null,"Q79","RAJ","SOUTHEND UNIVERSITY HOSPITAL NHS FOUNDATION TRUST","RAJ01","Southend Hospital - RAJ01",null,"RWJ","UNIVERSITY HOSPITALS OF DERBY AND BURTON NHS FOUNDATION TRUST",null,"RWJ","UNIVERSITY HOSPITALS OF DERBY AND BURTON NHS FOUNDATION TRUST","RRF02","Royal Blackburn Hospital - RXR20"]
[null,null,null,null,null,null,null,null,null,null,null,null,null,null,null,null,null,null,null,null,"Q79","RQW","THE PRINCESS ALEXANDRA HOSPITAL NHS TRUST","RQWG0","Princess Alexandra Hospital - RQWG0",null,"RWP","UNIVERSITY HOSPITALS OF LEICESTER NHS TRUST",null,"RWP","UNIVERSITY HOSPITALS OF LEICESTER NHS TRUST","RRK97","Royal Bolton Hospital - RMC01"]
[null,null,null,null,null,null,null,null,null,null,null,null,null,null,null,null,null,null,null,null,"Q79","RCX","THE QUEEN ELIZABETH HOSPITAL, KING'S LYNN, NHS FOUNDATION TRUST","RCX70","The Queen Elizabeth Hospital - RCX70",null,"RWW","UNIVERSITY HOSPITALS OF MORECAMBE BAY NHS FOUNDATION TRUST",null,"RWW","UNIVERSITY HOSPITALS OF MORECAMBE BAY NHS FOUNDATION TRUST","RRK98","Royal Bournemouth General Hospital - RDZ20"]
[null,null,null,null,null,null,null,null,null,null,null,null,null,null,null,null,null,null,null,null,"Q79","RGR","WEST SUFFOLK NHS FOUNDATION TRUST","RGR50","West Suffolk Hospital - RGR50",null,"RWY","UNIVERSITY HOSPITALS OF NORTH MIDLANDS NHS TRUST",null,"RWY","UNIVERSITY HOSPITALS OF NORTH MIDLANDS NHS TRUST","RRK99","Royal Cornwall Hospital (Treliske) - REF12"]
[null,null,null,null,null,null,null,null,null,null,null,null,null,null,null,null,null,null,null,null,"Q83","RMC","BOLTON NHS FOUNDATION TRUST","RMC01","Royal Bolton Hospital - RMC01",null,"RX1","UNIVERSITY HOSPITALS PLYMOUTH NHS TRUST",null,"RX1","UNIVERSITY HOSPITALS PLYMOUTH NHS TRUST","RRV11","Royal Derby Hospital - RTGFG"]
[null,null,null,null,null,null,null,null,null,null,null,null,null,null,null,null,null,null,null,null,"Q83","RY2","BRIDGEWATER COMMUNITY HEALTHCARE NHS FOUNDATION TRUST","RY28P","Health Care Resource Centre - RY28P",null,"RXC","WALSALL HEALTHCARE NHS TRUST",null,"RXC","WALSALL HEALTHCARE NHS TRUST","RTD02","Royal Devon and Exeter Hospital (Wonford) - RH801"]
[null,null,null,null,null,null,null,null,null,null,null,null,null,null,null,null,null,null,null,null,"Q83","R0A","MANCHESTER UNIVERSITY NHS FOUNDATION TRUST","R0A05","St Mary's Hospital - R0A05",null,"RXF","WARRINGTON AND HALTON HOSPITALS NHS FOUNDATION TRUST",null,"RXF","WARRINGTON AND HALTON HOSPITALS NHS FOUNDATION TRUST","RTE03","Royal Free Hospital - RAL01"]
[null,null,null,null,null,null,null,null,null,null,null,null,null,null,null,null,null,null,null,null,"Q83","RW6","PENNINE ACUTE HOSPITALS NHS TRUST","RW602","North Manchester General Hospital - RW602",null,"RXH","WEST HERTFORDSHIRE HOSPITALS NHS TRUST",null,"RXH","WEST HERTFORDSHIRE HOSPITALS NHS TRUST","RTE27","Royal Hallamshire Hospital - RHQHH"]
[null,null,null,null,null,null,null,null,null,null,null,null,null,null,null,null,null,null,null,null,"Q83","RW6","PENNINE ACUTE HOSPITALS NHS TRUST","RW603","Royal Oldham Hospital - RW603",null,"RXK","WEST SUFFOLK NHS FOUNDATION TRUST",null,"RXK","WEST SUFFOLK NHS FOUNDATION TRUST","RTF86","Royal Hampshire County Hospital - RN541"]
[null,null,null,null,null,null,null,null,null,null,null,null,null,null,null,null,null,null,null,null,"Q83","RWJ","STOCKPORT NHS FOUNDATION TRUST","RWJ09","Stepping Hill Hospital - RWJ09",null,"RXL","WESTERN SUSSEX HOSPITALS NHS FOUNDATION TRUST",null,"RXL","WESTERN SUSSEX HOSPITALS NHS FOUNDATION TRUST","RTFDH","Royal Lancaster Infirmary - RTX02"]
[null,null,null,null,null,null,null,null,null,null,null,null,null,null,null,null,null,null,null,null,"Q83","RMP","TAMESIDE AND GLOSSOP INTEGRATED CARE NHS FOUNDATION TRUST","RMP01","Tameside General Hospital - RMP01",null,"RXN","WESTON AREA HEALTH NHS TRUST",null,"RXN","WESTON AREA HEALTH NHS TRUST","RTFDJ","Royal Oldham Hospital - RW603"]
[null,null,null,null,null,null,null,null,null,null,null,null,null,null,null,null,null,null,null,null,"Q83","RRF","WRIGHTINGTON, WIGAN AND LEIGH NHS FOUNDATION TRUST","RRF02","Royal Albert Edward Infirmary - RRF02",null,"RXP","WHITTINGTON HEALTH NHS TRUST",null,"RXP","WHITTINGTON HEALTH NHS TRUST","RTFDR","Royal Preston Hospital - RXN02"]
[null,null,null,null,null,null,null,null,null,null,null,null,null,null,null,null,null,null,null,null,"Q84","RXL","BLACKPOOL TEACHING HOSPITALS NHS FOUNDATION TRUST","RXL01","Blackpool Victoria Hospital - RXL01",null,"RXQ","WIRRAL UNIVERSITY TEACHING HOSPITAL NHS FOUNDATION TRUST",null,"RXQ","WIRRAL UNIVERSITY TEACHING HOSPITAL NHS FOUNDATION TRUST","RTG02","Royal Shrewsbury Hospital - RXWAS"]
[null,null,null,null,null,null,null,null,null,null,null,null,null,null,null,null,null,null,null,null,"Q84","RXR","EAST LANCASHIRE HOSPITALS NHS TRUST","RXR20","Royal Blackburn Hospital - RXR20",null,"RXR","WORCESTERSHIRE ACUTE HOSPITALS NHS TRUST",null,"RXR","WORCESTERSHIRE ACUTE HOSPITALS NHS TRUST","RTGFG","Royal Stoke University Hospital - RJE01"]
[null,null,null,null,null,null,null,null,null,null,null,null,null,null,null,null,null,null,null,null,"Q84","RXN","LANCASHIRE TEACHING HOSPITALS NHS FOUNDATION TRUST","RXN01","Chorley and South Ribble Hospital - RXN01",null,"RXW","WRIGHTINGTON, WIGAN AND LEIGH NHS FOUNDATION TRUST",null,"RXW","WRIGHTINGTON, WIGAN AND LEIGH NHS FOUNDATION TRUST","RTH05","Royal Surrey County Hospital - RA201"]
[null,null,null,null,null,null,null,null,null,null,null,null,null,null,null,null,null,null,null,null,"Q84","RXN","LANCASHIRE TEACHING HOSPITALS NHS FOUNDATION TRUST","RXN02","Royal Preston Hospital - RXN02",null,"RY2","WYE VALLEY NHS TRUST",null,"RY2","WYE VALLEY NHS TRUST","RTH08","Royal Sussex County Hospital - RXH01"]
[null,null,null,null,null,null,null,null,null,null,null,null,null,null,null,null,null,null,null,null,"Q84","RTX","UNIVERSITY HOSPITALS OF MORECAMBE BAY NHS FOUNDATION TRUST","RTXBU","Furness General Hospital - RTXBU",null,"RYJ","YEOVIL DISTRICT HOSPITAL NHS FOUNDATION TRUST",null,"RYJ","YEOVIL DISTRICT HOSPITAL NHS FOUNDATION TRUST","RTH16","Russells Hall Hospital - RNA01"]
[null,null,null,null,null,null,null,null,null,null,null,null,null,null,null,null,null,null,null,null,"Q84","RTX","UNIVERSITY HOSPITALS OF MORECAMBE BAY NHS FOUNDATION TRUST","RTX02","Royal Lancaster Infirmary - RTX02",null,"RYR","YORK TEACHING HOSPITAL NHS FOUNDATION TRUST",null,"RYR","YORK TEACHING HOSPITAL NHS FOUNDATION TRUST","RTH19","Salisbury District Hospital - RNZ02"]
[null,null,null,null,null,null,null,null,null,null,null,null,null,null,null,null,null,null,null,null,"Q85","RBD","DORSET COUNTY HOSPITAL NHS FOUNDATION TRUST","RBD01","Dorset County Hospital - RBD01",null,null,null,null,null,null,"RTH21","Scarborough General Hospital - RCBCA"]
[null,null,null,null,null,null,null,null,null,null,null,null,null,null,null,null,null,null,null,null,"Q85","RBZ","NORTHERN DEVON HEALTHCARE NHS TRUST","RBZ12","North Devon District Hospital - RBZ12",null,null,null,null,null,null,"RTP04","Scunthorpe General Hospital - RJL32"]
[null,null,null,null,null,null,null,null,null,null,null,null,null,null,null,null,null,null,null,null,"Q85","RD3","POOLE HOSPITAL NHS FOUNDATION TRUST","RD304","Poole General Hospital NHS Trust HQ - RD304",null,null,null,null,null,null,"RTR45","Solihull Hospital - RRK99"]
[null,null,null,null,null,null,null,null,null,null,null,null,null,null,null,null,null,null,null,null,"Q85","REF","ROYAL CORNWALL HOSPITALS NHS TRUST","REF12","Royal Cornwall Hospital (Treliske) - REF12",null,null,null,null,null,null,"RTRAT","South Tyneside District Hospital - RE9GA"]
[null,null,null,null,null,null,null,null,null,null,null,null,null,null,null,null,null,null,null,null,"Q85","RH8","ROYAL DEVON AND EXETER NHS FOUNDATION TRUST","RH854","Honiton Hospital - RH 854",null,null,null,null,null,null,"RTX02","Southend Hospital - RAJ01"]
[null,null,null,null,null,null,null,null,null,null,null,null,null,null,null,null,null,null,null,null,"Q85","RH8","ROYAL DEVON AND EXETER NHS FOUNDATION TRUST","RH833","Okehampton Community Hospital - RH833",null,null,null,null,null,null,"RTXBU","Southmead Hospital - RVJ01"]
[null,null,null,null,null,null,null,null,null,null,null,null,null,null,null,null,null,null,null,null,"Q85","RH8","ROYAL DEVON AND EXETER NHS FOUNDATION TRUST","RH801","Royal Devon and Exeter Hospital (Wonford) - RH801",null,null,null,null,null,null,"RVJ01","St George's Hospital (Tooting) - RJ701"]
[null,null,null,null,null,null,null,null,null,null,null,null,null,null,null,null,null,null,null,null,"Q85","RH8","ROYAL DEVON AND EXETER NHS FOUNDATION TRUST","RH853","Tiverton and District Hospital - RH853",null,null,null,null,null,null,"RVR05","St Helier Hospital - RVR05"]
[null,null,null,null,null,null,null,null,null,null,null,null,null,null,null,null,null,null,null,null,"Q85","RBA","TAUNTON AND SOMERSET NHS FOUNDATION TRUST","RBAC3","Bridgwater Hospital - RBAC3",null,null,null,null,null,null,"RVR50","St James's University Hospital - RR813"]
[null,null,null,null,null,null,null,null,null,null,null,null,null,null,null,null,null,null,null,null,"Q85","RBA","TAUNTON AND SOMERSET NHS FOUNDATION TRUST","RBA11","Musgrove Park Hospital - RBA11",null,null,null,null,null,null,"RVV01","St Mary's Hospital - R0A05"]
[null,null,null,null,null,null,null,null,null,null,null,null,null,null,null,null,null,null,null,null,"Q85","RDZ","THE ROYAL BOURNEMOUTH AND CHRISTCHURCH HOSPITALS NHS FOUNDATION TRUST","RDZ20","Royal Bournemouth General Hospital - RDZ20",null,null,null,null,null,null,"RVV09","St Mary's Hospital - R1F01"]
[null,null,null,null,null,null,null,null,null,null,null,null,null,null,null,null,null,null,null,null,"Q85","RA9","TORBAY AND SOUTH DEVON NHS FOUNDATION TRUST","RA901","Torbay Hospital - RA901",null,null,null,null,null,null,"RVWAE","St Mary's Hospital - RHU02"]
[null,null,null,null,null,null,null,null,null,null,null,null,null,null,null,null,null,null,null,null,"Q85","RK9","UNIVERSITY HOSPITALS PLYMOUTH NHS TRUST","RK950","Derriford Hospital - RK950",null,null,null,null,null,null,"RVY02","St Mary's Hospital - RWE10"]
[null,null,null,null,null,null,null,null,null,null,null,null,null,null,null,null,null,null,null,null,"Q85","RA4","YEOVIL DISTRICT HOSPITAL NHS FOUNDATION TRUST","RA430","Yeovil District Hospital - RA430",null,null,null,null,null,null,"RW602","St Mary's Hospital (HQ) - RYJ01"]
[null,null,null,null,null,null,null,null,null,null,null,null,null,null,null,null,null,null,null,null,"Q86","RTE","GLOUCESTERSHIRE HOSPITALS NHS FOUNDATION TRUST","RTE03","Gloucestershire Royal Hospital - RTE03",null,null,null,null,null,null,"RW603","St Michael's Hospital - RA707"]
[null,null,null,null,null,null,null,null,null,null,null,null,null,null,null,null,null,null,null,null,"Q86","RTE","GLOUCESTERSHIRE HOSPITALS NHS FOUNDATION TRUST","RTE27","Stroud Maternity Hospital - RTE27",null,null,null,null,null,null,"RWA01","St Richard's Hospital - RYR16"]
[null,null,null,null,null,null,null,null,null,null,null,null,null,null,null,null,null,null,null,null,"Q86","RN3","GREAT WESTERN HOSPITALS NHS FOUNDATION TRUST","RN325","The Great Western Hospital - RN325",null,null,null,null,null,null,"RWDDA","St Thomas' Hospital - RJ122"]
[null,null,null,null,null,null,null,null,null,null,null,null,null,null,null,null,null,null,null,null,"Q86","RVJ","NORTH BRISTOL NHS TRUST","RVJ01","Southmead Hospital - RVJ01",null,null,null,null,null,null,"RWDLA","Stepping Hill Hospital - RWJ09"]
[null,null,null,null,null,null,null,null,null,null,null,null,null,null,null,null,null,null,null,null,"Q86","RD1","ROYAL UNITED HOSPITALS BATH NHS FOUNDATION TRUST","RD102","Chippenham Community Hospital -RD102",null,null,null,null,null,null,"RWDLP","Stoke Mandeville Hospital - RXQ02"]
[null,null,null,null,null,null,null,null,null,null,null,null,null,null,null,null,null,null,null,null,"Q86","RD1","ROYAL UNITED HOSPITALS BATH NHS FOUNDATION TRUST","RD129","Paulton Memorial Hospital  - RD129",null,null,null,null,null,null,"RWE10","Stroud Maternity Hospital - RTE27"]
[null,null,null,null,null,null,null,null,null,null,null,null,null,null,null,null,null,null,null,null,"Q86","RD1","ROYAL UNITED HOSPITALS BATH NHS FOUNDATION TRUST","RD130","Princess Anne Wing RUH  - RD130",null,null,null,null,null,null,"RWEAA","Sunderland Royal Hospital - RLNGL"]
[null,null,null,null,null,null,null,null,null,null,null,null,null,null,null,null,null,null,null,null,"Q86","RNZ","SALISBURY NHS FOUNDATION TRUST","RNZ02","Salisbury District Hospital - RNZ02",null,null,null,null,null,null,"RWEAK","Tameside General Hospital - RMP01"]
[null,null,null,null,null,null,null,null,null,null,null,null,null,null,null,null,null,null,null,null,"Q86","RA7","UNIVERSITY HOSPITALS BRISTOL NHS FOUNDATION TRUST","RA707","St Michael's Hospital - RA707",null,null,null,null,null,null,"RWFTW","The Great Western Hospital - RN325"]
[null,null,null,null,null,null,null,null,null,null,null,null,null,null,null,null,null,null,null,null,"Q86","RA3","WESTON AREA HEALTH NHS TRUST","RA301","Weston General Hospital - RA301",null,null,null,null,null,null,"RWG02","The James Cook University Hospital - RTRAT"]
[null,null,null,null,null,null,null,null,null,null,null,null,null,null,null,null,null,null,null,null,"Q87","RXQ","BUCKINGHAMSHIRE HEALTHCARE NHS TRUST","RXQ02","Stoke Mandeville Hospital - RXQ02",null,null,null,null,null,null,"RWH01","The Northumbria - RTF86"]
[null,null,null,null,null,null,null,null,null,null,null,null,null,null,null,null,null,null,null,null,"Q87","RDU","FRIMLEY HEALTH NHS FOUNDATION TRUST","RDU01","Frimley Park Hospital - RDU01",null,null,null,null,null,null,"RWJ09","The Princess Royal Hospital - RXWAT"]
[null,null,null,null,null,null,null,null,null,null,null,null,null,null,null,null,null,null,null,null,"Q87","RDU","FRIMLEY HEALTH NHS FOUNDATION TRUST","RDU50","Wexham Park Hospital - RDU50",null,null,null,null,null,null,"RWP50","The Queen Elizabeth Hospital - RCX70"]
[null,null,null,null,null,null,null,null,null,null,null,null,null,null,null,null,null,null,null,null,"Q87","RN5","HAMPSHIRE HOSPITALS NHS FOUNDATION TRUST","RN506","Basingstoke and North Hampshire Hospital - RN506",null,null,null,null,null,null,"RWWWH","The Royal London Hospital - R1H12"]
[null,null,null,null,null,null,null,null,null,null,null,null,null,null,null,null,null,null,null,null,"Q87","RN5","HAMPSHIRE HOSPITALS NHS FOUNDATION TRUST","RN541","Royal Hampshire County Hospital - RN541",null,null,null,null,null,null,"RWY01","The Royal Victoria Infirmary - RTD02"]
[null,null,null,null,null,null,null,null,null,null,null,null,null,null,null,null,null,null,null,null,"Q87","R1F","ISLE OF WIGHT NHS TRUST","R1F01","St Mary's Hospital - R1F01",null,null,null,null,null,null,"RWY02","The Tunbridge Wells Hospital - RWFTW"]
[null,null,null,null,null,null,null,null,null,null,null,null,null,null,null,null,null,null,null,null,"Q87","RTH","OXFORD UNIVERSITY HOSPITALS NHS FOUNDATION TRUST","RTH19","Chipping Norton Community Hospital - RTH19",null,null,null,null,null,null,"RX1CC","The Whittington Hospital - RKEQ4"]
[null,null,null,null,null,null,null,null,null,null,null,null,null,null,null,null,null,null,null,null,"Q87","RTH","OXFORD UNIVERSITY HOSPITALS NHS FOUNDATION TRUST","RTH05","Horton General Hospital - RTH05",null,null,null,null,null,null,"RX1RA","Tiverton and District Hospital - RH853"]
[null,null,null,null,null,null,null,null,null,null,null,null,null,null,null,null,null,null,null,null,"Q87","RTH","OXFORD UNIVERSITY HOSPITALS NHS FOUNDATION TRUST","RTH08","John Radcliffe Hospital - RTH08",null,null,null,null,null,null,"RXC01","Torbay Hospital - RA901"]
[null,null,null,null,null,null,null,null,null,null,null,null,null,null,null,null,null,null,null,null,"Q87","RTH","OXFORD UNIVERSITY HOSPITALS NHS FOUNDATION TRUST","RTH16","Wallingford Community Hospital - RTH16",null,null,null,null,null,null,"RXC02","University College Hospital Elizabeth Garrett Anderson Wing - RRV11"]
[null,null,null,null,null,null,null,null,null,null,null,null,null,null,null,null,null,null,null,null,"Q87","RTH","OXFORD UNIVERSITY HOSPITALS NHS FOUNDATION TRUST","RTH21","Wantage Community Hospital - RTH21",null,null,null,null,null,null,"RXF05","University Hospital (Coventry) - RKB01"]
[null,null,null,null,null,null,null,null,null,null,null,null,null,null,null,null,null,null,null,null,"Q87","RHU","PORTSMOUTH HOSPITALS NHS TRUST","RHU10","Gosport War Memorial Hospital - RHU10",null,null,null,null,null,null,"RXH01","University Hospital Lewisham - RJ224"]
[null,null,null,null,null,null,null,null,null,null,null,null,null,null,null,null,null,null,null,null,"Q87","RHU","PORTSMOUTH HOSPITALS NHS TRUST","RHU04","Petersfield Community Hospital - RHU04",null,null,null,null,null,null,"RXH09","University Hospital Of North Durham - RXPCP"]
[null,null,null,null,null,null,null,null,null,null,null,null,null,null,null,null,null,null,null,null,"Q87","RHU","PORTSMOUTH HOSPITALS NHS TRUST","RHU03","Queen Alexandra Hospital - RHU03",null,null,null,null,null,null,"RXK02","University Hospital Of North Tees - RVWAE"]
[null,null,null,null,null,null,null,null,null,null,null,null,null,null,null,null,null,null,null,null,"Q87","RHU","PORTSMOUTH HOSPITALS NHS TRUST","RHU02","St Mary's Hospital - RHU02",null,null,null,null,null,null,"RXL01","Wallingford Community Hospital - RTH16"]
[null,null,null,null,null,null,null,null,null,null,null,null,null,null,null,null,null,null,null,null,"Q87","RHW","ROYAL BERKSHIRE NHS FOUNDATION TRUST","RHW01","Royal Berkshire Hospital - RHW01",null,null,null,null,null,null,"RXN01","Wantage Community Hospital - RTH21"]
[null,null,null,null,null,null,null,null,null,null,null,null,null,null,null,null,null,null,null,null,"Q87","RHM","UNIVERSITY HOSPITAL SOUTHAMPTON NHS FOUNDATION TRUST","RHM12","Princess Anne Hospital - RHM12",null,null,null,null,null,null,"RXN02","Warrington Hospital - RWWWH"]
[null,null,null,null,null,null,null,null,null,null,null,null,null,null,null,null,null,null,null,null,"Q88","RXH","BRIGHTON AND SUSSEX UNIVERSITY HOSPITALS NHS TRUST","RXH09","Princess Royal Hospital - RXH09",null,null,null,null,null,null,"RXPCP","Warwick Hospital - RJC02"]
[null,null,null,null,null,null,null,null,null,null,null,null,null,null,null,null,null,null,null,null,"Q88","RXH","BRIGHTON AND SUSSEX UNIVERSITY HOSPITALS NHS TRUST","RXH01","Royal Sussex County Hospital - RXH01",null,null,null,null,null,null,"RXPDA","Watford General Hospital - RWG02"]
[null,null,null,null,null,null,null,null,null,null,null,null,null,null,null,null,null,null,null,null,"Q88","RN7","DARTFORD AND GRAVESHAM NHS TRUST","RN707","Darent Valley Hospital - RN707",null,null,null,null,null,null,"RXQ02","West Cumberland Hospital - RNLBX"]
[null,null,null,null,null,null,null,null,null,null,null,null,null,null,null,null,null,null,null,null,"Q88","RVV","EAST KENT HOSPITALS UNIVERSITY NHS FOUNDATION TRUST","RVV09","Queen Elizabeth The Queen Mother Hospital - RVV09",null,null,null,null,null,null,"RXR20","West Middlesex University Hospital - RQM91"]
[null,null,null,null,null,null,null,null,null,null,null,null,null,null,null,null,null,null,null,null,"Q88","RVV","EAST KENT HOSPITALS UNIVERSITY NHS FOUNDATION TRUST","RVV01","William Harvey Hospital (Ashford) - RVV01",null,null,null,null,null,null,"RXWAS","West Suffolk Hospital - RGR50"]
[null,null,null,null,null,null,null,null,null,null,null,null,null,null,null,null,null,null,null,null,"Q88","RXC","EAST SUSSEX HEALTHCARE NHS TRUST","RXC01","Conquest Hospital - RXC01",null,null,null,null,null,null,"RXWAT","Weston General Hospital - RA301"]
[null,null,null,null,null,null,null,null,null,null,null,null,null,null,null,null,null,null,null,null,"Q88","RXC","EAST SUSSEX HEALTHCARE NHS TRUST","RXC02","Eastbourne District General Hospital - RXC02",null,null,null,null,null,null,"RXWMB","Wexham Park Hospital - RDU50"]
[null,null,null,null,null,null,null,null,null,null,null,null,null,null,null,null,null,null,null,null,"Q88","RWF","MAIDSTONE AND TUNBRIDGE WELLS NHS TRUST","RWFTW","The Tunbridge Wells Hospital - RWFTW",null,null,null,null,null,null,"RXWMJ","Whipps Cross University Hospital - R1HKH"]
[null,null,null,null,null,null,null,null,null,null,null,null,null,null,null,null,null,null,null,null,"Q88","RPA","MEDWAY NHS FOUNDATION TRUST","RPA02","Medway Maritime Hospital - RPA02",null,null,null,null,null,null,"RXWML","Whiston Hospital - RBN01"]
[null,null,null,null,null,null,null,null,null,null,null,null,null,null,null,null,null,null,null,null,"Q88","RA2","ROYAL SURREY COUNTY HOSPITAL NHS FOUNDATION TRUST","RA201","Royal Surrey County Hospital - RA201",null,null,null,null,null,null,"RY28P","William Harvey Hospital (Ashford) - RVV01"]
[null,null,null,null,null,null,null,null,null,null,null,null,null,null,null,null,null,null,null,null,"Q88","RTP","SURREY AND SUSSEX HEALTHCARE NHS TRUST","RTP04","East Surrey Hospital - RTP04",null,null,null,null,null,null,"RYJ01","Worcestershire Royal Hospital - RWP50"]
[null,null,null,null,null,null,null,null,null,null,null,null,null,null,null,null,null,null,null,null,"Q88","RYR","WESTERN SUSSEX HOSPITALS NHS FOUNDATION TRUST","RYR16","St Richard's Hospital - RYR16",null,null,null,null,null,null,"RYJ04","Worthing Hospital - RYR18"]
[null,null,null,null,null,null,null,null,null,null,null,null,null,null,null,null,null,null,null,null,"Q88","RYR","WESTERN SUSSEX HOSPITALS NHS FOUNDATION TRUST","RYR18","Worthing Hospital - RYR18",null,null,null,null,null,null,"RYR16","Yeovil District Hospital - RA430"]
[null,null,null,null,null,null,null,null,null,null,null,null,null,null,null,null,null,null,null,null,"zIS1","NDE","ONE TO ONE (NORTH WEST) LIMITED","NDE01","One to One (North West) Limited HQ - NDE01",null,null,null,null,null,null,"RYR18","York Hospital - RCB55"]

{"sheet":"BSQ4","index":16,"n_rows":132,"n_cols":28,"rows_kept":132,"cut":false,"hidden":true,"merged":[]}
[null,"Sort","Region (LO)","Region (LO)","Trusts","Trusts",null,null,null,"Sort ranges:","Sort range…","Sort range…",null,"Reference Region List:","Code…","Name…","Linked Region List:","Code…","Name…","Reference Lists:","Code…","Code…","Name…",null,null,"Trusts Linked Lists:","Code…","Name…"]
["Region (LO)",1,1,1,"-","-",null,null,null,null,"Region (LO) Code","Region (LO) Code",null,null,"Q72","NHS England Yorkshire & Humber",null,"Q71","Independent Sector Provider",null,"Q71","R1K","LONDON NORTH WEST UNIVERSITY HEALTHCARE NHS TRUST",null,null,null,"NDE","AIREDALE NHS FOUNDATION TRUST"]
["Trusts",1,1,1,1,1,null,null,null,null,"Region (Local Office)","Trust Code",null,null,"Q74","NHS England Cumbria & North East",null,"Q72","NHS England Cheshire & Merseyside",null,"Q71","RAX","KINGSTON HOSPITAL NHS FOUNDATION TRUST",null,null,null,"R0A","BARKING, HAVERING AND REDBRIDGE UNIVERSITY HOSPITALS NHS TRUST"]
[null,null,null,null,null,null,null,null,null,null,"Total Responses","Trust Name",null,null,"Q75","NHS England Cheshire & Merseyside",null,"Q74","NHS England Cumbria & North East",null,"Q71","RJZ","KING'S COLLEGE HOSPITAL NHS FOUNDATION TRUST",null,null,null,"R1F","BARNSLEY HOSPITAL NHS FOUNDATION TRUST"]
[null,null,null,null,null,null,null,null,null,null,"Percentage Recommended","Total Responses",null,null,"Q83","NHS England Greater Manchester",null,"Q75","NHS England East",null,"Q71","RRV","UNIVERSITY COLLEGE LONDON HOSPITALS NHS FOUNDATION TRUST",null,null,null,"R1H","BARTS HEALTH NHS TRUST"]
[null,null,null,null,null,null,null,null,null,null,"Percentage Not  Recommended","Percentage Recommended",null,null,"Q84","NHS England Lancashire",null,"Q76","NHS England Greater Manchester",null,"Q71","RJ6","CROYDON HEALTH SERVICES NHS TRUST",null,null,null,"R1K","BASILDON AND THURROCK UNIVERSITY HOSPITALS NHS FOUNDATION TRUST"]
[null,null,null,null,null,null,null,null,null,null,"Extremely Likely","Percentage Not  Recommended",null,null,"Q76","NHS England North Midlands",null,"Q77","NHS England Lancashire",null,"Q71","RJ7","ST GEORGE'S UNIVERSITY HOSPITALS NHS FOUNDATION TRUST",null,null,null,"RA2","BEDFORD HOSPITAL NHS TRUST"]
[null,null,null,null,null,null,null,null,null,null,"Likely","Extremely Likely",null,null,"Q77","NHS England West Midlands",null,"Q78","NHS England London",null,"Q71","RAL","ROYAL FREE LONDON NHS FOUNDATION TRUST",null,null,null,"RA3","BIRMINGHAM WOMEN'S AND CHILDREN'S NHS FOUNDATION TRUST"]
[null,null,null,null,null,null,null,null,null,null,"Neither","Likely",null,null,"Q78","NHS England Central Midlands",null,"Q79","NHS England North Midlands",null,"Q71","RVR","EPSOM AND ST HELIER UNIVERSITY HOSPITALS NHS TRUST",null,null,null,"RA4","BLACKPOOL TEACHING HOSPITALS NHS FOUNDATION TRUST"]
[null,null,null,null,null,null,null,null,null,null,"Unlikely","Neither",null,null,"Q79","NHS England East",null,"Q83","NHS England Central Midlands",null,"Q71","RJ2","LEWISHAM AND GREENWICH NHS TRUST",null,null,null,"RA7","BOLTON NHS FOUNDATION TRUST"]
[null,null,null,null,null,null,null,null,null,null,"Extremely Unlikely","Unlikely",null,null,"Q85","NHS England South West (South West South)",null,"Q84","NHS England South East (Hampshire, Isle Of Wight & Thames Valley)",null,"Q71","RAS","THE HILLINGDON HOSPITALS NHS FOUNDATION TRUST",null,null,null,"RA9","BRADFORD TEACHING HOSPITALS NHS FOUNDATION TRUST"]
[null,null,null,null,null,null,null,null,null,null,"Don't Know","Extremely Unlikely",null,null,"Q86","NHS England South West (South West North)",null,"Q85","NHS England South East (Kent, Surrey & Sussex)",null,"Q71","RQX","HOMERTON UNIVERSITY HOSPITAL NHS FOUNDATION TRUST",null,null,null,"RAE","BRIDGEWATER COMMUNITY HEALTHCARE NHS FOUNDATION TRUST"]
[null,null,null,null,null,null,null,null,null,null,null,"Don't Know",null,null,"Q87","NHS England South East (Hampshire, Isle Of Wight & Thames Valley)",null,"Q86","NHS England South West (South West North)",null,"Q71","RKE","WHITTINGTON HEALTH NHS TRUST",null,null,null,"RAJ","BRIGHTON AND SUSSEX UNIVERSITY HOSPITALS NHS TRUST"]
[null,null,null,null,null,null,null,null,null,null,null,"SMS/Text / Smartphone App",null,null,"Q88","NHS England South East (Kent, Surrey & Sussex)",null,"Q87","NHS England South West (South West South)",null,"Q71","RQM","CHELSEA AND WESTMINSTER HOSPITAL NHS FOUNDATION TRUST",null,null,null,"RAL","BUCKINGHAMSHIRE HEALTHCARE NHS TRUST"]
[null,null,null,null,null,null,null,null,null,null,null,"Electronic tablet/kiosk at point of discharge",null,null,"Q71","NHS England London",null,"Q88","NHS England West Midlands",null,"Q71","RJ1","GUY'S AND ST THOMAS' NHS FOUNDATION TRUST",null,null,null,"RAP","CALDERDALE AND HUDDERSFIELD NHS FOUNDATION TRUST"]
[null,null,null,null,null,null,null,null,null,null,null,"Paper / postcard at point of discharge",null,null,"zIS1","Independent Sector Provider",null,"zIS1","NHS England Yorkshire & Humber",null,"Q71","R1H","BARTS HEALTH NHS TRUST",null,null,null,"RAS","CAMBRIDGE UNIVERSITY HOSPITALS NHS FOUNDATION TRUST"]
[null,null,null,null,null,null,null,null,null,null,null,"Paper survey, sent to the patients home",null,null,null,null,null,null,null,null,"Q71","RAP","NORTH MIDDLESEX UNIVERSITY HOSPITAL NHS TRUST",null,null,null,"RAX","CHELSEA AND WESTMINSTER HOSPITAL NHS FOUNDATION TRUST"]
[null,null,null,null,null,null,null,null,null,null,null,"Telephone survey once patient is home",null,null,null,null,null,null,null,null,"Q71","RYJ","IMPERIAL COLLEGE HEALTHCARE NHS TRUST",null,null,null,"RBA","CHESTERFIELD ROYAL HOSPITAL NHS FOUNDATION TRUST"]
[null,null,null,null,null,null,null,null,null,null,null,"Online survey once patient is home",null,null,null,null,null,null,null,null,"Q71","RF4","BARKING, HAVERING AND REDBRIDGE UNIVERSITY HOSPITALS NHS TRUST",null,null,null,"RBD","CITY HOSPITALS SUNDERLAND NHS FOUNDATION TRUST"]
[null,null,null,null,null,null,null,null,null,null,null,"Other",null,null,null,null,null,null,null,null,"Q72","RWA","HULL AND EAST YORKSHIRE HOSPITALS NHS TRUST",null,null,null,"RBK","COUNTESS OF CHESTER HOSPITAL NHS FOUNDATION TRUST"]
[null,null,null,null,null,null,null,null,null,null,null,null,null,null,null,null,null,null,null,null,"Q72","RFF","BARNSLEY HOSPITAL NHS FOUNDATION TRUST",null,null,null,"RBL","COUNTY DURHAM AND DARLINGTON NHS FOUNDATION TRUST"]
[null,null,null,null,null,null,null,null,null,null,null,null,null,null,null,null,null,null,null,null,"Q72","RAE","BRADFORD TEACHING HOSPITALS NHS FOUNDATION TRUST",null,null,null,"RBN","CROYDON HEALTH SERVICES NHS TRUST"]
[null,null,null,null,null,null,null,null,null,null,null,null,null,null,null,null,null,null,null,null,"Q72","RCF","AIREDALE NHS FOUNDATION TRUST",null,null,null,"RBT","DARTFORD AND GRAVESHAM NHS TRUST"]
[null,null,null,null,null,null,null,null,null,null,null,null,null,null,null,null,null,null,null,null,"Q72","RR8","LEEDS TEACHING HOSPITALS NHS TRUST",null,null,null,"RBZ","DONCASTER AND BASSETLAW TEACHING HOSPITALS NHS FOUNDATION TRUST"]
[null,null,null,null,null,null,null,null,null,null,null,null,null,null,null,null,null,null,null,null,"Q72","RCD","HARROGATE AND DISTRICT NHS FOUNDATION TRUST",null,null,null,"RC1","DORSET COUNTY HOSPITAL NHS FOUNDATION TRUST"]
[null,null,null,null,null,null,null,null,null,null,null,null,null,null,null,null,null,null,null,null,"Q72","RJL","NORTHERN LINCOLNSHIRE AND GOOLE NHS FOUNDATION TRUST",null,null,null,"RC9","EAST AND NORTH HERTFORDSHIRE NHS TRUST"]
[null,null,null,null,null,null,null,null,null,null,null,null,null,null,null,null,null,null,null,null,"Q72","RP5","DONCASTER AND BASSETLAW TEACHING HOSPITALS NHS FOUNDATION TRUST",null,null,null,"RCB","EAST CHESHIRE NHS TRUST"]
[null,null,null,null,null,null,null,null,null,null,null,null,null,null,null,null,null,null,null,null,"Q72","RHQ","SHEFFIELD TEACHING HOSPITALS NHS FOUNDATION TRUST",null,null,null,"RCD","EAST KENT HOSPITALS UNIVERSITY NHS FOUNDATION TRUST"]
[null,null,null,null,null,null,null,null,null,null,null,null,null,null,null,null,null,null,null,null,"Q72","RXF","MID YORKSHIRE HOSPITALS NHS TRUST",null,null,null,"RCF","EAST LANCASHIRE HOSPITALS NHS TRUST"]
[null,null,null,null,null,null,null,null,null,null,null,null,null,null,null,null,null,null,null,null,"Q72","RFR","THE ROTHERHAM NHS FOUNDATION TRUST",null,null,null,"RCX","EAST SUFFOLK AND NORTH ESSEX NHS FOUNDATION TRUST"]
[null,null,null,null,null,null,null,null,null,null,null,null,null,null,null,null,null,null,null,null,"Q72","RCB","YORK TEACHING HOSPITAL NHS FOUNDATION TRUST",null,null,null,"RD1","EAST SUSSEX HEALTHCARE NHS TRUST"]
[null,null,null,null,null,null,null,null,null,null,null,null,null,null,null,null,null,null,null,null,"Q72","RWY","CALDERDALE AND HUDDERSFIELD NHS FOUNDATION TRUST",null,null,null,"RD3","EPSOM AND ST HELIER UNIVERSITY HOSPITALS NHS TRUST"]
[null,null,null,null,null,null,null,null,null,null,null,null,null,null,null,null,null,null,null,null,"Q74","RLN","CITY HOSPITALS SUNDERLAND NHS FOUNDATION TRUST",null,null,null,"RD8","FRIMLEY HEALTH NHS FOUNDATION TRUST"]
[null,null,null,null,null,null,null,null,null,null,null,null,null,null,null,null,null,null,null,null,"Q74","RR7","GATESHEAD HEALTH NHS FOUNDATION TRUST",null,null,null,"RDD","GATESHEAD HEALTH NHS FOUNDATION TRUST"]
[null,null,null,null,null,null,null,null,null,null,null,null,null,null,null,null,null,null,null,null,"Q74","RTD","THE NEWCASTLE UPON TYNE HOSPITALS NHS FOUNDATION TRUST",null,null,null,"RDE","GEORGE ELIOT HOSPITAL NHS TRUST"]
[null,null,null,null,null,null,null,null,null,null,null,null,null,null,null,null,null,null,null,null,"Q74","RTR","SOUTH TEES HOSPITALS NHS FOUNDATION TRUST",null,null,null,"RDU","GLOUCESTERSHIRE HOSPITALS NHS FOUNDATION TRUST"]
[null,null,null,null,null,null,null,null,null,null,null,null,null,null,null,null,null,null,null,null,"Q74","RE9","SOUTH TYNESIDE NHS FOUNDATION TRUST",null,null,null,"RDZ","GREAT WESTERN HOSPITALS NHS FOUNDATION TRUST"]
[null,null,null,null,null,null,null,null,null,null,null,null,null,null,null,null,null,null,null,null,"Q74","RVW","NORTH TEES AND HARTLEPOOL NHS FOUNDATION TRUST",null,null,null,"RE9","GUY'S AND ST THOMAS' NHS FOUNDATION TRUST"]
[null,null,null,null,null,null,null,null,null,null,null,null,null,null,null,null,null,null,null,null,"Q74","RXP","COUNTY DURHAM AND DARLINGTON NHS FOUNDATION TRUST",null,null,null,"REF","HAMPSHIRE HOSPITALS NHS FOUNDATION TRUST"]
[null,null,null,null,null,null,null,null,null,null,null,null,null,null,null,null,null,null,null,null,"Q74","RNL","NORTH CUMBRIA UNIVERSITY HOSPITALS NHS TRUST",null,null,null,"REP","HARROGATE AND DISTRICT NHS FOUNDATION TRUST"]
[null,null,null,null,null,null,null,null,null,null,null,null,null,null,null,null,null,null,null,null,"Q74","RTF","NORTHUMBRIA HEALTHCARE NHS FOUNDATION TRUST",null,null,null,"RF4","HOMERTON UNIVERSITY HOSPITAL NHS FOUNDATION TRUST"]
[null,null,null,null,null,null,null,null,null,null,null,null,null,null,null,null,null,null,null,null,"Q75","RBL","WIRRAL UNIVERSITY TEACHING HOSPITAL NHS FOUNDATION TRUST",null,null,null,"RFF","HULL AND EAST YORKSHIRE HOSPITALS NHS TRUST"]
[null,null,null,null,null,null,null,null,null,null,null,null,null,null,null,null,null,null,null,null,"Q75","RBT","MID CHESHIRE HOSPITALS NHS FOUNDATION TRUST",null,null,null,"RFR","IMPERIAL COLLEGE HEALTHCARE NHS TRUST"]
[null,null,null,null,null,null,null,null,null,null,null,null,null,null,null,null,null,null,null,null,"Q75","RVY","SOUTHPORT AND ORMSKIRK HOSPITAL NHS TRUST",null,null,null,"RFS","ISLE OF WIGHT NHS TRUST"]
[null,null,null,null,null,null,null,null,null,null,null,null,null,null,null,null,null,null,null,null,"Q75","RWW","WARRINGTON AND HALTON HOSPITALS NHS FOUNDATION TRUST",null,null,null,"RGN","JAMES PAGET UNIVERSITY HOSPITALS NHS FOUNDATION TRUST"]
[null,null,null,null,null,null,null,null,null,null,null,null,null,null,null,null,null,null,null,null,"Q75","RBN","ST HELENS AND KNOWSLEY TEACHING HOSPITALS NHS TRUST",null,null,null,"RGP","KETTERING GENERAL HOSPITAL NHS FOUNDATION TRUST"]
[null,null,null,null,null,null,null,null,null,null,null,null,null,null,null,null,null,null,null,null,"Q75","RJN","EAST CHESHIRE NHS TRUST",null,null,null,"RGR","KING'S COLLEGE HOSPITAL NHS FOUNDATION TRUST"]
[null,null,null,null,null,null,null,null,null,null,null,null,null,null,null,null,null,null,null,null,"Q75","REP","LIVERPOOL WOMEN'S NHS FOUNDATION TRUST",null,null,null,"RGT","KINGSTON HOSPITAL NHS FOUNDATION TRUST"]
[null,null,null,null,null,null,null,null,null,null,null,null,null,null,null,null,null,null,null,null,"Q75","RJR","COUNTESS OF CHESTER HOSPITAL NHS FOUNDATION TRUST",null,null,null,"RH8","LANCASHIRE TEACHING HOSPITALS NHS FOUNDATION TRUST"]
[null,null,null,null,null,null,null,null,null,null,null,null,null,null,null,null,null,null,null,null,"Q76","RXW","SHREWSBURY AND TELFORD HOSPITAL NHS TRUST",null,null,null,"RHM","LEEDS TEACHING HOSPITALS NHS TRUST"]
[null,null,null,null,null,null,null,null,null,null,null,null,null,null,null,null,null,null,null,null,"Q76","RK5","SHERWOOD FOREST HOSPITALS NHS FOUNDATION TRUST",null,null,null,"RHQ","LEWISHAM AND GREENWICH NHS TRUST"]
[null,null,null,null,null,null,null,null,null,null,null,null,null,null,null,null,null,null,null,null,"Q76","RFS","CHESTERFIELD ROYAL HOSPITAL NHS FOUNDATION TRUST",null,null,null,"RHU","LIVERPOOL WOMEN'S NHS FOUNDATION TRUST"]
[null,null,null,null,null,null,null,null,null,null,null,null,null,null,null,null,null,null,null,null,"Q76","RTG","UNIVERSITY HOSPITALS OF DERBY AND BURTON NHS FOUNDATION TRUST",null,null,null,"RHW","LONDON NORTH WEST UNIVERSITY HEALTHCARE NHS TRUST"]
[null,null,null,null,null,null,null,null,null,null,null,null,null,null,null,null,null,null,null,null,"Q76","RJE","UNIVERSITY HOSPITALS OF NORTH MIDLANDS NHS TRUST",null,null,null,"RJ1","LUTON AND DUNSTABLE UNIVERSITY HOSPITAL NHS FOUNDATION TRUST"]
[null,null,null,null,null,null,null,null,null,null,null,null,null,null,null,null,null,null,null,null,"Q76","RX1","NOTTINGHAM UNIVERSITY HOSPITALS NHS TRUST",null,null,null,"RJ2","MAIDSTONE AND TUNBRIDGE WELLS NHS TRUST"]
[null,null,null,null,null,null,null,null,null,null,null,null,null,null,null,null,null,null,null,null,"Q77","RRK","UNIVERSITY HOSPITALS BIRMINGHAM NHS FOUNDATION TRUST",null,null,null,"RJ6","MANCHESTER UNIVERSITY NHS FOUNDATION TRUST"]
[null,null,null,null,null,null,null,null,null,null,null,null,null,null,null,null,null,null,null,null,"Q77","RXK","SANDWELL AND WEST BIRMINGHAM HOSPITALS NHS TRUST",null,null,null,"RJ7","MEDWAY NHS FOUNDATION TRUST"]
[null,null,null,null,null,null,null,null,null,null,null,null,null,null,null,null,null,null,null,null,"Q77","RJC","SOUTH WARWICKSHIRE NHS FOUNDATION TRUST",null,null,null,"RJC","MID CHESHIRE HOSPITALS NHS FOUNDATION TRUST"]
[null,null,null,null,null,null,null,null,null,null,null,null,null,null,null,null,null,null,null,null,"Q77","RLQ","WYE VALLEY NHS TRUST",null,null,null,"RJE","MID ESSEX HOSPITAL SERVICES NHS TRUST"]
[null,null,null,null,null,null,null,null,null,null,null,null,null,null,null,null,null,null,null,null,"Q77","RNA","THE DUDLEY GROUP NHS FOUNDATION TRUST",null,null,null,"RJL","MID YORKSHIRE HOSPITALS NHS TRUST"]
[null,null,null,null,null,null,null,null,null,null,null,null,null,null,null,null,null,null,null,null,"Q77","RBK","WALSALL HEALTHCARE NHS TRUST",null,null,null,"RJN","MILTON KEYNES UNIVERSITY HOSPITAL NHS FOUNDATION TRUST"]
[null,null,null,null,null,null,null,null,null,null,null,null,null,null,null,null,null,null,null,null,"Q77","RLT","GEORGE ELIOT HOSPITAL NHS TRUST",null,null,null,"RJR","NORFOLK AND NORWICH UNIVERSITY HOSPITALS NHS FOUNDATION TRUST"]
[null,null,null,null,null,null,null,null,null,null,null,null,null,null,null,null,null,null,null,null,"Q77","RKB","UNIVERSITY HOSPITALS COVENTRY AND WARWICKSHIRE NHS TRUST",null,null,null,"RJZ","NORTH BRISTOL NHS TRUST"]
[null,null,null,null,null,null,null,null,null,null,null,null,null,null,null,null,null,null,null,null,"Q77","RQ3","BIRMINGHAM WOMEN'S AND CHILDREN'S NHS FOUNDATION TRUST",null,null,null,"RK5","NORTH CUMBRIA UNIVERSITY HOSPITALS NHS TRUST"]
[null,null,null,null,null,null,null,null,null,null,null,null,null,null,null,null,null,null,null,null,"Q77","RWP","WORCESTERSHIRE ACUTE HOSPITALS NHS TRUST",null,null,null,"RK9","NORTH MIDDLESEX UNIVERSITY HOSPITAL NHS TRUST"]
[null,null,null,null,null,null,null,null,null,null,null,null,null,null,null,null,null,null,null,null,"Q77","RL4","THE ROYAL WOLVERHAMPTON NHS TRUST",null,null,null,"RKB","NORTH TEES AND HARTLEPOOL NHS FOUNDATION TRUST"]
[null,null,null,null,null,null,null,null,null,null,null,null,null,null,null,null,null,null,null,null,"Q78","RD8","MILTON KEYNES UNIVERSITY HOSPITAL NHS FOUNDATION TRUST",null,null,null,"RKE","NORTH WEST ANGLIA NHS FOUNDATION TRUST"]
[null,null,null,null,null,null,null,null,null,null,null,null,null,null,null,null,null,null,null,null,"Q78","RWG","WEST HERTFORDSHIRE HOSPITALS NHS TRUST",null,null,null,"RL4","NORTHAMPTON GENERAL HOSPITAL NHS TRUST"]
[null,null,null,null,null,null,null,null,null,null,null,null,null,null,null,null,null,null,null,null,"Q78","RC9","LUTON AND DUNSTABLE UNIVERSITY HOSPITAL NHS FOUNDATION TRUST",null,null,null,"RLN","NORTHERN DEVON HEALTHCARE NHS TRUST"]
[null,null,null,null,null,null,null,null,null,null,null,null,null,null,null,null,null,null,null,null,"Q78","RWD","UNITED LINCOLNSHIRE HOSPITALS NHS TRUST",null,null,null,"RLQ","NORTHERN LINCOLNSHIRE AND GOOLE NHS FOUNDATION TRUST"]
[null,null,null,null,null,null,null,null,null,null,null,null,null,null,null,null,null,null,null,null,"Q78","RWH","EAST AND NORTH HERTFORDSHIRE NHS TRUST",null,null,null,"RLT","NORTHUMBRIA HEALTHCARE NHS FOUNDATION TRUST"]
[null,null,null,null,null,null,null,null,null,null,null,null,null,null,null,null,null,null,null,null,"Q78","RC1","BEDFORD HOSPITAL NHS TRUST",null,null,null,"RM1","NOTTINGHAM UNIVERSITY HOSPITALS NHS TRUST"]
[null,null,null,null,null,null,null,null,null,null,null,null,null,null,null,null,null,null,null,null,"Q78","RNQ","KETTERING GENERAL HOSPITAL NHS FOUNDATION TRUST",null,null,null,"RMC","ONE TO ONE (NORTH WEST) LIMITED"]
[null,null,null,null,null,null,null,null,null,null,null,null,null,null,null,null,null,null,null,null,"Q78","RNS","NORTHAMPTON GENERAL HOSPITAL NHS TRUST",null,null,null,"RMP","OXFORD UNIVERSITY HOSPITALS NHS FOUNDATION TRUST"]
[null,null,null,null,null,null,null,null,null,null,null,null,null,null,null,null,null,null,null,null,"Q78","RWE","UNIVERSITY HOSPITALS OF LEICESTER NHS TRUST",null,null,null,"RN3","PENNINE ACUTE HOSPITALS NHS TRUST"]
[null,null,null,null,null,null,null,null,null,null,null,null,null,null,null,null,null,null,null,null,"Q79","RGP","JAMES PAGET UNIVERSITY HOSPITALS NHS FOUNDATION TRUST",null,null,null,"RN5","POOLE HOSPITAL NHS FOUNDATION TRUST"]
[null,null,null,null,null,null,null,null,null,null,null,null,null,null,null,null,null,null,null,null,"Q79","RGT","CAMBRIDGE UNIVERSITY HOSPITALS NHS FOUNDATION TRUST",null,null,null,"RN7","PORTSMOUTH HOSPITALS NHS TRUST"]
[null,null,null,null,null,null,null,null,null,null,null,null,null,null,null,null,null,null,null,null,"Q79","RM1","NORFOLK AND NORWICH UNIVERSITY HOSPITALS NHS FOUNDATION TRUST",null,null,null,"RNA","ROYAL BERKSHIRE NHS FOUNDATION TRUST"]
[null,null,null,null,null,null,null,null,null,null,null,null,null,null,null,null,null,null,null,null,"Q79","RGR","WEST SUFFOLK NHS FOUNDATION TRUST",null,null,null,"RNL","ROYAL CORNWALL HOSPITALS NHS TRUST"]
[null,null,null,null,null,null,null,null,null,null,null,null,null,null,null,null,null,null,null,null,"Q79","RQW","THE PRINCESS ALEXANDRA HOSPITAL NHS TRUST",null,null,null,"RNQ","ROYAL DEVON AND EXETER NHS FOUNDATION TRUST"]
[null,null,null,null,null,null,null,null,null,null,null,null,null,null,null,null,null,null,null,null,"Q79","RCX","THE QUEEN ELIZABETH HOSPITAL, KING'S LYNN, NHS FOUNDATION TRUST",null,null,null,"RNS","ROYAL FREE LONDON NHS FOUNDATION TRUST"]
[null,null,null,null,null,null,null,null,null,null,null,null,null,null,null,null,null,null,null,null,"Q79","RQ8","MID ESSEX HOSPITAL SERVICES NHS TRUST",null,null,null,"RNZ","ROYAL SURREY COUNTY HOSPITAL NHS FOUNDATION TRUST"]
[null,null,null,null,null,null,null,null,null,null,null,null,null,null,null,null,null,null,null,null,"Q79","RDD","BASILDON AND THURROCK UNIVERSITY HOSPITALS NHS FOUNDATION TRUST",null,null,null,"RP5","ROYAL UNITED HOSPITALS BATH NHS FOUNDATION TRUST"]
[null,null,null,null,null,null,null,null,null,null,null,null,null,null,null,null,null,null,null,null,"Q79","RAJ","SOUTHEND UNIVERSITY HOSPITAL NHS FOUNDATION TRUST",null,null,null,"RPA","SALISBURY NHS FOUNDATION TRUST"]
[null,null,null,null,null,null,null,null,null,null,null,null,null,null,null,null,null,null,null,null,"Q79","RDE","EAST SUFFOLK AND NORTH ESSEX NHS FOUNDATION TRUST",null,null,null,"RQ3","SANDWELL AND WEST BIRMINGHAM HOSPITALS NHS TRUST"]
[null,null,null,null,null,null,null,null,null,null,null,null,null,null,null,null,null,null,null,null,"Q79","RGN","NORTH WEST ANGLIA NHS FOUNDATION TRUST",null,null,null,"RQ8","SHEFFIELD TEACHING HOSPITALS NHS FOUNDATION TRUST"]
[null,null,null,null,null,null,null,null,null,null,null,null,null,null,null,null,null,null,null,null,"Q83","RRF","WRIGHTINGTON, WIGAN AND LEIGH NHS FOUNDATION TRUST",null,null,null,"RQM","SHERWOOD FOREST HOSPITALS NHS FOUNDATION TRUST"]
[null,null,null,null,null,null,null,null,null,null,null,null,null,null,null,null,null,null,null,null,"Q83","RMP","TAMESIDE AND GLOSSOP INTEGRATED CARE NHS FOUNDATION TRUST",null,null,null,"RQW","SHREWSBURY AND TELFORD HOSPITAL NHS TRUST"]
[null,null,null,null,null,null,null,null,null,null,null,null,null,null,null,null,null,null,null,null,"Q83","RWJ","STOCKPORT NHS FOUNDATION TRUST",null,null,null,"RQX","SOUTH TEES HOSPITALS NHS FOUNDATION TRUST"]
[null,null,null,null,null,null,null,null,null,null,null,null,null,null,null,null,null,null,null,null,"Q83","RW6","PENNINE ACUTE HOSPITALS NHS TRUST",null,null,null,"RR7","SOUTH TYNESIDE NHS FOUNDATION TRUST"]
[null,null,null,null,null,null,null,null,null,null,null,null,null,null,null,null,null,null,null,null,"Q83","RY2","BRIDGEWATER COMMUNITY HEALTHCARE NHS FOUNDATION TRUST",null,null,null,"RR8","SOUTH WARWICKSHIRE NHS FOUNDATION TRUST"]
[null,null,null,null,null,null,null,null,null,null,null,null,null,null,null,null,null,null,null,null,"Q83","R0A","MANCHESTER UNIVERSITY NHS FOUNDATION TRUST",null,null,null,"RRF","SOUTHEND UNIVERSITY HOSPITAL NHS FOUNDATION TRUST"]
[null,null,null,null,null,null,null,null,null,null,null,null,null,null,null,null,null,null,null,null,"Q83","RMC","BOLTON NHS FOUNDATION TRUST",null,null,null,"RRK","SOUTHPORT AND ORMSKIRK HOSPITAL NHS TRUST"]
[null,null,null,null,null,null,null,null,null,null,null,null,null,null,null,null,null,null,null,null,"Q84","RTX","UNIVERSITY HOSPITALS OF MORECAMBE BAY NHS FOUNDATION TRUST",null,null,null,"RRV","ST GEORGE'S UNIVERSITY HOSPITALS NHS FOUNDATION TRUST"]
[null,null,null,null,null,null,null,null,null,null,null,null,null,null,null,null,null,null,null,null,"Q84","RXN","LANCASHIRE TEACHING HOSPITALS NHS FOUNDATION TRUST",null,null,null,"RTD","ST HELENS AND KNOWSLEY TEACHING HOSPITALS NHS TRUST"]
[null,null,null,null,null,null,null,null,null,null,null,null,null,null,null,null,null,null,null,null,"Q84","RXL","BLACKPOOL TEACHING HOSPITALS NHS FOUNDATION TRUST",null,null,null,"RTE","STOCKPORT NHS FOUNDATION TRUST"]
[null,null,null,null,null,null,null,null,null,null,null,null,null,null,null,null,null,null,null,null,"Q84","RXR","EAST LANCASHIRE HOSPITALS NHS TRUST",null,null,null,"RTF","SURREY AND SUSSEX HEALTHCARE NHS TRUST"]
[null,null,null,null,null,null,null,null,null,null,null,null,null,null,null,null,null,null,null,null,"Q85","RA4","YEOVIL DISTRICT HOSPITAL NHS FOUNDATION TRUST",null,null,null,"RTG","TAMESIDE AND GLOSSOP INTEGRATED CARE NHS FOUNDATION TRUST"]
[null,null,null,null,null,null,null,null,null,null,null,null,null,null,null,null,null,null,null,null,"Q85","RA9","TORBAY AND SOUTH DEVON NHS FOUNDATION TRUST",null,null,null,"RTH","TAUNTON AND SOMERSET NHS FOUNDATION TRUST"]
[null,null,null,null,null,null,null,null,null,null,null,null,null,null,null,null,null,null,null,null,"Q85","REF","ROYAL CORNWALL HOSPITALS NHS TRUST",null,null,null,"RTP","THE DUDLEY GROUP NHS FOUNDATION TRUST"]
[null,null,null,null,null,null,null,null,null,null,null,null,null,null,null,null,null,null,null,null,"Q85","RBZ","NORTHERN DEVON HEALTHCARE NHS TRUST",null,null,null,"RTR","THE HILLINGDON HOSPITALS NHS FOUNDATION TRUST"]
[null,null,null,null,null,null,null,null,null,null,null,null,null,null,null,null,null,null,null,null,"Q85","RH8","ROYAL DEVON AND EXETER NHS FOUNDATION TRUST",null,null,null,"RTX","THE NEWCASTLE UPON TYNE HOSPITALS NHS FOUNDATION TRUST"]
[null,null,null,null,null,null,null,null,null,null,null,null,null,null,null,null,null,null,null,null,"Q85","RD3","POOLE HOSPITAL NHS FOUNDATION TRUST",null,null,null,"RVJ","THE PRINCESS ALEXANDRA HOSPITAL NHS TRUST"]
[null,null,null,null,null,null,null,null,null,null,null,null,null,null,null,null,null,null,null,null,"Q85","RDZ","THE ROYAL BOURNEMOUTH AND CHRISTCHURCH HOSPITALS NHS FOUNDATION TRUST",null,null,null,"RVR","THE QUEEN ELIZABETH HOSPITAL, KING'S LYNN, NHS FOUNDATION TRUST"]
[null,null,null,null,null,null,null,null,null,null,null,null,null,null,null,null,null,null,null,null,"Q85","RBD","DORSET COUNTY HOSPITAL NHS FOUNDATION TRUST",null,null,null,"RVV","THE ROTHERHAM NHS FOUNDATION TRUST"]
[null,null,null,null,null,null,null,null,null,null,null,null,null,null,null,null,null,null,null,null,"Q85","RK9","UNIVERSITY HOSPITALS PLYMOUTH NHS TRUST",null,null,null,"RVW","THE ROYAL BOURNEMOUTH AND CHRISTCHURCH HOSPITALS NHS FOUNDATION TRUST"]
[null,null,null,null,null,null,null,null,null,null,null,null,null,null,null,null,null,null,null,null,"Q85","RBA","TAUNTON AND SOMERSET NHS FOUNDATION TRUST",null,null,null,"RVY","THE ROYAL WOLVERHAMPTON NHS TRUST"]
[null,null,null,null,null,null,null,null,null,null,null,null,null,null,null,null,null,null,null,null,"Q86","RTE","GLOUCESTERSHIRE HOSPITALS NHS FOUNDATION TRUST",null,null,null,"RW6","TORBAY AND SOUTH DEVON NHS FOUNDATION TRUST"]
[null,null,null,null,null,null,null,null,null,null,null,null,null,null,null,null,null,null,null,null,"Q86","RNZ","SALISBURY NHS FOUNDATION TRUST",null,null,null,"RWA","UNITED LINCOLNSHIRE HOSPITALS NHS TRUST"]
[null,null,null,null,null,null,null,null,null,null,null,null,null,null,null,null,null,null,null,null,"Q86","RN3","GREAT WESTERN HOSPITALS NHS FOUNDATION TRUST",null,null,null,"RWD","UNIVERSITY COLLEGE LONDON HOSPITALS NHS FOUNDATION TRUST"]
[null,null,null,null,null,null,null,null,null,null,null,null,null,null,null,null,null,null,null,null,"Q86","RA3","WESTON AREA HEALTH NHS TRUST",null,null,null,"RWE","UNIVERSITY HOSPITAL SOUTHAMPTON NHS FOUNDATION TRUST"]
[null,null,null,null,null,null,null,null,null,null,null,null,null,null,null,null,null,null,null,null,"Q86","RA7","UNIVERSITY HOSPITALS BRISTOL NHS FOUNDATION TRUST",null,null,null,"RWF","UNIVERSITY HOSPITALS BIRMINGHAM NHS FOUNDATION TRUST"]
[null,null,null,null,null,null,null,null,null,null,null,null,null,null,null,null,null,null,null,null,"Q86","RD1","ROYAL UNITED HOSPITALS BATH NHS FOUNDATION TRUST",null,null,null,"RWG","UNIVERSITY HOSPITALS BRISTOL NHS FOUNDATION TRUST"]
[null,null,null,null,null,null,null,null,null,null,null,null,null,null,null,null,null,null,null,null,"Q86","RVJ","NORTH BRISTOL NHS TRUST",null,null,null,"RWH","UNIVERSITY HOSPITALS COVENTRY AND WARWICKSHIRE NHS TRUST"]
[null,null,null,null,null,null,null,null,null,null,null,null,null,null,null,null,null,null,null,null,"Q87","R1F","ISLE OF WIGHT NHS TRUST",null,null,null,"RWJ","UNIVERSITY HOSPITALS OF DERBY AND BURTON NHS FOUNDATION TRUST"]
[null,null,null,null,null,null,null,null,null,null,null,null,null,null,null,null,null,null,null,null,"Q87","RN5","HAMPSHIRE HOSPITALS NHS FOUNDATION TRUST",null,null,null,"RWP","UNIVERSITY HOSPITALS OF LEICESTER NHS TRUST"]
[null,null,null,null,null,null,null,null,null,null,null,null,null,null,null,null,null,null,null,null,"Q87","RHU","PORTSMOUTH HOSPITALS NHS TRUST",null,null,null,"RWW","UNIVERSITY HOSPITALS OF MORECAMBE BAY NHS FOUNDATION TRUST"]
[null,null,null,null,null,null,null,null,null,null,null,null,null,null,null,null,null,null,null,null,"Q87","RHW","ROYAL BERKSHIRE NHS FOUNDATION TRUST",null,null,null,"RWY","UNIVERSITY HOSPITALS OF NORTH MIDLANDS NHS TRUST"]
[null,null,null,null,null,null,null,null,null,null,null,null,null,null,null,null,null,null,null,null,"Q87","RXQ","BUCKINGHAMSHIRE HEALTHCARE NHS TRUST",null,null,null,"RX1","UNIVERSITY HOSPITALS PLYMOUTH NHS TRUST"]
[null,null,null,null,null,null,null,null,null,null,null,null,null,null,null,null,null,null,null,null,"Q87","RTH","OXFORD UNIVERSITY HOSPITALS NHS FOUNDATION TRUST",null,null,null,"RXC","WALSALL HEALTHCARE NHS TRUST"]
[null,null,null,null,null,null,null,null,null,null,null,null,null,null,null,null,null,null,null,null,"Q87","RDU","FRIMLEY HEALTH NHS FOUNDATION TRUST",null,null,null,"RXF","WARRINGTON AND HALTON HOSPITALS NHS FOUNDATION TRUST"]
[null,null,null,null,null,null,null,null,null,null,null,null,null,null,null,null,null,null,null,null,"Q87","RHM","UNIVERSITY HOSPITAL SOUTHAMPTON NHS FOUNDATION TRUST",null,null,null,"RXH","WEST HERTFORDSHIRE HOSPITALS NHS TRUST"]
[null,null,null,null,null,null,null,null,null,null,null,null,null,null,null,null,null,null,null,null,"Q88","RN7","DARTFORD AND GRAVESHAM NHS TRUST",null,null,null,"RXK","WEST SUFFOLK NHS FOUNDATION TRUST"]
[null,null,null,null,null,null,null,null,null,null,null,null,null,null,null,null,null,null,null,null,"Q88","RPA","MEDWAY NHS FOUNDATION TRUST",null,null,null,"RXL","WESTERN SUSSEX HOSPITALS NHS FOUNDATION TRUST"]
[null,null,null,null,null,null,null,null,null,null,null,null,null,null,null,null,null,null,null,null,"Q88","RXC","EAST SUSSEX HEALTHCARE NHS TRUST",null,null,null,"RXN","WESTON AREA HEALTH NHS TRUST"]
[null,null,null,null,null,null,null,null,null,null,null,null,null,null,null,null,null,null,null,null,"Q88","RYR","WESTERN SUSSEX HOSPITALS NHS FOUNDATION TRUST",null,null,null,"RXP","WHITTINGTON HEALTH NHS TRUST"]
[null,null,null,null,null,null,null,null,null,null,null,null,null,null,null,null,null,null,null,null,"Q88","RTP","SURREY AND SUSSEX HEALTHCARE NHS TRUST",null,null,null,"RXQ","WIRRAL UNIVERSITY TEACHING HOSPITAL NHS FOUNDATION TRUST"]
[null,null,null,null,null,null,null,null,null,null,null,null,null,null,null,null,null,null,null,null,"Q88","RWF","MAIDSTONE AND TUNBRIDGE WELLS NHS TRUST",null,null,null,"RXR","WORCESTERSHIRE ACUTE HOSPITALS NHS TRUST"]
[null,null,null,null,null,null,null,null,null,null,null,null,null,null,null,null,null,null,null,null,"Q88","RXH","BRIGHTON AND SUSSEX UNIVERSITY HOSPITALS NHS TRUST",null,null,null,"RXW","WRIGHTINGTON, WIGAN AND LEIGH NHS FOUNDATION TRUST"]
[null,null,null,null,null,null,null,null,null,null,null,null,null,null,null,null,null,null,null,null,"Q88","RA2","ROYAL SURREY COUNTY HOSPITAL NHS FOUNDATION TRUST",null,null,null,"RY2","WYE VALLEY NHS TRUST"]
[null,null,null,null,null,null,null,null,null,null,null,null,null,null,null,null,null,null,null,null,"Q88","RVV","EAST KENT HOSPITALS UNIVERSITY NHS FOUNDATION TRUST",null,null,null,"RYJ","YEOVIL DISTRICT HOSPITAL NHS FOUNDATION TRUST"]
[null,null,null,null,null,null,null,null,null,null,null,null,null,null,null,null,null,null,null,null,"zIS1","NDE","ONE TO ONE (NORTH WEST) LIMITED",null,null,null,"RYR","YORK TEACHING HOSPITAL NHS FOUNDATION TRUST"]